Workbook

Sheet Please Read
A1: =ClubForIR&" "&Coding!AV6 -> CIPFA Public Libraries Profile 2019
A2: INTERACTIVE REPORT
B4: A) What is the Interactive Report?
B6: The Interactive Report is another version of the club's final reports. It contains the same data and will faithfully recreate the charts displayed in the pdf/hardcopy reports. It is easy to use and provides additional information.
B8: B) What are the advantages of the Interactive Report compared to the normal reports?
B10: The Interactive Report has the following advantages over the normal reports:
B12: 1) The comparison group can be changed.
B14: • This enables multiple comparisons e.g. against neighbouring authorities, high performers or family groups.
B15: • Different comparison groups can be used for different charts.
B17: 2) The value for each authority displaying on the graph is displayed in a table below the chart.
B18: This information is not available in the normal reports and has several uses.
B20: • Giving detailed information on family groups, e.g. the values of the headline indicators for each member.
B21: • Identifying authorities with high, low or similar values.
B22: • Identifying quartiles, and which authorities fall into each quartile.
B24: 3) The format of the chart can be changed.
B25: The charts in our reports have been formatted to print clearly on a wide range of printers in both colour
B26: and in black and white. In the interactive report this can be amended to suit your preferences.
B28: • The colour scheme can be amended to match 'corporate' colour schemes.
B29: • More 'aesthetic' options can be used.
B31: 4) Charts automatically print as an A4 page or charts can be copied to produce custom reports
B32: or presentations.
B34: • The Chart prints automatically as an A4 sheet containing all the relevant information.
B35: • Please see below for details of how to use this to copy charts and produce your own reports.
B36: This could be used to produce for example summary reports, any selection of charts or the same
B37: chart compared to multiple comparison groups.
B39: C) Instructions for the Interactive Report
B41: The report sheet is split into two sections:
B43: The Upper section: This section prints out on one page of A4 paper. It allows you to view or print out a copy of individual charts from the original report. Using 3 controls, you can choose which graph is to be displayed, which authority's value you would like to see and within which comparator group set. If the chosen chart contains less than 22 authorities' data, e.g. if the "Original Comparators" selection is chosen, a key with corresponding letters will appear on the right of the chart. The boxes "Black Bar" and "Average" display the value of the selected authority and the average value across the selected comparator group.
B44: The three controls are in the form of three drop down lists:
C45: Step 1 - Graph: This selects the graph you would like to display
C46: Step 2 - Authority: This highlights any authority on the graph
C47: Step 3 - Comparator Group: This chooses which overall comparison group is used
B49: The Bottom section: This section does not print. This section provides data for the authorities displaying on the graph and enables you to select customised comparison groups.
B51: The contents of this bottom section are affected by the comparator group chosen in Step 3 of the Upper section. Only authorities present in the selected comparator group will be displayed in the bottom section.
B53: The table of data is automatically sorted by the value displayed on the chart. This means that the first value showing in the table corresponds to the first bar on the left of the chart and so on. You can change how the data is sorted by using the "radio buttons" at the top of the table.
B55: Using the Radio buttons to sort the data: The small circles beside each column heading of the Bottom section are radio buttons. By using these buttons, the information on the Bottom section can be sorted in a different order. This has no effect on the way the chart is displayed. "Short Name", causes information to be displayed in alphabetical order. "Data", causes information to be displayed in descending order of the graph data. "Tier", causes information to be displayed by order of tier.
B57: Selecting Authorities:
B58: Authorities of interest can be selected and then either be made to display at the top of the table, so their data can be found quickly or displayed on the chart on their own as a customised comparator group.
B60: To select an authority: Tick the tickbox beside the authority's name.
B62: To unselect an authority: Untick the tickbox beside the authority's name.
B64: You will then be able to use the two additional tick boxes to bring this data to the top of the table or to display
B65: the selected group on the chart.
B67: "Force Selected Authorities to top" tick box: Ticking this box has no effect on the chart itself but it will force the selected authorities to rise to the top of the table. This would be particularly useful if you want to see how other authorities perform in the same comparator group.
B68: "Display only selected authorities" tick box: When this is selected the chart will only display the authorities that have been selected. If this is unchecked the chart will display all authorities in the overall Comparator Group from the Upper section.
B70: D) Copying Charts to produce your own reports
B72: Our Benchmarking reports contain a lot of information, and members may sometimes find it
B73: useful to summarise key aspects, or incorporate some of this information into their own reports.
B75: Charts produced in the Interactive Report can be used in member's own reports. There are many
B76: ways in which the charts can be copied, however some produce lower quality charts, here we give
B77: two options.
B79: In either case, the member may wish to change the format of the graph (colours/backgrounds/shading etc…)
B80: to suit their requirements.
B82: The Simpler method - however quality of charts may be reduced
B84: I) Highlight the chart:
C86: Hold down shift and left click on the chart. The chart will be selected.
B88: II) Copy the chart:
C90: Hold down shift and using the menus select Edit --> Copy Picture
C91: Select the options "As shown on screen" and "Picture" and press Okay
B93: III) You can now paste the chart into a Word, Powerpoint or new Excel document.
C95: (Edit --> Paste)
B97: A slightly longer method which produces full quality charts
B99: This method produces higher quality charts, but the 'size' (in kb) of the picture produced will also be
B100: much bigger.
B102: I) Remove the textured background for the view.
C104: View --> "Page Break Preview"
C106: You may need to refresh the screen. This can been done by pressing "Page Down"
C107: and then "Page Up". You may also wish to change the colour of the background.
B109: II) Copy the whole Screen.
C111: Press the "Print Screen" key.
C113: You will need to make sure that the cursor and active cell are not in near the chart
C114: to prevent them disrupting the picture.
B116: III) Paste into a new Excel Worksheet (or word/powerpoint etc…)
C118: Edit --> Paste
B120: IV) Activate the "Picture" Toolbar.
C122: View --> Toolbars --> Picture
B124: V) Crop the picture to leave only the chart.
C130: Left click on the picture to activate it.
C131: Select the crop tool from the toolbar (circled above).
C132: At the corners and centre of the sides short, thick black bars will appear.
C133: Move these bars to crop the picture to leave only the chart.
B135: VI) The cropped picture can now be copied and pasted into your report.
B138: E) Please Note
B140: We hope that you find this reasonably intuitive to use after a little practice and that it provides
B141: ="some interesting comparisons. If you have any queries please e-mail "&Coding!AV7 -> some interesting comparisons. If you have any queries please e-mail analytics@cipfa.org

Sheet Interactive Report
B2: =ClubForIR&" "&Coding!AV6 -> CIPFA Public Libraries Profile 2019
L4: =IF(ISERROR(Coding!Z7),"",Coding!Z7) ->  | M4: =IF(L4="","",OFFSET($C$35,MATCH(L4,OFFSET($D$35,0,0,Coding!$J$4,1),FALSE)-1,0,,)) -> 
L5: =IF(ISERROR(Coding!Z8),"",Coding!Z8) ->  | M5: =IF(L5="","",OFFSET($C$35,MATCH(L5,OFFSET($D$35,0,0,Coding!$J$4,1),FALSE)-1,0,,)) -> 
L6: =IF(ISERROR(Coding!Z9),"",Coding!Z9) ->  | M6: =IF(L6="","",OFFSET($C$35,MATCH(L6,OFFSET($D$35,0,0,Coding!$J$4,1),FALSE)-1,0,,)) -> 
L7: =IF(ISERROR(Coding!Z10),"",Coding!Z10) ->  | M7: =IF(L7="","",OFFSET($C$35,MATCH(L7,OFFSET($D$35,0,0,Coding!$J$4,1),FALSE)-1,0,,)) -> 
L8: =IF(ISERROR(Coding!Z11),"",Coding!Z11) ->  | M8: =IF(L8="","",OFFSET($C$35,MATCH(L8,OFFSET($D$35,0,0,Coding!$J$4,1),FALSE)-1,0,,)) -> 
L9: =IF(ISERROR(Coding!Z12),"",Coding!Z12) ->  | M9: =IF(L9="","",OFFSET($C$35,MATCH(L9,OFFSET($D$35,0,0,Coding!$J$4,1),FALSE)-1,0,,)) -> 
L10: =IF(ISERROR(Coding!Z13),"",Coding!Z13) ->  | M10: =IF(L10="","",OFFSET($C$35,MATCH(L10,OFFSET($D$35,0,0,Coding!$J$4,1),FALSE)-1,0,,)) -> 
L11: =IF(ISERROR(Coding!Z14),"",Coding!Z14) ->  | M11: =IF(L11="","",OFFSET($C$35,MATCH(L11,OFFSET($D$35,0,0,Coding!$J$4,1),FALSE)-1,0,,)) -> 
L12: =IF(ISERROR(Coding!Z15),"",Coding!Z15) ->  | M12: =IF(L12="","",OFFSET($C$35,MATCH(L12,OFFSET($D$35,0,0,Coding!$J$4,1),FALSE)-1,0,,)) -> 
L13: =IF(ISERROR(Coding!Z16),"",Coding!Z16) ->  | M13: =IF(L13="","",OFFSET($C$35,MATCH(L13,OFFSET($D$35,0,0,Coding!$J$4,1),FALSE)-1,0,,)) -> 
L14: =IF(ISERROR(Coding!Z17),"",Coding!Z17) ->  | M14: =IF(L14="","",OFFSET($C$35,MATCH(L14,OFFSET($D$35,0,0,Coding!$J$4,1),FALSE)-1,0,,)) -> 
L15: =IF(ISERROR(Coding!Z18),"",Coding!Z18) ->  | M15: =IF(L15="","",OFFSET($C$35,MATCH(L15,OFFSET($D$35,0,0,Coding!$J$4,1),FALSE)-1,0,,)) -> 
L16: =IF(ISERROR(Coding!Z19),"",Coding!Z19) ->  | M16: =IF(L16="","",OFFSET($C$35,MATCH(L16,OFFSET($D$35,0,0,Coding!$J$4,1),FALSE)-1,0,,)) -> 
C17: 5 | L17: =IF(ISERROR(Coding!Z20),"",Coding!Z20) ->  | M17: =IF(L17="","",OFFSET($C$35,MATCH(L17,OFFSET($D$35,0,0,Coding!$J$4,1),FALSE)-1,0,,)) -> 
L18: =IF(ISERROR(Coding!Z21),"",Coding!Z21) ->  | M18: =IF(L18="","",OFFSET($C$35,MATCH(L18,OFFSET($D$35,0,0,Coding!$J$4,1),FALSE)-1,0,,)) -> 
L19: =IF(ISERROR(Coding!Z22),"",Coding!Z22) ->  | M19: =IF(L19="","",OFFSET($C$35,MATCH(L19,OFFSET($D$35,0,0,Coding!$J$4,1),FALSE)-1,0,,)) -> 
L20: =IF(ISERROR(Coding!Z23),"",Coding!Z23) ->  | M20: =IF(L20="","",OFFSET($C$35,MATCH(L20,OFFSET($D$35,0,0,Coding!$J$4,1),FALSE)-1,0,,)) -> 
L21: =IF(ISERROR(Coding!Z24),"",Coding!Z24) ->  | M21: =IF(L21="","",OFFSET($C$35,MATCH(L21,OFFSET($D$35,0,0,Coding!$J$4,1),FALSE)-1,0,,)) -> 
L22: =IF(ISERROR(Coding!Z25),"",Coding!Z25) ->  | M22: =IF(L22="","",OFFSET($C$35,MATCH(L22,OFFSET($D$35,0,0,Coding!$J$4,1),FALSE)-1,0,,)) -> 
L23: =IF(ISERROR(Coding!Z26),"",Coding!Z26) -> 
C24: Black Bar: | D24: =TEXT(Coding!AB2,OFFSET(Coding!$IU$2,MAX(Coding!$G$38-2,0),0)) ->  | H24: Average: | I24: =TEXT(IF(ISERROR(Coding!AB3),"na",Coding!AB3),OFFSET(Coding!$IU$2,MAX(Coding!$G$38-2,0),0)) -> 19 | L24: =IF(ISERROR(Coding!Z27),"",Coding!Z27) ->  | M24: =IF(L24="","",OFFSET($C$35,MATCH(L24,OFFSET($D$35,0,0,Coding!$J$4,1),FALSE)-1,0,,)) -> 
B29: Confidential - Please remember that club information is confidential and named data must not be passed beyond club members.
B31: =IF(Coding!J9=0," These two tickboxes are currently inactive as no authorities are selected in the table below."," Use tickboxes to display selected authorities on graph or bring selected authorities to the top of the data table.") -> These two tickboxes are currently inactive as no authorities are selected in the table below.
B32: Bring selected authorities to top of data table | H32: Display selected authorities on chart
B33: DATA TABLE | L33: Use radio buttons (next to Shortname, Data and Tier) to sort table.
B34: Select | C34: Authority: | D34: Letter: | F34: Data: | G34: Tier: | H34: Full Name:
C35: =IF(ROW()-34>AuthNo,"na",Coding!AR7) -> Barking & Dagenham | D35: =IF(C35="","",VLOOKUP(C35,OFFSET(Coding!$L$7,0,0,AuthorityCounter,11),11,FALSE)) ->  | F35: =IF(C35="","",TEXT(VLOOKUP(C35,OFFSET(Coding!$L$7,0,0,AuthorityCounter,4),4,FALSE),OFFSET(Coding!$IU$2,MAX(Coding!$G$38-2,0),0))) -> 6 | G35: =IF(C35="","",VLOOKUP(C35,OFFSET(Coding!$L$7,0,0,AuthorityCounter,2),2,FALSE)) -> ul | H35: =IF(C35="","",VLOOKUP(C35,NameRange,2,FALSE)) -> London Borough of Barking & Dagenham
C36: =IF(ROW()-34>AuthNo,"na",Coding!AR8) -> Barnet | D36: =IF(C36="","",VLOOKUP(C36,OFFSET(Coding!$L$7,0,0,AuthorityCounter,11),11,FALSE)) ->  | F36: =IF(C36="","",TEXT(VLOOKUP(C36,OFFSET(Coding!$L$7,0,0,AuthorityCounter,4),4,FALSE),OFFSET(Coding!$IU$2,MAX(Coding!$G$38-2,0),0))) -> 15 | G36: =IF(C36="","",VLOOKUP(C36,OFFSET(Coding!$L$7,0,0,AuthorityCounter,2),2,FALSE)) -> ul | H36: =IF(C36="","",VLOOKUP(C36,NameRange,2,FALSE)) -> London Borough of Barnet
C37: =IF(ROW()-34>AuthNo,"na",Coding!AR9) -> Bedford | D37: =IF(C37="","",VLOOKUP(C37,OFFSET(Coding!$L$7,0,0,AuthorityCounter,11),11,FALSE)) ->  | F37: =IF(C37="","",TEXT(VLOOKUP(C37,OFFSET(Coding!$L$7,0,0,AuthorityCounter,4),4,FALSE),OFFSET(Coding!$IU$2,MAX(Coding!$G$38-2,0),0))) -> 7 | G37: =IF(C37="","",VLOOKUP(C37,OFFSET(Coding!$L$7,0,0,AuthorityCounter,2),2,FALSE)) -> uu | H37: Bedford Council
C38: =IF(ROW()-34>AuthNo,"na",Coding!AR10) -> Bexley | D38: =IF(C38="","",VLOOKUP(C38,OFFSET(Coding!$L$7,0,0,AuthorityCounter,11),11,FALSE)) ->  | F38: =IF(C38="","",TEXT(VLOOKUP(C38,OFFSET(Coding!$L$7,0,0,AuthorityCounter,4),4,FALSE),OFFSET(Coding!$IU$2,MAX(Coding!$G$38-2,0),0))) -> 6 | G38: =IF(C38="","",VLOOKUP(C38,OFFSET(Coding!$L$7,0,0,AuthorityCounter,2),2,FALSE)) -> ul | H38: London Borough of Bexley
C39: =IF(ROW()-34>AuthNo,"na",Coding!AR11) -> Blackburn with Darwen | D39: =IF(C39="","",VLOOKUP(C39,OFFSET(Coding!$L$7,0,0,AuthorityCounter,11),11,FALSE)) ->  | F39: =IF(C39="","",TEXT(VLOOKUP(C39,OFFSET(Coding!$L$7,0,0,AuthorityCounter,4),4,FALSE),OFFSET(Coding!$IU$2,MAX(Coding!$G$38-2,0),0))) -> 5 | G39: =IF(C39="","",VLOOKUP(C39,OFFSET(Coding!$L$7,0,0,AuthorityCounter,2),2,FALSE)) -> uu | H39: Blackburn with Darwen Borough Council
C40: =IF(ROW()-34>AuthNo,"na",Coding!AR12) -> Blackpool | D40: =IF(C40="","",VLOOKUP(C40,OFFSET(Coding!$L$7,0,0,AuthorityCounter,11),11,FALSE)) ->  | F40: =IF(C40="","",TEXT(VLOOKUP(C40,OFFSET(Coding!$L$7,0,0,AuthorityCounter,4),4,FALSE),OFFSET(Coding!$IU$2,MAX(Coding!$G$38-2,0),0))) -> 8 | G40: =IF(C40="","",VLOOKUP(C40,OFFSET(Coding!$L$7,0,0,AuthorityCounter,2),2,FALSE)) -> uu | H40: Blackpool Borough Council
C41: =IF(ROW()-34>AuthNo,"na",Coding!AR13) -> Bolton | D41: =IF(C41="","",VLOOKUP(C41,OFFSET(Coding!$L$7,0,0,AuthorityCounter,11),11,FALSE)) ->  | F41: =IF(C41="","",TEXT(VLOOKUP(C41,OFFSET(Coding!$L$7,0,0,AuthorityCounter,4),4,FALSE),OFFSET(Coding!$IU$2,MAX(Coding!$G$38-2,0),0))) -> 10 | G41: =IF(C41="","",VLOOKUP(C41,OFFSET(Coding!$L$7,0,0,AuthorityCounter,2),2,FALSE)) -> um | H41: Bolton Metropolitan Borough Council
C42: =IF(ROW()-34>AuthNo,"na",Coding!AR14) -> Bournemouth & Poole | D42: =IF(C42="","",VLOOKUP(C42,OFFSET(Coding!$L$7,0,0,AuthorityCounter,11),11,FALSE)) ->  | F42: =IF(C42="","",TEXT(VLOOKUP(C42,OFFSET(Coding!$L$7,0,0,AuthorityCounter,4),4,FALSE),OFFSET(Coding!$IU$2,MAX(Coding!$G$38-2,0),0))) -> 22 | G42: =IF(C42="","",VLOOKUP(C42,OFFSET(Coding!$L$7,0,0,AuthorityCounter,2),2,FALSE)) -> uu | H42: Bournemouth & Poole Libraries
C43: =IF(ROW()-34>AuthNo,"na",Coding!AR15) -> Bournemouth, Christchurch & Poole | D43: =IF(C43="","",VLOOKUP(C43,OFFSET(Coding!$L$7,0,0,AuthorityCounter,11),11,FALSE)) ->  | F43: =IF(C43="","",TEXT(VLOOKUP(C43,OFFSET(Coding!$L$7,0,0,AuthorityCounter,4),4,FALSE),OFFSET(Coding!$IU$2,MAX(Coding!$G$38-2,0),0))) -> na | G43: =IF(C43="","",VLOOKUP(C43,OFFSET(Coding!$L$7,0,0,AuthorityCounter,2),2,FALSE)) -> uu | H43: Bournemouth, Christchurch & Poole Council
C44: =IF(ROW()-34>AuthNo,"na",Coding!AR16) -> Brent | D44: =IF(C44="","",VLOOKUP(C44,OFFSET(Coding!$L$7,0,0,AuthorityCounter,11),11,FALSE)) ->  | F44: =IF(C44="","",TEXT(VLOOKUP(C44,OFFSET(Coding!$L$7,0,0,AuthorityCounter,4),4,FALSE),OFFSET(Coding!$IU$2,MAX(Coding!$G$38-2,0),0))) -> 6 | G44: =IF(C44="","",VLOOKUP(C44,OFFSET(Coding!$L$7,0,0,AuthorityCounter,2),2,FALSE)) -> ul | H44: London Borough of Brent
C45: =IF(ROW()-34>AuthNo,"na",Coding!AR17) -> Brighton & Hove | D45: =IF(C45="","",VLOOKUP(C45,OFFSET(Coding!$L$7,0,0,AuthorityCounter,11),11,FALSE)) ->  | F45: =IF(C45="","",TEXT(VLOOKUP(C45,OFFSET(Coding!$L$7,0,0,AuthorityCounter,4),4,FALSE),OFFSET(Coding!$IU$2,MAX(Coding!$G$38-2,0),0))) -> 14 | G45: =IF(C45="","",VLOOKUP(C45,OFFSET(Coding!$L$7,0,0,AuthorityCounter,2),2,FALSE)) -> uu | H45: Brighton & Hove City Council
C46: =IF(ROW()-34>AuthNo,"na",Coding!AR18) -> Bristol | D46: =IF(C46="","",VLOOKUP(C46,OFFSET(Coding!$L$7,0,0,AuthorityCounter,11),11,FALSE)) ->  | F46: =IF(C46="","",TEXT(VLOOKUP(C46,OFFSET(Coding!$L$7,0,0,AuthorityCounter,4),4,FALSE),OFFSET(Coding!$IU$2,MAX(Coding!$G$38-2,0),0))) -> 27 | G46: =IF(C46="","",VLOOKUP(C46,OFFSET(Coding!$L$7,0,0,AuthorityCounter,2),2,FALSE)) -> uu | H46: Bristol City Council
C47: =IF(ROW()-34>AuthNo,"na",Coding!AR19) -> Bromley | D47: =IF(C47="","",VLOOKUP(C47,OFFSET(Coding!$L$7,0,0,AuthorityCounter,11),11,FALSE)) ->  | F47: =IF(C47="","",TEXT(VLOOKUP(C47,OFFSET(Coding!$L$7,0,0,AuthorityCounter,4),4,FALSE),OFFSET(Coding!$IU$2,MAX(Coding!$G$38-2,0),0))) -> 14 | G47: =IF(C47="","",VLOOKUP(C47,OFFSET(Coding!$L$7,0,0,AuthorityCounter,2),2,FALSE)) -> ul | H47: London Borough of Bromley
C48: =IF(ROW()-34>AuthNo,"na",Coding!AR20) -> Buckinghamshire | D48: =IF(C48="","",VLOOKUP(C48,OFFSET(Coding!$L$7,0,0,AuthorityCounter,11),11,FALSE)) ->  | F48: =IF(C48="","",TEXT(VLOOKUP(C48,OFFSET(Coding!$L$7,0,0,AuthorityCounter,4),4,FALSE),OFFSET(Coding!$IU$2,MAX(Coding!$G$38-2,0),0))) -> 29 | G48: =IF(C48="","",VLOOKUP(C48,OFFSET(Coding!$L$7,0,0,AuthorityCounter,2),2,FALSE)) -> c | H48: Buckinghamshire County Council
C49: =IF(ROW()-34>AuthNo,"na",Coding!AR21) -> Bury | D49: =IF(C49="","",VLOOKUP(C49,OFFSET(Coding!$L$7,0,0,AuthorityCounter,11),11,FALSE)) ->  | F49: =IF(C49="","",TEXT(VLOOKUP(C49,OFFSET(Coding!$L$7,0,0,AuthorityCounter,4),4,FALSE),OFFSET(Coding!$IU$2,MAX(Coding!$G$38-2,0),0))) -> 4 | G49: =IF(C49="","",VLOOKUP(C49,OFFSET(Coding!$L$7,0,0,AuthorityCounter,2),2,FALSE)) -> um | H49: Bury Metropolitan Borough Council
C50: =IF(ROW()-34>AuthNo,"na",Coding!AR22) -> Calderdale | D50: =IF(C50="","",VLOOKUP(C50,OFFSET(Coding!$L$7,0,0,AuthorityCounter,11),11,FALSE)) ->  | F50: =IF(C50="","",TEXT(VLOOKUP(C50,OFFSET(Coding!$L$7,0,0,AuthorityCounter,4),4,FALSE),OFFSET(Coding!$IU$2,MAX(Coding!$G$38-2,0),0))) -> 22 | G50: =IF(C50="","",VLOOKUP(C50,OFFSET(Coding!$L$7,0,0,AuthorityCounter,2),2,FALSE)) -> um | H50: Calderdale Metropolitan Borough Council
C51: =IF(ROW()-34>AuthNo,"na",Coding!AR23) -> Cambridgeshire | D51: =IF(C51="","",VLOOKUP(C51,OFFSET(Coding!$L$7,0,0,AuthorityCounter,11),11,FALSE)) ->  | F51: =IF(C51="","",TEXT(VLOOKUP(C51,OFFSET(Coding!$L$7,0,0,AuthorityCounter,4),4,FALSE),OFFSET(Coding!$IU$2,MAX(Coding!$G$38-2,0),0))) -> 35 | G51: =IF(C51="","",VLOOKUP(C51,OFFSET(Coding!$L$7,0,0,AuthorityCounter,2),2,FALSE)) -> c | H51: Cambridgeshire County Council
C52: =IF(ROW()-34>AuthNo,"na",Coding!AR24) -> Camden | D52: =IF(C52="","",VLOOKUP(C52,OFFSET(Coding!$L$7,0,0,AuthorityCounter,11),11,FALSE)) ->  | F52: =IF(C52="","",TEXT(VLOOKUP(C52,OFFSET(Coding!$L$7,0,0,AuthorityCounter,4),4,FALSE),OFFSET(Coding!$IU$2,MAX(Coding!$G$38-2,0),0))) -> 9 | G52: =IF(C52="","",VLOOKUP(C52,OFFSET(Coding!$L$7,0,0,AuthorityCounter,2),2,FALSE)) -> ul | H52: London Borough of Camden
C53: =IF(ROW()-34>AuthNo,"na",Coding!AR25) -> Central Bedfordshire | D53: =IF(C53="","",VLOOKUP(C53,OFFSET(Coding!$L$7,0,0,AuthorityCounter,11),11,FALSE)) ->  | F53: =IF(C53="","",TEXT(VLOOKUP(C53,OFFSET(Coding!$L$7,0,0,AuthorityCounter,4),4,FALSE),OFFSET(Coding!$IU$2,MAX(Coding!$G$38-2,0),0))) -> 12 | G53: =IF(C53="","",VLOOKUP(C53,OFFSET(Coding!$L$7,0,0,AuthorityCounter,2),2,FALSE)) -> uu | H53: Central Bedfordshire Council
C54: =IF(ROW()-34>AuthNo,"na",Coding!AR26) -> Cheshire East | D54: =IF(C54="","",VLOOKUP(C54,OFFSET(Coding!$L$7,0,0,AuthorityCounter,11),11,FALSE)) ->  | F54: =IF(C54="","",TEXT(VLOOKUP(C54,OFFSET(Coding!$L$7,0,0,AuthorityCounter,4),4,FALSE),OFFSET(Coding!$IU$2,MAX(Coding!$G$38-2,0),0))) -> 17 | G54: =IF(C54="","",VLOOKUP(C54,OFFSET(Coding!$L$7,0,0,AuthorityCounter,2),2,FALSE)) -> uu | H54: Cheshire East Council
C55: =IF(ROW()-34>AuthNo,"na",Coding!AR27) -> Cheshire West & Chester | D55: =IF(C55="","",VLOOKUP(C55,OFFSET(Coding!$L$7,0,0,AuthorityCounter,11),11,FALSE)) ->  | F55: =IF(C55="","",TEXT(VLOOKUP(C55,OFFSET(Coding!$L$7,0,0,AuthorityCounter,4),4,FALSE),OFFSET(Coding!$IU$2,MAX(Coding!$G$38-2,0),0))) -> 23 | G55: =IF(C55="","",VLOOKUP(C55,OFFSET(Coding!$L$7,0,0,AuthorityCounter,2),2,FALSE)) -> uu | H55: Cheshire West and Chester Council
C56: =IF(ROW()-34>AuthNo,"na",Coding!AR28) -> Coventry | D56: =IF(C56="","",VLOOKUP(C56,OFFSET(Coding!$L$7,0,0,AuthorityCounter,11),11,FALSE)) ->  | F56: =IF(C56="","",TEXT(VLOOKUP(C56,OFFSET(Coding!$L$7,0,0,AuthorityCounter,4),4,FALSE),OFFSET(Coding!$IU$2,MAX(Coding!$G$38-2,0),0))) -> 16 | G56: =IF(C56="","",VLOOKUP(C56,OFFSET(Coding!$L$7,0,0,AuthorityCounter,2),2,FALSE)) -> um | H56: Coventry City Council
C57: =IF(ROW()-34>AuthNo,"na",Coding!AR29) -> Croydon | D57: =IF(C57="","",VLOOKUP(C57,OFFSET(Coding!$L$7,0,0,AuthorityCounter,11),11,FALSE)) ->  | F57: =IF(C57="","",TEXT(VLOOKUP(C57,OFFSET(Coding!$L$7,0,0,AuthorityCounter,4),4,FALSE),OFFSET(Coding!$IU$2,MAX(Coding!$G$38-2,0),0))) -> 13 | G57: =IF(C57="","",VLOOKUP(C57,OFFSET(Coding!$L$7,0,0,AuthorityCounter,2),2,FALSE)) -> ul | H57: London Borough of Croydon
C58: =IF(ROW()-34>AuthNo,"na",Coding!AR30) -> Cumbria | D58: =IF(C58="","",VLOOKUP(C58,OFFSET(Coding!$L$7,0,0,AuthorityCounter,11),11,FALSE)) ->  | F58: =IF(C58="","",TEXT(VLOOKUP(C58,OFFSET(Coding!$L$7,0,0,AuthorityCounter,4),4,FALSE),OFFSET(Coding!$IU$2,MAX(Coding!$G$38-2,0),0))) -> 37 | G58: =IF(C58="","",VLOOKUP(C58,OFFSET(Coding!$L$7,0,0,AuthorityCounter,2),2,FALSE)) -> c | H58: Cumbria County Council
C59: =IF(ROW()-34>AuthNo,"na",Coding!AR31) -> Darlington | D59: =IF(C59="","",VLOOKUP(C59,OFFSET(Coding!$L$7,0,0,AuthorityCounter,11),11,FALSE)) ->  | F59: =IF(C59="","",TEXT(VLOOKUP(C59,OFFSET(Coding!$L$7,0,0,AuthorityCounter,4),4,FALSE),OFFSET(Coding!$IU$2,MAX(Coding!$G$38-2,0),0))) -> 2 | G59: =IF(C59="","",VLOOKUP(C59,OFFSET(Coding!$L$7,0,0,AuthorityCounter,2),2,FALSE)) -> uu | H59: Darlington Borough Council
C60: =IF(ROW()-34>AuthNo,"na",Coding!AR32) -> Derby | D60: =IF(C60="","",VLOOKUP(C60,OFFSET(Coding!$L$7,0,0,AuthorityCounter,11),11,FALSE)) ->  | F60: =IF(C60="","",TEXT(VLOOKUP(C60,OFFSET(Coding!$L$7,0,0,AuthorityCounter,4),4,FALSE),OFFSET(Coding!$IU$2,MAX(Coding!$G$38-2,0),0))) -> 12 | G60: =IF(C60="","",VLOOKUP(C60,OFFSET(Coding!$L$7,0,0,AuthorityCounter,2),2,FALSE)) -> uu | H60: Derby City Council
C61: =IF(ROW()-34>AuthNo,"na",Coding!AR33) -> Devon | D61: =IF(C61="","",VLOOKUP(C61,OFFSET(Coding!$L$7,0,0,AuthorityCounter,11),11,FALSE)) ->  | F61: =IF(C61="","",TEXT(VLOOKUP(C61,OFFSET(Coding!$L$7,0,0,AuthorityCounter,4),4,FALSE),OFFSET(Coding!$IU$2,MAX(Coding!$G$38-2,0),0))) -> 54 | G61: =IF(C61="","",VLOOKUP(C61,OFFSET(Coding!$L$7,0,0,AuthorityCounter,2),2,FALSE)) -> c | H61: Devon County Council
C62: =IF(ROW()-34>AuthNo,"na",Coding!AR34) -> Dorset | D62: =IF(C62="","",VLOOKUP(C62,OFFSET(Coding!$L$7,0,0,AuthorityCounter,11),11,FALSE)) ->  | F62: =IF(C62="","",TEXT(VLOOKUP(C62,OFFSET(Coding!$L$7,0,0,AuthorityCounter,4),4,FALSE),OFFSET(Coding!$IU$2,MAX(Coding!$G$38-2,0),0))) -> 26 | G62: =IF(C62="","",VLOOKUP(C62,OFFSET(Coding!$L$7,0,0,AuthorityCounter,2),2,FALSE)) -> c | H62: Dorset County Council
C63: =IF(ROW()-34>AuthNo,"na",Coding!AR35) -> Dorset | D63: =IF(C63="","",VLOOKUP(C63,OFFSET(Coding!$L$7,0,0,AuthorityCounter,11),11,FALSE)) ->  | F63: =IF(C63="","",TEXT(VLOOKUP(C63,OFFSET(Coding!$L$7,0,0,AuthorityCounter,4),4,FALSE),OFFSET(Coding!$IU$2,MAX(Coding!$G$38-2,0),0))) -> 26 | G63: =IF(C63="","",VLOOKUP(C63,OFFSET(Coding!$L$7,0,0,AuthorityCounter,2),2,FALSE)) -> c | H63: Dorset County Council
C64: =IF(ROW()-34>AuthNo,"na",Coding!AR36) -> Dudley | D64: =IF(C64="","",VLOOKUP(C64,OFFSET(Coding!$L$7,0,0,AuthorityCounter,11),11,FALSE)) ->  | F64: =IF(C64="","",TEXT(VLOOKUP(C64,OFFSET(Coding!$L$7,0,0,AuthorityCounter,4),4,FALSE),OFFSET(Coding!$IU$2,MAX(Coding!$G$38-2,0),0))) -> 16 | G64: =IF(C64="","",VLOOKUP(C64,OFFSET(Coding!$L$7,0,0,AuthorityCounter,2),2,FALSE)) -> um | H64: Dudley Metropolitan Borough Council
C65: =IF(ROW()-34>AuthNo,"na",Coding!AR37) -> Durham | D65: =IF(C65="","",VLOOKUP(C65,OFFSET(Coding!$L$7,0,0,AuthorityCounter,11),11,FALSE)) ->  | F65: =IF(C65="","",TEXT(VLOOKUP(C65,OFFSET(Coding!$L$7,0,0,AuthorityCounter,4),4,FALSE),OFFSET(Coding!$IU$2,MAX(Coding!$G$38-2,0),0))) -> 42 | G65: =IF(C65="","",VLOOKUP(C65,OFFSET(Coding!$L$7,0,0,AuthorityCounter,2),2,FALSE)) -> uu | H65: Durham County Council
C66: =IF(ROW()-34>AuthNo,"na",Coding!AR38) -> Ealing | D66: =IF(C66="","",VLOOKUP(C66,OFFSET(Coding!$L$7,0,0,AuthorityCounter,11),11,FALSE)) ->  | F66: =IF(C66="","",TEXT(VLOOKUP(C66,OFFSET(Coding!$L$7,0,0,AuthorityCounter,4),4,FALSE),OFFSET(Coding!$IU$2,MAX(Coding!$G$38-2,0),0))) -> 14 | G66: =IF(C66="","",VLOOKUP(C66,OFFSET(Coding!$L$7,0,0,AuthorityCounter,2),2,FALSE)) -> ul | H66: London Borough of Ealing
C67: =IF(ROW()-34>AuthNo,"na",Coding!AR39) -> East Sussex | D67: =IF(C67="","",VLOOKUP(C67,OFFSET(Coding!$L$7,0,0,AuthorityCounter,11),11,FALSE)) ->  | F67: =IF(C67="","",TEXT(VLOOKUP(C67,OFFSET(Coding!$L$7,0,0,AuthorityCounter,4),4,FALSE),OFFSET(Coding!$IU$2,MAX(Coding!$G$38-2,0),0))) -> 17 | G67: =IF(C67="","",VLOOKUP(C67,OFFSET(Coding!$L$7,0,0,AuthorityCounter,2),2,FALSE)) -> c | H67: East Sussex County Council
C68: =IF(ROW()-34>AuthNo,"na",Coding!AR40) -> Enfield | D68: =IF(C68="","",VLOOKUP(C68,OFFSET(Coding!$L$7,0,0,AuthorityCounter,11),11,FALSE)) ->  | F68: =IF(C68="","",TEXT(VLOOKUP(C68,OFFSET(Coding!$L$7,0,0,AuthorityCounter,4),4,FALSE),OFFSET(Coding!$IU$2,MAX(Coding!$G$38-2,0),0))) -> 17 | G68: =IF(C68="","",VLOOKUP(C68,OFFSET(Coding!$L$7,0,0,AuthorityCounter,2),2,FALSE)) -> ul | H68: London Borough of Enfield
C69: =IF(ROW()-34>AuthNo,"na",Coding!AR41) -> Essex | D69: =IF(C69="","",VLOOKUP(C69,OFFSET(Coding!$L$7,0,0,AuthorityCounter,11),11,FALSE)) ->  | F69: =IF(C69="","",TEXT(VLOOKUP(C69,OFFSET(Coding!$L$7,0,0,AuthorityCounter,4),4,FALSE),OFFSET(Coding!$IU$2,MAX(Coding!$G$38-2,0),0))) -> 77 | G69: =IF(C69="","",VLOOKUP(C69,OFFSET(Coding!$L$7,0,0,AuthorityCounter,2),2,FALSE)) -> c | H69: Essex County Council
C70: =IF(ROW()-34>AuthNo,"na",Coding!AR42) -> Gateshead | D70: =IF(C70="","",VLOOKUP(C70,OFFSET(Coding!$L$7,0,0,AuthorityCounter,11),11,FALSE)) ->  | F70: =IF(C70="","",TEXT(VLOOKUP(C70,OFFSET(Coding!$L$7,0,0,AuthorityCounter,4),4,FALSE),OFFSET(Coding!$IU$2,MAX(Coding!$G$38-2,0),0))) -> 8 | G70: =IF(C70="","",VLOOKUP(C70,OFFSET(Coding!$L$7,0,0,AuthorityCounter,2),2,FALSE)) -> um | H70: Gateshead Metropolitan Borough Council
C71: =IF(ROW()-34>AuthNo,"na",Coding!AR43) -> Gloucestershire | D71: =IF(C71="","",VLOOKUP(C71,OFFSET(Coding!$L$7,0,0,AuthorityCounter,11),11,FALSE)) ->  | F71: =IF(C71="","",TEXT(VLOOKUP(C71,OFFSET(Coding!$L$7,0,0,AuthorityCounter,4),4,FALSE),OFFSET(Coding!$IU$2,MAX(Coding!$G$38-2,0),0))) -> 32 | G71: =IF(C71="","",VLOOKUP(C71,OFFSET(Coding!$L$7,0,0,AuthorityCounter,2),2,FALSE)) -> c | H71: Gloucestershire County Council
C72: =IF(ROW()-34>AuthNo,"na",Coding!AR44) -> Greenwich | D72: =IF(C72="","",VLOOKUP(C72,OFFSET(Coding!$L$7,0,0,AuthorityCounter,11),11,FALSE)) ->  | F72: =IF(C72="","",TEXT(VLOOKUP(C72,OFFSET(Coding!$L$7,0,0,AuthorityCounter,4),4,FALSE),OFFSET(Coding!$IU$2,MAX(Coding!$G$38-2,0),0))) -> 12 | G72: =IF(C72="","",VLOOKUP(C72,OFFSET(Coding!$L$7,0,0,AuthorityCounter,2),2,FALSE)) -> ul | H72: Royal Borough of Greenwich
C73: =IF(ROW()-34>AuthNo,"na",Coding!AR45) -> Hackney | D73: =IF(C73="","",VLOOKUP(C73,OFFSET(Coding!$L$7,0,0,AuthorityCounter,11),11,FALSE)) ->  | F73: =IF(C73="","",TEXT(VLOOKUP(C73,OFFSET(Coding!$L$7,0,0,AuthorityCounter,4),4,FALSE),OFFSET(Coding!$IU$2,MAX(Coding!$G$38-2,0),0))) -> 8 | G73: =IF(C73="","",VLOOKUP(C73,OFFSET(Coding!$L$7,0,0,AuthorityCounter,2),2,FALSE)) -> ul | H73: London Borough of Hackney
C74: =IF(ROW()-34>AuthNo,"na",Coding!AR46) -> Halton | D74: =IF(C74="","",VLOOKUP(C74,OFFSET(Coding!$L$7,0,0,AuthorityCounter,11),11,FALSE)) ->  | F74: =IF(C74="","",TEXT(VLOOKUP(C74,OFFSET(Coding!$L$7,0,0,AuthorityCounter,4),4,FALSE),OFFSET(Coding!$IU$2,MAX(Coding!$G$38-2,0),0))) -> 4 | G74: =IF(C74="","",VLOOKUP(C74,OFFSET(Coding!$L$7,0,0,AuthorityCounter,2),2,FALSE)) -> uu | H74: Halton Borough Council
C75: =IF(ROW()-34>AuthNo,"na",Coding!AR47) -> Hammersmith & Fulham | D75: =IF(C75="","",VLOOKUP(C75,OFFSET(Coding!$L$7,0,0,AuthorityCounter,11),11,FALSE)) ->  | F75: =IF(C75="","",TEXT(VLOOKUP(C75,OFFSET(Coding!$L$7,0,0,AuthorityCounter,4),4,FALSE),OFFSET(Coding!$IU$2,MAX(Coding!$G$38-2,0),0))) -> 4 | G75: =IF(C75="","",VLOOKUP(C75,OFFSET(Coding!$L$7,0,0,AuthorityCounter,2),2,FALSE)) -> ul | H75: London Borough of Hammersmith & Fulham
C76: =IF(ROW()-34>AuthNo,"na",Coding!AR48) -> Hampshire | D76: =IF(C76="","",VLOOKUP(C76,OFFSET(Coding!$L$7,0,0,AuthorityCounter,11),11,FALSE)) ->  | F76: =IF(C76="","",TEXT(VLOOKUP(C76,OFFSET(Coding!$L$7,0,0,AuthorityCounter,4),4,FALSE),OFFSET(Coding!$IU$2,MAX(Coding!$G$38-2,0),0))) -> 52 | G76: =IF(C76="","",VLOOKUP(C76,OFFSET(Coding!$L$7,0,0,AuthorityCounter,2),2,FALSE)) -> c | H76: Hampshire County Council
C77: =IF(ROW()-34>AuthNo,"na",Coding!AR49) -> Haringey | D77: =IF(C77="","",VLOOKUP(C77,OFFSET(Coding!$L$7,0,0,AuthorityCounter,11),11,FALSE)) ->  | F77: =IF(C77="","",TEXT(VLOOKUP(C77,OFFSET(Coding!$L$7,0,0,AuthorityCounter,4),4,FALSE),OFFSET(Coding!$IU$2,MAX(Coding!$G$38-2,0),0))) -> 9 | G77: =IF(C77="","",VLOOKUP(C77,OFFSET(Coding!$L$7,0,0,AuthorityCounter,2),2,FALSE)) -> ul | H77: London Borough of Haringey
C78: =IF(ROW()-34>AuthNo,"na",Coding!AR50) -> Harrow | D78: =IF(C78="","",VLOOKUP(C78,OFFSET(Coding!$L$7,0,0,AuthorityCounter,11),11,FALSE)) ->  | F78: =IF(C78="","",TEXT(VLOOKUP(C78,OFFSET(Coding!$L$7,0,0,AuthorityCounter,4),4,FALSE),OFFSET(Coding!$IU$2,MAX(Coding!$G$38-2,0),0))) -> 6 | G78: =IF(C78="","",VLOOKUP(C78,OFFSET(Coding!$L$7,0,0,AuthorityCounter,2),2,FALSE)) -> ul | H78: London Borough of Harrow
C79: =IF(ROW()-34>AuthNo,"na",Coding!AR51) -> Havering | D79: =IF(C79="","",VLOOKUP(C79,OFFSET(Coding!$L$7,0,0,AuthorityCounter,11),11,FALSE)) ->  | F79: =IF(C79="","",TEXT(VLOOKUP(C79,OFFSET(Coding!$L$7,0,0,AuthorityCounter,4),4,FALSE),OFFSET(Coding!$IU$2,MAX(Coding!$G$38-2,0),0))) -> 10 | G79: =IF(C79="","",VLOOKUP(C79,OFFSET(Coding!$L$7,0,0,AuthorityCounter,2),2,FALSE)) -> ul | H79: London Borough of Havering
C80: =IF(ROW()-34>AuthNo,"na",Coding!AR52) -> Herefordshire | D80: =IF(C80="","",VLOOKUP(C80,OFFSET(Coding!$L$7,0,0,AuthorityCounter,11),11,FALSE)) ->  | F80: =IF(C80="","",TEXT(VLOOKUP(C80,OFFSET(Coding!$L$7,0,0,AuthorityCounter,4),4,FALSE),OFFSET(Coding!$IU$2,MAX(Coding!$G$38-2,0),0))) -> 11 | G80: =IF(C80="","",VLOOKUP(C80,OFFSET(Coding!$L$7,0,0,AuthorityCounter,2),2,FALSE)) -> uu | H80: Herefordshire Council
C81: =IF(ROW()-34>AuthNo,"na",Coding!AR53) -> Hertfordshire | D81: =IF(C81="","",VLOOKUP(C81,OFFSET(Coding!$L$7,0,0,AuthorityCounter,11),11,FALSE)) ->  | F81: =IF(C81="","",TEXT(VLOOKUP(C81,OFFSET(Coding!$L$7,0,0,AuthorityCounter,4),4,FALSE),OFFSET(Coding!$IU$2,MAX(Coding!$G$38-2,0),0))) -> 48 | G81: =IF(C81="","",VLOOKUP(C81,OFFSET(Coding!$L$7,0,0,AuthorityCounter,2),2,FALSE)) -> c | H81: Hertfordshire County Council
C82: =IF(ROW()-34>AuthNo,"na",Coding!AR54) -> Hounslow | D82: =IF(C82="","",VLOOKUP(C82,OFFSET(Coding!$L$7,0,0,AuthorityCounter,11),11,FALSE)) ->  | F82: =IF(C82="","",TEXT(VLOOKUP(C82,OFFSET(Coding!$L$7,0,0,AuthorityCounter,4),4,FALSE),OFFSET(Coding!$IU$2,MAX(Coding!$G$38-2,0),0))) -> 11 | G82: =IF(C82="","",VLOOKUP(C82,OFFSET(Coding!$L$7,0,0,AuthorityCounter,2),2,FALSE)) -> ul | H82: London Borough of Hounslow
C83: =IF(ROW()-34>AuthNo,"na",Coding!AR55) -> Isle of Wight | D83: =IF(C83="","",VLOOKUP(C83,OFFSET(Coding!$L$7,0,0,AuthorityCounter,11),11,FALSE)) ->  | F83: =IF(C83="","",TEXT(VLOOKUP(C83,OFFSET(Coding!$L$7,0,0,AuthorityCounter,4),4,FALSE),OFFSET(Coding!$IU$2,MAX(Coding!$G$38-2,0),0))) -> 8 | G83: =IF(C83="","",VLOOKUP(C83,OFFSET(Coding!$L$7,0,0,AuthorityCounter,2),2,FALSE)) -> uu | H83: Isle of Wight Council
C84: =IF(ROW()-34>AuthNo,"na",Coding!AR56) -> Islington | D84: =IF(C84="","",VLOOKUP(C84,OFFSET(Coding!$L$7,0,0,AuthorityCounter,11),11,FALSE)) ->  | F84: =IF(C84="","",TEXT(VLOOKUP(C84,OFFSET(Coding!$L$7,0,0,AuthorityCounter,4),4,FALSE),OFFSET(Coding!$IU$2,MAX(Coding!$G$38-2,0),0))) -> 10 | G84: =IF(C84="","",VLOOKUP(C84,OFFSET(Coding!$L$7,0,0,AuthorityCounter,2),2,FALSE)) -> ul | H84: London Borough of Islington
C85: =IF(ROW()-34>AuthNo,"na",Coding!AR57) -> Kensington & Chelsea | D85: =IF(C85="","",VLOOKUP(C85,OFFSET(Coding!$L$7,0,0,AuthorityCounter,11),11,FALSE)) ->  | F85: =IF(C85="","",TEXT(VLOOKUP(C85,OFFSET(Coding!$L$7,0,0,AuthorityCounter,4),4,FALSE),OFFSET(Coding!$IU$2,MAX(Coding!$G$38-2,0),0))) -> 6 | G85: =IF(C85="","",VLOOKUP(C85,OFFSET(Coding!$L$7,0,0,AuthorityCounter,2),2,FALSE)) -> ul | H85: Royal Borough of Kensington & Chelsea
C86: =IF(ROW()-34>AuthNo,"na",Coding!AR58) -> Kent | D86: =IF(C86="","",VLOOKUP(C86,OFFSET(Coding!$L$7,0,0,AuthorityCounter,11),11,FALSE)) ->  | F86: =IF(C86="","",TEXT(VLOOKUP(C86,OFFSET(Coding!$L$7,0,0,AuthorityCounter,4),4,FALSE),OFFSET(Coding!$IU$2,MAX(Coding!$G$38-2,0),0))) -> 104 | G86: =IF(C86="","",VLOOKUP(C86,OFFSET(Coding!$L$7,0,0,AuthorityCounter,2),2,FALSE)) -> c | H86: Kent County Council
C87: =IF(ROW()-34>AuthNo,"na",Coding!AR59) -> Kingston-upon-Thames | D87: =IF(C87="","",VLOOKUP(C87,OFFSET(Coding!$L$7,0,0,AuthorityCounter,11),11,FALSE)) ->  | F87: =IF(C87="","",TEXT(VLOOKUP(C87,OFFSET(Coding!$L$7,0,0,AuthorityCounter,4),4,FALSE),OFFSET(Coding!$IU$2,MAX(Coding!$G$38-2,0),0))) -> 7 | G87: =IF(C87="","",VLOOKUP(C87,OFFSET(Coding!$L$7,0,0,AuthorityCounter,2),2,FALSE)) -> ul | H87: Royal Borough of Kingston-upon-Thames
C88: =IF(ROW()-34>AuthNo,"na",Coding!AR60) -> Lancashire | D88: =IF(C88="","",VLOOKUP(C88,OFFSET(Coding!$L$7,0,0,AuthorityCounter,11),11,FALSE)) ->  | F88: =IF(C88="","",TEXT(VLOOKUP(C88,OFFSET(Coding!$L$7,0,0,AuthorityCounter,4),4,FALSE),OFFSET(Coding!$IU$2,MAX(Coding!$G$38-2,0),0))) -> 68 | G88: =IF(C88="","",VLOOKUP(C88,OFFSET(Coding!$L$7,0,0,AuthorityCounter,2),2,FALSE)) -> c | H88: Lancashire County Council
C89: =IF(ROW()-34>AuthNo,"na",Coding!AR61) -> Leicester | D89: =IF(C89="","",VLOOKUP(C89,OFFSET(Coding!$L$7,0,0,AuthorityCounter,11),11,FALSE)) ->  | F89: =IF(C89="","",TEXT(VLOOKUP(C89,OFFSET(Coding!$L$7,0,0,AuthorityCounter,4),4,FALSE),OFFSET(Coding!$IU$2,MAX(Coding!$G$38-2,0),0))) -> 16 | G89: =IF(C89="","",VLOOKUP(C89,OFFSET(Coding!$L$7,0,0,AuthorityCounter,2),2,FALSE)) -> uu | H89: Leicester City Council
C90: =IF(ROW()-34>AuthNo,"na",Coding!AR62) -> Leicestershire | D90: =IF(C90="","",VLOOKUP(C90,OFFSET(Coding!$L$7,0,0,AuthorityCounter,11),11,FALSE)) ->  | F90: =IF(C90="","",TEXT(VLOOKUP(C90,OFFSET(Coding!$L$7,0,0,AuthorityCounter,4),4,FALSE),OFFSET(Coding!$IU$2,MAX(Coding!$G$38-2,0),0))) -> 23 | G90: =IF(C90="","",VLOOKUP(C90,OFFSET(Coding!$L$7,0,0,AuthorityCounter,2),2,FALSE)) -> c | H90: Leicestershire County Council
C91: =IF(ROW()-34>AuthNo,"na",Coding!AR63) -> Lewisham | D91: =IF(C91="","",VLOOKUP(C91,OFFSET(Coding!$L$7,0,0,AuthorityCounter,11),11,FALSE)) ->  | F91: =IF(C91="","",TEXT(VLOOKUP(C91,OFFSET(Coding!$L$7,0,0,AuthorityCounter,4),4,FALSE),OFFSET(Coding!$IU$2,MAX(Coding!$G$38-2,0),0))) -> 13 | G91: =IF(C91="","",VLOOKUP(C91,OFFSET(Coding!$L$7,0,0,AuthorityCounter,2),2,FALSE)) -> ul | H91: London Borough of Lewisham
C92: =IF(ROW()-34>AuthNo,"na",Coding!AR64) -> Lincolnshire | D92: =IF(C92="","",VLOOKUP(C92,OFFSET(Coding!$L$7,0,0,AuthorityCounter,11),11,FALSE)) ->  | F92: =IF(C92="","",TEXT(VLOOKUP(C92,OFFSET(Coding!$L$7,0,0,AuthorityCounter,4),4,FALSE),OFFSET(Coding!$IU$2,MAX(Coding!$G$38-2,0),0))) -> 22 | G92: =IF(C92="","",VLOOKUP(C92,OFFSET(Coding!$L$7,0,0,AuthorityCounter,2),2,FALSE)) -> c | H92: Lincolnshire County Council
C93: =IF(ROW()-34>AuthNo,"na",Coding!AR65) -> Luton | D93: =IF(C93="","",VLOOKUP(C93,OFFSET(Coding!$L$7,0,0,AuthorityCounter,11),11,FALSE)) ->  | F93: =IF(C93="","",TEXT(VLOOKUP(C93,OFFSET(Coding!$L$7,0,0,AuthorityCounter,4),4,FALSE),OFFSET(Coding!$IU$2,MAX(Coding!$G$38-2,0),0))) -> 6 | G93: =IF(C93="","",VLOOKUP(C93,OFFSET(Coding!$L$7,0,0,AuthorityCounter,2),2,FALSE)) -> uu | H93: Luton Borough Council
C94: =IF(ROW()-34>AuthNo,"na",Coding!AR66) -> Manchester | D94: =IF(C94="","",VLOOKUP(C94,OFFSET(Coding!$L$7,0,0,AuthorityCounter,11),11,FALSE)) ->  | F94: =IF(C94="","",TEXT(VLOOKUP(C94,OFFSET(Coding!$L$7,0,0,AuthorityCounter,4),4,FALSE),OFFSET(Coding!$IU$2,MAX(Coding!$G$38-2,0),0))) -> 16 | G94: =IF(C94="","",VLOOKUP(C94,OFFSET(Coding!$L$7,0,0,AuthorityCounter,2),2,FALSE)) -> um | H94: Manchester City Council
C95: =IF(ROW()-34>AuthNo,"na",Coding!AR67) -> Medway | D95: =IF(C95="","",VLOOKUP(C95,OFFSET(Coding!$L$7,0,0,AuthorityCounter,11),11,FALSE)) ->  | F95: =IF(C95="","",TEXT(VLOOKUP(C95,OFFSET(Coding!$L$7,0,0,AuthorityCounter,4),4,FALSE),OFFSET(Coding!$IU$2,MAX(Coding!$G$38-2,0),0))) -> 17 | G95: =IF(C95="","",VLOOKUP(C95,OFFSET(Coding!$L$7,0,0,AuthorityCounter,2),2,FALSE)) -> uu | H95: Medway Council
C96: =IF(ROW()-34>AuthNo,"na",Coding!AR68) -> Merton | D96: =IF(C96="","",VLOOKUP(C96,OFFSET(Coding!$L$7,0,0,AuthorityCounter,11),11,FALSE)) ->  | F96: =IF(C96="","",TEXT(VLOOKUP(C96,OFFSET(Coding!$L$7,0,0,AuthorityCounter,4),4,FALSE),OFFSET(Coding!$IU$2,MAX(Coding!$G$38-2,0),0))) -> 7 | G96: =IF(C96="","",VLOOKUP(C96,OFFSET(Coding!$L$7,0,0,AuthorityCounter,2),2,FALSE)) -> ul | H96: London Borough of Merton
C97: =IF(ROW()-34>AuthNo,"na",Coding!AR69) -> Newcastle upon Tyne | D97: =IF(C97="","",VLOOKUP(C97,OFFSET(Coding!$L$7,0,0,AuthorityCounter,11),11,FALSE)) ->  | F97: =IF(C97="","",TEXT(VLOOKUP(C97,OFFSET(Coding!$L$7,0,0,AuthorityCounter,4),4,FALSE),OFFSET(Coding!$IU$2,MAX(Coding!$G$38-2,0),0))) -> 13 | G97: =IF(C97="","",VLOOKUP(C97,OFFSET(Coding!$L$7,0,0,AuthorityCounter,2),2,FALSE)) -> um | H97: Newcastle City Council
C98: =IF(ROW()-34>AuthNo,"na",Coding!AR70) -> Newham | D98: =IF(C98="","",VLOOKUP(C98,OFFSET(Coding!$L$7,0,0,AuthorityCounter,11),11,FALSE)) ->  | F98: =IF(C98="","",TEXT(VLOOKUP(C98,OFFSET(Coding!$L$7,0,0,AuthorityCounter,4),4,FALSE),OFFSET(Coding!$IU$2,MAX(Coding!$G$38-2,0),0))) -> 10 | G98: =IF(C98="","",VLOOKUP(C98,OFFSET(Coding!$L$7,0,0,AuthorityCounter,2),2,FALSE)) -> ul | H98: London Borough of Newham
C99: =IF(ROW()-34>AuthNo,"na",Coding!AR71) -> Norfolk | D99: =IF(C99="","",VLOOKUP(C99,OFFSET(Coding!$L$7,0,0,AuthorityCounter,11),11,FALSE)) ->  | F99: =IF(C99="","",TEXT(VLOOKUP(C99,OFFSET(Coding!$L$7,0,0,AuthorityCounter,4),4,FALSE),OFFSET(Coding!$IU$2,MAX(Coding!$G$38-2,0),0))) -> 55 | G99: =IF(C99="","",VLOOKUP(C99,OFFSET(Coding!$L$7,0,0,AuthorityCounter,2),2,FALSE)) -> c | H99: Norfolk County Council
C100: =IF(ROW()-34>AuthNo,"na",Coding!AR72) -> North East Lincolnshire | D100: =IF(C100="","",VLOOKUP(C100,OFFSET(Coding!$L$7,0,0,AuthorityCounter,11),11,FALSE)) ->  | F100: =IF(C100="","",TEXT(VLOOKUP(C100,OFFSET(Coding!$L$7,0,0,AuthorityCounter,4),4,FALSE),OFFSET(Coding!$IU$2,MAX(Coding!$G$38-2,0),0))) -> 4 | G100: =IF(C100="","",VLOOKUP(C100,OFFSET(Coding!$L$7,0,0,AuthorityCounter,2),2,FALSE)) -> uu | H100: =IF(C100="","",VLOOKUP(C100,NameRange,2,FALSE)) -> North East Lincolnshire Council
C101: =IF(ROW()-34>AuthNo,"na",Coding!AR73) -> North Lincolnshire | D101: =IF(C101="","",VLOOKUP(C101,OFFSET(Coding!$L$7,0,0,AuthorityCounter,11),11,FALSE)) ->  | F101: =IF(C101="","",TEXT(VLOOKUP(C101,OFFSET(Coding!$L$7,0,0,AuthorityCounter,4),4,FALSE),OFFSET(Coding!$IU$2,MAX(Coding!$G$38-2,0),0))) -> 16 | G101: =IF(C101="","",VLOOKUP(C101,OFFSET(Coding!$L$7,0,0,AuthorityCounter,2),2,FALSE)) -> uu | H101: North Lincolnshire Council
C102: =IF(ROW()-34>AuthNo,"na",Coding!AR74) -> North Somerset | D102: =IF(C102="","",VLOOKUP(C102,OFFSET(Coding!$L$7,0,0,AuthorityCounter,11),11,FALSE)) ->  | F102: =IF(C102="","",TEXT(VLOOKUP(C102,OFFSET(Coding!$L$7,0,0,AuthorityCounter,4),4,FALSE),OFFSET(Coding!$IU$2,MAX(Coding!$G$38-2,0),0))) -> 12 | G102: =IF(C102="","",VLOOKUP(C102,OFFSET(Coding!$L$7,0,0,AuthorityCounter,2),2,FALSE)) -> uu | H102: North Somerset Council
C103: =IF(ROW()-34>AuthNo,"na",Coding!AR75) -> North Tyneside | D103: =IF(C103="","",VLOOKUP(C103,OFFSET(Coding!$L$7,0,0,AuthorityCounter,11),11,FALSE)) ->  | F103: =IF(C103="","",TEXT(VLOOKUP(C103,OFFSET(Coding!$L$7,0,0,AuthorityCounter,4),4,FALSE),OFFSET(Coding!$IU$2,MAX(Coding!$G$38-2,0),0))) -> 16 | G103: =IF(C103="","",VLOOKUP(C103,OFFSET(Coding!$L$7,0,0,AuthorityCounter,2),2,FALSE)) -> um | H103: North Tyneside MBC
B104: =IF(ISERROR(VLOOKUP(C104,OFFSET(Coding!$L$7,0,0,AuthorityCounter2,11),11,FALSE)),"",VLOOKUP(C104,OFFSET(Coding!$L$7,0,0,AuthorityCounter2,11),11,FALSE)) ->  | C104: =IF(ROW()-34>AuthNo,"na",Coding!AR76) -> North Yorkshire | D104: =IF(C104="","",VLOOKUP(C104,OFFSET(Coding!$L$7,0,0,AuthorityCounter,11),11,FALSE)) ->  | F104: =IF(C104="","",TEXT(VLOOKUP(C104,OFFSET(Coding!$L$7,0,0,AuthorityCounter,4),4,FALSE),OFFSET(Coding!$IU$2,MAX(Coding!$G$38-2,0),0))) -> 44 | G104: =IF(C104="","",VLOOKUP(C104,OFFSET(Coding!$L$7,0,0,AuthorityCounter,2),2,FALSE)) -> c | H104: North Yorkshire County Council
B105: =IF(ISERROR(VLOOKUP(C105,OFFSET(Coding!$L$7,0,0,AuthorityCounter2,11),11,FALSE)),"",VLOOKUP(C105,OFFSET(Coding!$L$7,0,0,AuthorityCounter2,11),11,FALSE)) ->  | C105: =IF(ROW()-34>AuthNo,"na",Coding!AR77) -> Northamptonshire | D105: =IF(C105="","",VLOOKUP(C105,OFFSET(Coding!$L$7,0,0,AuthorityCounter,11),11,FALSE)) ->  | F105: =IF(C105="","",TEXT(VLOOKUP(C105,OFFSET(Coding!$L$7,0,0,AuthorityCounter,4),4,FALSE),OFFSET(Coding!$IU$2,MAX(Coding!$G$38-2,0),0))) -> 36 | G105: =IF(C105="","",VLOOKUP(C105,OFFSET(Coding!$L$7,0,0,AuthorityCounter,2),2,FALSE)) -> c | H105: Northamptonshire County Council
B106: =IF(ISERROR(VLOOKUP(C106,OFFSET(Coding!$L$7,0,0,AuthorityCounter2,11),11,FALSE)),"",VLOOKUP(C106,OFFSET(Coding!$L$7,0,0,AuthorityCounter2,11),11,FALSE)) ->  | C106: =IF(ROW()-34>AuthNo,"na",Coding!AR78) -> Nottingham | D106: =IF(C106="","",VLOOKUP(C106,OFFSET(Coding!$L$7,0,0,AuthorityCounter,11),11,FALSE)) ->  | F106: =IF(C106="","",TEXT(VLOOKUP(C106,OFFSET(Coding!$L$7,0,0,AuthorityCounter,4),4,FALSE),OFFSET(Coding!$IU$2,MAX(Coding!$G$38-2,0),0))) -> 15 | G106: =IF(C106="","",VLOOKUP(C106,OFFSET(Coding!$L$7,0,0,AuthorityCounter,2),2,FALSE)) -> uu | H106: Nottingham City Council
B107: =IF(ISERROR(VLOOKUP(C107,OFFSET(Coding!$L$7,0,0,AuthorityCounter2,11),11,FALSE)),"",VLOOKUP(C107,OFFSET(Coding!$L$7,0,0,AuthorityCounter2,11),11,FALSE)) ->  | C107: =IF(ROW()-34>AuthNo,"na",Coding!AR79) -> Nottinghamshire | D107: =IF(C107="","",VLOOKUP(C107,OFFSET(Coding!$L$7,0,0,AuthorityCounter,11),11,FALSE)) ->  | F107: =IF(C107="","",TEXT(VLOOKUP(C107,OFFSET(Coding!$L$7,0,0,AuthorityCounter,4),4,FALSE),OFFSET(Coding!$IU$2,MAX(Coding!$G$38-2,0),0))) -> 63 | G107: =IF(C107="","",VLOOKUP(C107,OFFSET(Coding!$L$7,0,0,AuthorityCounter,2),2,FALSE)) -> c | H107: Nottinghamshire County Council
B108: =IF(ISERROR(VLOOKUP(C108,OFFSET(Coding!$L$7,0,0,AuthorityCounter2,11),11,FALSE)),"",VLOOKUP(C108,OFFSET(Coding!$L$7,0,0,AuthorityCounter2,11),11,FALSE)) ->  | C108: =IF(ROW()-34>AuthNo,"na",Coding!AR80) -> Oldham | D108: =IF(C108="","",VLOOKUP(C108,OFFSET(Coding!$L$7,0,0,AuthorityCounter,11),11,FALSE)) ->  | F108: =IF(C108="","",TEXT(VLOOKUP(C108,OFFSET(Coding!$L$7,0,0,AuthorityCounter,4),4,FALSE),OFFSET(Coding!$IU$2,MAX(Coding!$G$38-2,0),0))) -> 12 | G108: =IF(C108="","",VLOOKUP(C108,OFFSET(Coding!$L$7,0,0,AuthorityCounter,2),2,FALSE)) -> um | H108: Oldham Metropolitan Borough Council
B109: =IF(ISERROR(VLOOKUP(C109,OFFSET(Coding!$L$7,0,0,AuthorityCounter2,11),11,FALSE)),"",VLOOKUP(C109,OFFSET(Coding!$L$7,0,0,AuthorityCounter2,11),11,FALSE)) ->  | C109: =IF(ROW()-34>AuthNo,"na",Coding!AR81) -> Oxfordshire | D109: =IF(C109="","",VLOOKUP(C109,OFFSET(Coding!$L$7,0,0,AuthorityCounter,11),11,FALSE)) ->  | F109: =IF(C109="","",TEXT(VLOOKUP(C109,OFFSET(Coding!$L$7,0,0,AuthorityCounter,4),4,FALSE),OFFSET(Coding!$IU$2,MAX(Coding!$G$38-2,0),0))) -> 43 | G109: =IF(C109="","",VLOOKUP(C109,OFFSET(Coding!$L$7,0,0,AuthorityCounter,2),2,FALSE)) -> c | H109: Oxfordshire County Council
B110: =IF(ISERROR(VLOOKUP(C110,OFFSET(Coding!$L$7,0,0,AuthorityCounter2,11),11,FALSE)),"",VLOOKUP(C110,OFFSET(Coding!$L$7,0,0,AuthorityCounter2,11),11,FALSE)) ->  | C110: =IF(ROW()-34>AuthNo,"na",Coding!AR82) -> Peterborough | D110: =IF(C110="","",VLOOKUP(C110,OFFSET(Coding!$L$7,0,0,AuthorityCounter,11),11,FALSE)) ->  | F110: =IF(C110="","",TEXT(VLOOKUP(C110,OFFSET(Coding!$L$7,0,0,AuthorityCounter,4),4,FALSE),OFFSET(Coding!$IU$2,MAX(Coding!$G$38-2,0),0))) -> 11 | G110: =IF(C110="","",VLOOKUP(C110,OFFSET(Coding!$L$7,0,0,AuthorityCounter,2),2,FALSE)) -> uu | H110: Peterborough City Council
B111: =IF(ISERROR(VLOOKUP(C111,OFFSET(Coding!$L$7,0,0,AuthorityCounter2,11),11,FALSE)),"",VLOOKUP(C111,OFFSET(Coding!$L$7,0,0,AuthorityCounter2,11),11,FALSE)) ->  | C111: =IF(ROW()-34>AuthNo,"na",Coding!AR83) -> Plymouth | D111: =IF(C111="","",VLOOKUP(C111,OFFSET(Coding!$L$7,0,0,AuthorityCounter,11),11,FALSE)) ->  | F111: =IF(C111="","",TEXT(VLOOKUP(C111,OFFSET(Coding!$L$7,0,0,AuthorityCounter,4),4,FALSE),OFFSET(Coding!$IU$2,MAX(Coding!$G$38-2,0),0))) -> 12 | G111: =IF(C111="","",VLOOKUP(C111,OFFSET(Coding!$L$7,0,0,AuthorityCounter,2),2,FALSE)) -> uu | H111: Plymouth City Council
B112: =IF(ISERROR(VLOOKUP(C112,OFFSET(Coding!$L$7,0,0,AuthorityCounter2,11),11,FALSE)),"",VLOOKUP(C112,OFFSET(Coding!$L$7,0,0,AuthorityCounter2,11),11,FALSE)) ->  | C112: =IF(ROW()-34>AuthNo,"na",Coding!AR84) -> Portsmouth | D112: =IF(C112="","",VLOOKUP(C112,OFFSET(Coding!$L$7,0,0,AuthorityCounter,11),11,FALSE)) ->  | F112: =IF(C112="","",TEXT(VLOOKUP(C112,OFFSET(Coding!$L$7,0,0,AuthorityCounter,4),4,FALSE),OFFSET(Coding!$IU$2,MAX(Coding!$G$38-2,0),0))) -> 10 | G112: =IF(C112="","",VLOOKUP(C112,OFFSET(Coding!$L$7,0,0,AuthorityCounter,2),2,FALSE)) -> uu | H112: Portsmouth City Council
B113: =IF(ISERROR(VLOOKUP(C113,OFFSET(Coding!$L$7,0,0,AuthorityCounter2,11),11,FALSE)),"",VLOOKUP(C113,OFFSET(Coding!$L$7,0,0,AuthorityCounter2,11),11,FALSE)) ->  | C113: =IF(ROW()-34>AuthNo,"na",Coding!AR85) -> Reading | D113: =IF(C113="","",VLOOKUP(C113,OFFSET(Coding!$L$7,0,0,AuthorityCounter,11),11,FALSE)) ->  | F113: =IF(C113="","",TEXT(VLOOKUP(C113,OFFSET(Coding!$L$7,0,0,AuthorityCounter,4),4,FALSE),OFFSET(Coding!$IU$2,MAX(Coding!$G$38-2,0),0))) -> 8 | G113: =IF(C113="","",VLOOKUP(C113,OFFSET(Coding!$L$7,0,0,AuthorityCounter,2),2,FALSE)) -> uu | H113: Reading Borough Council
B114: =IF(ISERROR(VLOOKUP(C114,OFFSET(Coding!$L$7,0,0,AuthorityCounter2,11),11,FALSE)),"",VLOOKUP(C114,OFFSET(Coding!$L$7,0,0,AuthorityCounter2,11),11,FALSE)) ->  | C114: =IF(ROW()-34>AuthNo,"na",Coding!AR86) -> Redbridge | D114: =IF(C114="","",VLOOKUP(C114,OFFSET(Coding!$L$7,0,0,AuthorityCounter,11),11,FALSE)) ->  | F114: =IF(C114="","",TEXT(VLOOKUP(C114,OFFSET(Coding!$L$7,0,0,AuthorityCounter,4),4,FALSE),OFFSET(Coding!$IU$2,MAX(Coding!$G$38-2,0),0))) -> 13 | G114: =IF(C114="","",VLOOKUP(C114,OFFSET(Coding!$L$7,0,0,AuthorityCounter,2),2,FALSE)) -> ul | H114: London Borough of Redbridge
B115: =IF(ISERROR(VLOOKUP(C115,OFFSET(Coding!$L$7,0,0,AuthorityCounter2,11),11,FALSE)),"",VLOOKUP(C115,OFFSET(Coding!$L$7,0,0,AuthorityCounter2,11),11,FALSE)) ->  | C115: =IF(ROW()-34>AuthNo,"na",Coding!AR87) -> Redcar & Cleveland | D115: =IF(C115="","",VLOOKUP(C115,OFFSET(Coding!$L$7,0,0,AuthorityCounter,11),11,FALSE)) ->  | F115: =IF(C115="","",TEXT(VLOOKUP(C115,OFFSET(Coding!$L$7,0,0,AuthorityCounter,4),4,FALSE),OFFSET(Coding!$IU$2,MAX(Coding!$G$38-2,0),0))) -> 14 | G115: =IF(C115="","",VLOOKUP(C115,OFFSET(Coding!$L$7,0,0,AuthorityCounter,2),2,FALSE)) -> uu | H115: Redcar & Cleveland Borough Council
B116: =IF(ISERROR(VLOOKUP(C116,OFFSET(Coding!$L$7,0,0,AuthorityCounter2,11),11,FALSE)),"",VLOOKUP(C116,OFFSET(Coding!$L$7,0,0,AuthorityCounter2,11),11,FALSE)) ->  | C116: =IF(ROW()-34>AuthNo,"na",Coding!AR88) -> Richmond-upon-Thames | D116: =IF(C116="","",VLOOKUP(C116,OFFSET(Coding!$L$7,0,0,AuthorityCounter,11),11,FALSE)) ->  | F116: =IF(C116="","",TEXT(VLOOKUP(C116,OFFSET(Coding!$L$7,0,0,AuthorityCounter,4),4,FALSE),OFFSET(Coding!$IU$2,MAX(Coding!$G$38-2,0),0))) -> 13 | G116: =IF(C116="","",VLOOKUP(C116,OFFSET(Coding!$L$7,0,0,AuthorityCounter,2),2,FALSE)) -> ul | H116: London Borough of Richmond-upon-Thames
B117: =IF(ISERROR(VLOOKUP(C117,OFFSET(Coding!$L$7,0,0,AuthorityCounter2,11),11,FALSE)),"",VLOOKUP(C117,OFFSET(Coding!$L$7,0,0,AuthorityCounter2,11),11,FALSE)) ->  | C117: =IF(ROW()-34>AuthNo,"na",Coding!AR89) -> Rochdale | D117: =IF(C117="","",VLOOKUP(C117,OFFSET(Coding!$L$7,0,0,AuthorityCounter,11),11,FALSE)) ->  | F117: =IF(C117="","",TEXT(VLOOKUP(C117,OFFSET(Coding!$L$7,0,0,AuthorityCounter,4),4,FALSE),OFFSET(Coding!$IU$2,MAX(Coding!$G$38-2,0),0))) -> 17 | G117: =IF(C117="","",VLOOKUP(C117,OFFSET(Coding!$L$7,0,0,AuthorityCounter,2),2,FALSE)) -> um | H117: Rochdale Metropolitan Borough Council
B118: =IF(ISERROR(VLOOKUP(C118,OFFSET(Coding!$L$7,0,0,AuthorityCounter2,11),11,FALSE)),"",VLOOKUP(C118,OFFSET(Coding!$L$7,0,0,AuthorityCounter2,11),11,FALSE)) ->  | C118: =IF(ROW()-34>AuthNo,"na",Coding!AR90) -> Rotherham | D118: =IF(C118="","",VLOOKUP(C118,OFFSET(Coding!$L$7,0,0,AuthorityCounter,11),11,FALSE)) ->  | F118: =IF(C118="","",TEXT(VLOOKUP(C118,OFFSET(Coding!$L$7,0,0,AuthorityCounter,4),4,FALSE),OFFSET(Coding!$IU$2,MAX(Coding!$G$38-2,0),0))) -> 16 | G118: =IF(C118="","",VLOOKUP(C118,OFFSET(Coding!$L$7,0,0,AuthorityCounter,2),2,FALSE)) -> um | H118: Rotherham Metropolitan Borough Council
B119: =IF(ISERROR(VLOOKUP(C119,OFFSET(Coding!$L$7,0,0,AuthorityCounter2,11),11,FALSE)),"",VLOOKUP(C119,OFFSET(Coding!$L$7,0,0,AuthorityCounter2,11),11,FALSE)) ->  | C119: =IF(ROW()-34>AuthNo,"na",Coding!AR91) -> Rutland | D119: =IF(C119="","",VLOOKUP(C119,OFFSET(Coding!$L$7,0,0,AuthorityCounter,11),11,FALSE)) ->  | F119: =IF(C119="","",TEXT(VLOOKUP(C119,OFFSET(Coding!$L$7,0,0,AuthorityCounter,4),4,FALSE),OFFSET(Coding!$IU$2,MAX(Coding!$G$38-2,0),0))) -> 5 | G119: =IF(C119="","",VLOOKUP(C119,OFFSET(Coding!$L$7,0,0,AuthorityCounter,2),2,FALSE)) -> uu | H119: Rutland County Council
B120: =IF(ISERROR(VLOOKUP(C120,OFFSET(Coding!$L$7,0,0,AuthorityCounter2,11),11,FALSE)),"",VLOOKUP(C120,OFFSET(Coding!$L$7,0,0,AuthorityCounter2,11),11,FALSE)) ->  | C120: =IF(ROW()-34>AuthNo,"na",Coding!AR92) -> Salford | D120: =IF(C120="","",VLOOKUP(C120,OFFSET(Coding!$L$7,0,0,AuthorityCounter,11),11,FALSE)) ->  | F120: =IF(C120="","",TEXT(VLOOKUP(C120,OFFSET(Coding!$L$7,0,0,AuthorityCounter,4),4,FALSE),OFFSET(Coding!$IU$2,MAX(Coding!$G$38-2,0),0))) -> 16 | G120: =IF(C120="","",VLOOKUP(C120,OFFSET(Coding!$L$7,0,0,AuthorityCounter,2),2,FALSE)) -> um | H120: Salford City Council
B121: =IF(ISERROR(VLOOKUP(C121,OFFSET(Coding!$L$7,0,0,AuthorityCounter2,11),11,FALSE)),"",VLOOKUP(C121,OFFSET(Coding!$L$7,0,0,AuthorityCounter2,11),11,FALSE)) ->  | C121: =IF(ROW()-34>AuthNo,"na",Coding!AR93) -> Sandwell | D121: =IF(C121="","",VLOOKUP(C121,OFFSET(Coding!$L$7,0,0,AuthorityCounter,11),11,FALSE)) ->  | F121: =IF(C121="","",TEXT(VLOOKUP(C121,OFFSET(Coding!$L$7,0,0,AuthorityCounter,4),4,FALSE),OFFSET(Coding!$IU$2,MAX(Coding!$G$38-2,0),0))) -> 20 | G121: =IF(C121="","",VLOOKUP(C121,OFFSET(Coding!$L$7,0,0,AuthorityCounter,2),2,FALSE)) -> um | H121: Sandwell Metropolitan Borough Council
B122: =IF(ISERROR(VLOOKUP(C122,OFFSET(Coding!$L$7,0,0,AuthorityCounter2,11),11,FALSE)),"",VLOOKUP(C122,OFFSET(Coding!$L$7,0,0,AuthorityCounter2,11),11,FALSE)) ->  | C122: =IF(ROW()-34>AuthNo,"na",Coding!AR94) -> Sefton | D122: =IF(C122="","",VLOOKUP(C122,OFFSET(Coding!$L$7,0,0,AuthorityCounter,11),11,FALSE)) ->  | F122: =IF(C122="","",TEXT(VLOOKUP(C122,OFFSET(Coding!$L$7,0,0,AuthorityCounter,4),4,FALSE),OFFSET(Coding!$IU$2,MAX(Coding!$G$38-2,0),0))) -> 6 | G122: =IF(C122="","",VLOOKUP(C122,OFFSET(Coding!$L$7,0,0,AuthorityCounter,2),2,FALSE)) -> um | H122: Sefton Metropolitan Borough Council
B123: =IF(ISERROR(VLOOKUP(C123,OFFSET(Coding!$L$7,0,0,AuthorityCounter2,11),11,FALSE)),"",VLOOKUP(C123,OFFSET(Coding!$L$7,0,0,AuthorityCounter2,11),11,FALSE)) ->  | C123: =IF(ROW()-34>AuthNo,"na",Coding!AR95) -> Sheffield | D123: =IF(C123="","",VLOOKUP(C123,OFFSET(Coding!$L$7,0,0,AuthorityCounter,11),11,FALSE)) ->  | F123: =IF(C123="","",TEXT(VLOOKUP(C123,OFFSET(Coding!$L$7,0,0,AuthorityCounter,4),4,FALSE),OFFSET(Coding!$IU$2,MAX(Coding!$G$38-2,0),0))) -> 12 | G123: =IF(C123="","",VLOOKUP(C123,OFFSET(Coding!$L$7,0,0,AuthorityCounter,2),2,FALSE)) -> um | H123: Sheffield City Council
B124: =IF(ISERROR(VLOOKUP(C124,OFFSET(Coding!$L$7,0,0,AuthorityCounter2,11),11,FALSE)),"",VLOOKUP(C124,OFFSET(Coding!$L$7,0,0,AuthorityCounter2,11),11,FALSE)) ->  | C124: =IF(ROW()-34>AuthNo,"na",Coding!AR96) -> Shropshire | D124: =IF(C124="","",VLOOKUP(C124,OFFSET(Coding!$L$7,0,0,AuthorityCounter,11),11,FALSE)) ->  | F124: =IF(C124="","",TEXT(VLOOKUP(C124,OFFSET(Coding!$L$7,0,0,AuthorityCounter,4),4,FALSE),OFFSET(Coding!$IU$2,MAX(Coding!$G$38-2,0),0))) -> 24 | G124: =IF(C124="","",VLOOKUP(C124,OFFSET(Coding!$L$7,0,0,AuthorityCounter,2),2,FALSE)) -> uu | H124: Shropshire Council
B125: =IF(ISERROR(VLOOKUP(C125,OFFSET(Coding!$L$7,0,0,AuthorityCounter2,11),11,FALSE)),"",VLOOKUP(C125,OFFSET(Coding!$L$7,0,0,AuthorityCounter2,11),11,FALSE)) ->  | C125: =IF(ROW()-34>AuthNo,"na",Coding!AR97) -> Slough | D125: =IF(C125="","",VLOOKUP(C125,OFFSET(Coding!$L$7,0,0,AuthorityCounter,11),11,FALSE)) ->  | F125: =IF(C125="","",TEXT(VLOOKUP(C125,OFFSET(Coding!$L$7,0,0,AuthorityCounter,4),4,FALSE),OFFSET(Coding!$IU$2,MAX(Coding!$G$38-2,0),0))) -> 4 | G125: =IF(C125="","",VLOOKUP(C125,OFFSET(Coding!$L$7,0,0,AuthorityCounter,2),2,FALSE)) -> uu | H125: Slough Borough Council
B126: =IF(ISERROR(VLOOKUP(C126,OFFSET(Coding!$L$7,0,0,AuthorityCounter2,11),11,FALSE)),"",VLOOKUP(C126,OFFSET(Coding!$L$7,0,0,AuthorityCounter2,11),11,FALSE)) ->  | C126: =IF(ROW()-34>AuthNo,"na",Coding!AR98) -> Solihull | D126: =IF(C126="","",VLOOKUP(C126,OFFSET(Coding!$L$7,0,0,AuthorityCounter,11),11,FALSE)) ->  | F126: =IF(C126="","",TEXT(VLOOKUP(C126,OFFSET(Coding!$L$7,0,0,AuthorityCounter,4),4,FALSE),OFFSET(Coding!$IU$2,MAX(Coding!$G$38-2,0),0))) -> 14 | G126: =IF(C126="","",VLOOKUP(C126,OFFSET(Coding!$L$7,0,0,AuthorityCounter,2),2,FALSE)) -> um | H126: Solihull Metropolitan Borough Council
B127: =IF(ISERROR(VLOOKUP(C127,OFFSET(Coding!$L$7,0,0,AuthorityCounter2,11),11,FALSE)),"",VLOOKUP(C127,OFFSET(Coding!$L$7,0,0,AuthorityCounter2,11),11,FALSE)) ->  | C127: =IF(ROW()-34>AuthNo,"na",Coding!AR99) -> Somerset | D127: =IF(C127="","",VLOOKUP(C127,OFFSET(Coding!$L$7,0,0,AuthorityCounter,11),11,FALSE)) ->  | F127: =IF(C127="","",TEXT(VLOOKUP(C127,OFFSET(Coding!$L$7,0,0,AuthorityCounter,4),4,FALSE),OFFSET(Coding!$IU$2,MAX(Coding!$G$38-2,0),0))) -> 33 | G127: =IF(C127="","",VLOOKUP(C127,OFFSET(Coding!$L$7,0,0,AuthorityCounter,2),2,FALSE)) -> c | H127: Somerset County Council
B128: =IF(ISERROR(VLOOKUP(C128,OFFSET(Coding!$L$7,0,0,AuthorityCounter2,11),11,FALSE)),"",VLOOKUP(C128,OFFSET(Coding!$L$7,0,0,AuthorityCounter2,11),11,FALSE)) ->  | C128: =IF(ROW()-34>AuthNo,"na",Coding!AR100) -> South Gloucestershire | D128: =IF(C128="","",VLOOKUP(C128,OFFSET(Coding!$L$7,0,0,AuthorityCounter,11),11,FALSE)) ->  | F128: =IF(C128="","",TEXT(VLOOKUP(C128,OFFSET(Coding!$L$7,0,0,AuthorityCounter,4),4,FALSE),OFFSET(Coding!$IU$2,MAX(Coding!$G$38-2,0),0))) -> 13 | G128: =IF(C128="","",VLOOKUP(C128,OFFSET(Coding!$L$7,0,0,AuthorityCounter,2),2,FALSE)) -> uu | H128: South Gloucestershire Council
B129: =IF(ISERROR(VLOOKUP(C129,OFFSET(Coding!$L$7,0,0,AuthorityCounter2,11),11,FALSE)),"",VLOOKUP(C129,OFFSET(Coding!$L$7,0,0,AuthorityCounter2,11),11,FALSE)) ->  | C129: =IF(ROW()-34>AuthNo,"na",Coding!AR101) -> South Tyneside | D129: =IF(C129="","",VLOOKUP(C129,OFFSET(Coding!$L$7,0,0,AuthorityCounter,11),11,FALSE)) ->  | F129: =IF(C129="","",TEXT(VLOOKUP(C129,OFFSET(Coding!$L$7,0,0,AuthorityCounter,4),4,FALSE),OFFSET(Coding!$IU$2,MAX(Coding!$G$38-2,0),0))) -> 4 | G129: =IF(C129="","",VLOOKUP(C129,OFFSET(Coding!$L$7,0,0,AuthorityCounter,2),2,FALSE)) -> um | H129: South Tyneside Metropolitan Borough Council
B130: =IF(ISERROR(VLOOKUP(C130,OFFSET(Coding!$L$7,0,0,AuthorityCounter2,11),11,FALSE)),"",VLOOKUP(C130,OFFSET(Coding!$L$7,0,0,AuthorityCounter2,11),11,FALSE)) ->  | C130: =IF(ROW()-34>AuthNo,"na",Coding!AR102) -> Southampton | D130: =IF(C130="","",VLOOKUP(C130,OFFSET(Coding!$L$7,0,0,AuthorityCounter,11),11,FALSE)) ->  | F130: =IF(C130="","",TEXT(VLOOKUP(C130,OFFSET(Coding!$L$7,0,0,AuthorityCounter,4),4,FALSE),OFFSET(Coding!$IU$2,MAX(Coding!$G$38-2,0),0))) -> 11 | G130: =IF(C130="","",VLOOKUP(C130,OFFSET(Coding!$L$7,0,0,AuthorityCounter,2),2,FALSE)) -> uu | H130: Southampton City Council
B131: =IF(ISERROR(VLOOKUP(C131,OFFSET(Coding!$L$7,0,0,AuthorityCounter2,11),11,FALSE)),"",VLOOKUP(C131,OFFSET(Coding!$L$7,0,0,AuthorityCounter2,11),11,FALSE)) ->  | C131: =IF(ROW()-34>AuthNo,"na",Coding!AR103) -> Southend-on-Sea | D131: =IF(C131="","",VLOOKUP(C131,OFFSET(Coding!$L$7,0,0,AuthorityCounter,11),11,FALSE)) ->  | F131: =IF(C131="","",TEXT(VLOOKUP(C131,OFFSET(Coding!$L$7,0,0,AuthorityCounter,4),4,FALSE),OFFSET(Coding!$IU$2,MAX(Coding!$G$38-2,0),0))) -> 7 | G131: =IF(C131="","",VLOOKUP(C131,OFFSET(Coding!$L$7,0,0,AuthorityCounter,2),2,FALSE)) -> uu | H131: Southend-on-Sea Borough Council
B132: =IF(ISERROR(VLOOKUP(C132,OFFSET(Coding!$L$7,0,0,AuthorityCounter2,11),11,FALSE)),"",VLOOKUP(C132,OFFSET(Coding!$L$7,0,0,AuthorityCounter2,11),11,FALSE)) ->  | C132: =IF(ROW()-34>AuthNo,"na",Coding!AR104) -> Southwark | D132: =IF(C132="","",VLOOKUP(C132,OFFSET(Coding!$L$7,0,0,AuthorityCounter,11),11,FALSE)) ->  | F132: =IF(C132="","",TEXT(VLOOKUP(C132,OFFSET(Coding!$L$7,0,0,AuthorityCounter,4),4,FALSE),OFFSET(Coding!$IU$2,MAX(Coding!$G$38-2,0),0))) -> 11 | G132: =IF(C132="","",VLOOKUP(C132,OFFSET(Coding!$L$7,0,0,AuthorityCounter,2),2,FALSE)) -> ul | H132: London Borough of Southwark
B133: =IF(ISERROR(VLOOKUP(C133,OFFSET(Coding!$L$7,0,0,AuthorityCounter2,11),11,FALSE)),"",VLOOKUP(C133,OFFSET(Coding!$L$7,0,0,AuthorityCounter2,11),11,FALSE)) ->  | C133: =IF(ROW()-34>AuthNo,"na",Coding!AR105) -> St Helens | D133: =IF(C133="","",VLOOKUP(C133,OFFSET(Coding!$L$7,0,0,AuthorityCounter,11),11,FALSE)) ->  | F133: =IF(C133="","",TEXT(VLOOKUP(C133,OFFSET(Coding!$L$7,0,0,AuthorityCounter,4),4,FALSE),OFFSET(Coding!$IU$2,MAX(Coding!$G$38-2,0),0))) -> 12 | G133: =IF(C133="","",VLOOKUP(C133,OFFSET(Coding!$L$7,0,0,AuthorityCounter,2),2,FALSE)) -> um | H133: St Helens Metropolitan Borough Council
B134: =IF(ISERROR(VLOOKUP(C134,OFFSET(Coding!$L$7,0,0,AuthorityCounter2,11),11,FALSE)),"",VLOOKUP(C134,OFFSET(Coding!$L$7,0,0,AuthorityCounter2,11),11,FALSE)) ->  | C134: =IF(ROW()-34>AuthNo,"na",Coding!AR106) -> Staffordshire | D134: =IF(C134="","",VLOOKUP(C134,OFFSET(Coding!$L$7,0,0,AuthorityCounter,11),11,FALSE)) ->  | F134: =IF(C134="","",TEXT(VLOOKUP(C134,OFFSET(Coding!$L$7,0,0,AuthorityCounter,4),4,FALSE),OFFSET(Coding!$IU$2,MAX(Coding!$G$38-2,0),0))) -> 46 | G134: =IF(C134="","",VLOOKUP(C134,OFFSET(Coding!$L$7,0,0,AuthorityCounter,2),2,FALSE)) -> c | H134: Staffordshire County Council
B135: =IF(ISERROR(VLOOKUP(C135,OFFSET(Coding!$L$7,0,0,AuthorityCounter2,11),11,FALSE)),"",VLOOKUP(C135,OFFSET(Coding!$L$7,0,0,AuthorityCounter2,11),11,FALSE)) ->  | C135: =IF(ROW()-34>AuthNo,"na",Coding!AR107) -> Stockport | D135: =IF(C135="","",VLOOKUP(C135,OFFSET(Coding!$L$7,0,0,AuthorityCounter,11),11,FALSE)) ->  | F135: =IF(C135="","",TEXT(VLOOKUP(C135,OFFSET(Coding!$L$7,0,0,AuthorityCounter,4),4,FALSE),OFFSET(Coding!$IU$2,MAX(Coding!$G$38-2,0),0))) -> 16 | G135: =IF(C135="","",VLOOKUP(C135,OFFSET(Coding!$L$7,0,0,AuthorityCounter,2),2,FALSE)) -> um | H135: Stockport Metropolitan Borough Council
B136: =IF(ISERROR(VLOOKUP(C136,OFFSET(Coding!$L$7,0,0,AuthorityCounter2,11),11,FALSE)),"",VLOOKUP(C136,OFFSET(Coding!$L$7,0,0,AuthorityCounter2,11),11,FALSE)) ->  | C136: =IF(ROW()-34>AuthNo,"na",Coding!AR108) -> Stoke-on-Trent | D136: =IF(C136="","",VLOOKUP(C136,OFFSET(Coding!$L$7,0,0,AuthorityCounter,11),11,FALSE)) ->  | F136: =IF(C136="","",TEXT(VLOOKUP(C136,OFFSET(Coding!$L$7,0,0,AuthorityCounter,4),4,FALSE),OFFSET(Coding!$IU$2,MAX(Coding!$G$38-2,0),0))) -> 6 | G136: =IF(C136="","",VLOOKUP(C136,OFFSET(Coding!$L$7,0,0,AuthorityCounter,2),2,FALSE)) -> uu | H136: Stoke-on-Trent City Council
B137: =IF(ISERROR(VLOOKUP(C137,OFFSET(Coding!$L$7,0,0,AuthorityCounter2,11),11,FALSE)),"",VLOOKUP(C137,OFFSET(Coding!$L$7,0,0,AuthorityCounter2,11),11,FALSE)) ->  | C137: =IF(ROW()-34>AuthNo,"na",Coding!AR109) -> Suffolk | D137: =IF(C137="","",VLOOKUP(C137,OFFSET(Coding!$L$7,0,0,AuthorityCounter,11),11,FALSE)) ->  | F137: =IF(C137="","",TEXT(VLOOKUP(C137,OFFSET(Coding!$L$7,0,0,AuthorityCounter,4),4,FALSE),OFFSET(Coding!$IU$2,MAX(Coding!$G$38-2,0),0))) -> 48 | G137: =IF(C137="","",VLOOKUP(C137,OFFSET(Coding!$L$7,0,0,AuthorityCounter,2),2,FALSE)) -> c | H137: Suffolk County Council
B138: =IF(ISERROR(VLOOKUP(C138,OFFSET(Coding!$L$7,0,0,AuthorityCounter2,11),11,FALSE)),"",VLOOKUP(C138,OFFSET(Coding!$L$7,0,0,AuthorityCounter2,11),11,FALSE)) ->  | C138: =IF(ROW()-34>AuthNo,"na",Coding!AR110) -> Surrey | D138: =IF(C138="","",VLOOKUP(C138,OFFSET(Coding!$L$7,0,0,AuthorityCounter,11),11,FALSE)) ->  | F138: =IF(C138="","",TEXT(VLOOKUP(C138,OFFSET(Coding!$L$7,0,0,AuthorityCounter,4),4,FALSE),OFFSET(Coding!$IU$2,MAX(Coding!$G$38-2,0),0))) -> 53 | G138: =IF(C138="","",VLOOKUP(C138,OFFSET(Coding!$L$7,0,0,AuthorityCounter,2),2,FALSE)) -> c | H138: Surrey County Council
B139: =IF(ISERROR(VLOOKUP(C139,OFFSET(Coding!$L$7,0,0,AuthorityCounter2,11),11,FALSE)),"",VLOOKUP(C139,OFFSET(Coding!$L$7,0,0,AuthorityCounter2,11),11,FALSE)) ->  | C139: =IF(ROW()-34>AuthNo,"na",Coding!AR111) -> Sutton | D139: =IF(C139="","",VLOOKUP(C139,OFFSET(Coding!$L$7,0,0,AuthorityCounter,11),11,FALSE)) ->  | F139: =IF(C139="","",TEXT(VLOOKUP(C139,OFFSET(Coding!$L$7,0,0,AuthorityCounter,4),4,FALSE),OFFSET(Coding!$IU$2,MAX(Coding!$G$38-2,0),0))) -> 8 | G139: =IF(C139="","",VLOOKUP(C139,OFFSET(Coding!$L$7,0,0,AuthorityCounter,2),2,FALSE)) -> ul | H139: London Borough of Sutton
B140: =IF(ISERROR(VLOOKUP(C140,OFFSET(Coding!$L$7,0,0,AuthorityCounter2,11),11,FALSE)),"",VLOOKUP(C140,OFFSET(Coding!$L$7,0,0,AuthorityCounter2,11),11,FALSE)) ->  | C140: =IF(ROW()-34>AuthNo,"na",Coding!AR112) -> Swindon | D140: =IF(C140="","",VLOOKUP(C140,OFFSET(Coding!$L$7,0,0,AuthorityCounter,11),11,FALSE)) ->  | F140: =IF(C140="","",TEXT(VLOOKUP(C140,OFFSET(Coding!$L$7,0,0,AuthorityCounter,4),4,FALSE),OFFSET(Coding!$IU$2,MAX(Coding!$G$38-2,0),0))) -> 5 | G140: =IF(C140="","",VLOOKUP(C140,OFFSET(Coding!$L$7,0,0,AuthorityCounter,2),2,FALSE)) -> uu | H140: Swindon Borough Council
B141: =IF(ISERROR(VLOOKUP(C141,OFFSET(Coding!$L$7,0,0,AuthorityCounter2,11),11,FALSE)),"",VLOOKUP(C141,OFFSET(Coding!$L$7,0,0,AuthorityCounter2,11),11,FALSE)) ->  | C141: =IF(ROW()-34>AuthNo,"na",Coding!AR113) -> Tameside | D141: =IF(C141="","",VLOOKUP(C141,OFFSET(Coding!$L$7,0,0,AuthorityCounter,11),11,FALSE)) ->  | F141: =IF(C141="","",TEXT(VLOOKUP(C141,OFFSET(Coding!$L$7,0,0,AuthorityCounter,4),4,FALSE),OFFSET(Coding!$IU$2,MAX(Coding!$G$38-2,0),0))) -> 8 | G141: =IF(C141="","",VLOOKUP(C141,OFFSET(Coding!$L$7,0,0,AuthorityCounter,2),2,FALSE)) -> um | H141: Tameside Metropolitan Borough Council
B142: =IF(ISERROR(VLOOKUP(C142,OFFSET(Coding!$L$7,0,0,AuthorityCounter2,11),11,FALSE)),"",VLOOKUP(C142,OFFSET(Coding!$L$7,0,0,AuthorityCounter2,11),11,FALSE)) ->  | C142: =IF(ROW()-34>AuthNo,"na",Coding!AR114) -> Telford & Wrekin | D142: =IF(C142="","",VLOOKUP(C142,OFFSET(Coding!$L$7,0,0,AuthorityCounter,11),11,FALSE)) ->  | F142: =IF(C142="","",TEXT(VLOOKUP(C142,OFFSET(Coding!$L$7,0,0,AuthorityCounter,4),4,FALSE),OFFSET(Coding!$IU$2,MAX(Coding!$G$38-2,0),0))) -> 9 | G142: =IF(C142="","",VLOOKUP(C142,OFFSET(Coding!$L$7,0,0,AuthorityCounter,2),2,FALSE)) -> uu | H142: Telford & Wrekin Council
B143: =IF(ISERROR(VLOOKUP(C143,OFFSET(Coding!$L$7,0,0,AuthorityCounter2,11),11,FALSE)),"",VLOOKUP(C143,OFFSET(Coding!$L$7,0,0,AuthorityCounter2,11),11,FALSE)) ->  | C143: =IF(ROW()-34>AuthNo,"na",Coding!AR115) -> Thurrock | D143: =IF(C143="","",VLOOKUP(C143,OFFSET(Coding!$L$7,0,0,AuthorityCounter,11),11,FALSE)) ->  | F143: =IF(C143="","",TEXT(VLOOKUP(C143,OFFSET(Coding!$L$7,0,0,AuthorityCounter,4),4,FALSE),OFFSET(Coding!$IU$2,MAX(Coding!$G$38-2,0),0))) -> 10 | G143: =IF(C143="","",VLOOKUP(C143,OFFSET(Coding!$L$7,0,0,AuthorityCounter,2),2,FALSE)) -> uu | H143: Thurrock Borough Council
B144: =IF(ISERROR(VLOOKUP(C144,OFFSET(Coding!$L$7,0,0,AuthorityCounter2,11),11,FALSE)),"",VLOOKUP(C144,OFFSET(Coding!$L$7,0,0,AuthorityCounter2,11),11,FALSE)) ->  | C144: =IF(ROW()-34>AuthNo,"na",Coding!AR116) -> Torbay | D144: =IF(C144="","",VLOOKUP(C144,OFFSET(Coding!$L$7,0,0,AuthorityCounter,11),11,FALSE)) ->  | F144: =IF(C144="","",TEXT(VLOOKUP(C144,OFFSET(Coding!$L$7,0,0,AuthorityCounter,4),4,FALSE),OFFSET(Coding!$IU$2,MAX(Coding!$G$38-2,0),0))) -> 4 | G144: =IF(C144="","",VLOOKUP(C144,OFFSET(Coding!$L$7,0,0,AuthorityCounter,2),2,FALSE)) -> uu | H144: Torbay Council
B145: =IF(ISERROR(VLOOKUP(C145,OFFSET(Coding!$L$7,0,0,AuthorityCounter2,11),11,FALSE)),"",VLOOKUP(C145,OFFSET(Coding!$L$7,0,0,AuthorityCounter2,11),11,FALSE)) ->  | C145: =IF(ROW()-34>AuthNo,"na",Coding!AR117) -> Tower Hamlets | D145: =IF(C145="","",VLOOKUP(C145,OFFSET(Coding!$L$7,0,0,AuthorityCounter,11),11,FALSE)) ->  | F145: =IF(C145="","",TEXT(VLOOKUP(C145,OFFSET(Coding!$L$7,0,0,AuthorityCounter,4),4,FALSE),OFFSET(Coding!$IU$2,MAX(Coding!$G$38-2,0),0))) -> 8 | G145: =IF(C145="","",VLOOKUP(C145,OFFSET(Coding!$L$7,0,0,AuthorityCounter,2),2,FALSE)) -> ul | H145: London Borough of Tower Hamlets
B146: =IF(ISERROR(VLOOKUP(C146,OFFSET(Coding!$L$7,0,0,AuthorityCounter2,11),11,FALSE)),"",VLOOKUP(C146,OFFSET(Coding!$L$7,0,0,AuthorityCounter2,11),11,FALSE)) ->  | C146: =IF(ROW()-34>AuthNo,"na",Coding!AR118) -> Trafford | D146: =IF(C146="","",VLOOKUP(C146,OFFSET(Coding!$L$7,0,0,AuthorityCounter,11),11,FALSE)) ->  | F146: =IF(C146="","",TEXT(VLOOKUP(C146,OFFSET(Coding!$L$7,0,0,AuthorityCounter,4),4,FALSE),OFFSET(Coding!$IU$2,MAX(Coding!$G$38-2,0),0))) -> 11 | G146: =IF(C146="","",VLOOKUP(C146,OFFSET(Coding!$L$7,0,0,AuthorityCounter,2),2,FALSE)) -> um | H146: Trafford Metropolitan Borough Council
B147: =IF(ISERROR(VLOOKUP(C147,OFFSET(Coding!$L$7,0,0,AuthorityCounter2,11),11,FALSE)),"",VLOOKUP(C147,OFFSET(Coding!$L$7,0,0,AuthorityCounter2,11),11,FALSE)) ->  | C147: =IF(ROW()-34>AuthNo,"na",Coding!AR119) -> Waltham Forest | D147: =IF(C147="","",VLOOKUP(C147,OFFSET(Coding!$L$7,0,0,AuthorityCounter,11),11,FALSE)) ->  | F147: =IF(C147="","",TEXT(VLOOKUP(C147,OFFSET(Coding!$L$7,0,0,AuthorityCounter,4),4,FALSE),OFFSET(Coding!$IU$2,MAX(Coding!$G$38-2,0),0))) -> 9 | G147: =IF(C147="","",VLOOKUP(C147,OFFSET(Coding!$L$7,0,0,AuthorityCounter,2),2,FALSE)) -> ul | H147: London Borough of Waltham Forest
B148: =IF(ISERROR(VLOOKUP(C148,OFFSET(Coding!$L$7,0,0,AuthorityCounter2,11),11,FALSE)),"",VLOOKUP(C148,OFFSET(Coding!$L$7,0,0,AuthorityCounter2,11),11,FALSE)) ->  | C148: =IF(ROW()-34>AuthNo,"na",Coding!AR120) -> Wandsworth | D148: =IF(C148="","",VLOOKUP(C148,OFFSET(Coding!$L$7,0,0,AuthorityCounter,11),11,FALSE)) ->  | F148: =IF(C148="","",TEXT(VLOOKUP(C148,OFFSET(Coding!$L$7,0,0,AuthorityCounter,4),4,FALSE),OFFSET(Coding!$IU$2,MAX(Coding!$G$38-2,0),0))) -> 11 | G148: =IF(C148="","",VLOOKUP(C148,OFFSET(Coding!$L$7,0,0,AuthorityCounter,2),2,FALSE)) -> ul | H148: London Borough of Wandsworth
B149: =IF(ISERROR(VLOOKUP(C149,OFFSET(Coding!$L$7,0,0,AuthorityCounter2,11),11,FALSE)),"",VLOOKUP(C149,OFFSET(Coding!$L$7,0,0,AuthorityCounter2,11),11,FALSE)) ->  | C149: =IF(ROW()-34>AuthNo,"na",Coding!AR121) -> Warrington | D149: =IF(C149="","",VLOOKUP(C149,OFFSET(Coding!$L$7,0,0,AuthorityCounter,11),11,FALSE)) ->  | F149: =IF(C149="","",TEXT(VLOOKUP(C149,OFFSET(Coding!$L$7,0,0,AuthorityCounter,4),4,FALSE),OFFSET(Coding!$IU$2,MAX(Coding!$G$38-2,0),0))) -> 12 | G149: =IF(C149="","",VLOOKUP(C149,OFFSET(Coding!$L$7,0,0,AuthorityCounter,2),2,FALSE)) -> uu | H149: Warrington Borough Council
B150: =IF(ISERROR(VLOOKUP(C150,OFFSET(Coding!$L$7,0,0,AuthorityCounter2,11),11,FALSE)),"",VLOOKUP(C150,OFFSET(Coding!$L$7,0,0,AuthorityCounter2,11),11,FALSE)) ->  | C150: =IF(ROW()-34>AuthNo,"na",Coding!AR122) -> Warwickshire | D150: =IF(C150="","",VLOOKUP(C150,OFFSET(Coding!$L$7,0,0,AuthorityCounter,11),11,FALSE)) ->  | F150: =IF(C150="","",TEXT(VLOOKUP(C150,OFFSET(Coding!$L$7,0,0,AuthorityCounter,4),4,FALSE),OFFSET(Coding!$IU$2,MAX(Coding!$G$38-2,0),0))) -> 22 | G150: =IF(C150="","",VLOOKUP(C150,OFFSET(Coding!$L$7,0,0,AuthorityCounter,2),2,FALSE)) -> c | H150: Warwickshire County Council
B151: =IF(ISERROR(VLOOKUP(C151,OFFSET(Coding!$L$7,0,0,AuthorityCounter2,11),11,FALSE)),"",VLOOKUP(C151,OFFSET(Coding!$L$7,0,0,AuthorityCounter2,11),11,FALSE)) ->  | C151: =IF(ROW()-34>AuthNo,"na",Coding!AR123) -> West Berkshire | D151: =IF(C151="","",VLOOKUP(C151,OFFSET(Coding!$L$7,0,0,AuthorityCounter,11),11,FALSE)) ->  | F151: =IF(C151="","",TEXT(VLOOKUP(C151,OFFSET(Coding!$L$7,0,0,AuthorityCounter,4),4,FALSE),OFFSET(Coding!$IU$2,MAX(Coding!$G$38-2,0),0))) -> 9 | G151: =IF(C151="","",VLOOKUP(C151,OFFSET(Coding!$L$7,0,0,AuthorityCounter,2),2,FALSE)) -> uu | H151: West Berkshire Council
B152: =IF(ISERROR(VLOOKUP(C152,OFFSET(Coding!$L$7,0,0,AuthorityCounter2,11),11,FALSE)),"",VLOOKUP(C152,OFFSET(Coding!$L$7,0,0,AuthorityCounter2,11),11,FALSE)) ->  | C152: =IF(ROW()-34>AuthNo,"na",Coding!AR124) -> West Sussex | D152: =IF(C152="","",VLOOKUP(C152,OFFSET(Coding!$L$7,0,0,AuthorityCounter,11),11,FALSE)) ->  | F152: =IF(C152="","",TEXT(VLOOKUP(C152,OFFSET(Coding!$L$7,0,0,AuthorityCounter,4),4,FALSE),OFFSET(Coding!$IU$2,MAX(Coding!$G$38-2,0),0))) -> 38 | G152: =IF(C152="","",VLOOKUP(C152,OFFSET(Coding!$L$7,0,0,AuthorityCounter,2),2,FALSE)) -> c | H152: West Sussex County Council
B153: =IF(ISERROR(VLOOKUP(C153,OFFSET(Coding!$L$7,0,0,AuthorityCounter2,11),11,FALSE)),"",VLOOKUP(C153,OFFSET(Coding!$L$7,0,0,AuthorityCounter2,11),11,FALSE)) ->  | C153: =IF(ROW()-34>AuthNo,"na",Coding!AR125) -> Westminster | D153: =IF(C153="","",VLOOKUP(C153,OFFSET(Coding!$L$7,0,0,AuthorityCounter,11),11,FALSE)) ->  | F153: =IF(C153="","",TEXT(VLOOKUP(C153,OFFSET(Coding!$L$7,0,0,AuthorityCounter,4),4,FALSE),OFFSET(Coding!$IU$2,MAX(Coding!$G$38-2,0),0))) -> 11 | G153: =IF(C153="","",VLOOKUP(C153,OFFSET(Coding!$L$7,0,0,AuthorityCounter,2),2,FALSE)) -> ul | H153: Westminster City Council
B154: =IF(ISERROR(VLOOKUP(C154,OFFSET(Coding!$L$7,0,0,AuthorityCounter2,11),11,FALSE)),"",VLOOKUP(C154,OFFSET(Coding!$L$7,0,0,AuthorityCounter2,11),11,FALSE)) ->  | C154: =IF(ROW()-34>AuthNo,"na",Coding!AR126) -> Wiltshire | D154: =IF(C154="","",VLOOKUP(C154,OFFSET(Coding!$L$7,0,0,AuthorityCounter,11),11,FALSE)) ->  | F154: =IF(C154="","",TEXT(VLOOKUP(C154,OFFSET(Coding!$L$7,0,0,AuthorityCounter,4),4,FALSE),OFFSET(Coding!$IU$2,MAX(Coding!$G$38-2,0),0))) -> 34 | G154: =IF(C154="","",VLOOKUP(C154,OFFSET(Coding!$L$7,0,0,AuthorityCounter,2),2,FALSE)) -> uu | H154: Wiltshire Council
B155: =IF(ISERROR(VLOOKUP(C155,OFFSET(Coding!$L$7,0,0,AuthorityCounter2,11),11,FALSE)),"",VLOOKUP(C155,OFFSET(Coding!$L$7,0,0,AuthorityCounter2,11),11,FALSE)) ->  | C155: =IF(ROW()-34>AuthNo,"na",Coding!AR127) -> Windsor & Maidenhead | D155: =IF(C155="","",VLOOKUP(C155,OFFSET(Coding!$L$7,0,0,AuthorityCounter,11),11,FALSE)) ->  | F155: =IF(C155="","",TEXT(VLOOKUP(C155,OFFSET(Coding!$L$7,0,0,AuthorityCounter,4),4,FALSE),OFFSET(Coding!$IU$2,MAX(Coding!$G$38-2,0),0))) -> 18 | G155: =IF(C155="","",VLOOKUP(C155,OFFSET(Coding!$L$7,0,0,AuthorityCounter,2),2,FALSE)) -> uu | H155: Royal Borough of Windsor & Maidenhead
B156: =IF(ISERROR(VLOOKUP(C156,OFFSET(Coding!$L$7,0,0,AuthorityCounter2,11),11,FALSE)),"",VLOOKUP(C156,OFFSET(Coding!$L$7,0,0,AuthorityCounter2,11),11,FALSE)) ->  | C156: =IF(ROW()-34>AuthNo,"na",Coding!AR128) -> Wirral | D156: =IF(C156="","",VLOOKUP(C156,OFFSET(Coding!$L$7,0,0,AuthorityCounter,11),11,FALSE)) ->  | F156: =IF(C156="","",TEXT(VLOOKUP(C156,OFFSET(Coding!$L$7,0,0,AuthorityCounter,4),4,FALSE),OFFSET(Coding!$IU$2,MAX(Coding!$G$38-2,0),0))) -> 24 | G156: =IF(C156="","",VLOOKUP(C156,OFFSET(Coding!$L$7,0,0,AuthorityCounter,2),2,FALSE)) -> um | H156: Metropolitan Borough of Wirral
B157: =IF(ISERROR(VLOOKUP(C157,OFFSET(Coding!$L$7,0,0,AuthorityCounter2,11),11,FALSE)),"",VLOOKUP(C157,OFFSET(Coding!$L$7,0,0,AuthorityCounter2,11),11,FALSE)) ->  | C157: =IF(ROW()-34>AuthNo,"na",Coding!AR129) -> Wolverhampton | D157: =IF(C157="","",VLOOKUP(C157,OFFSET(Coding!$L$7,0,0,AuthorityCounter,11),11,FALSE)) ->  | F157: =IF(C157="","",TEXT(VLOOKUP(C157,OFFSET(Coding!$L$7,0,0,AuthorityCounter,4),4,FALSE),OFFSET(Coding!$IU$2,MAX(Coding!$G$38-2,0),0))) -> 16 | G157: =IF(C157="","",VLOOKUP(C157,OFFSET(Coding!$L$7,0,0,AuthorityCounter,2),2,FALSE)) -> um | H157: Wolverhampton City Council
B158: =IF(ISERROR(VLOOKUP(C158,OFFSET(Coding!$L$7,0,0,AuthorityCounter2,11),11,FALSE)),"",VLOOKUP(C158,OFFSET(Coding!$L$7,0,0,AuthorityCounter2,11),11,FALSE)) ->  | C158: =IF(ROW()-34>AuthNo,"na",Coding!AR130) -> Worcestershire | D158: =IF(C158="","",VLOOKUP(C158,OFFSET(Coding!$L$7,0,0,AuthorityCounter,11),11,FALSE)) ->  | F158: =IF(C158="","",TEXT(VLOOKUP(C158,OFFSET(Coding!$L$7,0,0,AuthorityCounter,4),4,FALSE),OFFSET(Coding!$IU$2,MAX(Coding!$G$38-2,0),0))) -> 24 | G158: =IF(C158="","",VLOOKUP(C158,OFFSET(Coding!$L$7,0,0,AuthorityCounter,2),2,FALSE)) -> c | H158: Worcestershire County Council
B159: =IF(ISERROR(VLOOKUP(C159,OFFSET(Coding!$L$7,0,0,AuthorityCounter2,11),11,FALSE)),"",VLOOKUP(C159,OFFSET(Coding!$L$7,0,0,AuthorityCounter2,11),11,FALSE)) ->  | C159: =IF(ROW()-34>AuthNo,"na",Coding!AR131) -> York | D159: =IF(C159="","",VLOOKUP(C159,OFFSET(Coding!$L$7,0,0,AuthorityCounter,11),11,FALSE)) ->  | F159: =IF(C159="","",TEXT(VLOOKUP(C159,OFFSET(Coding!$L$7,0,0,AuthorityCounter,4),4,FALSE),OFFSET(Coding!$IU$2,MAX(Coding!$G$38-2,0),0))) -> 17 | G159: =IF(C159="","",VLOOKUP(C159,OFFSET(Coding!$L$7,0,0,AuthorityCounter,2),2,FALSE)) -> uu | H159: City of York Council

Sheet Coding (hidden)
A1: ChartTinfo | B1: -1 | C1: -1 | D1: Page Number | E1: --- Please Select --- | Y1: Check against current chartforms & test - black bars tend to be on wrong side. | IT1: --- Please Select --- | IU1: TABLE | IV1: CHARTS
A2: (P.02)[01]Total Service Points | B2: 0 | C2: 0 | D2: 8 | E2: ="Page "&D2&": " &RIGHT(A2,LEN(A2)-10) -> Page 8: Total Service Points | I2: Authority Counter: | J2: =G404 -> 125 | L2: DATA PROCESSING BLOCK FOR CHARTS | AA2: Black Bar: | AB2: =IF(Coding!G74=1,"",INDEX(OFFSET($O$6,0,0,AuthorityCounter2+1,6),Coding!G74,6)) ->  | AC2: Letter | AE2: SORTER PROCESSING FOR TABLE UNDER DATABASE | IT2: Page 1: Total Service Points | IU2: #,##0 | IV2: =AB7 -> 0
A3: (P.02)[02]Total Service Points per 100,000 population | B3: 0 | C3: 1 | D3: =D2--OR(B3<>B2,LEFT(A3,5)<>LEFT(A2,5)) -> 8 | E3: ="Page "&D3&": " &RIGHT(A3,LEN(A3)-10) -> Page 8: Total Service Points per 100,000 population | I3: Charts counter: | J3: =G403 -> 118 | AA3: Average: | AB3: =AVERAGE(OFFSET(Y7,0,0,Coding!J6,1)) -> 18.6504065 | AC3: =INDEX(V6:V360,Coding!G74) -> Letters | IT3: Page 1: Total Service Points per 100,000 population | IU3: #,##0 | IV3: =AB7 -> 0
A4: (P.02)[03]Issues per annum | B4: 0 | C4: 2 | D4: =D3--OR(B4<>B3,LEFT(A4,5)<>LEFT(A3,5)) -> 8 | E4: ="Page "&D4&": " &RIGHT(A4,LEN(A4)-10) -> Page 8: Issues per annum | I4: Authorities in Group: | J4: =IF($H$75="OC",COUNTIF(OFFSET($R$7,0,0,AuthorityCounter2,1),1),COUNTIF(OFFSET($P$7,0,0,AuthorityCounter2,1),1)) -> 125 | L4: Authority Details: | O4: Data Selection: | V4: Letters: | Y4: Chart Data: | AA4: Title: | AB4: =IF($G$38=1,"Please use drop down list below to select graph",RIGHT(OFFSET(A1,G38-1,0),LEN(OFFSET(A1,G38-1,0))-10)) -> Total Service Points | AE4: 1 = Auth, 2 = Tier, 3 = Data | IT4: Page 1: Issues per annum | IU4: #,##0 | IV4: =AB7 -> 0
A5: (P.02)[04]Visits per annum | B5: 0 | C5: 3 | D5: 8 | E5: Page 8: Visits per annum | AP5: TRUE | AQ5: =354-COUNTIF(AQ7:AQ360,"")-COUNTIF(AQ7:AQ360,"0") -> 125 | AU5: UPDATE THESE IF DIFFERENT: | IT5: Page 1: Visits per annum | IU5: #,##0 | IV5: =AB7 -> 0
A6: (P.03)[01]Percentage of total scheduled opening hours per week staffed | B6: 0 | C6: 4 | D6: 9 | E6: Page 9: Percentage of total scheduled opening hours per week staffed | I6: Authorities on Graph: | J6: =SUMIF(OFFSET(Coding!$S$7,0,0,AuthorityCounter2,1),"<>0",OFFSET($S$7,0,0,AuthorityCounter2,1)) -> 125 | L6: --- Please Select --- | M6: Tier | O6: Initial Data | P6: Group | Q6: Manual | R6: OC | S6: Criteria | T6: Chart Data | V6: Letters | Y6: Ordered | Z6: Letter | AA6: Average | AB6: Black | AC6: Bars | AE6: 1 | AI6: U(prev col) | AM6: 0 | AN6: Group Selected | AQ6: Auth for table | AR6: U(prev col) | AU6: Year: | AV6: 2019 | IT6: Page 2: Percentage of total scheduled opening hours per week staffed | IU6: 0% | IV6: =AB7 -> 0
A7: (P.03)[02]Percentage of total scheduled opening hours per week unstaffed | B7: 0 | C7: 5 | D7: 9 | E7: Page 9: Percentage of total scheduled opening hours per week unstaffed | I7: Show only selected Authorities tickbox: | J7: FALSE | L7: =IF((ROW()-6)<=AuthorityCounter,OFFSET($D$409,ROW()-6,0),"") -> Barking & Dagenham | M7: =IF((ROW()-6)<=AuthorityCounter,OFFSET($F$409,ROW()-6,0),"") -> ul | O7: =IF(ISNUMBER(--OFFSET($D$409,(ROW()-6)+$G$39+AuthorityCounter+5,$G$40)),OFFSET($D$409,(ROW()-6)+$G$39+AuthorityCounter+5,$G$40),"na") -> 6 | P7: =IF((ROW()-5=$G$36),1,IF((M7=Coding!$H$75)+(Coding!$H$75="ALL")+(Coding!$H$75="U")*OR(M7="W",M7="su",M7="L",M7="MD",M7="UA")+(Coding!$H$75="na")*AND(M7<>"W",M7<>"su",M7<>"L",M7<>"MD",M7<>"UA",M7<>"SC",M7<>"SD",M7<>"p"),1,0)) -> 1 | Q7: FALSE | R7: =IF(OR(NOT(ISERROR(MATCH(L7,OFFSET($H$410,$G$36-2,0,1,18),FALSE))),$G$75=L7),1,0+(($G$36=1)*($H$75="OC"))) -> 0 | S7: =IF((ROW()-5=$G$36),1,IF($H$75="OC",IF(NOT($J$10)+Q7,R7,0),IF(NOT($J$10)+Q7,P7,0))) -> 1 | T7: =IF(S7=1,O7,"not selected") -> 6 | V7: =IF((S7=1)*($J$6<22),INDEX($J$13:$J$33,SUM($S$7:S7),1),"") ->  | W7: =COUNTIF($T$7:T7,T7) -> 1 | Y7: =IF((ROW()-6-$J$8)<1,"na",LARGE(OFFSET($T$7,0,0,AuthorityCounter2,1),ROW()-6-$J$8)) -> na | Z7: =INDEX(V:V,SUMPRODUCT((OFFSET($T$7,0,0,AuthorityCounter2,1)=Y7)*1,(OFFSET($W$7,0,0,AuthorityCounter2,1)=COUNTIF($Y$7:Y7,Y7))*1,ROW(OFFSET($W$7,0,0,AuthorityCounter2,1)))) ->  | AA7: =AB$3 -> 18.6504065 | AB7: =IF((Y7=AB$2)*(Z7=AC$3)*(SUM($AB$6:AB6)=0),+Y7,0) -> 0 | AC7: =IF(ISNUMBER(AA7),Y7-AB7,"na") ->  | AE7: =IF($AE$6=3,O7,SUM((CODE(MID(CONCATENATE(UPPER(M7),"aaaaaaaaaa"),{1;2},1))-30)*{1;0.01})) -> 55.46 | AF7: =COUNTIF($AE$7:$AE7,AE7) -> 1 | AH7: =IF($AE$6=3,LARGE(OFFSET($AE$7,0,0,AuthorityCounter2,1),ROW()-6),SMALL(OFFSET($AE$7,0,0,AuthorityCounter2,1),ROW()-6)) -> 37.67 | AI7: =IF(ISERROR(AH7),"na",AH7) -> 37.67 | AJ7: =COUNTIF($AI$7:$AI7,AI7) -> 1 | AK7: =IF($AE$6=1,L7,OFFSET($L$1,SUMPRODUCT(--(OFFSET($AE$7,0,0,AuthorityCounter,1)=AI7),--(OFFSET($AF$7,0,0,AuthorityCounter,1)=COUNTIF($AI$7:AI7,AI7)),ROW(OFFSET($AF$7,0,0,AuthorityCounter,1)))-1,0)) -> Barking & Dagenham | AM7: =IF(VLOOKUP(AK7,colAM,IF($H$75="OC",8,5),FALSE)=1,MAX(AM6:$AM$6)+1,0) -> 1 | AN7: =OFFSET($AK$1,ABS(SUMPRODUCT(--(colAN=(ROW()-6)),ROW(colAN))-1),0) -> Barking & Dagenham | AO7: =IF(AN7=0,0,VLOOKUP(AN7,colAO,6,FALSE)) -> FALSE | AP7: =IF($AP$5,SUM(SUMPRODUCT(--AO$7:$AO7)*AO7,(SUMPRODUCT(--(AO$7:$AO7=FALSE))+SUMPRODUCT(--colAP))*(1-AO7)),ROW()-6) -> 1 | AQ7: =OFFSET($AN$6,MATCH(ROW()-6,colAQ,FALSE),0) -> Barking & Dagenham | AR7: =IF(ISERROR(AQ7),"na",AQ7) -> Barking & Dagenham | AU7: E-mail: | AV7: analytics@cipfa.org | IT7: Page 2: Percentage of total scheduled opening hours per week unstaffed | IU7: 0.0% | IV7: =AB7 -> 0
A8: (P.03)[03]Libraries Permanently closed | B8: 0 | C8: 6 | D8: 9 | E8: Page 9: Libraries Permanently closed | I8: "na"s at start of Graph: | J8: =SUMPRODUCT(ISTEXT(OFFSET(T7,0,0,AuthorityCounter2,1))*1)-SUMPRODUCT((OFFSET(T7,0,0,AuthorityCounter2,1)="not selected")*1) -> 2 | L8: Barnet | M8: ul | O8: 15 | P8: =IF((ROW()-5=$G$36),1,IF((M8=Coding!$H$75)+(Coding!$H$75="ALL")+(Coding!$H$75="U")*OR(M8="W",M8="su",M8="L",M8="MD",M8="UA")+(Coding!$H$75="na")*AND(M8<>"W",M8<>"su",M8<>"L",M8<>"MD",M8<>"UA",M8<>"SC",M8<>"SD",M8<>"p"),1,0)) -> 1 | Q8: FALSE | R8: =IF(OR(NOT(ISERROR(MATCH(L8,OFFSET($H$410,$G$36-2,0,1,18),FALSE))),$G$75=L8),1,0+(($G$36=1)*($H$75="OC"))) -> 0 | S8: 1 | T8: 15 | V8: =IF((S8=1)*($J$6<22),INDEX($J$13:$J$33,SUM($S$7:S8),1),"") ->  | W8: =COUNTIF($T$7:T8,T8) -> 1 | Y8: =IF((ROW()-6-$J$8)<1,"na",LARGE(OFFSET($T$7,0,0,AuthorityCounter2,1),ROW()-6-$J$8)) -> na | Z8: =INDEX(V:V,SUMPRODUCT((OFFSET($T$7,0,0,AuthorityCounter2,1)=Y8)*1,(OFFSET($W$7,0,0,AuthorityCounter2,1)=COUNTIF($Y$7:Y8,Y8))*1,ROW(OFFSET($W$7,0,0,AuthorityCounter2,1)))) ->  | AA8: 18.6504065 | AB8: =IF((Y8=AB$2)*(Z8=AC$3)*(SUM($AB$6:AB7)=0),+Y8,0) -> 0 | AE8: =IF($AE$6=3,O8,SUM((CODE(MID(CONCATENATE(UPPER(M8),"aaaaaaaaaa"),{1;2},1))-30)*{1;0.01})) -> 55.46 | AF8: =COUNTIF($AE$7:$AE8,AE8) -> 2 | AH8: 37.67 | AI8: 37.67 | AJ8: =COUNTIF($AI$7:$AI8,AI8) -> 2 | AK8: =IF($AE$6=1,L8,OFFSET($L$1,SUMPRODUCT(--(OFFSET($AE$7,0,0,AuthorityCounter,1)=AI8),--(OFFSET($AF$7,0,0,AuthorityCounter,1)=COUNTIF($AI$7:AI8,AI8)),ROW(OFFSET($AF$7,0,0,AuthorityCounter,1)))-1,0)) -> Barnet | AM8: =IF(VLOOKUP(AK8,colAM,IF($H$75="OC",8,5),FALSE)=1,MAX(AM$6:$AM7)+1,0) -> 2 | AN8: Barnet | AO8: FALSE | AP8: =IF($AP$5,SUM(SUMPRODUCT(--AO$7:$AO8)*AO8,(SUMPRODUCT(--(AO$7:$AO8=FALSE))+SUMPRODUCT(--colAP))*(1-AO8)),ROW()-6) -> 2 | AQ8: Barnet | AR8: =IF(ISERROR(AQ8),"na",AQ8) -> Barnet | IT8: Page 2: Libraries Permanently closed | IU8: #,##0.00 | IV8: =AB7 -> 0
A9: (P.03)[04]Libraries Opened | B9: 0 | C9: 7 | D9: 9 | E9: Page 9: Libraries Opened | I9: Number of Authorities Selected: | J9: =SUMPRODUCT((Q7:Q360=TRUE)*1,(P7:P360=1)*1) -> 0 | L9: Bedford | M9: uu | O9: 7 | P9: =IF((ROW()-5=$G$36),1,IF((M9=Coding!$H$75)+(Coding!$H$75="ALL")+(Coding!$H$75="U")*OR(M9="W",M9="su",M9="L",M9="MD",M9="UA")+(Coding!$H$75="na")*AND(M9<>"W",M9<>"su",M9<>"L",M9<>"MD",M9<>"UA",M9<>"SC",M9<>"SD",M9<>"p"),1,0)) -> 1 | Q9: FALSE | R9: =IF(OR(NOT(ISERROR(MATCH(L9,OFFSET($H$410,$G$36-2,0,1,18),FALSE))),$G$75=L9),1,0+(($G$36=1)*($H$75="OC"))) -> 0 | S9: 1 | T9: 7 | V9: =IF((S9=1)*($J$6<22),INDEX($J$13:$J$33,SUM($S$7:S9),1),"") ->  | W9: =COUNTIF($T$7:T9,T9) -> 1 | Y9: 104 | Z9: =INDEX(V:V,SUMPRODUCT((OFFSET($T$7,0,0,AuthorityCounter2,1)=Y9)*1,(OFFSET($W$7,0,0,AuthorityCounter2,1)=COUNTIF($Y$7:Y9,Y9))*1,ROW(OFFSET($W$7,0,0,AuthorityCounter2,1)))) ->  | AA9: 18.6504065 | AB9: =IF((Y9=AB$2)*(Z9=AC$3)*(SUM($AB$6:AB8)=0),+Y9,0) -> 0 | AC9: 104 | AE9: =IF($AE$6=3,O9,SUM((CODE(MID(CONCATENATE(UPPER(M9),"aaaaaaaaaa"),{1;2},1))-30)*{1;0.01})) -> 55.55 | AF9: =COUNTIF($AE$7:$AE9,AE9) -> 1 | AH9: 37.67 | AI9: 37.67 | AJ9: =COUNTIF($AI$7:$AI9,AI9) -> 3 | AK9: =IF($AE$6=1,L9,OFFSET($L$1,SUMPRODUCT(--(OFFSET($AE$7,0,0,AuthorityCounter,1)=AI9),--(OFFSET($AF$7,0,0,AuthorityCounter,1)=COUNTIF($AI$7:AI9,AI9)),ROW(OFFSET($AF$7,0,0,AuthorityCounter,1)))-1,0)) -> Bedford | AM9: =IF(VLOOKUP(AK9,colAM,IF($H$75="OC",8,5),FALSE)=1,MAX(AM$6:$AM8)+1,0) -> 3 | AN9: Bedford | AO9: FALSE | AP9: =IF($AP$5,SUM(SUMPRODUCT(--AO$7:$AO9)*AO9,(SUMPRODUCT(--(AO$7:$AO9=FALSE))+SUMPRODUCT(--colAP))*(1-AO9)),ROW()-6) -> 3 | AQ9: Bedford | AR9: Bedford | IT9: Page 2: Libraries Opened | IU9: #,##0.00 | IV9: =AB7 -> 0
A10: (P.03)[05]Net Openings/Closures | B10: 0 | C10: 8 | D10: 9 | E10: Page 9: Net Openings/Closures | I10: Show only selected Authorities Actual?: | J10: =IF(J9=0,FALSE,J7) -> FALSE | L10: Bexley | M10: ul | O10: 6 | P10: =IF((ROW()-5=$G$36),1,IF((M10=Coding!$H$75)+(Coding!$H$75="ALL")+(Coding!$H$75="U")*OR(M10="W",M10="su",M10="L",M10="MD",M10="UA")+(Coding!$H$75="na")*AND(M10<>"W",M10<>"su",M10<>"L",M10<>"MD",M10<>"UA",M10<>"SC",M10<>"SD",M10<>"p"),1,0)) -> 1 | Q10: FALSE | R10: =IF(OR(NOT(ISERROR(MATCH(L10,OFFSET($H$410,$G$36-2,0,1,18),FALSE))),$G$75=L10),1,0+(($G$36=1)*($H$75="OC"))) -> 0 | S10: 1 | T10: 6 | V10: =IF((S10=1)*($J$6<22),INDEX($J$13:$J$33,SUM($S$7:S10),1),"") ->  | W10: =COUNTIF($T$7:T10,T10) -> 2 | Y10: 77 | Z10: =INDEX(V:V,SUMPRODUCT((OFFSET($T$7,0,0,AuthorityCounter2,1)=Y10)*1,(OFFSET($W$7,0,0,AuthorityCounter2,1)=COUNTIF($Y$7:Y10,Y10))*1,ROW(OFFSET($W$7,0,0,AuthorityCounter2,1)))) ->  | AA10: 18.6504065 | AB10: =IF((Y10=AB$2)*(Z10=AC$3)*(SUM($AB$6:AB9)=0),+Y10,0) -> 0 | AC10: 77 | AE10: =IF($AE$6=3,O10,SUM((CODE(MID(CONCATENATE(UPPER(M10),"aaaaaaaaaa"),{1;2},1))-30)*{1;0.01})) -> 55.46 | AF10: =COUNTIF($AE$7:$AE10,AE10) -> 3 | AH10: 37.67 | AI10: 37.67 | AJ10: =COUNTIF($AI$7:$AI10,AI10) -> 4 | AK10: =IF($AE$6=1,L10,OFFSET($L$1,SUMPRODUCT(--(OFFSET($AE$7,0,0,AuthorityCounter,1)=AI10),--(OFFSET($AF$7,0,0,AuthorityCounter,1)=COUNTIF($AI$7:AI10,AI10)),ROW(OFFSET($AF$7,0,0,AuthorityCounter,1)))-1,0)) -> Bexley | AM10: =IF(VLOOKUP(AK10,colAM,IF($H$75="OC",8,5),FALSE)=1,MAX(AM$6:$AM9)+1,0) -> 4 | AN10: Bexley | AO10: FALSE | AP10: =IF($AP$5,SUM(SUMPRODUCT(--AO$7:$AO10)*AO10,(SUMPRODUCT(--(AO$7:$AO10=FALSE))+SUMPRODUCT(--colAP))*(1-AO10)),ROW()-6) -> 4 | AQ10: Bexley | AR10: Bexley | IT10: Page 2: Net Openings/Closures | IU10: #,##0.00 | IV10: =AB7 -> 0
A11: (P.04)[01]Mobile libraries per 100,000 population | B11: 0 | C11: 9 | D11: 10 | E11: Page 10: Mobile libraries per 100,000 population | I11: Cell for greying out tickboxes: | J11: FALSE | L11: Blackburn with Darwen | M11: uu | O11: 5 | P11: =IF((ROW()-5=$G$36),1,IF((M11=Coding!$H$75)+(Coding!$H$75="ALL")+(Coding!$H$75="U")*OR(M11="W",M11="su",M11="L",M11="MD",M11="UA")+(Coding!$H$75="na")*AND(M11<>"W",M11<>"su",M11<>"L",M11<>"MD",M11<>"UA",M11<>"SC",M11<>"SD",M11<>"p"),1,0)) -> 1 | Q11: FALSE | R11: =IF(OR(NOT(ISERROR(MATCH(L11,OFFSET($H$410,$G$36-2,0,1,18),FALSE))),$G$75=L11),1,0+(($G$36=1)*($H$75="OC"))) -> 0 | S11: 1 | T11: 5 | V11: =IF((S11=1)*($J$6<22),INDEX($J$13:$J$33,SUM($S$7:S11),1),"") ->  | W11: =COUNTIF($T$7:T11,T11) -> 1 | Y11: 68 | Z11: =INDEX(V:V,SUMPRODUCT((OFFSET($T$7,0,0,AuthorityCounter2,1)=Y11)*1,(OFFSET($W$7,0,0,AuthorityCounter2,1)=COUNTIF($Y$7:Y11,Y11))*1,ROW(OFFSET($W$7,0,0,AuthorityCounter2,1)))) ->  | AA11: 18.6504065 | AB11: =IF((Y11=AB$2)*(Z11=AC$3)*(SUM($AB$6:AB10)=0),+Y11,0) -> 0 | AC11: 68 | AE11: =IF($AE$6=3,O11,SUM((CODE(MID(CONCATENATE(UPPER(M11),"aaaaaaaaaa"),{1;2},1))-30)*{1;0.01})) -> 55.55 | AF11: =COUNTIF($AE$7:$AE11,AE11) -> 2 | AH11: 37.67 | AI11: 37.67 | AJ11: =COUNTIF($AI$7:$AI11,AI11) -> 5 | AK11: =IF($AE$6=1,L11,OFFSET($L$1,SUMPRODUCT(--(OFFSET($AE$7,0,0,AuthorityCounter,1)=AI11),--(OFFSET($AF$7,0,0,AuthorityCounter,1)=COUNTIF($AI$7:AI11,AI11)),ROW(OFFSET($AF$7,0,0,AuthorityCounter,1)))-1,0)) -> Blackburn with Darwen | AM11: =IF(VLOOKUP(AK11,colAM,IF($H$75="OC",8,5),FALSE)=1,MAX(AM$6:$AM10)+1,0) -> 5 | AN11: Blackburn with Darwen | AO11: FALSE | AP11: =IF($AP$5,SUM(SUMPRODUCT(--AO$7:$AO11)*AO11,(SUMPRODUCT(--(AO$7:$AO11=FALSE))+SUMPRODUCT(--colAP))*(1-AO11)),ROW()-6) -> 5 | AQ11: Blackburn with Darwen | AR11: Blackburn with Darwen | IT11: Page 3: Mobile libraries per 100,000 population | IU11: #,##0.00 | IV11: =AB7 -> 0
A12: (P.05)[01]Total Opening Hours at the Busiest Service (Issues) | B12: 0 | C12: 10 | D12: 11 | E12: Page 11: Total Opening Hours at the Busiest Service (Issues) | J12: Letters | L12: Blackpool | M12: uu | O12: 8 | P12: =IF((ROW()-5=$G$36),1,IF((M12=Coding!$H$75)+(Coding!$H$75="ALL")+(Coding!$H$75="U")*OR(M12="W",M12="su",M12="L",M12="MD",M12="UA")+(Coding!$H$75="na")*AND(M12<>"W",M12<>"su",M12<>"L",M12<>"MD",M12<>"UA",M12<>"SC",M12<>"SD",M12<>"p"),1,0)) -> 1 | Q12: FALSE | R12: =IF(OR(NOT(ISERROR(MATCH(L12,OFFSET($H$410,$G$36-2,0,1,18),FALSE))),$G$75=L12),1,0+(($G$36=1)*($H$75="OC"))) -> 0 | S12: 1 | T12: 8 | V12: =IF((S12=1)*($J$6<22),INDEX($J$13:$J$33,SUM($S$7:S12),1),"") ->  | W12: =COUNTIF($T$7:T12,T12) -> 1 | Y12: 63 | Z12: =INDEX(V:V,SUMPRODUCT((OFFSET($T$7,0,0,AuthorityCounter2,1)=Y12)*1,(OFFSET($W$7,0,0,AuthorityCounter2,1)=COUNTIF($Y$7:Y12,Y12))*1,ROW(OFFSET($W$7,0,0,AuthorityCounter2,1)))) ->  | AA12: 18.6504065 | AB12: =IF((Y12=AB$2)*(Z12=AC$3)*(SUM($AB$6:AB11)=0),+Y12,0) -> 0 | AC12: 63 | AE12: =IF($AE$6=3,O12,SUM((CODE(MID(CONCATENATE(UPPER(M12),"aaaaaaaaaa"),{1;2},1))-30)*{1;0.01})) -> 55.55 | AF12: =COUNTIF($AE$7:$AE12,AE12) -> 3 | AH12: 37.67 | AI12: 37.67 | AJ12: =COUNTIF($AI$7:$AI12,AI12) -> 6 | AK12: =IF($AE$6=1,L12,OFFSET($L$1,SUMPRODUCT(--(OFFSET($AE$7,0,0,AuthorityCounter,1)=AI12),--(OFFSET($AF$7,0,0,AuthorityCounter,1)=COUNTIF($AI$7:AI12,AI12)),ROW(OFFSET($AF$7,0,0,AuthorityCounter,1)))-1,0)) -> Blackpool | AM12: =IF(VLOOKUP(AK12,colAM,IF($H$75="OC",8,5),FALSE)=1,MAX(AM$6:$AM11)+1,0) -> 6 | AN12: Blackpool | AO12: FALSE | AP12: =IF($AP$5,SUM(SUMPRODUCT(--AO$7:$AO12)*AO12,(SUMPRODUCT(--(AO$7:$AO12=FALSE))+SUMPRODUCT(--colAP))*(1-AO12)),ROW()-6) -> 6 | AQ12: Blackpool | AR12: Blackpool | IT12: Page 4: Total Opening Hours at the Busiest Service (Issues) | IU12: #,##0 | IV12: =AB7 -> 0
A13: (P.05)[02]Total Opening Hours at the Busiest Service (Visits) | B13: 0 | C13: 11 | D13: 11 | E13: Page 11: Total Opening Hours at the Busiest Service (Visits) | J13: h | L13: Bolton | M13: um | O13: 10 | P13: =IF((ROW()-5=$G$36),1,IF((M13=Coding!$H$75)+(Coding!$H$75="ALL")+(Coding!$H$75="U")*OR(M13="W",M13="su",M13="L",M13="MD",M13="UA")+(Coding!$H$75="na")*AND(M13<>"W",M13<>"su",M13<>"L",M13<>"MD",M13<>"UA",M13<>"SC",M13<>"SD",M13<>"p"),1,0)) -> 1 | Q13: FALSE | R13: =IF(OR(NOT(ISERROR(MATCH(L13,OFFSET($H$410,$G$36-2,0,1,18),FALSE))),$G$75=L13),1,0+(($G$36=1)*($H$75="OC"))) -> 0 | S13: 1 | T13: =IF(S13=1,O13,"not selected") -> 10 | V13: =IF((S13=1)*($J$6<22),INDEX($J$13:$J$33,SUM($S$7:S13),1),"") ->  | W13: =COUNTIF($T$7:T13,T13) -> 1 | Y13: 55 | Z13: =INDEX(V:V,SUMPRODUCT((OFFSET($T$7,0,0,AuthorityCounter2,1)=Y13)*1,(OFFSET($W$7,0,0,AuthorityCounter2,1)=COUNTIF($Y$7:Y13,Y13))*1,ROW(OFFSET($W$7,0,0,AuthorityCounter2,1)))) ->  | AA13: 18.6504065 | AB13: =IF((Y13=AB$2)*(Z13=AC$3)*(SUM($AB$6:AB12)=0),+Y13,0) -> 0 | AC13: 55 | AE13: =IF($AE$6=3,O13,SUM((CODE(MID(CONCATENATE(UPPER(M13),"aaaaaaaaaa"),{1;2},1))-30)*{1;0.01})) -> 55.47 | AF13: =COUNTIF($AE$7:$AE13,AE13) -> 1 | AH13: 37.67 | AI13: 37.67 | AJ13: =COUNTIF($AI$7:$AI13,AI13) -> 7 | AK13: =IF($AE$6=1,L13,OFFSET($L$1,SUMPRODUCT(--(OFFSET($AE$7,0,0,AuthorityCounter,1)=AI13),--(OFFSET($AF$7,0,0,AuthorityCounter,1)=COUNTIF($AI$7:AI13,AI13)),ROW(OFFSET($AF$7,0,0,AuthorityCounter,1)))-1,0)) -> Bolton | AM13: =IF(VLOOKUP(AK13,colAM,IF($H$75="OC",8,5),FALSE)=1,MAX(AM$6:$AM12)+1,0) -> 7 | AN13: Bolton | AO13: FALSE | AP13: =IF($AP$5,SUM(SUMPRODUCT(--AO$7:$AO13)*AO13,(SUMPRODUCT(--(AO$7:$AO13=FALSE))+SUMPRODUCT(--colAP))*(1-AO13)),ROW()-6) -> 7 | AQ13: Bolton | AR13: Bolton | IT13: Page 4: Total Opening Hours at the Busiest Service (Visits) | IU13: #,##0 | IV13: =AB7 -> 0
A14: (P.06)[01]Number of Active Borrowers | B14: 0 | C14: 12 | D14: 12 | E14: Page 12: Number of Active Borrowers | J14: m | L14: Bournemouth & Poole | M14: uu | O14: 22 | P14: =IF((ROW()-5=$G$36),1,IF((M14=Coding!$H$75)+(Coding!$H$75="ALL")+(Coding!$H$75="U")*OR(M14="W",M14="su",M14="L",M14="MD",M14="UA")+(Coding!$H$75="na")*AND(M14<>"W",M14<>"su",M14<>"L",M14<>"MD",M14<>"UA",M14<>"SC",M14<>"SD",M14<>"p"),1,0)) -> 1 | Q14: FALSE | R14: =IF(OR(NOT(ISERROR(MATCH(L14,OFFSET($H$410,$G$36-2,0,1,18),FALSE))),$G$75=L14),1,0+(($G$36=1)*($H$75="OC"))) -> 0 | S14: 1 | T14: =IF(S14=1,O14,"not selected") -> 22 | V14: =IF((S14=1)*($J$6<22),INDEX($J$13:$J$33,SUM($S$7:S14),1),"") ->  | W14: =COUNTIF($T$7:T14,T14) -> 1 | Y14: 54 | Z14: =INDEX(V:V,SUMPRODUCT((OFFSET($T$7,0,0,AuthorityCounter2,1)=Y14)*1,(OFFSET($W$7,0,0,AuthorityCounter2,1)=COUNTIF($Y$7:Y14,Y14))*1,ROW(OFFSET($W$7,0,0,AuthorityCounter2,1)))) ->  | AA14: 18.6504065 | AB14: =IF((Y14=AB$2)*(Z14=AC$3)*(SUM($AB$6:AB13)=0),+Y14,0) -> 0 | AC14: 54 | AE14: =IF($AE$6=3,O14,SUM((CODE(MID(CONCATENATE(UPPER(M14),"aaaaaaaaaa"),{1;2},1))-30)*{1;0.01})) -> 55.55 | AF14: =COUNTIF($AE$7:$AE14,AE14) -> 4 | AH14: 37.67 | AI14: 37.67 | AJ14: =COUNTIF($AI$7:$AI14,AI14) -> 8 | AK14: =IF($AE$6=1,L14,OFFSET($L$1,SUMPRODUCT(--(OFFSET($AE$7,0,0,AuthorityCounter,1)=AI14),--(OFFSET($AF$7,0,0,AuthorityCounter,1)=COUNTIF($AI$7:AI14,AI14)),ROW(OFFSET($AF$7,0,0,AuthorityCounter,1)))-1,0)) -> Bournemouth & Poole | AM14: =IF(VLOOKUP(AK14,colAM,IF($H$75="OC",8,5),FALSE)=1,MAX(AM$6:$AM13)+1,0) -> 8 | AN14: Bournemouth & Poole | AO14: FALSE | AP14: =IF($AP$5,SUM(SUMPRODUCT(--AO$7:$AO14)*AO14,(SUMPRODUCT(--(AO$7:$AO14=FALSE))+SUMPRODUCT(--colAP))*(1-AO14)),ROW()-6) -> 8 | AQ14: Bournemouth & Poole | AR14: Bournemouth & Poole | IT14: Page 5: Number of Active Borrowers | IU14: #,##0 | IV14: =AB7 -> 0
A15: (P.06)[02]Number of Housebound Readers | B15: 0 | C15: 13 | D15: 12 | E15: Page 12: Number of Housebound Readers | J15: d | L15: Bournemouth, Christchurch & Poole | M15: uu | O15: na | P15: =IF((ROW()-5=$G$36),1,IF((M15=Coding!$H$75)+(Coding!$H$75="ALL")+(Coding!$H$75="U")*OR(M15="W",M15="su",M15="L",M15="MD",M15="UA")+(Coding!$H$75="na")*AND(M15<>"W",M15<>"su",M15<>"L",M15<>"MD",M15<>"UA",M15<>"SC",M15<>"SD",M15<>"p"),1,0)) -> 1 | Q15: FALSE | R15: =IF(OR(NOT(ISERROR(MATCH(L15,OFFSET($H$410,$G$36-2,0,1,18),FALSE))),$G$75=L15),1,0+(($G$36=1)*($H$75="OC"))) -> 0 | S15: 1 | T15: na | V15: =IF((S15=1)*($J$6<22),INDEX($J$13:$J$33,SUM($S$7:S15),1),"") ->  | W15: =COUNTIF($T$7:T15,T15) -> 1 | Y15: 53 | Z15: =INDEX(V:V,SUMPRODUCT((OFFSET($T$7,0,0,AuthorityCounter2,1)=Y15)*1,(OFFSET($W$7,0,0,AuthorityCounter2,1)=COUNTIF($Y$7:Y15,Y15))*1,ROW(OFFSET($W$7,0,0,AuthorityCounter2,1)))) ->  | AA15: 18.6504065 | AB15: =IF((Y15=AB$2)*(Z15=AC$3)*(SUM($AB$6:AB14)=0),+Y15,0) -> 0 | AC15: 53 | AE15: =IF($AE$6=3,O15,SUM((CODE(MID(CONCATENATE(UPPER(M15),"aaaaaaaaaa"),{1;2},1))-30)*{1;0.01})) -> 55.55 | AF15: =COUNTIF($AE$7:$AE15,AE15) -> 5 | AH15: 37.67 | AI15: 37.67 | AJ15: =COUNTIF($AI$7:$AI15,AI15) -> 9 | AK15: =IF($AE$6=1,L15,OFFSET($L$1,SUMPRODUCT(--(OFFSET($AE$7,0,0,AuthorityCounter,1)=AI15),--(OFFSET($AF$7,0,0,AuthorityCounter,1)=COUNTIF($AI$7:AI15,AI15)),ROW(OFFSET($AF$7,0,0,AuthorityCounter,1)))-1,0)) -> Bournemouth, Christchurch & Poole | AM15: =IF(VLOOKUP(AK15,colAM,IF($H$75="OC",8,5),FALSE)=1,MAX(AM$6:$AM14)+1,0) -> 9 | AN15: Bournemouth, Christchurch & Poole | AO15: FALSE | AP15: =IF($AP$5,SUM(SUMPRODUCT(--AO$7:$AO15)*AO15,(SUMPRODUCT(--(AO$7:$AO15=FALSE))+SUMPRODUCT(--colAP))*(1-AO15)),ROW()-6) -> 9 | AQ15: Bournemouth, Christchurch & Poole | AR15: Bournemouth, Christchurch & Poole | IT15: Page 5: Number of Housebound Readers | IU15: #,##0 | IV15: =AB7 -> 0
A16: (P.06)[03]Physical Visits for Library Purposes | B16: 0 | C16: 14 | D16: 12 | E16: Page 12: Physical Visits for Library Purposes | J16: a | L16: Brent | M16: ul | O16: 6 | P16: =IF((ROW()-5=$G$36),1,IF((M16=Coding!$H$75)+(Coding!$H$75="ALL")+(Coding!$H$75="U")*OR(M16="W",M16="su",M16="L",M16="MD",M16="UA")+(Coding!$H$75="na")*AND(M16<>"W",M16<>"su",M16<>"L",M16<>"MD",M16<>"UA",M16<>"SC",M16<>"SD",M16<>"p"),1,0)) -> 1 | Q16: FALSE | R16: =IF(OR(NOT(ISERROR(MATCH(L16,OFFSET($H$410,$G$36-2,0,1,18),FALSE))),$G$75=L16),1,0+(($G$36=1)*($H$75="OC"))) -> 0 | S16: 1 | T16: 6 | V16: =IF((S16=1)*($J$6<22),INDEX($J$13:$J$33,SUM($S$7:S16),1),"") ->  | W16: =COUNTIF($T$7:T16,T16) -> 3 | Y16: 52 | Z16: =INDEX(V:V,SUMPRODUCT((OFFSET($T$7,0,0,AuthorityCounter2,1)=Y16)*1,(OFFSET($W$7,0,0,AuthorityCounter2,1)=COUNTIF($Y$7:Y16,Y16))*1,ROW(OFFSET($W$7,0,0,AuthorityCounter2,1)))) ->  | AA16: 18.6504065 | AB16: =IF((Y16=AB$2)*(Z16=AC$3)*(SUM($AB$6:AB15)=0),+Y16,0) -> 0 | AC16: 52 | AE16: =IF($AE$6=3,O16,SUM((CODE(MID(CONCATENATE(UPPER(M16),"aaaaaaaaaa"),{1;2},1))-30)*{1;0.01})) -> 55.46 | AF16: =COUNTIF($AE$7:$AE16,AE16) -> 4 | AH16: 37.67 | AI16: 37.67 | AJ16: =COUNTIF($AI$7:$AI16,AI16) -> 10 | AK16: =IF($AE$6=1,L16,OFFSET($L$1,SUMPRODUCT(--(OFFSET($AE$7,0,0,AuthorityCounter,1)=AI16),--(OFFSET($AF$7,0,0,AuthorityCounter,1)=COUNTIF($AI$7:AI16,AI16)),ROW(OFFSET($AF$7,0,0,AuthorityCounter,1)))-1,0)) -> Brent | AM16: =IF(VLOOKUP(AK16,colAM,IF($H$75="OC",8,5),FALSE)=1,MAX(AM$6:$AM15)+1,0) -> 10 | AN16: Brent | AO16: FALSE | AP16: =IF($AP$5,SUM(SUMPRODUCT(--AO$7:$AO16)*AO16,(SUMPRODUCT(--(AO$7:$AO16=FALSE))+SUMPRODUCT(--colAP))*(1-AO16)),ROW()-6) -> 10 | AQ16: Brent | AR16: Brent | IT16: Page 5: Physical Visits for Library Purposes | IU16: #,##0 | IV16: =AB7 -> 0
A17: (P.07)[01]Percentage of Service Points with Electronic Counters | B17: 0 | C17: 15 | D17: 13 | E17: Page 13: Percentage of Service Points with Electronic Counters | J17: x | L17: Brighton & Hove | M17: uu | O17: 14 | P17: =IF((ROW()-5=$G$36),1,IF((M17=Coding!$H$75)+(Coding!$H$75="ALL")+(Coding!$H$75="U")*OR(M17="W",M17="su",M17="L",M17="MD",M17="UA")+(Coding!$H$75="na")*AND(M17<>"W",M17<>"su",M17<>"L",M17<>"MD",M17<>"UA",M17<>"SC",M17<>"SD",M17<>"p"),1,0)) -> 1 | Q17: FALSE | R17: =IF(OR(NOT(ISERROR(MATCH(L17,OFFSET($H$410,$G$36-2,0,1,18),FALSE))),$G$75=L17),1,0+(($G$36=1)*($H$75="OC"))) -> 0 | S17: 1 | T17: 14 | V17: =IF((S17=1)*($J$6<22),INDEX($J$13:$J$33,SUM($S$7:S17),1),"") ->  | W17: =COUNTIF($T$7:T17,T17) -> 1 | Y17: 48 | Z17: =INDEX(V:V,SUMPRODUCT((OFFSET($T$7,0,0,AuthorityCounter2,1)=Y17)*1,(OFFSET($W$7,0,0,AuthorityCounter2,1)=COUNTIF($Y$7:Y17,Y17))*1,ROW(OFFSET($W$7,0,0,AuthorityCounter2,1)))) ->  | AA17: 18.6504065 | AB17: =IF((Y17=AB$2)*(Z17=AC$3)*(SUM($AB$6:AB16)=0),+Y17,0) -> 0 | AC17: 48 | AE17: =IF($AE$6=3,O17,SUM((CODE(MID(CONCATENATE(UPPER(M17),"aaaaaaaaaa"),{1;2},1))-30)*{1;0.01})) -> 55.55 | AF17: =COUNTIF($AE$7:$AE17,AE17) -> 6 | AH17: 37.67 | AI17: 37.67 | AJ17: =COUNTIF($AI$7:$AI17,AI17) -> 11 | AK17: =IF($AE$6=1,L17,OFFSET($L$1,SUMPRODUCT(--(OFFSET($AE$7,0,0,AuthorityCounter,1)=AI17),--(OFFSET($AF$7,0,0,AuthorityCounter,1)=COUNTIF($AI$7:AI17,AI17)),ROW(OFFSET($AF$7,0,0,AuthorityCounter,1)))-1,0)) -> Brighton & Hove | AM17: =IF(VLOOKUP(AK17,colAM,IF($H$75="OC",8,5),FALSE)=1,MAX(AM$6:$AM16)+1,0) -> 11 | AN17: Brighton & Hove | AO17: FALSE | AP17: =IF($AP$5,SUM(SUMPRODUCT(--AO$7:$AO17)*AO17,(SUMPRODUCT(--(AO$7:$AO17=FALSE))+SUMPRODUCT(--colAP))*(1-AO17)),ROW()-6) -> 11 | AQ17: Brighton & Hove | AR17: Brighton & Hove | IT17: Page 6: Percentage of Service Points with Electronic Counters | IU17: 0% | IV17: =AB7 -> 0
A18: (P.07)[02]Visits to Website per 1,000 population | B18: 0 | C18: 16 | D18: 13 | E18: Page 13: Visits to Website per 1,000 population | J18: k | L18: Bristol | M18: uu | O18: 27 | P18: =IF((ROW()-5=$G$36),1,IF((M18=Coding!$H$75)+(Coding!$H$75="ALL")+(Coding!$H$75="U")*OR(M18="W",M18="su",M18="L",M18="MD",M18="UA")+(Coding!$H$75="na")*AND(M18<>"W",M18<>"su",M18<>"L",M18<>"MD",M18<>"UA",M18<>"SC",M18<>"SD",M18<>"p"),1,0)) -> 1 | Q18: FALSE | R18: =IF(OR(NOT(ISERROR(MATCH(L18,OFFSET($H$410,$G$36-2,0,1,18),FALSE))),$G$75=L18),1,0+(($G$36=1)*($H$75="OC"))) -> 0 | S18: 1 | T18: 27 | V18: =IF((S18=1)*($J$6<22),INDEX($J$13:$J$33,SUM($S$7:S18),1),"") ->  | W18: =COUNTIF($T$7:T18,T18) -> 1 | Y18: 48 | Z18: =INDEX(V:V,SUMPRODUCT((OFFSET($T$7,0,0,AuthorityCounter2,1)=Y18)*1,(OFFSET($W$7,0,0,AuthorityCounter2,1)=COUNTIF($Y$7:Y18,Y18))*1,ROW(OFFSET($W$7,0,0,AuthorityCounter2,1)))) ->  | AA18: 18.6504065 | AB18: =IF((Y18=AB$2)*(Z18=AC$3)*(SUM($AB$6:AB17)=0),+Y18,0) -> 0 | AC18: 48 | AE18: =IF($AE$6=3,O18,SUM((CODE(MID(CONCATENATE(UPPER(M18),"aaaaaaaaaa"),{1;2},1))-30)*{1;0.01})) -> 55.55 | AF18: =COUNTIF($AE$7:$AE18,AE18) -> 7 | AH18: 37.67 | AI18: =IF(ISERROR(AH18),"na",AH18) -> 37.67 | AJ18: =COUNTIF($AI$7:$AI18,AI18) -> 12 | AK18: =IF($AE$6=1,L18,OFFSET($L$1,SUMPRODUCT(--(OFFSET($AE$7,0,0,AuthorityCounter,1)=AI18),--(OFFSET($AF$7,0,0,AuthorityCounter,1)=COUNTIF($AI$7:AI18,AI18)),ROW(OFFSET($AF$7,0,0,AuthorityCounter,1)))-1,0)) -> Bristol | AM18: =IF(VLOOKUP(AK18,colAM,IF($H$75="OC",8,5),FALSE)=1,MAX(AM$6:$AM17)+1,0) -> 12 | AN18: Bristol | AO18: FALSE | AP18: =IF($AP$5,SUM(SUMPRODUCT(--AO$7:$AO18)*AO18,(SUMPRODUCT(--(AO$7:$AO18=FALSE))+SUMPRODUCT(--colAP))*(1-AO18)),ROW()-6) -> 12 | AQ18: Bristol | AR18: Bristol | IT18: Page 6: Visits to Website per 1,000 population | IU18: #,##0 | IV18: =AB7 -> 0
A19: (P.08)[01]Number of Devices per 100,000 population | B19: 0 | C19: 17 | D19: 14 | E19: Page 14: Number of Devices per 100,000 population | J19: s | L19: Bromley | M19: ul | O19: 14 | P19: =IF((ROW()-5=$G$36),1,IF((M19=Coding!$H$75)+(Coding!$H$75="ALL")+(Coding!$H$75="U")*OR(M19="W",M19="su",M19="L",M19="MD",M19="UA")+(Coding!$H$75="na")*AND(M19<>"W",M19<>"su",M19<>"L",M19<>"MD",M19<>"UA",M19<>"SC",M19<>"SD",M19<>"p"),1,0)) -> 1 | Q19: FALSE | R19: =IF(OR(NOT(ISERROR(MATCH(L19,OFFSET($H$410,$G$36-2,0,1,18),FALSE))),$G$75=L19),1,0+(($G$36=1)*($H$75="OC"))) -> 0 | S19: 1 | T19: 14 | V19: =IF((S19=1)*($J$6<22),INDEX($J$13:$J$33,SUM($S$7:S19),1),"") ->  | W19: =COUNTIF($T$7:T19,T19) -> 2 | Y19: 46 | Z19: =INDEX(V:V,SUMPRODUCT((OFFSET($T$7,0,0,AuthorityCounter2,1)=Y19)*1,(OFFSET($W$7,0,0,AuthorityCounter2,1)=COUNTIF($Y$7:Y19,Y19))*1,ROW(OFFSET($W$7,0,0,AuthorityCounter2,1)))) ->  | AA19: 18.6504065 | AB19: =IF((Y19=AB$2)*(Z19=AC$3)*(SUM($AB$6:AB18)=0),+Y19,0) -> 0 | AC19: 46 | AE19: =IF($AE$6=3,O19,SUM((CODE(MID(CONCATENATE(UPPER(M19),"aaaaaaaaaa"),{1;2},1))-30)*{1;0.01})) -> 55.46 | AF19: =COUNTIF($AE$7:$AE19,AE19) -> 5 | AH19: 37.67 | AI19: 37.67 | AJ19: =COUNTIF($AI$7:$AI19,AI19) -> 13 | AK19: =IF($AE$6=1,L19,OFFSET($L$1,SUMPRODUCT(--(OFFSET($AE$7,0,0,AuthorityCounter,1)=AI19),--(OFFSET($AF$7,0,0,AuthorityCounter,1)=COUNTIF($AI$7:AI19,AI19)),ROW(OFFSET($AF$7,0,0,AuthorityCounter,1)))-1,0)) -> Bromley | AM19: =IF(VLOOKUP(AK19,colAM,IF($H$75="OC",8,5),FALSE)=1,MAX(AM$6:$AM18)+1,0) -> 13 | AN19: Bromley | AO19: FALSE | AP19: =IF($AP$5,SUM(SUMPRODUCT(--AO$7:$AO19)*AO19,(SUMPRODUCT(--(AO$7:$AO19=FALSE))+SUMPRODUCT(--colAP))*(1-AO19)),ROW()-6) -> 13 | AQ19: Bromley | AR19: Bromley | IT19: Page 7: Number of Devices per 100,000 population | IU19: #,##0 | IV19: =AB7 -> 0
A20: (P.08)[02]Number of Hours Available per 1,000 population | B20: 0 | C20: 18 | D20: 14 | E20: Page 14: Number of Hours Available per 1,000 population | J20: f | L20: Buckinghamshire | M20: c | O20: 29 | P20: =IF((ROW()-5=$G$36),1,IF((M20=Coding!$H$75)+(Coding!$H$75="ALL")+(Coding!$H$75="U")*OR(M20="W",M20="su",M20="L",M20="MD",M20="UA")+(Coding!$H$75="na")*AND(M20<>"W",M20<>"su",M20<>"L",M20<>"MD",M20<>"UA",M20<>"SC",M20<>"SD",M20<>"p"),1,0)) -> 1 | Q20: FALSE | R20: =IF(OR(NOT(ISERROR(MATCH(L20,OFFSET($H$410,$G$36-2,0,1,18),FALSE))),$G$75=L20),1,0+(($G$36=1)*($H$75="OC"))) -> 0 | S20: 1 | T20: 29 | V20: =IF((S20=1)*($J$6<22),INDEX($J$13:$J$33,SUM($S$7:S20),1),"") ->  | W20: =COUNTIF($T$7:T20,T20) -> 1 | Y20: 44 | Z20: =INDEX(V:V,SUMPRODUCT((OFFSET($T$7,0,0,AuthorityCounter2,1)=Y20)*1,(OFFSET($W$7,0,0,AuthorityCounter2,1)=COUNTIF($Y$7:Y20,Y20))*1,ROW(OFFSET($W$7,0,0,AuthorityCounter2,1)))) ->  | AA20: 18.6504065 | AB20: =IF((Y20=AB$2)*(Z20=AC$3)*(SUM($AB$6:AB19)=0),+Y20,0) -> 0 | AC20: 44 | AE20: =IF($AE$6=3,O20,SUM((CODE(MID(CONCATENATE(UPPER(M20),"aaaaaaaaaa"),{1;2},1))-30)*{1;0.01})) -> 37.67 | AF20: =COUNTIF($AE$7:$AE20,AE20) -> 1 | AH20: 37.67 | AI20: 37.67 | AJ20: =COUNTIF($AI$7:$AI20,AI20) -> 14 | AK20: =IF($AE$6=1,L20,OFFSET($L$1,SUMPRODUCT(--(OFFSET($AE$7,0,0,AuthorityCounter,1)=AI20),--(OFFSET($AF$7,0,0,AuthorityCounter,1)=COUNTIF($AI$7:AI20,AI20)),ROW(OFFSET($AF$7,0,0,AuthorityCounter,1)))-1,0)) -> Buckinghamshire | AM20: =IF(VLOOKUP(AK20,colAM,IF($H$75="OC",8,5),FALSE)=1,MAX(AM$6:$AM19)+1,0) -> 14 | AN20: Buckinghamshire | AO20: FALSE | AP20: =IF($AP$5,SUM(SUMPRODUCT(--AO$7:$AO20)*AO20,(SUMPRODUCT(--(AO$7:$AO20=FALSE))+SUMPRODUCT(--colAP))*(1-AO20)),ROW()-6) -> 14 | AQ20: Buckinghamshire | AR20: Buckinghamshire | IT20: Page 7: Number of Hours Available per 1,000 population | IU20: #,##0 | IV20: =AB7 -> 0
A21: (P.08)[03]Number of Hours Recorded per 1,000 population | B21: 0 | C21: 19 | D21: 14 | E21: Page 14: Number of Hours Recorded per 1,000 population | J21: r | L21: Bury | M21: um | O21: 4 | P21: =IF((ROW()-5=$G$36),1,IF((M21=Coding!$H$75)+(Coding!$H$75="ALL")+(Coding!$H$75="U")*OR(M21="W",M21="su",M21="L",M21="MD",M21="UA")+(Coding!$H$75="na")*AND(M21<>"W",M21<>"su",M21<>"L",M21<>"MD",M21<>"UA",M21<>"SC",M21<>"SD",M21<>"p"),1,0)) -> 1 | Q21: FALSE | R21: =IF(OR(NOT(ISERROR(MATCH(L21,OFFSET($H$410,$G$36-2,0,1,18),FALSE))),$G$75=L21),1,0+(($G$36=1)*($H$75="OC"))) -> 0 | S21: 1 | T21: 4 | V21: =IF((S21=1)*($J$6<22),INDEX($J$13:$J$33,SUM($S$7:S21),1),"") ->  | W21: =COUNTIF($T$7:T21,T21) -> 1 | Y21: 43 | Z21: =INDEX(V:V,SUMPRODUCT((OFFSET($T$7,0,0,AuthorityCounter2,1)=Y21)*1,(OFFSET($W$7,0,0,AuthorityCounter2,1)=COUNTIF($Y$7:Y21,Y21))*1,ROW(OFFSET($W$7,0,0,AuthorityCounter2,1)))) ->  | AA21: 18.6504065 | AB21: =IF((Y21=AB$2)*(Z21=AC$3)*(SUM($AB$6:AB20)=0),+Y21,0) -> 0 | AC21: 43 | AE21: =IF($AE$6=3,O21,SUM((CODE(MID(CONCATENATE(UPPER(M21),"aaaaaaaaaa"),{1;2},1))-30)*{1;0.01})) -> 55.47 | AF21: =COUNTIF($AE$7:$AE21,AE21) -> 2 | AH21: 37.67 | AI21: 37.67 | AJ21: =COUNTIF($AI$7:$AI21,AI21) -> 15 | AK21: =IF($AE$6=1,L21,OFFSET($L$1,SUMPRODUCT(--(OFFSET($AE$7,0,0,AuthorityCounter,1)=AI21),--(OFFSET($AF$7,0,0,AuthorityCounter,1)=COUNTIF($AI$7:AI21,AI21)),ROW(OFFSET($AF$7,0,0,AuthorityCounter,1)))-1,0)) -> Bury | AM21: =IF(VLOOKUP(AK21,colAM,IF($H$75="OC",8,5),FALSE)=1,MAX(AM$6:$AM20)+1,0) -> 15 | AN21: Bury | AO21: FALSE | AP21: =IF($AP$5,SUM(SUMPRODUCT(--AO$7:$AO21)*AO21,(SUMPRODUCT(--(AO$7:$AO21=FALSE))+SUMPRODUCT(--colAP))*(1-AO21)),ROW()-6) -> 15 | AQ21: Bury | AR21: Bury | IT21: Page 7: Number of Hours Recorded per 1,000 population | IU21: #,##0 | IV21: =AB7 -> 0
A22: (P.08)[04]Percentage of Service Points with Public Wi-Fi Access | B22: 0 | C22: 20 | D22: 14 | E22: Page 14: Percentage of Service Points with Public Wi-Fi Access | J22: z | L22: Calderdale | M22: um | O22: 22 | P22: =IF((ROW()-5=$G$36),1,IF((M22=Coding!$H$75)+(Coding!$H$75="ALL")+(Coding!$H$75="U")*OR(M22="W",M22="su",M22="L",M22="MD",M22="UA")+(Coding!$H$75="na")*AND(M22<>"W",M22<>"su",M22<>"L",M22<>"MD",M22<>"UA",M22<>"SC",M22<>"SD",M22<>"p"),1,0)) -> 1 | Q22: FALSE | R22: =IF(OR(NOT(ISERROR(MATCH(L22,OFFSET($H$410,$G$36-2,0,1,18),FALSE))),$G$75=L22),1,0+(($G$36=1)*($H$75="OC"))) -> 0 | S22: 1 | T22: 22 | V22: =IF((S22=1)*($J$6<22),INDEX($J$13:$J$33,SUM($S$7:S22),1),"") ->  | W22: =COUNTIF($T$7:T22,T22) -> 2 | Y22: 42 | Z22: =INDEX(V:V,SUMPRODUCT((OFFSET($T$7,0,0,AuthorityCounter2,1)=Y22)*1,(OFFSET($W$7,0,0,AuthorityCounter2,1)=COUNTIF($Y$7:Y22,Y22))*1,ROW(OFFSET($W$7,0,0,AuthorityCounter2,1)))) ->  | AA22: 18.6504065 | AB22: =IF((Y22=AB$2)*(Z22=AC$3)*(SUM($AB$6:AB21)=0),+Y22,0) -> 0 | AC22: 42 | AE22: =IF($AE$6=3,O22,SUM((CODE(MID(CONCATENATE(UPPER(M22),"aaaaaaaaaa"),{1;2},1))-30)*{1;0.01})) -> 55.47 | AF22: =COUNTIF($AE$7:$AE22,AE22) -> 3 | AH22: 37.67 | AI22: 37.67 | AJ22: =COUNTIF($AI$7:$AI22,AI22) -> 16 | AK22: =IF($AE$6=1,L22,OFFSET($L$1,SUMPRODUCT(--(OFFSET($AE$7,0,0,AuthorityCounter,1)=AI22),--(OFFSET($AF$7,0,0,AuthorityCounter,1)=COUNTIF($AI$7:AI22,AI22)),ROW(OFFSET($AF$7,0,0,AuthorityCounter,1)))-1,0)) -> Calderdale | AM22: =IF(VLOOKUP(AK22,colAM,IF($H$75="OC",8,5),FALSE)=1,MAX(AM$6:$AM21)+1,0) -> 16 | AN22: Calderdale | AO22: FALSE | AP22: =IF($AP$5,SUM(SUMPRODUCT(--AO$7:$AO22)*AO22,(SUMPRODUCT(--(AO$7:$AO22=FALSE))+SUMPRODUCT(--colAP))*(1-AO22)),ROW()-6) -> 16 | AQ22: Calderdale | AR22: Calderdale | IT22: Page 7: Percentage of Service Points with Public Wi-Fi Access | IU22: 0% | IV22: =AB7 -> 0
A23: (P.08)[05]Number of hours recorded usage of public access Wi-Fi per 1,000 population | B23: 0 | C23: 21 | D23: 14 | E23: Page 14: Number of hours recorded usage of public access Wi-Fi per 1,000 population | J23: e | L23: Cambridgeshire | M23: c | O23: 35 | P23: =IF((ROW()-5=$G$36),1,IF((M23=Coding!$H$75)+(Coding!$H$75="ALL")+(Coding!$H$75="U")*OR(M23="W",M23="su",M23="L",M23="MD",M23="UA")+(Coding!$H$75="na")*AND(M23<>"W",M23<>"su",M23<>"L",M23<>"MD",M23<>"UA",M23<>"SC",M23<>"SD",M23<>"p"),1,0)) -> 1 | Q23: FALSE | R23: =IF(OR(NOT(ISERROR(MATCH(L23,OFFSET($H$410,$G$36-2,0,1,18),FALSE))),$G$75=L23),1,0+(($G$36=1)*($H$75="OC"))) -> 0 | S23: 1 | T23: 35 | V23: =IF((S23=1)*($J$6<22),INDEX($J$13:$J$33,SUM($S$7:S23),1),"") ->  | W23: =COUNTIF($T$7:T23,T23) -> 1 | Y23: 38 | Z23: =INDEX(V:V,SUMPRODUCT((OFFSET($T$7,0,0,AuthorityCounter2,1)=Y23)*1,(OFFSET($W$7,0,0,AuthorityCounter2,1)=COUNTIF($Y$7:Y23,Y23))*1,ROW(OFFSET($W$7,0,0,AuthorityCounter2,1)))) ->  | AA23: 18.6504065 | AB23: =IF((Y23=AB$2)*(Z23=AC$3)*(SUM($AB$6:AB22)=0),+Y23,0) -> 0 | AC23: 38 | AE23: =IF($AE$6=3,O23,SUM((CODE(MID(CONCATENATE(UPPER(M23),"aaaaaaaaaa"),{1;2},1))-30)*{1;0.01})) -> 37.67 | AF23: =COUNTIF($AE$7:$AE23,AE23) -> 2 | AH23: 37.67 | AI23: 37.67 | AJ23: =COUNTIF($AI$7:$AI23,AI23) -> 17 | AK23: =IF($AE$6=1,L23,OFFSET($L$1,SUMPRODUCT(--(OFFSET($AE$7,0,0,AuthorityCounter,1)=AI23),--(OFFSET($AF$7,0,0,AuthorityCounter,1)=COUNTIF($AI$7:AI23,AI23)),ROW(OFFSET($AF$7,0,0,AuthorityCounter,1)))-1,0)) -> Cambridgeshire | AM23: =IF(VLOOKUP(AK23,colAM,IF($H$75="OC",8,5),FALSE)=1,MAX(AM$6:$AM22)+1,0) -> 17 | AN23: Cambridgeshire | AO23: FALSE | AP23: =IF($AP$5,SUM(SUMPRODUCT(--AO$7:$AO23)*AO23,(SUMPRODUCT(--(AO$7:$AO23=FALSE))+SUMPRODUCT(--colAP))*(1-AO23)),ROW()-6) -> 17 | AQ23: Cambridgeshire | AR23: Cambridgeshire | IT23: Page 7: Number of hours recorded usage of public access Wi-Fi per 1,000 population | IU23: #,##0 | IV23: =AB7 -> 0
A24: (P.02)[01]Net Expenditure (Actuals) | B24: 135 | C24: 0 | D24: 16 | E24: Page 16: Net Expenditure (Actuals) | J24: t | L24: Camden | M24: ul | O24: 9 | P24: =IF((ROW()-5=$G$36),1,IF((M24=Coding!$H$75)+(Coding!$H$75="ALL")+(Coding!$H$75="U")*OR(M24="W",M24="su",M24="L",M24="MD",M24="UA")+(Coding!$H$75="na")*AND(M24<>"W",M24<>"su",M24<>"L",M24<>"MD",M24<>"UA",M24<>"SC",M24<>"SD",M24<>"p"),1,0)) -> 1 | Q24: FALSE | R24: =IF(OR(NOT(ISERROR(MATCH(L24,OFFSET($H$410,$G$36-2,0,1,18),FALSE))),$G$75=L24),1,0+(($G$36=1)*($H$75="OC"))) -> 0 | S24: 1 | T24: 9 | V24: =IF((S24=1)*($J$6<22),INDEX($J$13:$J$33,SUM($S$7:S24),1),"") ->  | W24: =COUNTIF($T$7:T24,T24) -> 1 | Y24: 37 | Z24: =INDEX(V:V,SUMPRODUCT((OFFSET($T$7,0,0,AuthorityCounter2,1)=Y24)*1,(OFFSET($W$7,0,0,AuthorityCounter2,1)=COUNTIF($Y$7:Y24,Y24))*1,ROW(OFFSET($W$7,0,0,AuthorityCounter2,1)))) ->  | AA24: 18.6504065 | AB24: =IF((Y24=AB$2)*(Z24=AC$3)*(SUM($AB$6:AB23)=0),+Y24,0) -> 0 | AC24: 37 | AE24: =IF($AE$6=3,O24,SUM((CODE(MID(CONCATENATE(UPPER(M24),"aaaaaaaaaa"),{1;2},1))-30)*{1;0.01})) -> 55.46 | AF24: =COUNTIF($AE$7:$AE24,AE24) -> 6 | AH24: 37.67 | AI24: 37.67 | AJ24: =COUNTIF($AI$7:$AI24,AI24) -> 18 | AK24: =IF($AE$6=1,L24,OFFSET($L$1,SUMPRODUCT(--(OFFSET($AE$7,0,0,AuthorityCounter,1)=AI24),--(OFFSET($AF$7,0,0,AuthorityCounter,1)=COUNTIF($AI$7:AI24,AI24)),ROW(OFFSET($AF$7,0,0,AuthorityCounter,1)))-1,0)) -> Camden | AM24: =IF(VLOOKUP(AK24,colAM,IF($H$75="OC",8,5),FALSE)=1,MAX(AM$6:$AM23)+1,0) -> 18 | AN24: Camden | AO24: FALSE | AP24: =IF($AP$5,SUM(SUMPRODUCT(--AO$7:$AO24)*AO24,(SUMPRODUCT(--(AO$7:$AO24=FALSE))+SUMPRODUCT(--colAP))*(1-AO24)),ROW()-6) -> 18 | AQ24: Camden | AR24: Camden | IT24: Page 8: Net Expenditure (Actuals) | IU24: £#,##0 | IV24: =AB7 -> 0
A25: (P.02)[02]Total Revenue Expenditure (Actuals) | B25: 135 | C25: 1 | D25: 16 | E25: Page 16: Total Revenue Expenditure (Actuals) | J25: w | L25: Central Bedfordshire | M25: uu | O25: 12 | P25: =IF((ROW()-5=$G$36),1,IF((M25=Coding!$H$75)+(Coding!$H$75="ALL")+(Coding!$H$75="U")*OR(M25="W",M25="su",M25="L",M25="MD",M25="UA")+(Coding!$H$75="na")*AND(M25<>"W",M25<>"su",M25<>"L",M25<>"MD",M25<>"UA",M25<>"SC",M25<>"SD",M25<>"p"),1,0)) -> 1 | Q25: FALSE | R25: =IF(OR(NOT(ISERROR(MATCH(L25,OFFSET($H$410,$G$36-2,0,1,18),FALSE))),$G$75=L25),1,0+(($G$36=1)*($H$75="OC"))) -> 0 | S25: 1 | T25: 12 | V25: =IF((S25=1)*($J$6<22),INDEX($J$13:$J$33,SUM($S$7:S25),1),"") ->  | W25: =COUNTIF($T$7:T25,T25) -> 1 | Y25: 36 | Z25: =INDEX(V:V,SUMPRODUCT((OFFSET($T$7,0,0,AuthorityCounter2,1)=Y25)*1,(OFFSET($W$7,0,0,AuthorityCounter2,1)=COUNTIF($Y$7:Y25,Y25))*1,ROW(OFFSET($W$7,0,0,AuthorityCounter2,1)))) ->  | AA25: 18.6504065 | AB25: =IF((Y25=AB$2)*(Z25=AC$3)*(SUM($AB$6:AB24)=0),+Y25,0) -> 0 | AC25: 36 | AE25: =IF($AE$6=3,O25,SUM((CODE(MID(CONCATENATE(UPPER(M25),"aaaaaaaaaa"),{1;2},1))-30)*{1;0.01})) -> 55.55 | AF25: =COUNTIF($AE$7:$AE25,AE25) -> 8 | AH25: 37.67 | AI25: 37.67 | AJ25: =COUNTIF($AI$7:$AI25,AI25) -> 19 | AK25: =IF($AE$6=1,L25,OFFSET($L$1,SUMPRODUCT(--(OFFSET($AE$7,0,0,AuthorityCounter,1)=AI25),--(OFFSET($AF$7,0,0,AuthorityCounter,1)=COUNTIF($AI$7:AI25,AI25)),ROW(OFFSET($AF$7,0,0,AuthorityCounter,1)))-1,0)) -> Central Bedfordshire | AM25: =IF(VLOOKUP(AK25,colAM,IF($H$75="OC",8,5),FALSE)=1,MAX(AM$6:$AM24)+1,0) -> 19 | AN25: Central Bedfordshire | AO25: FALSE | AP25: =IF($AP$5,SUM(SUMPRODUCT(--AO$7:$AO25)*AO25,(SUMPRODUCT(--(AO$7:$AO25=FALSE))+SUMPRODUCT(--colAP))*(1-AO25)),ROW()-6) -> 19 | AQ25: Central Bedfordshire | AR25: Central Bedfordshire | IT25: Page 8: Total Revenue Expenditure (Actuals) | IU25: £#,##0 | IV25: =AB7 -> 0
A26: (P.02)[03]Total Revenue Income (Actuals) | B26: 135 | C26: 2 | D26: 16 | E26: Page 16: Total Revenue Income (Actuals) | J26: n | L26: Cheshire East | M26: uu | O26: 17 | P26: =IF((ROW()-5=$G$36),1,IF((M26=Coding!$H$75)+(Coding!$H$75="ALL")+(Coding!$H$75="U")*OR(M26="W",M26="su",M26="L",M26="MD",M26="UA")+(Coding!$H$75="na")*AND(M26<>"W",M26<>"su",M26<>"L",M26<>"MD",M26<>"UA",M26<>"SC",M26<>"SD",M26<>"p"),1,0)) -> 1 | Q26: FALSE | R26: =IF(OR(NOT(ISERROR(MATCH(L26,OFFSET($H$410,$G$36-2,0,1,18),FALSE))),$G$75=L26),1,0+(($G$36=1)*($H$75="OC"))) -> 0 | S26: 1 | T26: 17 | V26: =IF((S26=1)*($J$6<22),INDEX($J$13:$J$33,SUM($S$7:S26),1),"") ->  | W26: =COUNTIF($T$7:T26,T26) -> 1 | Y26: 35 | Z26: =INDEX(V:V,SUMPRODUCT((OFFSET($T$7,0,0,AuthorityCounter2,1)=Y26)*1,(OFFSET($W$7,0,0,AuthorityCounter2,1)=COUNTIF($Y$7:Y26,Y26))*1,ROW(OFFSET($W$7,0,0,AuthorityCounter2,1)))) ->  | AA26: 18.6504065 | AB26: =IF((Y26=AB$2)*(Z26=AC$3)*(SUM($AB$6:AB25)=0),+Y26,0) -> 0 | AC26: 35 | AE26: =IF($AE$6=3,O26,SUM((CODE(MID(CONCATENATE(UPPER(M26),"aaaaaaaaaa"),{1;2},1))-30)*{1;0.01})) -> 55.55 | AF26: =COUNTIF($AE$7:$AE26,AE26) -> 9 | AH26: 37.67 | AI26: 37.67 | AJ26: =COUNTIF($AI$7:$AI26,AI26) -> 20 | AK26: =IF($AE$6=1,L26,OFFSET($L$1,SUMPRODUCT(--(OFFSET($AE$7,0,0,AuthorityCounter,1)=AI26),--(OFFSET($AF$7,0,0,AuthorityCounter,1)=COUNTIF($AI$7:AI26,AI26)),ROW(OFFSET($AF$7,0,0,AuthorityCounter,1)))-1,0)) -> Cheshire East | AM26: =IF(VLOOKUP(AK26,colAM,IF($H$75="OC",8,5),FALSE)=1,MAX(AM$6:$AM25)+1,0) -> 20 | AN26: Cheshire East | AO26: FALSE | AP26: =IF($AP$5,SUM(SUMPRODUCT(--AO$7:$AO26)*AO26,(SUMPRODUCT(--(AO$7:$AO26=FALSE))+SUMPRODUCT(--colAP))*(1-AO26)),ROW()-6) -> 20 | AQ26: Cheshire East | AR26: Cheshire East | IT26: Page 8: Total Revenue Income (Actuals) | IU26: £#,##0 | IV26: =AB7 -> 0
A27: (P.03)[01]Employees | B27: 135 | C27: 3 | D27: 17 | E27: Page 17: Employees | J27: u | L27: Cheshire West & Chester | M27: uu | O27: 23 | P27: =IF((ROW()-5=$G$36),1,IF((M27=Coding!$H$75)+(Coding!$H$75="ALL")+(Coding!$H$75="U")*OR(M27="W",M27="su",M27="L",M27="MD",M27="UA")+(Coding!$H$75="na")*AND(M27<>"W",M27<>"su",M27<>"L",M27<>"MD",M27<>"UA",M27<>"SC",M27<>"SD",M27<>"p"),1,0)) -> 1 | Q27: FALSE | R27: =IF(OR(NOT(ISERROR(MATCH(L27,OFFSET($H$410,$G$36-2,0,1,18),FALSE))),$G$75=L27),1,0+(($G$36=1)*($H$75="OC"))) -> 0 | S27: 1 | T27: 23 | V27: =IF((S27=1)*($J$6<22),INDEX($J$13:$J$33,SUM($S$7:S27),1),"") ->  | W27: =COUNTIF($T$7:T27,T27) -> 1 | Y27: 34 | Z27: =INDEX(V:V,SUMPRODUCT((OFFSET($T$7,0,0,AuthorityCounter2,1)=Y27)*1,(OFFSET($W$7,0,0,AuthorityCounter2,1)=COUNTIF($Y$7:Y27,Y27))*1,ROW(OFFSET($W$7,0,0,AuthorityCounter2,1)))) ->  | AA27: 18.6504065 | AB27: =IF((Y27=AB$2)*(Z27=AC$3)*(SUM($AB$6:AB26)=0),+Y27,0) -> 0 | AC27: 34 | AE27: =IF($AE$6=3,O27,SUM((CODE(MID(CONCATENATE(UPPER(M27),"aaaaaaaaaa"),{1;2},1))-30)*{1;0.01})) -> 55.55 | AF27: =COUNTIF($AE$7:$AE27,AE27) -> 10 | AH27: 37.67 | AI27: 37.67 | AJ27: =COUNTIF($AI$7:$AI27,AI27) -> 21 | AK27: =IF($AE$6=1,L27,OFFSET($L$1,SUMPRODUCT(--(OFFSET($AE$7,0,0,AuthorityCounter,1)=AI27),--(OFFSET($AF$7,0,0,AuthorityCounter,1)=COUNTIF($AI$7:AI27,AI27)),ROW(OFFSET($AF$7,0,0,AuthorityCounter,1)))-1,0)) -> Cheshire West & Chester | AM27: =IF(VLOOKUP(AK27,colAM,IF($H$75="OC",8,5),FALSE)=1,MAX(AM$6:$AM26)+1,0) -> 21 | AN27: Cheshire West & Chester | AO27: FALSE | AP27: =IF($AP$5,SUM(SUMPRODUCT(--AO$7:$AO27)*AO27,(SUMPRODUCT(--(AO$7:$AO27=FALSE))+SUMPRODUCT(--colAP))*(1-AO27)),ROW()-6) -> 21 | AQ27: Cheshire West & Chester | AR27: Cheshire West & Chester | IT27: Page 9: Employees | IU27: £#,##0 | IV27: =AB7 -> 0
A28: (P.03)[02]Premises | B28: 135 | C28: 4 | D28: 17 | E28: Page 17: Premises | J28: g | L28: Coventry | M28: um | O28: 16 | P28: =IF((ROW()-5=$G$36),1,IF((M28=Coding!$H$75)+(Coding!$H$75="ALL")+(Coding!$H$75="U")*OR(M28="W",M28="su",M28="L",M28="MD",M28="UA")+(Coding!$H$75="na")*AND(M28<>"W",M28<>"su",M28<>"L",M28<>"MD",M28<>"UA",M28<>"SC",M28<>"SD",M28<>"p"),1,0)) -> 1 | Q28: FALSE | R28: =IF(OR(NOT(ISERROR(MATCH(L28,OFFSET($H$410,$G$36-2,0,1,18),FALSE))),$G$75=L28),1,0+(($G$36=1)*($H$75="OC"))) -> 0 | S28: 1 | T28: 16 | V28: =IF((S28=1)*($J$6<22),INDEX($J$13:$J$33,SUM($S$7:S28),1),"") ->  | W28: =COUNTIF($T$7:T28,T28) -> 1 | Y28: 33 | Z28: =INDEX(V:V,SUMPRODUCT((OFFSET($T$7,0,0,AuthorityCounter2,1)=Y28)*1,(OFFSET($W$7,0,0,AuthorityCounter2,1)=COUNTIF($Y$7:Y28,Y28))*1,ROW(OFFSET($W$7,0,0,AuthorityCounter2,1)))) ->  | AA28: 18.6504065 | AB28: =IF((Y28=AB$2)*(Z28=AC$3)*(SUM($AB$6:AB27)=0),+Y28,0) -> 0 | AC28: 33 | AE28: =IF($AE$6=3,O28,SUM((CODE(MID(CONCATENATE(UPPER(M28),"aaaaaaaaaa"),{1;2},1))-30)*{1;0.01})) -> 55.47 | AF28: =COUNTIF($AE$7:$AE28,AE28) -> 4 | AH28: 37.67 | AI28: 37.67 | AJ28: =COUNTIF($AI$7:$AI28,AI28) -> 22 | AK28: =IF($AE$6=1,L28,OFFSET($L$1,SUMPRODUCT(--(OFFSET($AE$7,0,0,AuthorityCounter,1)=AI28),--(OFFSET($AF$7,0,0,AuthorityCounter,1)=COUNTIF($AI$7:AI28,AI28)),ROW(OFFSET($AF$7,0,0,AuthorityCounter,1)))-1,0)) -> Coventry | AM28: =IF(VLOOKUP(AK28,colAM,IF($H$75="OC",8,5),FALSE)=1,MAX(AM$6:$AM27)+1,0) -> 22 | AN28: Coventry | AO28: FALSE | AP28: =IF($AP$5,SUM(SUMPRODUCT(--AO$7:$AO28)*AO28,(SUMPRODUCT(--(AO$7:$AO28=FALSE))+SUMPRODUCT(--colAP))*(1-AO28)),ROW()-6) -> 22 | AQ28: Coventry | AR28: Coventry | IT28: Page 9: Premises | IU28: £#,##0 | IV28: =AB7 -> 0
A29: (P.03)[03]Total Materials | B29: 135 | C29: 5 | D29: 17 | E29: Page 17: Total Materials | J29: o | L29: Croydon | M29: ul | O29: 13 | P29: =IF((ROW()-5=$G$36),1,IF((M29=Coding!$H$75)+(Coding!$H$75="ALL")+(Coding!$H$75="U")*OR(M29="W",M29="su",M29="L",M29="MD",M29="UA")+(Coding!$H$75="na")*AND(M29<>"W",M29<>"su",M29<>"L",M29<>"MD",M29<>"UA",M29<>"SC",M29<>"SD",M29<>"p"),1,0)) -> 1 | Q29: FALSE | R29: =IF(OR(NOT(ISERROR(MATCH(L29,OFFSET($H$410,$G$36-2,0,1,18),FALSE))),$G$75=L29),1,0+(($G$36=1)*($H$75="OC"))) -> 0 | S29: 1 | T29: 13 | V29: =IF((S29=1)*($J$6<22),INDEX($J$13:$J$33,SUM($S$7:S29),1),"") ->  | W29: =COUNTIF($T$7:T29,T29) -> 1 | Y29: 32 | Z29: =INDEX(V:V,SUMPRODUCT((OFFSET($T$7,0,0,AuthorityCounter2,1)=Y29)*1,(OFFSET($W$7,0,0,AuthorityCounter2,1)=COUNTIF($Y$7:Y29,Y29))*1,ROW(OFFSET($W$7,0,0,AuthorityCounter2,1)))) ->  | AA29: 18.6504065 | AB29: =IF((Y29=AB$2)*(Z29=AC$3)*(SUM($AB$6:AB28)=0),+Y29,0) -> 0 | AC29: 32 | AE29: =IF($AE$6=3,O29,SUM((CODE(MID(CONCATENATE(UPPER(M29),"aaaaaaaaaa"),{1;2},1))-30)*{1;0.01})) -> 55.46 | AF29: =COUNTIF($AE$7:$AE29,AE29) -> 7 | AH29: 37.67 | AI29: 37.67 | AJ29: =COUNTIF($AI$7:$AI29,AI29) -> 23 | AK29: =IF($AE$6=1,L29,OFFSET($L$1,SUMPRODUCT(--(OFFSET($AE$7,0,0,AuthorityCounter,1)=AI29),--(OFFSET($AF$7,0,0,AuthorityCounter,1)=COUNTIF($AI$7:AI29,AI29)),ROW(OFFSET($AF$7,0,0,AuthorityCounter,1)))-1,0)) -> Croydon | AM29: =IF(VLOOKUP(AK29,colAM,IF($H$75="OC",8,5),FALSE)=1,MAX(AM$6:$AM28)+1,0) -> 23 | AN29: Croydon | AO29: FALSE | AP29: =IF($AP$5,SUM(SUMPRODUCT(--AO$7:$AO29)*AO29,(SUMPRODUCT(--(AO$7:$AO29=FALSE))+SUMPRODUCT(--colAP))*(1-AO29)),ROW()-6) -> 23 | AQ29: Croydon | AR29: Croydon | IT29: Page 9: Total Materials | IU29: £#,##0 | IV29: =AB7 -> 0
A30: (P.03)[04]Computing Costs | B30: 135 | C30: 6 | D30: 17 | E30: Page 17: Computing Costs | J30: b | L30: Cumbria | M30: c | O30: 37 | P30: =IF((ROW()-5=$G$36),1,IF((M30=Coding!$H$75)+(Coding!$H$75="ALL")+(Coding!$H$75="U")*OR(M30="W",M30="su",M30="L",M30="MD",M30="UA")+(Coding!$H$75="na")*AND(M30<>"W",M30<>"su",M30<>"L",M30<>"MD",M30<>"UA",M30<>"SC",M30<>"SD",M30<>"p"),1,0)) -> 1 | Q30: FALSE | R30: =IF(OR(NOT(ISERROR(MATCH(L30,OFFSET($H$410,$G$36-2,0,1,18),FALSE))),$G$75=L30),1,0+(($G$36=1)*($H$75="OC"))) -> 0 | S30: 1 | T30: 37 | V30: =IF((S30=1)*($J$6<22),INDEX($J$13:$J$33,SUM($S$7:S30),1),"") ->  | W30: =COUNTIF($T$7:T30,T30) -> 1 | Y30: 29 | Z30: =INDEX(V:V,SUMPRODUCT((OFFSET($T$7,0,0,AuthorityCounter2,1)=Y30)*1,(OFFSET($W$7,0,0,AuthorityCounter2,1)=COUNTIF($Y$7:Y30,Y30))*1,ROW(OFFSET($W$7,0,0,AuthorityCounter2,1)))) ->  | AA30: 18.6504065 | AB30: =IF((Y30=AB$2)*(Z30=AC$3)*(SUM($AB$6:AB29)=0),+Y30,0) -> 0 | AC30: 29 | AE30: =IF($AE$6=3,O30,SUM((CODE(MID(CONCATENATE(UPPER(M30),"aaaaaaaaaa"),{1;2},1))-30)*{1;0.01})) -> 37.67 | AF30: =COUNTIF($AE$7:$AE30,AE30) -> 3 | AH30: 37.67 | AI30: 37.67 | AJ30: =COUNTIF($AI$7:$AI30,AI30) -> 24 | AK30: =IF($AE$6=1,L30,OFFSET($L$1,SUMPRODUCT(--(OFFSET($AE$7,0,0,AuthorityCounter,1)=AI30),--(OFFSET($AF$7,0,0,AuthorityCounter,1)=COUNTIF($AI$7:AI30,AI30)),ROW(OFFSET($AF$7,0,0,AuthorityCounter,1)))-1,0)) -> Cumbria | AM30: =IF(VLOOKUP(AK30,colAM,IF($H$75="OC",8,5),FALSE)=1,MAX(AM$6:$AM29)+1,0) -> 24 | AN30: Cumbria | AO30: FALSE | AP30: =IF($AP$5,SUM(SUMPRODUCT(--AO$7:$AO30)*AO30,(SUMPRODUCT(--(AO$7:$AO30=FALSE))+SUMPRODUCT(--colAP))*(1-AO30)),ROW()-6) -> 24 | AQ30: Cumbria | AR30: Cumbria | IT30: Page 9: Computing Costs | IU30: £#,##0 | IV30: =AB7 -> 0
A31: (P.03)[05]Other Supplies & Services | B31: 135 | C31: 7 | D31: 17 | E31: Page 17: Other Supplies & Services | J31: j | L31: Darlington | M31: uu | O31: 2 | P31: =IF((ROW()-5=$G$36),1,IF((M31=Coding!$H$75)+(Coding!$H$75="ALL")+(Coding!$H$75="U")*OR(M31="W",M31="su",M31="L",M31="MD",M31="UA")+(Coding!$H$75="na")*AND(M31<>"W",M31<>"su",M31<>"L",M31<>"MD",M31<>"UA",M31<>"SC",M31<>"SD",M31<>"p"),1,0)) -> 1 | Q31: FALSE | R31: =IF(OR(NOT(ISERROR(MATCH(L31,OFFSET($H$410,$G$36-2,0,1,18),FALSE))),$G$75=L31),1,0+(($G$36=1)*($H$75="OC"))) -> 0 | S31: 1 | T31: 2 | V31: =IF((S31=1)*($J$6<22),INDEX($J$13:$J$33,SUM($S$7:S31),1),"") ->  | W31: =COUNTIF($T$7:T31,T31) -> 1 | Y31: 27 | Z31: =INDEX(V:V,SUMPRODUCT((OFFSET($T$7,0,0,AuthorityCounter2,1)=Y31)*1,(OFFSET($W$7,0,0,AuthorityCounter2,1)=COUNTIF($Y$7:Y31,Y31))*1,ROW(OFFSET($W$7,0,0,AuthorityCounter2,1)))) ->  | AA31: 18.6504065 | AB31: =IF((Y31=AB$2)*(Z31=AC$3)*(SUM($AB$6:AB30)=0),+Y31,0) -> 0 | AC31: 27 | AE31: =IF($AE$6=3,O31,SUM((CODE(MID(CONCATENATE(UPPER(M31),"aaaaaaaaaa"),{1;2},1))-30)*{1;0.01})) -> 55.55 | AF31: =COUNTIF($AE$7:$AE31,AE31) -> 11 | AH31: 37.67 | AI31: 37.67 | AJ31: =COUNTIF($AI$7:$AI31,AI31) -> 25 | AK31: =IF($AE$6=1,L31,OFFSET($L$1,SUMPRODUCT(--(OFFSET($AE$7,0,0,AuthorityCounter,1)=AI31),--(OFFSET($AF$7,0,0,AuthorityCounter,1)=COUNTIF($AI$7:AI31,AI31)),ROW(OFFSET($AF$7,0,0,AuthorityCounter,1)))-1,0)) -> Darlington | AM31: =IF(VLOOKUP(AK31,colAM,IF($H$75="OC",8,5),FALSE)=1,MAX(AM$6:$AM30)+1,0) -> 25 | AN31: Darlington | AO31: FALSE | AP31: =IF($AP$5,SUM(SUMPRODUCT(--AO$7:$AO31)*AO31,(SUMPRODUCT(--(AO$7:$AO31=FALSE))+SUMPRODUCT(--colAP))*(1-AO31)),ROW()-6) -> 25 | AQ31: Darlington | AR31: Darlington | IT31: Page 9: Other Supplies & Services | IU31: £#,##0 | IV31: =AB7 -> 0
A32: (P.03)[06]Transport | B32: 135 | C32: 8 | D32: 17 | E32: Page 17: Transport | J32: q | L32: Derby | M32: uu | O32: 12 | P32: =IF((ROW()-5=$G$36),1,IF((M32=Coding!$H$75)+(Coding!$H$75="ALL")+(Coding!$H$75="U")*OR(M32="W",M32="su",M32="L",M32="MD",M32="UA")+(Coding!$H$75="na")*AND(M32<>"W",M32<>"su",M32<>"L",M32<>"MD",M32<>"UA",M32<>"SC",M32<>"SD",M32<>"p"),1,0)) -> 1 | Q32: FALSE | R32: =IF(OR(NOT(ISERROR(MATCH(L32,OFFSET($H$410,$G$36-2,0,1,18),FALSE))),$G$75=L32),1,0+(($G$36=1)*($H$75="OC"))) -> 0 | S32: 1 | T32: 12 | V32: =IF((S32=1)*($J$6<22),INDEX($J$13:$J$33,SUM($S$7:S32),1),"") ->  | W32: =COUNTIF($T$7:T32,T32) -> 2 | Y32: 26 | Z32: =INDEX(V:V,SUMPRODUCT((OFFSET($T$7,0,0,AuthorityCounter2,1)=Y32)*1,(OFFSET($W$7,0,0,AuthorityCounter2,1)=COUNTIF($Y$7:Y32,Y32))*1,ROW(OFFSET($W$7,0,0,AuthorityCounter2,1)))) ->  | AA32: 18.6504065 | AB32: =IF((Y32=AB$2)*(Z32=AC$3)*(SUM($AB$6:AB31)=0),+Y32,0) -> 0 | AC32: 26 | AE32: =IF($AE$6=3,O32,SUM((CODE(MID(CONCATENATE(UPPER(M32),"aaaaaaaaaa"),{1;2},1))-30)*{1;0.01})) -> 55.55 | AF32: =COUNTIF($AE$7:$AE32,AE32) -> 12 | AH32: 37.67 | AI32: 37.67 | AJ32: =COUNTIF($AI$7:$AI32,AI32) -> 26 | AK32: =IF($AE$6=1,L32,OFFSET($L$1,SUMPRODUCT(--(OFFSET($AE$7,0,0,AuthorityCounter,1)=AI32),--(OFFSET($AF$7,0,0,AuthorityCounter,1)=COUNTIF($AI$7:AI32,AI32)),ROW(OFFSET($AF$7,0,0,AuthorityCounter,1)))-1,0)) -> Derby | AM32: =IF(VLOOKUP(AK32,colAM,IF($H$75="OC",8,5),FALSE)=1,MAX(AM$6:$AM31)+1,0) -> 26 | AN32: Derby | AO32: FALSE | AP32: =IF($AP$5,SUM(SUMPRODUCT(--AO$7:$AO32)*AO32,(SUMPRODUCT(--(AO$7:$AO32=FALSE))+SUMPRODUCT(--colAP))*(1-AO32)),ROW()-6) -> 26 | AQ32: Derby | AR32: Derby | IT32: Page 9: Transport | IU32: £#,##0 | IV32: =AB7 -> 0
A33: (P.03)[07]Third Party Payments | B33: 135 | C33: 9 | D33: 17 | E33: Page 17: Third Party Payments | J33: p | L33: Devon | M33: c | O33: 54 | P33: =IF((ROW()-5=$G$36),1,IF((M33=Coding!$H$75)+(Coding!$H$75="ALL")+(Coding!$H$75="U")*OR(M33="W",M33="su",M33="L",M33="MD",M33="UA")+(Coding!$H$75="na")*AND(M33<>"W",M33<>"su",M33<>"L",M33<>"MD",M33<>"UA",M33<>"SC",M33<>"SD",M33<>"p"),1,0)) -> 1 | Q33: FALSE | R33: =IF(OR(NOT(ISERROR(MATCH(L33,OFFSET($H$410,$G$36-2,0,1,18),FALSE))),$G$75=L33),1,0+(($G$36=1)*($H$75="OC"))) -> 0 | S33: 1 | T33: 54 | V33: =IF((S33=1)*($J$6<22),INDEX($J$13:$J$33,SUM($S$7:S33),1),"") ->  | W33: =COUNTIF($T$7:T33,T33) -> 1 | Y33: 24 | Z33: =INDEX(V:V,SUMPRODUCT((OFFSET($T$7,0,0,AuthorityCounter2,1)=Y33)*1,(OFFSET($W$7,0,0,AuthorityCounter2,1)=COUNTIF($Y$7:Y33,Y33))*1,ROW(OFFSET($W$7,0,0,AuthorityCounter2,1)))) ->  | AA33: 18.6504065 | AB33: =IF((Y33=AB$2)*(Z33=AC$3)*(SUM($AB$6:AB32)=0),+Y33,0) -> 0 | AC33: 24 | AE33: =IF($AE$6=3,O33,SUM((CODE(MID(CONCATENATE(UPPER(M33),"aaaaaaaaaa"),{1;2},1))-30)*{1;0.01})) -> 37.67 | AF33: =COUNTIF($AE$7:$AE33,AE33) -> 4 | AH33: 37.67 | AI33: 37.67 | AJ33: =COUNTIF($AI$7:$AI33,AI33) -> 27 | AK33: =IF($AE$6=1,L33,OFFSET($L$1,SUMPRODUCT(--(OFFSET($AE$7,0,0,AuthorityCounter,1)=AI33),--(OFFSET($AF$7,0,0,AuthorityCounter,1)=COUNTIF($AI$7:AI33,AI33)),ROW(OFFSET($AF$7,0,0,AuthorityCounter,1)))-1,0)) -> Devon | AM33: =IF(VLOOKUP(AK33,colAM,IF($H$75="OC",8,5),FALSE)=1,MAX(AM$6:$AM32)+1,0) -> 27 | AN33: Devon | AO33: FALSE | AP33: =IF($AP$5,SUM(SUMPRODUCT(--AO$7:$AO33)*AO33,(SUMPRODUCT(--(AO$7:$AO33=FALSE))+SUMPRODUCT(--colAP))*(1-AO33)),ROW()-6) -> 27 | AQ33: Devon | AR33: Devon | IT33: Page 9: Third Party Payments | IU33: £#,##0 | IV33: =AB7 -> 0
A34: (P.03)[08]Support Service Costs | B34: 135 | C34: 10 | D34: 17 | E34: Page 17: Support Service Costs | L34: Dorset | M34: c | O34: 26 | P34: =IF((ROW()-5=$G$36),1,IF((M34=Coding!$H$75)+(Coding!$H$75="ALL")+(Coding!$H$75="U")*OR(M34="W",M34="su",M34="L",M34="MD",M34="UA")+(Coding!$H$75="na")*AND(M34<>"W",M34<>"su",M34<>"L",M34<>"MD",M34<>"UA",M34<>"SC",M34<>"SD",M34<>"p"),1,0)) -> 1 | Q34: FALSE | R34: =IF(OR(NOT(ISERROR(MATCH(L34,OFFSET($H$410,$G$36-2,0,1,18),FALSE))),$G$75=L34),1,0+(($G$36=1)*($H$75="OC"))) -> 0 | S34: 1 | T34: 26 | V34: =IF((S34=1)*($J$6<22),INDEX($J$13:$J$33,SUM($S$7:S34),1),"") ->  | W34: =COUNTIF($T$7:T34,T34) -> 1 | Y34: 24 | Z34: =INDEX(V:V,SUMPRODUCT((OFFSET($T$7,0,0,AuthorityCounter2,1)=Y34)*1,(OFFSET($W$7,0,0,AuthorityCounter2,1)=COUNTIF($Y$7:Y34,Y34))*1,ROW(OFFSET($W$7,0,0,AuthorityCounter2,1)))) ->  | AA34: 18.6504065 | AB34: =IF((Y34=AB$2)*(Z34=AC$3)*(SUM($AB$6:AB33)=0),+Y34,0) -> 0 | AC34: 24 | AE34: =IF($AE$6=3,O34,SUM((CODE(MID(CONCATENATE(UPPER(M34),"aaaaaaaaaa"),{1;2},1))-30)*{1;0.01})) -> 37.67 | AF34: =COUNTIF($AE$7:$AE34,AE34) -> 5 | AH34: 55.46 | AI34: 55.46 | AJ34: =COUNTIF($AI$7:$AI34,AI34) -> 1 | AK34: =IF($AE$6=1,L34,OFFSET($L$1,SUMPRODUCT(--(OFFSET($AE$7,0,0,AuthorityCounter,1)=AI34),--(OFFSET($AF$7,0,0,AuthorityCounter,1)=COUNTIF($AI$7:AI34,AI34)),ROW(OFFSET($AF$7,0,0,AuthorityCounter,1)))-1,0)) -> Dorset | AM34: =IF(VLOOKUP(AK34,colAM,IF($H$75="OC",8,5),FALSE)=1,MAX(AM$6:$AM33)+1,0) -> 28 | AN34: Dorset | AO34: FALSE | AP34: =IF($AP$5,SUM(SUMPRODUCT(--AO$7:$AO34)*AO34,(SUMPRODUCT(--(AO$7:$AO34=FALSE))+SUMPRODUCT(--colAP))*(1-AO34)),ROW()-6) -> 28 | AQ34: Dorset | AR34: Dorset | IT34: Page 9: Support Service Costs | IU34: £#,##0 | IV34: =AB7 -> 0
A35: (P.04)[01]Overdue Charges | B35: 135 | C35: 11 | D35: 18 | E35: Page 18: Overdue Charges | L35: Dorset | M35: c | O35: na | P35: =IF((ROW()-5=$G$36),1,IF((M35=Coding!$H$75)+(Coding!$H$75="ALL")+(Coding!$H$75="U")*OR(M35="W",M35="su",M35="L",M35="MD",M35="UA")+(Coding!$H$75="na")*AND(M35<>"W",M35<>"su",M35<>"L",M35<>"MD",M35<>"UA",M35<>"SC",M35<>"SD",M35<>"p"),1,0)) -> 1 | Q35: FALSE | R35: =IF(OR(NOT(ISERROR(MATCH(L35,OFFSET($H$410,$G$36-2,0,1,18),FALSE))),$G$75=L35),1,0+(($G$36=1)*($H$75="OC"))) -> 0 | S35: 1 | T35: na | V35: =IF((S35=1)*($J$6<22),INDEX($J$13:$J$33,SUM($S$7:S35),1),"") ->  | W35: =COUNTIF($T$7:T35,T35) -> 2 | Y35: 24 | Z35: =INDEX(V:V,SUMPRODUCT((OFFSET($T$7,0,0,AuthorityCounter2,1)=Y35)*1,(OFFSET($W$7,0,0,AuthorityCounter2,1)=COUNTIF($Y$7:Y35,Y35))*1,ROW(OFFSET($W$7,0,0,AuthorityCounter2,1)))) ->  | AA35: 18.6504065 | AB35: =IF((Y35=AB$2)*(Z35=AC$3)*(SUM($AB$6:AB34)=0),+Y35,0) -> 0 | AC35: 24 | AE35: =IF($AE$6=3,O35,SUM((CODE(MID(CONCATENATE(UPPER(M35),"aaaaaaaaaa"),{1;2},1))-30)*{1;0.01})) -> 37.67 | AF35: =COUNTIF($AE$7:$AE35,AE35) -> 6 | AH35: 55.46 | AI35: 55.46 | AJ35: =COUNTIF($AI$7:$AI35,AI35) -> 2 | AK35: =IF($AE$6=1,L35,OFFSET($L$1,SUMPRODUCT(--(OFFSET($AE$7,0,0,AuthorityCounter,1)=AI35),--(OFFSET($AF$7,0,0,AuthorityCounter,1)=COUNTIF($AI$7:AI35,AI35)),ROW(OFFSET($AF$7,0,0,AuthorityCounter,1)))-1,0)) -> Dorset | AM35: =IF(VLOOKUP(AK35,colAM,IF($H$75="OC",8,5),FALSE)=1,MAX(AM$6:$AM34)+1,0) -> 29 | AN35: Dorset | AO35: FALSE | AP35: =IF($AP$5,SUM(SUMPRODUCT(--AO$7:$AO35)*AO35,(SUMPRODUCT(--(AO$7:$AO35=FALSE))+SUMPRODUCT(--colAP))*(1-AO35)),ROW()-6) -> 29 | AQ35: Dorset | AR35: Dorset | IT35: Page 10: Overdue Charges | IU35: £#,##0 | IV35: =AB7 -> 0
A36: (P.04)[02]Hire of Audio & Visual Materials | B36: 135 | C36: 12 | D36: 18 | E36: Page 18: Hire of Audio & Visual Materials | G36: 1 | H36: Cell Link for Authorities | J36: (Max 300) | L36: Dudley | M36: um | O36: 16 | P36: =IF((ROW()-5=$G$36),1,IF((M36=Coding!$H$75)+(Coding!$H$75="ALL")+(Coding!$H$75="U")*OR(M36="W",M36="su",M36="L",M36="MD",M36="UA")+(Coding!$H$75="na")*AND(M36<>"W",M36<>"su",M36<>"L",M36<>"MD",M36<>"UA",M36<>"SC",M36<>"SD",M36<>"p"),1,0)) -> 1 | Q36: FALSE | R36: =IF(OR(NOT(ISERROR(MATCH(L36,OFFSET($H$410,$G$36-2,0,1,18),FALSE))),$G$75=L36),1,0+(($G$36=1)*($H$75="OC"))) -> 0 | S36: 1 | T36: 16 | V36: =IF((S36=1)*($J$6<22),INDEX($J$13:$J$33,SUM($S$7:S36),1),"") ->  | W36: =COUNTIF($T$7:T36,T36) -> 2 | Y36: 23 | Z36: =INDEX(V:V,SUMPRODUCT((OFFSET($T$7,0,0,AuthorityCounter2,1)=Y36)*1,(OFFSET($W$7,0,0,AuthorityCounter2,1)=COUNTIF($Y$7:Y36,Y36))*1,ROW(OFFSET($W$7,0,0,AuthorityCounter2,1)))) ->  | AA36: 18.6504065 | AB36: =IF((Y36=AB$2)*(Z36=AC$3)*(SUM($AB$6:AB35)=0),+Y36,0) -> 0 | AC36: 23 | AE36: =IF($AE$6=3,O36,SUM((CODE(MID(CONCATENATE(UPPER(M36),"aaaaaaaaaa"),{1;2},1))-30)*{1;0.01})) -> 55.47 | AF36: =COUNTIF($AE$7:$AE36,AE36) -> 5 | AH36: 55.46 | AI36: 55.46 | AJ36: =COUNTIF($AI$7:$AI36,AI36) -> 3 | AK36: =IF($AE$6=1,L36,OFFSET($L$1,SUMPRODUCT(--(OFFSET($AE$7,0,0,AuthorityCounter,1)=AI36),--(OFFSET($AF$7,0,0,AuthorityCounter,1)=COUNTIF($AI$7:AI36,AI36)),ROW(OFFSET($AF$7,0,0,AuthorityCounter,1)))-1,0)) -> Dudley | AM36: =IF(VLOOKUP(AK36,colAM,IF($H$75="OC",8,5),FALSE)=1,MAX(AM$6:$AM35)+1,0) -> 30 | AN36: Dudley | AO36: FALSE | AP36: =IF($AP$5,SUM(SUMPRODUCT(--AO$7:$AO36)*AO36,(SUMPRODUCT(--(AO$7:$AO36=FALSE))+SUMPRODUCT(--colAP))*(1-AO36)),ROW()-6) -> 30 | AQ36: Dudley | AR36: Dudley | IT36: Page 10: Hire of Audio & Visual Materials | IU36: £#,##0 | IV36: =AB7 -> 0
A37: (P.04)[03]Specific Grants | B37: 135 | C37: 13 | D37: 18 | E37: Page 18: Specific Grants | L37: Durham | M37: uu | O37: 42 | P37: =IF((ROW()-5=$G$36),1,IF((M37=Coding!$H$75)+(Coding!$H$75="ALL")+(Coding!$H$75="U")*OR(M37="W",M37="su",M37="L",M37="MD",M37="UA")+(Coding!$H$75="na")*AND(M37<>"W",M37<>"su",M37<>"L",M37<>"MD",M37<>"UA",M37<>"SC",M37<>"SD",M37<>"p"),1,0)) -> 1 | Q37: FALSE | R37: =IF(OR(NOT(ISERROR(MATCH(L37,OFFSET($H$410,$G$36-2,0,1,18),FALSE))),$G$75=L37),1,0+(($G$36=1)*($H$75="OC"))) -> 0 | S37: 1 | T37: 42 | V37: =IF((S37=1)*($J$6<22),INDEX($J$13:$J$33,SUM($S$7:S37),1),"") ->  | W37: =COUNTIF($T$7:T37,T37) -> 1 | Y37: 23 | Z37: =INDEX(V:V,SUMPRODUCT((OFFSET($T$7,0,0,AuthorityCounter2,1)=Y37)*1,(OFFSET($W$7,0,0,AuthorityCounter2,1)=COUNTIF($Y$7:Y37,Y37))*1,ROW(OFFSET($W$7,0,0,AuthorityCounter2,1)))) ->  | AA37: 18.6504065 | AB37: =IF((Y37=AB$2)*(Z37=AC$3)*(SUM($AB$6:AB36)=0),+Y37,0) -> 0 | AC37: 23 | AE37: =IF($AE$6=3,O37,SUM((CODE(MID(CONCATENATE(UPPER(M37),"aaaaaaaaaa"),{1;2},1))-30)*{1;0.01})) -> 55.55 | AF37: =COUNTIF($AE$7:$AE37,AE37) -> 13 | AH37: 55.46 | AI37: 55.46 | AJ37: =COUNTIF($AI$7:$AI37,AI37) -> 4 | AK37: =IF($AE$6=1,L37,OFFSET($L$1,SUMPRODUCT(--(OFFSET($AE$7,0,0,AuthorityCounter,1)=AI37),--(OFFSET($AF$7,0,0,AuthorityCounter,1)=COUNTIF($AI$7:AI37,AI37)),ROW(OFFSET($AF$7,0,0,AuthorityCounter,1)))-1,0)) -> Durham | AM37: =IF(VLOOKUP(AK37,colAM,IF($H$75="OC",8,5),FALSE)=1,MAX(AM$6:$AM36)+1,0) -> 31 | AN37: Durham | AO37: FALSE | AP37: =IF($AP$5,SUM(SUMPRODUCT(--AO$7:$AO37)*AO37,(SUMPRODUCT(--(AO$7:$AO37=FALSE))+SUMPRODUCT(--colAP))*(1-AO37)),ROW()-6) -> 31 | AQ37: Durham | AR37: Durham | IT37: Page 10: Specific Grants | IU37: £#,##0 | IV37: =AB7 -> 0
A38: (P.04)[04]Receipts from the Public | B38: 135 | C38: 14 | D38: 18 | E38: Page 18: Receipts from the Public | G38: 2 | H38: Cell Link for Chart Names | J38: (Max 200) | L38: Ealing | M38: ul | O38: 14 | P38: =IF((ROW()-5=$G$36),1,IF((M38=Coding!$H$75)+(Coding!$H$75="ALL")+(Coding!$H$75="U")*OR(M38="W",M38="su",M38="L",M38="MD",M38="UA")+(Coding!$H$75="na")*AND(M38<>"W",M38<>"su",M38<>"L",M38<>"MD",M38<>"UA",M38<>"SC",M38<>"SD",M38<>"p"),1,0)) -> 1 | Q38: FALSE | R38: =IF(OR(NOT(ISERROR(MATCH(L38,OFFSET($H$410,$G$36-2,0,1,18),FALSE))),$G$75=L38),1,0+(($G$36=1)*($H$75="OC"))) -> 0 | S38: 1 | T38: 14 | V38: =IF((S38=1)*($J$6<22),INDEX($J$13:$J$33,SUM($S$7:S38),1),"") ->  | W38: =COUNTIF($T$7:T38,T38) -> 3 | Y38: 22 | Z38: =INDEX(V:V,SUMPRODUCT((OFFSET($T$7,0,0,AuthorityCounter2,1)=Y38)*1,(OFFSET($W$7,0,0,AuthorityCounter2,1)=COUNTIF($Y$7:Y38,Y38))*1,ROW(OFFSET($W$7,0,0,AuthorityCounter2,1)))) ->  | AA38: 18.6504065 | AB38: =IF((Y38=AB$2)*(Z38=AC$3)*(SUM($AB$6:AB37)=0),+Y38,0) -> 0 | AC38: 22 | AE38: =IF($AE$6=3,O38,SUM((CODE(MID(CONCATENATE(UPPER(M38),"aaaaaaaaaa"),{1;2},1))-30)*{1;0.01})) -> 55.46 | AF38: =COUNTIF($AE$7:$AE38,AE38) -> 8 | AH38: 55.46 | AI38: 55.46 | AJ38: =COUNTIF($AI$7:$AI38,AI38) -> 5 | AK38: =IF($AE$6=1,L38,OFFSET($L$1,SUMPRODUCT(--(OFFSET($AE$7,0,0,AuthorityCounter,1)=AI38),--(OFFSET($AF$7,0,0,AuthorityCounter,1)=COUNTIF($AI$7:AI38,AI38)),ROW(OFFSET($AF$7,0,0,AuthorityCounter,1)))-1,0)) -> Ealing | AM38: =IF(VLOOKUP(AK38,colAM,IF($H$75="OC",8,5),FALSE)=1,MAX(AM$6:$AM37)+1,0) -> 32 | AN38: Ealing | AO38: FALSE | AP38: =IF($AP$5,SUM(SUMPRODUCT(--AO$7:$AO38)*AO38,(SUMPRODUCT(--(AO$7:$AO38=FALSE))+SUMPRODUCT(--colAP))*(1-AO38)),ROW()-6) -> 32 | AQ38: Ealing | AR38: Ealing | IT38: Page 10: Receipts from the Public | IU38: £#,##0 | IV38: =AB7 -> 0
A39: (P.04)[05]Corporate Income | B39: 135 | C39: 15 | D39: 18 | E39: Page 18: Corporate Income | G39: =OFFSET($B$1,G38-1,0) -> 0 | H39: Offset Value 1 | L39: East Sussex | M39: c | O39: =IF(ISNUMBER(--OFFSET($D$409,(ROW()-6)+$G$39+AuthorityCounter+5,$G$40)),OFFSET($D$409,(ROW()-6)+$G$39+AuthorityCounter+5,$G$40),"na") -> 17 | P39: =IF((ROW()-5=$G$36),1,IF((M39=Coding!$H$75)+(Coding!$H$75="ALL")+(Coding!$H$75="U")*OR(M39="W",M39="su",M39="L",M39="MD",M39="UA")+(Coding!$H$75="na")*AND(M39<>"W",M39<>"su",M39<>"L",M39<>"MD",M39<>"UA",M39<>"SC",M39<>"SD",M39<>"p"),1,0)) -> 1 | Q39: FALSE | R39: =IF(OR(NOT(ISERROR(MATCH(L39,OFFSET($H$410,$G$36-2,0,1,18),FALSE))),$G$75=L39),1,0+(($G$36=1)*($H$75="OC"))) -> 0 | S39: 1 | T39: 17 | V39: =IF((S39=1)*($J$6<22),INDEX($J$13:$J$33,SUM($S$7:S39),1),"") ->  | W39: =COUNTIF($T$7:T39,T39) -> 2 | Y39: 22 | Z39: =INDEX(V:V,SUMPRODUCT((OFFSET($T$7,0,0,AuthorityCounter2,1)=Y39)*1,(OFFSET($W$7,0,0,AuthorityCounter2,1)=COUNTIF($Y$7:Y39,Y39))*1,ROW(OFFSET($W$7,0,0,AuthorityCounter2,1)))) ->  | AA39: 18.6504065 | AB39: =IF((Y39=AB$2)*(Z39=AC$3)*(SUM($AB$6:AB38)=0),+Y39,0) -> 0 | AC39: 22 | AE39: =IF($AE$6=3,O39,SUM((CODE(MID(CONCATENATE(UPPER(M39),"aaaaaaaaaa"),{1;2},1))-30)*{1;0.01})) -> 37.67 | AF39: =COUNTIF($AE$7:$AE39,AE39) -> 7 | AH39: 55.46 | AI39: 55.46 | AJ39: =COUNTIF($AI$7:$AI39,AI39) -> 6 | AK39: =IF($AE$6=1,L39,OFFSET($L$1,SUMPRODUCT(--(OFFSET($AE$7,0,0,AuthorityCounter,1)=AI39),--(OFFSET($AF$7,0,0,AuthorityCounter,1)=COUNTIF($AI$7:AI39,AI39)),ROW(OFFSET($AF$7,0,0,AuthorityCounter,1)))-1,0)) -> East Sussex | AM39: =IF(VLOOKUP(AK39,colAM,IF($H$75="OC",8,5),FALSE)=1,MAX(AM$6:$AM38)+1,0) -> 33 | AN39: East Sussex | AO39: FALSE | AP39: =IF($AP$5,SUM(SUMPRODUCT(--AO$7:$AO39)*AO39,(SUMPRODUCT(--(AO$7:$AO39=FALSE))+SUMPRODUCT(--colAP))*(1-AO39)),ROW()-6) -> 33 | AQ39: East Sussex | AR39: East Sussex | IT39: Page 10: Corporate Income | IU39: £#,##0 | IV39: =AB7 -> 0
A40: (P.04)[06]Other Income | B40: 135 | C40: 16 | D40: 18 | E40: Page 18: Other Income | G40: =OFFSET($C$1,G38-1,0) -> 0 | H40: Offset Value 2 | L40: Enfield | M40: ul | O40: 17 | P40: =IF((ROW()-5=$G$36),1,IF((M40=Coding!$H$75)+(Coding!$H$75="ALL")+(Coding!$H$75="U")*OR(M40="W",M40="su",M40="L",M40="MD",M40="UA")+(Coding!$H$75="na")*AND(M40<>"W",M40<>"su",M40<>"L",M40<>"MD",M40<>"UA",M40<>"SC",M40<>"SD",M40<>"p"),1,0)) -> 1 | Q40: FALSE | R40: =IF(OR(NOT(ISERROR(MATCH(L40,OFFSET($H$410,$G$36-2,0,1,18),FALSE))),$G$75=L40),1,0+(($G$36=1)*($H$75="OC"))) -> 0 | S40: 1 | T40: 17 | V40: =IF((S40=1)*($J$6<22),INDEX($J$13:$J$33,SUM($S$7:S40),1),"") ->  | W40: =COUNTIF($T$7:T40,T40) -> 3 | Y40: 22 | Z40: =INDEX(V:V,SUMPRODUCT((OFFSET($T$7,0,0,AuthorityCounter2,1)=Y40)*1,(OFFSET($W$7,0,0,AuthorityCounter2,1)=COUNTIF($Y$7:Y40,Y40))*1,ROW(OFFSET($W$7,0,0,AuthorityCounter2,1)))) ->  | AA40: 18.6504065 | AB40: =IF((Y40=AB$2)*(Z40=AC$3)*(SUM($AB$6:AB39)=0),+Y40,0) -> 0 | AC40: 22 | AE40: =IF($AE$6=3,O40,SUM((CODE(MID(CONCATENATE(UPPER(M40),"aaaaaaaaaa"),{1;2},1))-30)*{1;0.01})) -> 55.46 | AF40: =COUNTIF($AE$7:$AE40,AE40) -> 9 | AH40: 55.46 | AI40: 55.46 | AJ40: =COUNTIF($AI$7:$AI40,AI40) -> 7 | AK40: =IF($AE$6=1,L40,OFFSET($L$1,SUMPRODUCT(--(OFFSET($AE$7,0,0,AuthorityCounter,1)=AI40),--(OFFSET($AF$7,0,0,AuthorityCounter,1)=COUNTIF($AI$7:AI40,AI40)),ROW(OFFSET($AF$7,0,0,AuthorityCounter,1)))-1,0)) -> Enfield | AM40: =IF(VLOOKUP(AK40,colAM,IF($H$75="OC",8,5),FALSE)=1,MAX(AM$6:$AM39)+1,0) -> 34 | AN40: Enfield | AO40: FALSE | AP40: =IF($AP$5,SUM(SUMPRODUCT(--AO$7:$AO40)*AO40,(SUMPRODUCT(--(AO$7:$AO40=FALSE))+SUMPRODUCT(--colAP))*(1-AO40)),ROW()-6) -> 34 | AQ40: Enfield | AR40: Enfield | IT40: Page 10: Other Income | IU40: £#,##0 | IV40: =AB7 -> 0
A41: (P.05)[01]Reservation Fees | B41: 135 | C41: 17 | D41: 19 | E41: Page 19: Reservation Fees | L41: Essex | M41: c | O41: 77 | P41: =IF((ROW()-5=$G$36),1,IF((M41=Coding!$H$75)+(Coding!$H$75="ALL")+(Coding!$H$75="U")*OR(M41="W",M41="su",M41="L",M41="MD",M41="UA")+(Coding!$H$75="na")*AND(M41<>"W",M41<>"su",M41<>"L",M41<>"MD",M41<>"UA",M41<>"SC",M41<>"SD",M41<>"p"),1,0)) -> 1 | Q41: FALSE | R41: =IF(OR(NOT(ISERROR(MATCH(L41,OFFSET($H$410,$G$36-2,0,1,18),FALSE))),$G$75=L41),1,0+(($G$36=1)*($H$75="OC"))) -> 0 | S41: 1 | T41: 77 | V41: =IF((S41=1)*($J$6<22),INDEX($J$13:$J$33,SUM($S$7:S41),1),"") ->  | W41: =COUNTIF($T$7:T41,T41) -> 1 | Y41: 22 | Z41: =INDEX(V:V,SUMPRODUCT((OFFSET($T$7,0,0,AuthorityCounter2,1)=Y41)*1,(OFFSET($W$7,0,0,AuthorityCounter2,1)=COUNTIF($Y$7:Y41,Y41))*1,ROW(OFFSET($W$7,0,0,AuthorityCounter2,1)))) ->  | AA41: 18.6504065 | AB41: =IF((Y41=AB$2)*(Z41=AC$3)*(SUM($AB$6:AB40)=0),+Y41,0) -> 0 | AC41: 22 | AE41: =IF($AE$6=3,O41,SUM((CODE(MID(CONCATENATE(UPPER(M41),"aaaaaaaaaa"),{1;2},1))-30)*{1;0.01})) -> 37.67 | AF41: =COUNTIF($AE$7:$AE41,AE41) -> 8 | AH41: 55.46 | AI41: 55.46 | AJ41: =COUNTIF($AI$7:$AI41,AI41) -> 8 | AK41: =IF($AE$6=1,L41,OFFSET($L$1,SUMPRODUCT(--(OFFSET($AE$7,0,0,AuthorityCounter,1)=AI41),--(OFFSET($AF$7,0,0,AuthorityCounter,1)=COUNTIF($AI$7:AI41,AI41)),ROW(OFFSET($AF$7,0,0,AuthorityCounter,1)))-1,0)) -> Essex | AM41: =IF(VLOOKUP(AK41,colAM,IF($H$75="OC",8,5),FALSE)=1,MAX(AM$6:$AM40)+1,0) -> 35 | AN41: Essex | AO41: FALSE | AP41: =IF($AP$5,SUM(SUMPRODUCT(--AO$7:$AO41)*AO41,(SUMPRODUCT(--(AO$7:$AO41=FALSE))+SUMPRODUCT(--colAP))*(1-AO41)),ROW()-6) -> 35 | AQ41: Essex | AR41: Essex | IT41: Page 11: Reservation Fees | IU41: £#,##0 | IV41: =AB7 -> 0
A42: (P.05)[02]Electronic Revenue | B42: 135 | C42: 18 | D42: 19 | E42: Page 19: Electronic Revenue | G42: CIPFA Public Libraries Profile | H42: Club (for Text, or Club) | L42: Gateshead | M42: um | O42: 8 | P42: =IF((ROW()-5=$G$36),1,IF((M42=Coding!$H$75)+(Coding!$H$75="ALL")+(Coding!$H$75="U")*OR(M42="W",M42="su",M42="L",M42="MD",M42="UA")+(Coding!$H$75="na")*AND(M42<>"W",M42<>"su",M42<>"L",M42<>"MD",M42<>"UA",M42<>"SC",M42<>"SD",M42<>"p"),1,0)) -> 1 | Q42: FALSE | R42: =IF(OR(NOT(ISERROR(MATCH(L42,OFFSET($H$410,$G$36-2,0,1,18),FALSE))),$G$75=L42),1,0+(($G$36=1)*($H$75="OC"))) -> 0 | S42: 1 | T42: 8 | V42: =IF((S42=1)*($J$6<22),INDEX($J$13:$J$33,SUM($S$7:S42),1),"") ->  | W42: =COUNTIF($T$7:T42,T42) -> 2 | Y42: 20 | Z42: =INDEX(V:V,SUMPRODUCT((OFFSET($T$7,0,0,AuthorityCounter2,1)=Y42)*1,(OFFSET($W$7,0,0,AuthorityCounter2,1)=COUNTIF($Y$7:Y42,Y42))*1,ROW(OFFSET($W$7,0,0,AuthorityCounter2,1)))) ->  | AA42: 18.6504065 | AB42: =IF((Y42=AB$2)*(Z42=AC$3)*(SUM($AB$6:AB41)=0),+Y42,0) -> 0 | AC42: 20 | AE42: =IF($AE$6=3,O42,SUM((CODE(MID(CONCATENATE(UPPER(M42),"aaaaaaaaaa"),{1;2},1))-30)*{1;0.01})) -> 55.47 | AF42: =COUNTIF($AE$7:$AE42,AE42) -> 6 | AH42: 55.46 | AI42: 55.46 | AJ42: =COUNTIF($AI$7:$AI42,AI42) -> 9 | AK42: =IF($AE$6=1,L42,OFFSET($L$1,SUMPRODUCT(--(OFFSET($AE$7,0,0,AuthorityCounter,1)=AI42),--(OFFSET($AF$7,0,0,AuthorityCounter,1)=COUNTIF($AI$7:AI42,AI42)),ROW(OFFSET($AF$7,0,0,AuthorityCounter,1)))-1,0)) -> Gateshead | AM42: =IF(VLOOKUP(AK42,colAM,IF($H$75="OC",8,5),FALSE)=1,MAX(AM$6:$AM41)+1,0) -> 36 | AN42: Gateshead | AO42: FALSE | AP42: =IF($AP$5,SUM(SUMPRODUCT(--AO$7:$AO42)*AO42,(SUMPRODUCT(--(AO$7:$AO42=FALSE))+SUMPRODUCT(--colAP))*(1-AO42)),ROW()-6) -> 36 | AQ42: Gateshead | AR42: Gateshead | IT42: Page 11: Electronic Revenue | IU42: £#,##0.00 | IV42: =AB7 -> 0
A43: (P.05)[03]Lettings | B43: 135 | C43: 19 | D43: 19 | E43: Page 19: Lettings | L43: Gloucestershire | M43: c | O43: 32 | P43: =IF((ROW()-5=$G$36),1,IF((M43=Coding!$H$75)+(Coding!$H$75="ALL")+(Coding!$H$75="U")*OR(M43="W",M43="su",M43="L",M43="MD",M43="UA")+(Coding!$H$75="na")*AND(M43<>"W",M43<>"su",M43<>"L",M43<>"MD",M43<>"UA",M43<>"SC",M43<>"SD",M43<>"p"),1,0)) -> 1 | Q43: FALSE | R43: =IF(OR(NOT(ISERROR(MATCH(L43,OFFSET($H$410,$G$36-2,0,1,18),FALSE))),$G$75=L43),1,0+(($G$36=1)*($H$75="OC"))) -> 0 | S43: 1 | T43: 32 | V43: =IF((S43=1)*($J$6<22),INDEX($J$13:$J$33,SUM($S$7:S43),1),"") ->  | W43: =COUNTIF($T$7:T43,T43) -> 1 | Y43: 18 | Z43: =INDEX(V:V,SUMPRODUCT((OFFSET($T$7,0,0,AuthorityCounter2,1)=Y43)*1,(OFFSET($W$7,0,0,AuthorityCounter2,1)=COUNTIF($Y$7:Y43,Y43))*1,ROW(OFFSET($W$7,0,0,AuthorityCounter2,1)))) ->  | AA43: 18.6504065 | AB43: =IF((Y43=AB$2)*(Z43=AC$3)*(SUM($AB$6:AB42)=0),+Y43,0) -> 0 | AC43: 18 | AE43: =IF($AE$6=3,O43,SUM((CODE(MID(CONCATENATE(UPPER(M43),"aaaaaaaaaa"),{1;2},1))-30)*{1;0.01})) -> 37.67 | AF43: =COUNTIF($AE$7:$AE43,AE43) -> 9 | AH43: 55.46 | AI43: 55.46 | AJ43: =COUNTIF($AI$7:$AI43,AI43) -> 10 | AK43: =IF($AE$6=1,L43,OFFSET($L$1,SUMPRODUCT(--(OFFSET($AE$7,0,0,AuthorityCounter,1)=AI43),--(OFFSET($AF$7,0,0,AuthorityCounter,1)=COUNTIF($AI$7:AI43,AI43)),ROW(OFFSET($AF$7,0,0,AuthorityCounter,1)))-1,0)) -> Gloucestershire | AM43: =IF(VLOOKUP(AK43,colAM,IF($H$75="OC",8,5),FALSE)=1,MAX(AM$6:$AM42)+1,0) -> 37 | AN43: Gloucestershire | AO43: FALSE | AP43: =IF($AP$5,SUM(SUMPRODUCT(--AO$7:$AO43)*AO43,(SUMPRODUCT(--(AO$7:$AO43=FALSE))+SUMPRODUCT(--colAP))*(1-AO43)),ROW()-6) -> 37 | AQ43: Gloucestershire | AR43: Gloucestershire | IT43: Page 11: Lettings | IU43: £#,##0 | IV43: =AB7 -> 0
A44: (P.05)[04]Provision to other LAs | B44: 135 | C44: 20 | D44: 19 | E44: Page 19: Provision to other LAs | G44: =MATCH(I88,I94:I105,FALSE) ->  | L44: Greenwich | M44: ul | O44: 12 | P44: =IF((ROW()-5=$G$36),1,IF((M44=Coding!$H$75)+(Coding!$H$75="ALL")+(Coding!$H$75="U")*OR(M44="W",M44="su",M44="L",M44="MD",M44="UA")+(Coding!$H$75="na")*AND(M44<>"W",M44<>"su",M44<>"L",M44<>"MD",M44<>"UA",M44<>"SC",M44<>"SD",M44<>"p"),1,0)) -> 1 | Q44: FALSE | R44: =IF(OR(NOT(ISERROR(MATCH(L44,OFFSET($H$410,$G$36-2,0,1,18),FALSE))),$G$75=L44),1,0+(($G$36=1)*($H$75="OC"))) -> 0 | S44: 1 | T44: 12 | V44: =IF((S44=1)*($J$6<22),INDEX($J$13:$J$33,SUM($S$7:S44),1),"") ->  | W44: =COUNTIF($T$7:T44,T44) -> 3 | Y44: 17 | Z44: =INDEX(V:V,SUMPRODUCT((OFFSET($T$7,0,0,AuthorityCounter2,1)=Y44)*1,(OFFSET($W$7,0,0,AuthorityCounter2,1)=COUNTIF($Y$7:Y44,Y44))*1,ROW(OFFSET($W$7,0,0,AuthorityCounter2,1)))) ->  | AA44: 18.6504065 | AB44: =IF((Y44=AB$2)*(Z44=AC$3)*(SUM($AB$6:AB43)=0),+Y44,0) -> 0 | AC44: 17 | AE44: =IF($AE$6=3,O44,SUM((CODE(MID(CONCATENATE(UPPER(M44),"aaaaaaaaaa"),{1;2},1))-30)*{1;0.01})) -> 55.46 | AF44: =COUNTIF($AE$7:$AE44,AE44) -> 10 | AH44: 55.46 | AI44: 55.46 | AJ44: =COUNTIF($AI$7:$AI44,AI44) -> 11 | AK44: =IF($AE$6=1,L44,OFFSET($L$1,SUMPRODUCT(--(OFFSET($AE$7,0,0,AuthorityCounter,1)=AI44),--(OFFSET($AF$7,0,0,AuthorityCounter,1)=COUNTIF($AI$7:AI44,AI44)),ROW(OFFSET($AF$7,0,0,AuthorityCounter,1)))-1,0)) -> Greenwich | AM44: =IF(VLOOKUP(AK44,colAM,IF($H$75="OC",8,5),FALSE)=1,MAX(AM$6:$AM43)+1,0) -> 38 | AN44: Greenwich | AO44: FALSE | AP44: =IF($AP$5,SUM(SUMPRODUCT(--AO$7:$AO44)*AO44,(SUMPRODUCT(--(AO$7:$AO44=FALSE))+SUMPRODUCT(--colAP))*(1-AO44)),ROW()-6) -> 38 | AQ44: Greenwich | AR44: Greenwich | IT44: Page 11: Provision to other LAs | IU44: £#,##0 | IV44: =AB7 -> 0
A45: (P.06)[01]Average Cost per Acquisition (Books) | B45: 135 | C45: 21 | D45: 20 | E45: Page 20: Average Cost per Acquisition (Books) | L45: Hackney | M45: ul | O45: 8 | P45: =IF((ROW()-5=$G$36),1,IF((M45=Coding!$H$75)+(Coding!$H$75="ALL")+(Coding!$H$75="U")*OR(M45="W",M45="su",M45="L",M45="MD",M45="UA")+(Coding!$H$75="na")*AND(M45<>"W",M45<>"su",M45<>"L",M45<>"MD",M45<>"UA",M45<>"SC",M45<>"SD",M45<>"p"),1,0)) -> 1 | Q45: FALSE | R45: =IF(OR(NOT(ISERROR(MATCH(L45,OFFSET($H$410,$G$36-2,0,1,18),FALSE))),$G$75=L45),1,0+(($G$36=1)*($H$75="OC"))) -> 0 | S45: 1 | T45: 8 | V45: =IF((S45=1)*($J$6<22),INDEX($J$13:$J$33,SUM($S$7:S45),1),"") ->  | W45: =COUNTIF($T$7:T45,T45) -> 3 | Y45: 17 | Z45: =INDEX(V:V,SUMPRODUCT((OFFSET($T$7,0,0,AuthorityCounter2,1)=Y45)*1,(OFFSET($W$7,0,0,AuthorityCounter2,1)=COUNTIF($Y$7:Y45,Y45))*1,ROW(OFFSET($W$7,0,0,AuthorityCounter2,1)))) ->  | AA45: 18.6504065 | AB45: =IF((Y45=AB$2)*(Z45=AC$3)*(SUM($AB$6:AB44)=0),+Y45,0) -> 0 | AC45: 17 | AE45: =IF($AE$6=3,O45,SUM((CODE(MID(CONCATENATE(UPPER(M45),"aaaaaaaaaa"),{1;2},1))-30)*{1;0.01})) -> 55.46 | AF45: =COUNTIF($AE$7:$AE45,AE45) -> 11 | AH45: 55.46 | AI45: 55.46 | AJ45: =COUNTIF($AI$7:$AI45,AI45) -> 12 | AK45: =IF($AE$6=1,L45,OFFSET($L$1,SUMPRODUCT(--(OFFSET($AE$7,0,0,AuthorityCounter,1)=AI45),--(OFFSET($AF$7,0,0,AuthorityCounter,1)=COUNTIF($AI$7:AI45,AI45)),ROW(OFFSET($AF$7,0,0,AuthorityCounter,1)))-1,0)) -> Hackney | AM45: =IF(VLOOKUP(AK45,colAM,IF($H$75="OC",8,5),FALSE)=1,MAX(AM$6:$AM44)+1,0) -> 39 | AN45: Hackney | AO45: FALSE | AP45: =IF($AP$5,SUM(SUMPRODUCT(--AO$7:$AO45)*AO45,(SUMPRODUCT(--(AO$7:$AO45=FALSE))+SUMPRODUCT(--colAP))*(1-AO45)),ROW()-6) -> 39 | AQ45: Hackney | AR45: Hackney | IT45: Page 12: Average Cost per Acquisition (Books) | IU45: £#,##0 | IV45: =AB7 -> 0
A46: (P.06)[02]Cost per Visitor | B46: 135 | C46: 22 | D46: 20 | E46: Page 20: Cost per Visitor | L46: Halton | M46: uu | O46: 4 | P46: =IF((ROW()-5=$G$36),1,IF((M46=Coding!$H$75)+(Coding!$H$75="ALL")+(Coding!$H$75="U")*OR(M46="W",M46="su",M46="L",M46="MD",M46="UA")+(Coding!$H$75="na")*AND(M46<>"W",M46<>"su",M46<>"L",M46<>"MD",M46<>"UA",M46<>"SC",M46<>"SD",M46<>"p"),1,0)) -> 1 | Q46: FALSE | R46: =IF(OR(NOT(ISERROR(MATCH(L46,OFFSET($H$410,$G$36-2,0,1,18),FALSE))),$G$75=L46),1,0+(($G$36=1)*($H$75="OC"))) -> 0 | S46: 1 | T46: 4 | V46: =IF((S46=1)*($J$6<22),INDEX($J$13:$J$33,SUM($S$7:S46),1),"") ->  | W46: =COUNTIF($T$7:T46,T46) -> 2 | Y46: 17 | Z46: =INDEX(V:V,SUMPRODUCT((OFFSET($T$7,0,0,AuthorityCounter2,1)=Y46)*1,(OFFSET($W$7,0,0,AuthorityCounter2,1)=COUNTIF($Y$7:Y46,Y46))*1,ROW(OFFSET($W$7,0,0,AuthorityCounter2,1)))) ->  | AA46: 18.6504065 | AB46: =IF((Y46=AB$2)*(Z46=AC$3)*(SUM($AB$6:AB45)=0),+Y46,0) -> 0 | AC46: 17 | AE46: =IF($AE$6=3,O46,SUM((CODE(MID(CONCATENATE(UPPER(M46),"aaaaaaaaaa"),{1;2},1))-30)*{1;0.01})) -> 55.55 | AF46: =COUNTIF($AE$7:$AE46,AE46) -> 14 | AH46: 55.46 | AI46: 55.46 | AJ46: =COUNTIF($AI$7:$AI46,AI46) -> 13 | AK46: =IF($AE$6=1,L46,OFFSET($L$1,SUMPRODUCT(--(OFFSET($AE$7,0,0,AuthorityCounter,1)=AI46),--(OFFSET($AF$7,0,0,AuthorityCounter,1)=COUNTIF($AI$7:AI46,AI46)),ROW(OFFSET($AF$7,0,0,AuthorityCounter,1)))-1,0)) -> Halton | AM46: =IF(VLOOKUP(AK46,colAM,IF($H$75="OC",8,5),FALSE)=1,MAX(AM$6:$AM45)+1,0) -> 40 | AN46: Halton | AO46: FALSE | AP46: =IF($AP$5,SUM(SUMPRODUCT(--AO$7:$AO46)*AO46,(SUMPRODUCT(--(AO$7:$AO46=FALSE))+SUMPRODUCT(--colAP))*(1-AO46)),ROW()-6) -> 40 | AQ46: Halton | AR46: Halton | IT46: Page 12: Cost per Visitor | IU46: £#,##0 | IV46: =AB7 -> 0
A47: (P.06)[03]Employee Expenditure as a % of Revenue Expenditure | B47: 135 | C47: 23 | D47: 20 | E47: Page 20: Employee Expenditure as a % of Revenue Expenditure | L47: Hammersmith & Fulham | M47: ul | O47: 4 | P47: =IF((ROW()-5=$G$36),1,IF((M47=Coding!$H$75)+(Coding!$H$75="ALL")+(Coding!$H$75="U")*OR(M47="W",M47="su",M47="L",M47="MD",M47="UA")+(Coding!$H$75="na")*AND(M47<>"W",M47<>"su",M47<>"L",M47<>"MD",M47<>"UA",M47<>"SC",M47<>"SD",M47<>"p"),1,0)) -> 1 | Q47: FALSE | R47: =IF(OR(NOT(ISERROR(MATCH(L47,OFFSET($H$410,$G$36-2,0,1,18),FALSE))),$G$75=L47),1,0+(($G$36=1)*($H$75="OC"))) -> 0 | S47: 1 | T47: 4 | V47: =IF((S47=1)*($J$6<22),INDEX($J$13:$J$33,SUM($S$7:S47),1),"") ->  | W47: =COUNTIF($T$7:T47,T47) -> 3 | Y47: 17 | Z47: =INDEX(V:V,SUMPRODUCT((OFFSET($T$7,0,0,AuthorityCounter2,1)=Y47)*1,(OFFSET($W$7,0,0,AuthorityCounter2,1)=COUNTIF($Y$7:Y47,Y47))*1,ROW(OFFSET($W$7,0,0,AuthorityCounter2,1)))) ->  | AA47: 18.6504065 | AB47: =IF((Y47=AB$2)*(Z47=AC$3)*(SUM($AB$6:AB46)=0),+Y47,0) -> 0 | AC47: 17 | AE47: =IF($AE$6=3,O47,SUM((CODE(MID(CONCATENATE(UPPER(M47),"aaaaaaaaaa"),{1;2},1))-30)*{1;0.01})) -> 55.46 | AF47: =COUNTIF($AE$7:$AE47,AE47) -> 12 | AH47: 55.46 | AI47: 55.46 | AJ47: =COUNTIF($AI$7:$AI47,AI47) -> 14 | AK47: =IF($AE$6=1,L47,OFFSET($L$1,SUMPRODUCT(--(OFFSET($AE$7,0,0,AuthorityCounter,1)=AI47),--(OFFSET($AF$7,0,0,AuthorityCounter,1)=COUNTIF($AI$7:AI47,AI47)),ROW(OFFSET($AF$7,0,0,AuthorityCounter,1)))-1,0)) -> Hammersmith & Fulham | AM47: =IF(VLOOKUP(AK47,colAM,IF($H$75="OC",8,5),FALSE)=1,MAX(AM$6:$AM46)+1,0) -> 41 | AN47: Hammersmith & Fulham | AO47: FALSE | AP47: =IF($AP$5,SUM(SUMPRODUCT(--AO$7:$AO47)*AO47,(SUMPRODUCT(--(AO$7:$AO47=FALSE))+SUMPRODUCT(--colAP))*(1-AO47)),ROW()-6) -> 41 | AQ47: Hammersmith & Fulham | AR47: Hammersmith & Fulham | IT47: Page 12: Employee Expenditure as a % of Revenue Expenditure | IU47: 0% | IV47: =AB7 -> 0
A48: (P.06)[04]Material Expenditure as a % of Revenue Expenditure | B48: 135 | C48: 24 | D48: 20 | E48: Page 20: Material Expenditure as a % of Revenue Expenditure | L48: Hampshire | M48: c | O48: 52 | P48: =IF((ROW()-5=$G$36),1,IF((M48=Coding!$H$75)+(Coding!$H$75="ALL")+(Coding!$H$75="U")*OR(M48="W",M48="su",M48="L",M48="MD",M48="UA")+(Coding!$H$75="na")*AND(M48<>"W",M48<>"su",M48<>"L",M48<>"MD",M48<>"UA",M48<>"SC",M48<>"SD",M48<>"p"),1,0)) -> 1 | Q48: FALSE | R48: =IF(OR(NOT(ISERROR(MATCH(L48,OFFSET($H$410,$G$36-2,0,1,18),FALSE))),$G$75=L48),1,0+(($G$36=1)*($H$75="OC"))) -> 0 | S48: 1 | T48: 52 | V48: =IF((S48=1)*($J$6<22),INDEX($J$13:$J$33,SUM($S$7:S48),1),"") ->  | W48: =COUNTIF($T$7:T48,T48) -> 1 | Y48: 17 | Z48: =INDEX(V:V,SUMPRODUCT((OFFSET($T$7,0,0,AuthorityCounter2,1)=Y48)*1,(OFFSET($W$7,0,0,AuthorityCounter2,1)=COUNTIF($Y$7:Y48,Y48))*1,ROW(OFFSET($W$7,0,0,AuthorityCounter2,1)))) ->  | AA48: 18.6504065 | AB48: =IF((Y48=AB$2)*(Z48=AC$3)*(SUM($AB$6:AB47)=0),+Y48,0) -> 0 | AC48: 17 | AE48: =IF($AE$6=3,O48,SUM((CODE(MID(CONCATENATE(UPPER(M48),"aaaaaaaaaa"),{1;2},1))-30)*{1;0.01})) -> 37.67 | AF48: =COUNTIF($AE$7:$AE48,AE48) -> 10 | AH48: 55.46 | AI48: 55.46 | AJ48: =COUNTIF($AI$7:$AI48,AI48) -> 15 | AK48: =IF($AE$6=1,L48,OFFSET($L$1,SUMPRODUCT(--(OFFSET($AE$7,0,0,AuthorityCounter,1)=AI48),--(OFFSET($AF$7,0,0,AuthorityCounter,1)=COUNTIF($AI$7:AI48,AI48)),ROW(OFFSET($AF$7,0,0,AuthorityCounter,1)))-1,0)) -> Hampshire | AM48: =IF(VLOOKUP(AK48,colAM,IF($H$75="OC",8,5),FALSE)=1,MAX(AM$6:$AM47)+1,0) -> 42 | AN48: Hampshire | AO48: FALSE | AP48: =IF($AP$5,SUM(SUMPRODUCT(--AO$7:$AO48)*AO48,(SUMPRODUCT(--(AO$7:$AO48=FALSE))+SUMPRODUCT(--colAP))*(1-AO48)),ROW()-6) -> 42 | AQ48: Hampshire | AR48: Hampshire | IT48: Page 12: Material Expenditure as a % of Revenue Expenditure | IU48: 0% | IV48: =AB7 -> 0
A49: (P.06)[05]Support Service Costs as a % of Revenue Expenditure | B49: 135 | C49: 25 | D49: 20 | E49: Page 20: Support Service Costs as a % of Revenue Expenditure | L49: Haringey | M49: ul | O49: 9 | P49: =IF((ROW()-5=$G$36),1,IF((M49=Coding!$H$75)+(Coding!$H$75="ALL")+(Coding!$H$75="U")*OR(M49="W",M49="su",M49="L",M49="MD",M49="UA")+(Coding!$H$75="na")*AND(M49<>"W",M49<>"su",M49<>"L",M49<>"MD",M49<>"UA",M49<>"SC",M49<>"SD",M49<>"p"),1,0)) -> 1 | Q49: FALSE | R49: =IF(OR(NOT(ISERROR(MATCH(L49,OFFSET($H$410,$G$36-2,0,1,18),FALSE))),$G$75=L49),1,0+(($G$36=1)*($H$75="OC"))) -> 0 | S49: 1 | T49: 9 | V49: =IF((S49=1)*($J$6<22),INDEX($J$13:$J$33,SUM($S$7:S49),1),"") ->  | W49: =COUNTIF($T$7:T49,T49) -> 2 | Y49: 17 | Z49: =INDEX(V:V,SUMPRODUCT((OFFSET($T$7,0,0,AuthorityCounter2,1)=Y49)*1,(OFFSET($W$7,0,0,AuthorityCounter2,1)=COUNTIF($Y$7:Y49,Y49))*1,ROW(OFFSET($W$7,0,0,AuthorityCounter2,1)))) ->  | AA49: 18.6504065 | AB49: =IF((Y49=AB$2)*(Z49=AC$3)*(SUM($AB$6:AB48)=0),+Y49,0) -> 0 | AC49: 17 | AE49: =IF($AE$6=3,O49,SUM((CODE(MID(CONCATENATE(UPPER(M49),"aaaaaaaaaa"),{1;2},1))-30)*{1;0.01})) -> 55.46 | AF49: =COUNTIF($AE$7:$AE49,AE49) -> 13 | AH49: 55.46 | AI49: 55.46 | AJ49: =COUNTIF($AI$7:$AI49,AI49) -> 16 | AK49: =IF($AE$6=1,L49,OFFSET($L$1,SUMPRODUCT(--(OFFSET($AE$7,0,0,AuthorityCounter,1)=AI49),--(OFFSET($AF$7,0,0,AuthorityCounter,1)=COUNTIF($AI$7:AI49,AI49)),ROW(OFFSET($AF$7,0,0,AuthorityCounter,1)))-1,0)) -> Haringey | AM49: =IF(VLOOKUP(AK49,colAM,IF($H$75="OC",8,5),FALSE)=1,MAX(AM$6:$AM48)+1,0) -> 43 | AN49: Haringey | AO49: FALSE | AP49: =IF($AP$5,SUM(SUMPRODUCT(--AO$7:$AO49)*AO49,(SUMPRODUCT(--(AO$7:$AO49=FALSE))+SUMPRODUCT(--colAP))*(1-AO49)),ROW()-6) -> 43 | AQ49: Haringey | AR49: Haringey | IT49: Page 12: Support Service Costs as a % of Revenue Expenditure | IU49: 0% | IV49: =AB7 -> 0
A50: (P.06)[06]Cost per Available Hour | B50: 135 | C50: 26 | D50: 20 | E50: Page 20: Cost per Available Hour | L50: Harrow | M50: ul | O50: 6 | P50: =IF((ROW()-5=$G$36),1,IF((M50=Coding!$H$75)+(Coding!$H$75="ALL")+(Coding!$H$75="U")*OR(M50="W",M50="su",M50="L",M50="MD",M50="UA")+(Coding!$H$75="na")*AND(M50<>"W",M50<>"su",M50<>"L",M50<>"MD",M50<>"UA",M50<>"SC",M50<>"SD",M50<>"p"),1,0)) -> 1 | Q50: FALSE | R50: =IF(OR(NOT(ISERROR(MATCH(L50,OFFSET($H$410,$G$36-2,0,1,18),FALSE))),$G$75=L50),1,0+(($G$36=1)*($H$75="OC"))) -> 0 | S50: 1 | T50: 6 | V50: =IF((S50=1)*($J$6<22),INDEX($J$13:$J$33,SUM($S$7:S50),1),"") ->  | W50: =COUNTIF($T$7:T50,T50) -> 4 | Y50: 16 | Z50: =INDEX(V:V,SUMPRODUCT((OFFSET($T$7,0,0,AuthorityCounter2,1)=Y50)*1,(OFFSET($W$7,0,0,AuthorityCounter2,1)=COUNTIF($Y$7:Y50,Y50))*1,ROW(OFFSET($W$7,0,0,AuthorityCounter2,1)))) ->  | AA50: 18.6504065 | AB50: =IF((Y50=AB$2)*(Z50=AC$3)*(SUM($AB$6:AB49)=0),+Y50,0) -> 0 | AC50: 16 | AE50: =IF($AE$6=3,O50,SUM((CODE(MID(CONCATENATE(UPPER(M50),"aaaaaaaaaa"),{1;2},1))-30)*{1;0.01})) -> 55.46 | AF50: =COUNTIF($AE$7:$AE50,AE50) -> 14 | AH50: 55.46 | AI50: 55.46 | AJ50: =COUNTIF($AI$7:$AI50,AI50) -> 17 | AK50: =IF($AE$6=1,L50,OFFSET($L$1,SUMPRODUCT(--(OFFSET($AE$7,0,0,AuthorityCounter,1)=AI50),--(OFFSET($AF$7,0,0,AuthorityCounter,1)=COUNTIF($AI$7:AI50,AI50)),ROW(OFFSET($AF$7,0,0,AuthorityCounter,1)))-1,0)) -> Harrow | AM50: =IF(VLOOKUP(AK50,colAM,IF($H$75="OC",8,5),FALSE)=1,MAX(AM$6:$AM49)+1,0) -> 44 | AN50: Harrow | AO50: FALSE | AP50: =IF($AP$5,SUM(SUMPRODUCT(--AO$7:$AO50)*AO50,(SUMPRODUCT(--(AO$7:$AO50=FALSE))+SUMPRODUCT(--colAP))*(1-AO50)),ROW()-6) -> 44 | AQ50: Harrow | AR50: Harrow | IT50: Page 12: Cost per Available Hour | IU50: £#,##0 | IV50: =AB7 -> 0
A51: (P.07)[01]Net Expenditure (Estimates) | B51: 135 | C51: 27 | D51: 21 | E51: Page 21: Net Expenditure (Estimates) | L51: Havering | M51: ul | O51: 10 | P51: =IF((ROW()-5=$G$36),1,IF((M51=Coding!$H$75)+(Coding!$H$75="ALL")+(Coding!$H$75="U")*OR(M51="W",M51="su",M51="L",M51="MD",M51="UA")+(Coding!$H$75="na")*AND(M51<>"W",M51<>"su",M51<>"L",M51<>"MD",M51<>"UA",M51<>"SC",M51<>"SD",M51<>"p"),1,0)) -> 1 | Q51: FALSE | R51: =IF(OR(NOT(ISERROR(MATCH(L51,OFFSET($H$410,$G$36-2,0,1,18),FALSE))),$G$75=L51),1,0+(($G$36=1)*($H$75="OC"))) -> 0 | S51: 1 | T51: 10 | V51: =IF((S51=1)*($J$6<22),INDEX($J$13:$J$33,SUM($S$7:S51),1),"") ->  | W51: =COUNTIF($T$7:T51,T51) -> 2 | Y51: 16 | Z51: =INDEX(V:V,SUMPRODUCT((OFFSET($T$7,0,0,AuthorityCounter2,1)=Y51)*1,(OFFSET($W$7,0,0,AuthorityCounter2,1)=COUNTIF($Y$7:Y51,Y51))*1,ROW(OFFSET($W$7,0,0,AuthorityCounter2,1)))) ->  | AA51: 18.6504065 | AB51: =IF((Y51=AB$2)*(Z51=AC$3)*(SUM($AB$6:AB50)=0),+Y51,0) -> 0 | AC51: 16 | AE51: =IF($AE$6=3,O51,SUM((CODE(MID(CONCATENATE(UPPER(M51),"aaaaaaaaaa"),{1;2},1))-30)*{1;0.01})) -> 55.46 | AF51: =COUNTIF($AE$7:$AE51,AE51) -> 15 | AH51: 55.46 | AI51: 55.46 | AJ51: =COUNTIF($AI$7:$AI51,AI51) -> 18 | AK51: =IF($AE$6=1,L51,OFFSET($L$1,SUMPRODUCT(--(OFFSET($AE$7,0,0,AuthorityCounter,1)=AI51),--(OFFSET($AF$7,0,0,AuthorityCounter,1)=COUNTIF($AI$7:AI51,AI51)),ROW(OFFSET($AF$7,0,0,AuthorityCounter,1)))-1,0)) -> Havering | AM51: =IF(VLOOKUP(AK51,colAM,IF($H$75="OC",8,5),FALSE)=1,MAX(AM$6:$AM50)+1,0) -> 45 | AN51: Havering | AO51: FALSE | AP51: =IF($AP$5,SUM(SUMPRODUCT(--AO$7:$AO51)*AO51,(SUMPRODUCT(--(AO$7:$AO51=FALSE))+SUMPRODUCT(--colAP))*(1-AO51)),ROW()-6) -> 45 | AQ51: Havering | AR51: Havering | IT51: Page 13: Net Expenditure (Estimates) | IU51: £#,##0 | IV51: =AB7 -> 0
A52: (P.07)[02]Total Revenue Expenditure (Estimates) | B52: 135 | C52: 28 | D52: 21 | E52: Page 21: Total Revenue Expenditure (Estimates) | L52: Herefordshire | M52: uu | O52: 11 | P52: =IF((ROW()-5=$G$36),1,IF((M52=Coding!$H$75)+(Coding!$H$75="ALL")+(Coding!$H$75="U")*OR(M52="W",M52="su",M52="L",M52="MD",M52="UA")+(Coding!$H$75="na")*AND(M52<>"W",M52<>"su",M52<>"L",M52<>"MD",M52<>"UA",M52<>"SC",M52<>"SD",M52<>"p"),1,0)) -> 1 | Q52: FALSE | R52: =IF(OR(NOT(ISERROR(MATCH(L52,OFFSET($H$410,$G$36-2,0,1,18),FALSE))),$G$75=L52),1,0+(($G$36=1)*($H$75="OC"))) -> 0 | S52: 1 | T52: 11 | V52: =IF((S52=1)*($J$6<22),INDEX($J$13:$J$33,SUM($S$7:S52),1),"") ->  | W52: =COUNTIF($T$7:T52,T52) -> 1 | Y52: 16 | Z52: =INDEX(V:V,SUMPRODUCT((OFFSET($T$7,0,0,AuthorityCounter2,1)=Y52)*1,(OFFSET($W$7,0,0,AuthorityCounter2,1)=COUNTIF($Y$7:Y52,Y52))*1,ROW(OFFSET($W$7,0,0,AuthorityCounter2,1)))) ->  | AA52: 18.6504065 | AB52: =IF((Y52=AB$2)*(Z52=AC$3)*(SUM($AB$6:AB51)=0),+Y52,0) -> 0 | AC52: 16 | AE52: =IF($AE$6=3,O52,SUM((CODE(MID(CONCATENATE(UPPER(M52),"aaaaaaaaaa"),{1;2},1))-30)*{1;0.01})) -> 55.55 | AF52: =COUNTIF($AE$7:$AE52,AE52) -> 15 | AH52: 55.46 | AI52: 55.46 | AJ52: =COUNTIF($AI$7:$AI52,AI52) -> 19 | AK52: =IF($AE$6=1,L52,OFFSET($L$1,SUMPRODUCT(--(OFFSET($AE$7,0,0,AuthorityCounter,1)=AI52),--(OFFSET($AF$7,0,0,AuthorityCounter,1)=COUNTIF($AI$7:AI52,AI52)),ROW(OFFSET($AF$7,0,0,AuthorityCounter,1)))-1,0)) -> Herefordshire | AM52: =IF(VLOOKUP(AK52,colAM,IF($H$75="OC",8,5),FALSE)=1,MAX(AM$6:$AM51)+1,0) -> 46 | AN52: Herefordshire | AO52: FALSE | AP52: =IF($AP$5,SUM(SUMPRODUCT(--AO$7:$AO52)*AO52,(SUMPRODUCT(--(AO$7:$AO52=FALSE))+SUMPRODUCT(--colAP))*(1-AO52)),ROW()-6) -> 46 | AQ52: Herefordshire | AR52: Herefordshire | IT52: Page 13: Total Revenue Expenditure (Estimates) | IU52: £#,##0 | IV52: =AB7 -> 0
A53: (P.07)[03]Total Revenue Income (Estimates) | B53: 135 | C53: 29 | D53: 21 | E53: Page 21: Total Revenue Income (Estimates) | L53: Hertfordshire | M53: c | O53: 48 | P53: =IF((ROW()-5=$G$36),1,IF((M53=Coding!$H$75)+(Coding!$H$75="ALL")+(Coding!$H$75="U")*OR(M53="W",M53="su",M53="L",M53="MD",M53="UA")+(Coding!$H$75="na")*AND(M53<>"W",M53<>"su",M53<>"L",M53<>"MD",M53<>"UA",M53<>"SC",M53<>"SD",M53<>"p"),1,0)) -> 1 | Q53: FALSE | R53: =IF(OR(NOT(ISERROR(MATCH(L53,OFFSET($H$410,$G$36-2,0,1,18),FALSE))),$G$75=L53),1,0+(($G$36=1)*($H$75="OC"))) -> 0 | S53: 1 | T53: 48 | V53: =IF((S53=1)*($J$6<22),INDEX($J$13:$J$33,SUM($S$7:S53),1),"") ->  | W53: =COUNTIF($T$7:T53,T53) -> 1 | Y53: 16 | Z53: =INDEX(V:V,SUMPRODUCT((OFFSET($T$7,0,0,AuthorityCounter2,1)=Y53)*1,(OFFSET($W$7,0,0,AuthorityCounter2,1)=COUNTIF($Y$7:Y53,Y53))*1,ROW(OFFSET($W$7,0,0,AuthorityCounter2,1)))) ->  | AA53: 18.6504065 | AB53: =IF((Y53=AB$2)*(Z53=AC$3)*(SUM($AB$6:AB52)=0),+Y53,0) -> 0 | AC53: 16 | AE53: =IF($AE$6=3,O53,SUM((CODE(MID(CONCATENATE(UPPER(M53),"aaaaaaaaaa"),{1;2},1))-30)*{1;0.01})) -> 37.67 | AF53: =COUNTIF($AE$7:$AE53,AE53) -> 11 | AH53: 55.46 | AI53: 55.46 | AJ53: =COUNTIF($AI$7:$AI53,AI53) -> 20 | AK53: =IF($AE$6=1,L53,OFFSET($L$1,SUMPRODUCT(--(OFFSET($AE$7,0,0,AuthorityCounter,1)=AI53),--(OFFSET($AF$7,0,0,AuthorityCounter,1)=COUNTIF($AI$7:AI53,AI53)),ROW(OFFSET($AF$7,0,0,AuthorityCounter,1)))-1,0)) -> Hertfordshire | AM53: =IF(VLOOKUP(AK53,colAM,IF($H$75="OC",8,5),FALSE)=1,MAX(AM$6:$AM52)+1,0) -> 47 | AN53: Hertfordshire | AO53: FALSE | AP53: =IF($AP$5,SUM(SUMPRODUCT(--AO$7:$AO53)*AO53,(SUMPRODUCT(--(AO$7:$AO53=FALSE))+SUMPRODUCT(--colAP))*(1-AO53)),ROW()-6) -> 47 | AQ53: Hertfordshire | AR53: Hertfordshire | IT53: Page 13: Total Revenue Income (Estimates) | IU53: £#,##0 | IV53: =AB7 -> 0
A54: (P.07)[04]Employee Expenditure as a % of Revenue Expenditure (Estimates) | B54: 135 | C54: 30 | D54: 21 | E54: Page 21: Employee Expenditure as a % of Revenue Expenditure (Estimates) | L54: Hounslow | M54: ul | O54: 11 | P54: =IF((ROW()-5=$G$36),1,IF((M54=Coding!$H$75)+(Coding!$H$75="ALL")+(Coding!$H$75="U")*OR(M54="W",M54="su",M54="L",M54="MD",M54="UA")+(Coding!$H$75="na")*AND(M54<>"W",M54<>"su",M54<>"L",M54<>"MD",M54<>"UA",M54<>"SC",M54<>"SD",M54<>"p"),1,0)) -> 1 | Q54: FALSE | R54: =IF(OR(NOT(ISERROR(MATCH(L54,OFFSET($H$410,$G$36-2,0,1,18),FALSE))),$G$75=L54),1,0+(($G$36=1)*($H$75="OC"))) -> 0 | S54: 1 | T54: 11 | V54: =IF((S54=1)*($J$6<22),INDEX($J$13:$J$33,SUM($S$7:S54),1),"") ->  | W54: =COUNTIF($T$7:T54,T54) -> 2 | Y54: 16 | Z54: =INDEX(V:V,SUMPRODUCT((OFFSET($T$7,0,0,AuthorityCounter2,1)=Y54)*1,(OFFSET($W$7,0,0,AuthorityCounter2,1)=COUNTIF($Y$7:Y54,Y54))*1,ROW(OFFSET($W$7,0,0,AuthorityCounter2,1)))) ->  | AA54: 18.6504065 | AB54: =IF((Y54=AB$2)*(Z54=AC$3)*(SUM($AB$6:AB53)=0),+Y54,0) -> 0 | AC54: 16 | AE54: =IF($AE$6=3,O54,SUM((CODE(MID(CONCATENATE(UPPER(M54),"aaaaaaaaaa"),{1;2},1))-30)*{1;0.01})) -> 55.46 | AF54: =COUNTIF($AE$7:$AE54,AE54) -> 16 | AH54: 55.46 | AI54: 55.46 | AJ54: =COUNTIF($AI$7:$AI54,AI54) -> 21 | AK54: =IF($AE$6=1,L54,OFFSET($L$1,SUMPRODUCT(--(OFFSET($AE$7,0,0,AuthorityCounter,1)=AI54),--(OFFSET($AF$7,0,0,AuthorityCounter,1)=COUNTIF($AI$7:AI54,AI54)),ROW(OFFSET($AF$7,0,0,AuthorityCounter,1)))-1,0)) -> Hounslow | AM54: =IF(VLOOKUP(AK54,colAM,IF($H$75="OC",8,5),FALSE)=1,MAX(AM$6:$AM53)+1,0) -> 48 | AN54: Hounslow | AO54: FALSE | AP54: =IF($AP$5,SUM(SUMPRODUCT(--AO$7:$AO54)*AO54,(SUMPRODUCT(--(AO$7:$AO54=FALSE))+SUMPRODUCT(--colAP))*(1-AO54)),ROW()-6) -> 48 | AQ54: Hounslow | AR54: Hounslow | IT54: Page 13: Employee Expenditure as a % of Revenue Expenditure (Estimates) | IU54: 0% | IV54: =AB7 -> 0
A55: (P.07)[05]Material Expenditure as a % of Revenue Expenditure (Estimates) | B55: 135 | C55: 31 | D55: 21 | E55: Page 21: Material Expenditure as a % of Revenue Expenditure (Estimates) | L55: Isle of Wight | M55: uu | O55: 8 | P55: =IF((ROW()-5=$G$36),1,IF((M55=Coding!$H$75)+(Coding!$H$75="ALL")+(Coding!$H$75="U")*OR(M55="W",M55="su",M55="L",M55="MD",M55="UA")+(Coding!$H$75="na")*AND(M55<>"W",M55<>"su",M55<>"L",M55<>"MD",M55<>"UA",M55<>"SC",M55<>"SD",M55<>"p"),1,0)) -> 1 | Q55: FALSE | R55: =IF(OR(NOT(ISERROR(MATCH(L55,OFFSET($H$410,$G$36-2,0,1,18),FALSE))),$G$75=L55),1,0+(($G$36=1)*($H$75="OC"))) -> 0 | S55: 1 | T55: 8 | V55: =IF((S55=1)*($J$6<22),INDEX($J$13:$J$33,SUM($S$7:S55),1),"") ->  | W55: =COUNTIF($T$7:T55,T55) -> 4 | Y55: 16 | Z55: =INDEX(V:V,SUMPRODUCT((OFFSET($T$7,0,0,AuthorityCounter2,1)=Y55)*1,(OFFSET($W$7,0,0,AuthorityCounter2,1)=COUNTIF($Y$7:Y55,Y55))*1,ROW(OFFSET($W$7,0,0,AuthorityCounter2,1)))) ->  | AA55: 18.6504065 | AB55: =IF((Y55=AB$2)*(Z55=AC$3)*(SUM($AB$6:AB54)=0),+Y55,0) -> 0 | AC55: 16 | AE55: =IF($AE$6=3,O55,SUM((CODE(MID(CONCATENATE(UPPER(M55),"aaaaaaaaaa"),{1;2},1))-30)*{1;0.01})) -> 55.55 | AF55: =COUNTIF($AE$7:$AE55,AE55) -> 16 | AH55: 55.46 | AI55: 55.46 | AJ55: =COUNTIF($AI$7:$AI55,AI55) -> 22 | AK55: =IF($AE$6=1,L55,OFFSET($L$1,SUMPRODUCT(--(OFFSET($AE$7,0,0,AuthorityCounter,1)=AI55),--(OFFSET($AF$7,0,0,AuthorityCounter,1)=COUNTIF($AI$7:AI55,AI55)),ROW(OFFSET($AF$7,0,0,AuthorityCounter,1)))-1,0)) -> Isle of Wight | AM55: =IF(VLOOKUP(AK55,colAM,IF($H$75="OC",8,5),FALSE)=1,MAX(AM$6:$AM54)+1,0) -> 49 | AN55: Isle of Wight | AO55: FALSE | AP55: =IF($AP$5,SUM(SUMPRODUCT(--AO$7:$AO55)*AO55,(SUMPRODUCT(--(AO$7:$AO55=FALSE))+SUMPRODUCT(--colAP))*(1-AO55)),ROW()-6) -> 49 | AQ55: Isle of Wight | AR55: Isle of Wight | IT55: Page 13: Material Expenditure as a % of Revenue Expenditure (Estimates) | IU55: 0% | IV55: =AB7 -> 0
A56: (P.08)[01]Total Staff per 100,000 population | B56: 135 | C56: 32 | D56: 22 | E56: Page 22: Total Staff per 100,000 population | L56: Islington | M56: ul | O56: 10 | P56: =IF((ROW()-5=$G$36),1,IF((M56=Coding!$H$75)+(Coding!$H$75="ALL")+(Coding!$H$75="U")*OR(M56="W",M56="su",M56="L",M56="MD",M56="UA")+(Coding!$H$75="na")*AND(M56<>"W",M56<>"su",M56<>"L",M56<>"MD",M56<>"UA",M56<>"SC",M56<>"SD",M56<>"p"),1,0)) -> 1 | Q56: FALSE | R56: =IF(OR(NOT(ISERROR(MATCH(L56,OFFSET($H$410,$G$36-2,0,1,18),FALSE))),$G$75=L56),1,0+(($G$36=1)*($H$75="OC"))) -> 0 | S56: 1 | T56: 10 | V56: =IF((S56=1)*($J$6<22),INDEX($J$13:$J$33,SUM($S$7:S56),1),"") ->  | W56: =COUNTIF($T$7:T56,T56) -> 3 | Y56: 16 | Z56: =INDEX(V:V,SUMPRODUCT((OFFSET($T$7,0,0,AuthorityCounter2,1)=Y56)*1,(OFFSET($W$7,0,0,AuthorityCounter2,1)=COUNTIF($Y$7:Y56,Y56))*1,ROW(OFFSET($W$7,0,0,AuthorityCounter2,1)))) ->  | AA56: 18.6504065 | AB56: =IF((Y56=AB$2)*(Z56=AC$3)*(SUM($AB$6:AB55)=0),+Y56,0) -> 0 | AC56: 16 | AE56: =IF($AE$6=3,O56,SUM((CODE(MID(CONCATENATE(UPPER(M56),"aaaaaaaaaa"),{1;2},1))-30)*{1;0.01})) -> 55.46 | AF56: =COUNTIF($AE$7:$AE56,AE56) -> 17 | AH56: 55.46 | AI56: 55.46 | AJ56: =COUNTIF($AI$7:$AI56,AI56) -> 23 | AK56: =IF($AE$6=1,L56,OFFSET($L$1,SUMPRODUCT(--(OFFSET($AE$7,0,0,AuthorityCounter,1)=AI56),--(OFFSET($AF$7,0,0,AuthorityCounter,1)=COUNTIF($AI$7:AI56,AI56)),ROW(OFFSET($AF$7,0,0,AuthorityCounter,1)))-1,0)) -> Islington | AM56: =IF(VLOOKUP(AK56,colAM,IF($H$75="OC",8,5),FALSE)=1,MAX(AM$6:$AM55)+1,0) -> 50 | AN56: Islington | AO56: FALSE | AP56: =IF($AP$5,SUM(SUMPRODUCT(--AO$7:$AO56)*AO56,(SUMPRODUCT(--(AO$7:$AO56=FALSE))+SUMPRODUCT(--colAP))*(1-AO56)),ROW()-6) -> 50 | AQ56: Islington | AR56: Islington | IT56: Page 14: Total Staff per 100,000 population | IU56: #,##0 | IV56: =AB7 -> 0
A57: (P.08)[02]Professional Staff per 100,000 population | B57: 135 | C57: 33 | D57: 22 | E57: Page 22: Professional Staff per 100,000 population | L57: Kensington & Chelsea | M57: ul | O57: 6 | P57: =IF((ROW()-5=$G$36),1,IF((M57=Coding!$H$75)+(Coding!$H$75="ALL")+(Coding!$H$75="U")*OR(M57="W",M57="su",M57="L",M57="MD",M57="UA")+(Coding!$H$75="na")*AND(M57<>"W",M57<>"su",M57<>"L",M57<>"MD",M57<>"UA",M57<>"SC",M57<>"SD",M57<>"p"),1,0)) -> 1 | Q57: FALSE | R57: =IF(OR(NOT(ISERROR(MATCH(L57,OFFSET($H$410,$G$36-2,0,1,18),FALSE))),$G$75=L57),1,0+(($G$36=1)*($H$75="OC"))) -> 0 | S57: 1 | T57: 6 | V57: =IF((S57=1)*($J$6<22),INDEX($J$13:$J$33,SUM($S$7:S57),1),"") ->  | W57: =COUNTIF($T$7:T57,T57) -> 5 | Y57: 16 | Z57: =INDEX(V:V,SUMPRODUCT((OFFSET($T$7,0,0,AuthorityCounter2,1)=Y57)*1,(OFFSET($W$7,0,0,AuthorityCounter2,1)=COUNTIF($Y$7:Y57,Y57))*1,ROW(OFFSET($W$7,0,0,AuthorityCounter2,1)))) ->  | AA57: 18.6504065 | AB57: =IF((Y57=AB$2)*(Z57=AC$3)*(SUM($AB$6:AB56)=0),+Y57,0) -> 0 | AC57: 16 | AE57: =IF($AE$6=3,O57,SUM((CODE(MID(CONCATENATE(UPPER(M57),"aaaaaaaaaa"),{1;2},1))-30)*{1;0.01})) -> 55.46 | AF57: =COUNTIF($AE$7:$AE57,AE57) -> 18 | AH57: 55.46 | AI57: 55.46 | AJ57: =COUNTIF($AI$7:$AI57,AI57) -> 24 | AK57: =IF($AE$6=1,L57,OFFSET($L$1,SUMPRODUCT(--(OFFSET($AE$7,0,0,AuthorityCounter,1)=AI57),--(OFFSET($AF$7,0,0,AuthorityCounter,1)=COUNTIF($AI$7:AI57,AI57)),ROW(OFFSET($AF$7,0,0,AuthorityCounter,1)))-1,0)) -> Kensington & Chelsea | AM57: =IF(VLOOKUP(AK57,colAM,IF($H$75="OC",8,5),FALSE)=1,MAX(AM$6:$AM56)+1,0) -> 51 | AN57: Kensington & Chelsea | AO57: FALSE | AP57: =IF($AP$5,SUM(SUMPRODUCT(--AO$7:$AO57)*AO57,(SUMPRODUCT(--(AO$7:$AO57=FALSE))+SUMPRODUCT(--colAP))*(1-AO57)),ROW()-6) -> 51 | AQ57: Kensington & Chelsea | AR57: Kensington & Chelsea | IT57: Page 14: Professional Staff per 100,000 population | IU57: #,##0 | IV57: =AB7 -> 0
A58: (P.08)[03]Other Paid Staff per 100,000 population | B58: 135 | C58: 34 | D58: 22 | E58: Page 22: Other Paid Staff per 100,000 population | L58: Kent | M58: c | O58: 104 | P58: =IF((ROW()-5=$G$36),1,IF((M58=Coding!$H$75)+(Coding!$H$75="ALL")+(Coding!$H$75="U")*OR(M58="W",M58="su",M58="L",M58="MD",M58="UA")+(Coding!$H$75="na")*AND(M58<>"W",M58<>"su",M58<>"L",M58<>"MD",M58<>"UA",M58<>"SC",M58<>"SD",M58<>"p"),1,0)) -> 1 | Q58: FALSE | R58: =IF(OR(NOT(ISERROR(MATCH(L58,OFFSET($H$410,$G$36-2,0,1,18),FALSE))),$G$75=L58),1,0+(($G$36=1)*($H$75="OC"))) -> 0 | S58: 1 | T58: 104 | V58: =IF((S58=1)*($J$6<22),INDEX($J$13:$J$33,SUM($S$7:S58),1),"") ->  | W58: =COUNTIF($T$7:T58,T58) -> 1 | Y58: 16 | Z58: =INDEX(V:V,SUMPRODUCT((OFFSET($T$7,0,0,AuthorityCounter2,1)=Y58)*1,(OFFSET($W$7,0,0,AuthorityCounter2,1)=COUNTIF($Y$7:Y58,Y58))*1,ROW(OFFSET($W$7,0,0,AuthorityCounter2,1)))) ->  | AA58: 18.6504065 | AB58: =IF((Y58=AB$2)*(Z58=AC$3)*(SUM($AB$6:AB57)=0),+Y58,0) -> 0 | AC58: 16 | AE58: =IF($AE$6=3,O58,SUM((CODE(MID(CONCATENATE(UPPER(M58),"aaaaaaaaaa"),{1;2},1))-30)*{1;0.01})) -> 37.67 | AF58: =COUNTIF($AE$7:$AE58,AE58) -> 12 | AH58: 55.46 | AI58: 55.46 | AJ58: =COUNTIF($AI$7:$AI58,AI58) -> 25 | AK58: =IF($AE$6=1,L58,OFFSET($L$1,SUMPRODUCT(--(OFFSET($AE$7,0,0,AuthorityCounter,1)=AI58),--(OFFSET($AF$7,0,0,AuthorityCounter,1)=COUNTIF($AI$7:AI58,AI58)),ROW(OFFSET($AF$7,0,0,AuthorityCounter,1)))-1,0)) -> Kent | AM58: =IF(VLOOKUP(AK58,colAM,IF($H$75="OC",8,5),FALSE)=1,MAX(AM$6:$AM57)+1,0) -> 52 | AN58: Kent | AO58: FALSE | AP58: =IF($AP$5,SUM(SUMPRODUCT(--AO$7:$AO58)*AO58,(SUMPRODUCT(--(AO$7:$AO58=FALSE))+SUMPRODUCT(--colAP))*(1-AO58)),ROW()-6) -> 52 | AQ58: Kent | AR58: Kent | IT58: Page 14: Other Paid Staff per 100,000 population | IU58: #,##0 | IV58: =AB7 -> 0
A59: (P.09)[01]Employee Costs per Employee | B59: 135 | C59: 35 | D59: 23 | E59: Page 23: Employee Costs per Employee | L59: Kingston-upon-Thames | M59: ul | O59: 7 | P59: =IF((ROW()-5=$G$36),1,IF((M59=Coding!$H$75)+(Coding!$H$75="ALL")+(Coding!$H$75="U")*OR(M59="W",M59="su",M59="L",M59="MD",M59="UA")+(Coding!$H$75="na")*AND(M59<>"W",M59<>"su",M59<>"L",M59<>"MD",M59<>"UA",M59<>"SC",M59<>"SD",M59<>"p"),1,0)) -> 1 | Q59: FALSE | R59: =IF(OR(NOT(ISERROR(MATCH(L59,OFFSET($H$410,$G$36-2,0,1,18),FALSE))),$G$75=L59),1,0+(($G$36=1)*($H$75="OC"))) -> 0 | S59: 1 | T59: 7 | V59: =IF((S59=1)*($J$6<22),INDEX($J$13:$J$33,SUM($S$7:S59),1),"") ->  | W59: =COUNTIF($T$7:T59,T59) -> 2 | Y59: 16 | Z59: =INDEX(V:V,SUMPRODUCT((OFFSET($T$7,0,0,AuthorityCounter2,1)=Y59)*1,(OFFSET($W$7,0,0,AuthorityCounter2,1)=COUNTIF($Y$7:Y59,Y59))*1,ROW(OFFSET($W$7,0,0,AuthorityCounter2,1)))) ->  | AA59: 18.6504065 | AB59: =IF((Y59=AB$2)*(Z59=AC$3)*(SUM($AB$6:AB58)=0),+Y59,0) -> 0 | AC59: 16 | AE59: =IF($AE$6=3,O59,SUM((CODE(MID(CONCATENATE(UPPER(M59),"aaaaaaaaaa"),{1;2},1))-30)*{1;0.01})) -> 55.46 | AF59: =COUNTIF($AE$7:$AE59,AE59) -> 19 | AH59: 55.46 | AI59: 55.46 | AJ59: =COUNTIF($AI$7:$AI59,AI59) -> 26 | AK59: =IF($AE$6=1,L59,OFFSET($L$1,SUMPRODUCT(--(OFFSET($AE$7,0,0,AuthorityCounter,1)=AI59),--(OFFSET($AF$7,0,0,AuthorityCounter,1)=COUNTIF($AI$7:AI59,AI59)),ROW(OFFSET($AF$7,0,0,AuthorityCounter,1)))-1,0)) -> Kingston-upon-Thames | AM59: =IF(VLOOKUP(AK59,colAM,IF($H$75="OC",8,5),FALSE)=1,MAX(AM$6:$AM58)+1,0) -> 53 | AN59: Kingston-upon-Thames | AO59: FALSE | AP59: =IF($AP$5,SUM(SUMPRODUCT(--AO$7:$AO59)*AO59,(SUMPRODUCT(--(AO$7:$AO59=FALSE))+SUMPRODUCT(--colAP))*(1-AO59)),ROW()-6) -> 53 | AQ59: Kingston-upon-Thames | AR59: Kingston-upon-Thames | IT59: Page 15: Employee Costs per Employee | IU59: £#,##0 | IV59: =AB7 -> 0
A60: (P.09)[02]Employees per 1,000 population | B60: 135 | C60: 36 | D60: 23 | E60: Page 23: Employees per 1,000 population | L60: Lancashire | M60: c | O60: 68 | P60: =IF((ROW()-5=$G$36),1,IF((M60=Coding!$H$75)+(Coding!$H$75="ALL")+(Coding!$H$75="U")*OR(M60="W",M60="su",M60="L",M60="MD",M60="UA")+(Coding!$H$75="na")*AND(M60<>"W",M60<>"su",M60<>"L",M60<>"MD",M60<>"UA",M60<>"SC",M60<>"SD",M60<>"p"),1,0)) -> 1 | Q60: FALSE | R60: =IF(OR(NOT(ISERROR(MATCH(L60,OFFSET($H$410,$G$36-2,0,1,18),FALSE))),$G$75=L60),1,0+(($G$36=1)*($H$75="OC"))) -> 0 | S60: 1 | T60: 68 | V60: =IF((S60=1)*($J$6<22),INDEX($J$13:$J$33,SUM($S$7:S60),1),"") ->  | W60: =COUNTIF($T$7:T60,T60) -> 1 | Y60: 15 | Z60: =INDEX(V:V,SUMPRODUCT((OFFSET($T$7,0,0,AuthorityCounter2,1)=Y60)*1,(OFFSET($W$7,0,0,AuthorityCounter2,1)=COUNTIF($Y$7:Y60,Y60))*1,ROW(OFFSET($W$7,0,0,AuthorityCounter2,1)))) ->  | AA60: 18.6504065 | AB60: =IF((Y60=AB$2)*(Z60=AC$3)*(SUM($AB$6:AB59)=0),+Y60,0) -> 0 | AC60: 15 | AE60: =IF($AE$6=3,O60,SUM((CODE(MID(CONCATENATE(UPPER(M60),"aaaaaaaaaa"),{1;2},1))-30)*{1;0.01})) -> 37.67 | AF60: =COUNTIF($AE$7:$AE60,AE60) -> 13 | AH60: 55.46 | AI60: 55.46 | AJ60: =COUNTIF($AI$7:$AI60,AI60) -> 27 | AK60: =IF($AE$6=1,L60,OFFSET($L$1,SUMPRODUCT(--(OFFSET($AE$7,0,0,AuthorityCounter,1)=AI60),--(OFFSET($AF$7,0,0,AuthorityCounter,1)=COUNTIF($AI$7:AI60,AI60)),ROW(OFFSET($AF$7,0,0,AuthorityCounter,1)))-1,0)) -> Lancashire | AM60: =IF(VLOOKUP(AK60,colAM,IF($H$75="OC",8,5),FALSE)=1,MAX(AM$6:$AM59)+1,0) -> 54 | AN60: Lancashire | AO60: FALSE | AP60: =IF($AP$5,SUM(SUMPRODUCT(--AO$7:$AO60)*AO60,(SUMPRODUCT(--(AO$7:$AO60=FALSE))+SUMPRODUCT(--colAP))*(1-AO60)),ROW()-6) -> 54 | AQ60: Lancashire | AR60: Lancashire | IT60: Page 15: Employees per 1,000 population | IU60: 0.00 | IV60: =AB7 -> 0
A61: (P.09)[03]Employee Costs per 1,000 population | B61: 135 | C61: 37 | D61: 23 | E61: Page 23: Employee Costs per 1,000 population | L61: Leicester | M61: uu | O61: 16 | P61: =IF((ROW()-5=$G$36),1,IF((M61=Coding!$H$75)+(Coding!$H$75="ALL")+(Coding!$H$75="U")*OR(M61="W",M61="su",M61="L",M61="MD",M61="UA")+(Coding!$H$75="na")*AND(M61<>"W",M61<>"su",M61<>"L",M61<>"MD",M61<>"UA",M61<>"SC",M61<>"SD",M61<>"p"),1,0)) -> 1 | Q61: FALSE | R61: =IF(OR(NOT(ISERROR(MATCH(L61,OFFSET($H$410,$G$36-2,0,1,18),FALSE))),$G$75=L61),1,0+(($G$36=1)*($H$75="OC"))) -> 0 | S61: 1 | T61: 16 | V61: =IF((S61=1)*($J$6<22),INDEX($J$13:$J$33,SUM($S$7:S61),1),"") ->  | W61: =COUNTIF($T$7:T61,T61) -> 3 | Y61: 15 | Z61: =INDEX(V:V,SUMPRODUCT((OFFSET($T$7,0,0,AuthorityCounter2,1)=Y61)*1,(OFFSET($W$7,0,0,AuthorityCounter2,1)=COUNTIF($Y$7:Y61,Y61))*1,ROW(OFFSET($W$7,0,0,AuthorityCounter2,1)))) ->  | AA61: 18.6504065 | AB61: =IF((Y61=AB$2)*(Z61=AC$3)*(SUM($AB$6:AB60)=0),+Y61,0) -> 0 | AC61: 15 | AE61: =IF($AE$6=3,O61,SUM((CODE(MID(CONCATENATE(UPPER(M61),"aaaaaaaaaa"),{1;2},1))-30)*{1;0.01})) -> 55.55 | AF61: =COUNTIF($AE$7:$AE61,AE61) -> 17 | AH61: 55.46 | AI61: 55.46 | AJ61: =COUNTIF($AI$7:$AI61,AI61) -> 28 | AK61: =IF($AE$6=1,L61,OFFSET($L$1,SUMPRODUCT(--(OFFSET($AE$7,0,0,AuthorityCounter,1)=AI61),--(OFFSET($AF$7,0,0,AuthorityCounter,1)=COUNTIF($AI$7:AI61,AI61)),ROW(OFFSET($AF$7,0,0,AuthorityCounter,1)))-1,0)) -> Leicester | AM61: =IF(VLOOKUP(AK61,colAM,IF($H$75="OC",8,5),FALSE)=1,MAX(AM$6:$AM60)+1,0) -> 55 | AN61: Leicester | AO61: FALSE | AP61: =IF($AP$5,SUM(SUMPRODUCT(--AO$7:$AO61)*AO61,(SUMPRODUCT(--(AO$7:$AO61=FALSE))+SUMPRODUCT(--colAP))*(1-AO61)),ROW()-6) -> 55 | AQ61: Leicester | AR61: Leicester | IT61: Page 15: Employee Costs per 1,000 population | IU61: £#,##0 | IV61: =AB7 -> 0
A62: (P.10)[01]Number of Volunteers | B62: 135 | C62: 38 | D62: 24 | E62: Page 24: Number of Volunteers | L62: Leicestershire | M62: c | O62: 23 | P62: =IF((ROW()-5=$G$36),1,IF((M62=Coding!$H$75)+(Coding!$H$75="ALL")+(Coding!$H$75="U")*OR(M62="W",M62="su",M62="L",M62="MD",M62="UA")+(Coding!$H$75="na")*AND(M62<>"W",M62<>"su",M62<>"L",M62<>"MD",M62<>"UA",M62<>"SC",M62<>"SD",M62<>"p"),1,0)) -> 1 | Q62: FALSE | R62: =IF(OR(NOT(ISERROR(MATCH(L62,OFFSET($H$410,$G$36-2,0,1,18),FALSE))),$G$75=L62),1,0+(($G$36=1)*($H$75="OC"))) -> 0 | S62: 1 | T62: 23 | V62: =IF((S62=1)*($J$6<22),INDEX($J$13:$J$33,SUM($S$7:S62),1),"") ->  | W62: =COUNTIF($T$7:T62,T62) -> 2 | Y62: 14 | Z62: =INDEX(V:V,SUMPRODUCT((OFFSET($T$7,0,0,AuthorityCounter2,1)=Y62)*1,(OFFSET($W$7,0,0,AuthorityCounter2,1)=COUNTIF($Y$7:Y62,Y62))*1,ROW(OFFSET($W$7,0,0,AuthorityCounter2,1)))) ->  | AA62: 18.6504065 | AB62: =IF((Y62=AB$2)*(Z62=AC$3)*(SUM($AB$6:AB61)=0),+Y62,0) -> 0 | AC62: 14 | AE62: =IF($AE$6=3,O62,SUM((CODE(MID(CONCATENATE(UPPER(M62),"aaaaaaaaaa"),{1;2},1))-30)*{1;0.01})) -> 37.67 | AF62: =COUNTIF($AE$7:$AE62,AE62) -> 14 | AH62: 55.46 | AI62: 55.46 | AJ62: =COUNTIF($AI$7:$AI62,AI62) -> 29 | AK62: =IF($AE$6=1,L62,OFFSET($L$1,SUMPRODUCT(--(OFFSET($AE$7,0,0,AuthorityCounter,1)=AI62),--(OFFSET($AF$7,0,0,AuthorityCounter,1)=COUNTIF($AI$7:AI62,AI62)),ROW(OFFSET($AF$7,0,0,AuthorityCounter,1)))-1,0)) -> Leicestershire | AM62: =IF(VLOOKUP(AK62,colAM,IF($H$75="OC",8,5),FALSE)=1,MAX(AM$6:$AM61)+1,0) -> 56 | AN62: Leicestershire | AO62: FALSE | AP62: =IF($AP$5,SUM(SUMPRODUCT(--AO$7:$AO62)*AO62,(SUMPRODUCT(--(AO$7:$AO62=FALSE))+SUMPRODUCT(--colAP))*(1-AO62)),ROW()-6) -> 56 | AQ62: Leicestershire | AR62: Leicestershire | IT62: Page 16: Number of Volunteers | IU62: #,##0 | IV62: =AB7 -> 0
A63: (P.10)[01]Volunteer hours as a % of volunteer hours plus employee hours | B63: 135 | C63: 39 | D63: 24 | E63: Page 24: Volunteer hours as a % of volunteer hours plus employee hours | L63: Lewisham | M63: ul | O63: 13 | P63: =IF((ROW()-5=$G$36),1,IF((M63=Coding!$H$75)+(Coding!$H$75="ALL")+(Coding!$H$75="U")*OR(M63="W",M63="su",M63="L",M63="MD",M63="UA")+(Coding!$H$75="na")*AND(M63<>"W",M63<>"su",M63<>"L",M63<>"MD",M63<>"UA",M63<>"SC",M63<>"SD",M63<>"p"),1,0)) -> 1 | Q63: FALSE | R63: =IF(OR(NOT(ISERROR(MATCH(L63,OFFSET($H$410,$G$36-2,0,1,18),FALSE))),$G$75=L63),1,0+(($G$36=1)*($H$75="OC"))) -> 0 | S63: 1 | T63: 13 | V63: =IF((S63=1)*($J$6<22),INDEX($J$13:$J$33,SUM($S$7:S63),1),"") ->  | W63: =COUNTIF($T$7:T63,T63) -> 2 | Y63: 14 | Z63: =INDEX(V:V,SUMPRODUCT((OFFSET($T$7,0,0,AuthorityCounter2,1)=Y63)*1,(OFFSET($W$7,0,0,AuthorityCounter2,1)=COUNTIF($Y$7:Y63,Y63))*1,ROW(OFFSET($W$7,0,0,AuthorityCounter2,1)))) ->  | AA63: 18.6504065 | AB63: =IF((Y63=AB$2)*(Z63=AC$3)*(SUM($AB$6:AB62)=0),+Y63,0) -> 0 | AC63: 14 | AE63: =IF($AE$6=3,O63,SUM((CODE(MID(CONCATENATE(UPPER(M63),"aaaaaaaaaa"),{1;2},1))-30)*{1;0.01})) -> 55.46 | AF63: =COUNTIF($AE$7:$AE63,AE63) -> 20 | AH63: 55.46 | AI63: 55.46 | AJ63: =COUNTIF($AI$7:$AI63,AI63) -> 30 | AK63: =IF($AE$6=1,L63,OFFSET($L$1,SUMPRODUCT(--(OFFSET($AE$7,0,0,AuthorityCounter,1)=AI63),--(OFFSET($AF$7,0,0,AuthorityCounter,1)=COUNTIF($AI$7:AI63,AI63)),ROW(OFFSET($AF$7,0,0,AuthorityCounter,1)))-1,0)) -> Lewisham | AM63: =IF(VLOOKUP(AK63,colAM,IF($H$75="OC",8,5),FALSE)=1,MAX(AM$6:$AM62)+1,0) -> 57 | AN63: Lewisham | AO63: FALSE | AP63: =IF($AP$5,SUM(SUMPRODUCT(--AO$7:$AO63)*AO63,(SUMPRODUCT(--(AO$7:$AO63=FALSE))+SUMPRODUCT(--colAP))*(1-AO63)),ROW()-6) -> 57 | AQ63: Lewisham | AR63: Lewisham | IT63: Page 16: Volunteer hours as a % of volunteer hours plus employee hours | IU63: 0.0% | IV63: =AB7 -> 0
A64: (P.10)[02]Number of Volunteer Hours | B64: 135 | C64: 40 | D64: 24 | E64: Page 24: Number of Volunteer Hours | L64: Lincolnshire | M64: c | O64: 22 | P64: =IF((ROW()-5=$G$36),1,IF((M64=Coding!$H$75)+(Coding!$H$75="ALL")+(Coding!$H$75="U")*OR(M64="W",M64="su",M64="L",M64="MD",M64="UA")+(Coding!$H$75="na")*AND(M64<>"W",M64<>"su",M64<>"L",M64<>"MD",M64<>"UA",M64<>"SC",M64<>"SD",M64<>"p"),1,0)) -> 1 | Q64: FALSE | R64: =IF(OR(NOT(ISERROR(MATCH(L64,OFFSET($H$410,$G$36-2,0,1,18),FALSE))),$G$75=L64),1,0+(($G$36=1)*($H$75="OC"))) -> 0 | S64: 1 | T64: 22 | V64: =IF((S64=1)*($J$6<22),INDEX($J$13:$J$33,SUM($S$7:S64),1),"") ->  | W64: =COUNTIF($T$7:T64,T64) -> 3 | Y64: 14 | Z64: =INDEX(V:V,SUMPRODUCT((OFFSET($T$7,0,0,AuthorityCounter2,1)=Y64)*1,(OFFSET($W$7,0,0,AuthorityCounter2,1)=COUNTIF($Y$7:Y64,Y64))*1,ROW(OFFSET($W$7,0,0,AuthorityCounter2,1)))) ->  | AA64: 18.6504065 | AB64: =IF((Y64=AB$2)*(Z64=AC$3)*(SUM($AB$6:AB63)=0),+Y64,0) -> 0 | AC64: 14 | AE64: =IF($AE$6=3,O64,SUM((CODE(MID(CONCATENATE(UPPER(M64),"aaaaaaaaaa"),{1;2},1))-30)*{1;0.01})) -> 37.67 | AF64: =COUNTIF($AE$7:$AE64,AE64) -> 15 | AH64: 55.47 | AI64: 55.47 | AJ64: =COUNTIF($AI$7:$AI64,AI64) -> 1 | AK64: =IF($AE$6=1,L64,OFFSET($L$1,SUMPRODUCT(--(OFFSET($AE$7,0,0,AuthorityCounter,1)=AI64),--(OFFSET($AF$7,0,0,AuthorityCounter,1)=COUNTIF($AI$7:AI64,AI64)),ROW(OFFSET($AF$7,0,0,AuthorityCounter,1)))-1,0)) -> Lincolnshire | AM64: =IF(VLOOKUP(AK64,colAM,IF($H$75="OC",8,5),FALSE)=1,MAX(AM$6:$AM63)+1,0) -> 58 | AN64: Lincolnshire | AO64: FALSE | AP64: =IF($AP$5,SUM(SUMPRODUCT(--AO$7:$AO64)*AO64,(SUMPRODUCT(--(AO$7:$AO64=FALSE))+SUMPRODUCT(--colAP))*(1-AO64)),ROW()-6) -> 58 | AQ64: Lincolnshire | AR64: Lincolnshire | IT64: Page 16: Number of Volunteer Hours | IU64: #,##0 | IV64: =AB7 -> 0
A65: (P.10)[02]Number of volunteers as a % of volunteer headcount plus employee headcount | B65: 135 | C65: 41 | D65: 24 | E65: Page 24: Number of volunteers as a % of volunteer headcount plus employee headcount | L65: Luton | M65: uu | O65: 6 | P65: =IF((ROW()-5=$G$36),1,IF((M65=Coding!$H$75)+(Coding!$H$75="ALL")+(Coding!$H$75="U")*OR(M65="W",M65="su",M65="L",M65="MD",M65="UA")+(Coding!$H$75="na")*AND(M65<>"W",M65<>"su",M65<>"L",M65<>"MD",M65<>"UA",M65<>"SC",M65<>"SD",M65<>"p"),1,0)) -> 1 | Q65: FALSE | R65: =IF(OR(NOT(ISERROR(MATCH(L65,OFFSET($H$410,$G$36-2,0,1,18),FALSE))),$G$75=L65),1,0+(($G$36=1)*($H$75="OC"))) -> 0 | S65: 1 | T65: 6 | V65: =IF((S65=1)*($J$6<22),INDEX($J$13:$J$33,SUM($S$7:S65),1),"") ->  | W65: =COUNTIF($T$7:T65,T65) -> 6 | Y65: 14 | Z65: =INDEX(V:V,SUMPRODUCT((OFFSET($T$7,0,0,AuthorityCounter2,1)=Y65)*1,(OFFSET($W$7,0,0,AuthorityCounter2,1)=COUNTIF($Y$7:Y65,Y65))*1,ROW(OFFSET($W$7,0,0,AuthorityCounter2,1)))) ->  | AA65: 18.6504065 | AB65: =IF((Y65=AB$2)*(Z65=AC$3)*(SUM($AB$6:AB64)=0),+Y65,0) -> 0 | AC65: 14 | AE65: =IF($AE$6=3,O65,SUM((CODE(MID(CONCATENATE(UPPER(M65),"aaaaaaaaaa"),{1;2},1))-30)*{1;0.01})) -> 55.55 | AF65: =COUNTIF($AE$7:$AE65,AE65) -> 18 | AH65: 55.47 | AI65: 55.47 | AJ65: =COUNTIF($AI$7:$AI65,AI65) -> 2 | AK65: =IF($AE$6=1,L65,OFFSET($L$1,SUMPRODUCT(--(OFFSET($AE$7,0,0,AuthorityCounter,1)=AI65),--(OFFSET($AF$7,0,0,AuthorityCounter,1)=COUNTIF($AI$7:AI65,AI65)),ROW(OFFSET($AF$7,0,0,AuthorityCounter,1)))-1,0)) -> Luton | AM65: =IF(VLOOKUP(AK65,colAM,IF($H$75="OC",8,5),FALSE)=1,MAX(AM$6:$AM64)+1,0) -> 59 | AN65: Luton | AO65: FALSE | AP65: =IF($AP$5,SUM(SUMPRODUCT(--AO$7:$AO65)*AO65,(SUMPRODUCT(--(AO$7:$AO65=FALSE))+SUMPRODUCT(--colAP))*(1-AO65)),ROW()-6) -> 59 | AQ65: Luton | AR65: Luton | IT65: Page 16: Number of volunteers as a % of volunteer headcount plus employee headcount | IU65: 0% | IV65: =AB7 -> 0
A66: (P.10)[03]Number of Hours per Volunteer | B66: 135 | C66: 42 | D66: 24 | E66: Page 24: Number of Hours per Volunteer | L66: Manchester | M66: um | O66: 16 | P66: =IF((ROW()-5=$G$36),1,IF((M66=Coding!$H$75)+(Coding!$H$75="ALL")+(Coding!$H$75="U")*OR(M66="W",M66="su",M66="L",M66="MD",M66="UA")+(Coding!$H$75="na")*AND(M66<>"W",M66<>"su",M66<>"L",M66<>"MD",M66<>"UA",M66<>"SC",M66<>"SD",M66<>"p"),1,0)) -> 1 | Q66: FALSE | R66: =IF(OR(NOT(ISERROR(MATCH(L66,OFFSET($H$410,$G$36-2,0,1,18),FALSE))),$G$75=L66),1,0+(($G$36=1)*($H$75="OC"))) -> 0 | S66: 1 | T66: 16 | V66: =IF((S66=1)*($J$6<22),INDEX($J$13:$J$33,SUM($S$7:S66),1),"") ->  | W66: =COUNTIF($T$7:T66,T66) -> 4 | Y66: 14 | Z66: =INDEX(V:V,SUMPRODUCT((OFFSET($T$7,0,0,AuthorityCounter2,1)=Y66)*1,(OFFSET($W$7,0,0,AuthorityCounter2,1)=COUNTIF($Y$7:Y66,Y66))*1,ROW(OFFSET($W$7,0,0,AuthorityCounter2,1)))) ->  | AA66: 18.6504065 | AB66: =IF((Y66=AB$2)*(Z66=AC$3)*(SUM($AB$6:AB65)=0),+Y66,0) -> 0 | AC66: 14 | AE66: =IF($AE$6=3,O66,SUM((CODE(MID(CONCATENATE(UPPER(M66),"aaaaaaaaaa"),{1;2},1))-30)*{1;0.01})) -> 55.47 | AF66: =COUNTIF($AE$7:$AE66,AE66) -> 7 | AH66: 55.47 | AI66: 55.47 | AJ66: =COUNTIF($AI$7:$AI66,AI66) -> 3 | AK66: =IF($AE$6=1,L66,OFFSET($L$1,SUMPRODUCT(--(OFFSET($AE$7,0,0,AuthorityCounter,1)=AI66),--(OFFSET($AF$7,0,0,AuthorityCounter,1)=COUNTIF($AI$7:AI66,AI66)),ROW(OFFSET($AF$7,0,0,AuthorityCounter,1)))-1,0)) -> Manchester | AM66: =IF(VLOOKUP(AK66,colAM,IF($H$75="OC",8,5),FALSE)=1,MAX(AM$6:$AM65)+1,0) -> 60 | AN66: Manchester | AO66: FALSE | AP66: =IF($AP$5,SUM(SUMPRODUCT(--AO$7:$AO66)*AO66,(SUMPRODUCT(--(AO$7:$AO66=FALSE))+SUMPRODUCT(--colAP))*(1-AO66)),ROW()-6) -> 60 | AQ66: Manchester | AR66: Manchester | IT66: Page 16: Number of Hours per Volunteer | IU66: #,##0 | IV66: =AB7 -> 0
A67: (P.02)[01]Total Book Issues | B67: 270 | C67: 0 | D67: 26 | E67: Page 26: Total Book Issues | L67: Medway | M67: uu | O67: 17 | P67: =IF((ROW()-5=$G$36),1,IF((M67=Coding!$H$75)+(Coding!$H$75="ALL")+(Coding!$H$75="U")*OR(M67="W",M67="su",M67="L",M67="MD",M67="UA")+(Coding!$H$75="na")*AND(M67<>"W",M67<>"su",M67<>"L",M67<>"MD",M67<>"UA",M67<>"SC",M67<>"SD",M67<>"p"),1,0)) -> 1 | Q67: FALSE | R67: =IF(OR(NOT(ISERROR(MATCH(L67,OFFSET($H$410,$G$36-2,0,1,18),FALSE))),$G$75=L67),1,0+(($G$36=1)*($H$75="OC"))) -> 0 | S67: 1 | T67: 17 | V67: =IF((S67=1)*($J$6<22),INDEX($J$13:$J$33,SUM($S$7:S67),1),"") ->  | W67: =COUNTIF($T$7:T67,T67) -> 4 | Y67: 13 | Z67: =INDEX(V:V,SUMPRODUCT((OFFSET($T$7,0,0,AuthorityCounter2,1)=Y67)*1,(OFFSET($W$7,0,0,AuthorityCounter2,1)=COUNTIF($Y$7:Y67,Y67))*1,ROW(OFFSET($W$7,0,0,AuthorityCounter2,1)))) ->  | AA67: 18.6504065 | AB67: =IF((Y67=AB$2)*(Z67=AC$3)*(SUM($AB$6:AB66)=0),+Y67,0) -> 0 | AC67: 13 | AE67: =IF($AE$6=3,O67,SUM((CODE(MID(CONCATENATE(UPPER(M67),"aaaaaaaaaa"),{1;2},1))-30)*{1;0.01})) -> 55.55 | AF67: =COUNTIF($AE$7:$AE67,AE67) -> 19 | AH67: 55.47 | AI67: 55.47 | AJ67: =COUNTIF($AI$7:$AI67,AI67) -> 4 | AK67: =IF($AE$6=1,L67,OFFSET($L$1,SUMPRODUCT(--(OFFSET($AE$7,0,0,AuthorityCounter,1)=AI67),--(OFFSET($AF$7,0,0,AuthorityCounter,1)=COUNTIF($AI$7:AI67,AI67)),ROW(OFFSET($AF$7,0,0,AuthorityCounter,1)))-1,0)) -> Medway | AM67: =IF(VLOOKUP(AK67,colAM,IF($H$75="OC",8,5),FALSE)=1,MAX(AM$6:$AM66)+1,0) -> 61 | AN67: Medway | AO67: FALSE | AP67: =IF($AP$5,SUM(SUMPRODUCT(--AO$7:$AO67)*AO67,(SUMPRODUCT(--(AO$7:$AO67=FALSE))+SUMPRODUCT(--colAP))*(1-AO67)),ROW()-6) -> 61 | AQ67: Medway | AR67: Medway | IT67: Page 17: Total Book Issues | IU67: #,##0 | IV67: =AB7 -> 0
A68: (P.02)[02]Adult Fiction Issues | B68: 270 | C68: 1 | D68: =D67--OR(B68<>B67,LEFT(A68,5)<>LEFT(A67,5)) -> 26 | E68: ="Page "&D68&": " &RIGHT(A68,LEN(A68)-10) -> Page 26: Adult Fiction Issues | L68: Merton | M68: ul | O68: 7 | P68: =IF((ROW()-5=$G$36),1,IF((M68=Coding!$H$75)+(Coding!$H$75="ALL")+(Coding!$H$75="U")*OR(M68="W",M68="su",M68="L",M68="MD",M68="UA")+(Coding!$H$75="na")*AND(M68<>"W",M68<>"su",M68<>"L",M68<>"MD",M68<>"UA",M68<>"SC",M68<>"SD",M68<>"p"),1,0)) -> 1 | Q68: FALSE | R68: =IF(OR(NOT(ISERROR(MATCH(L68,OFFSET($H$410,$G$36-2,0,1,18),FALSE))),$G$75=L68),1,0+(($G$36=1)*($H$75="OC"))) -> 0 | S68: 1 | T68: 7 | V68: =IF((S68=1)*($J$6<22),INDEX($J$13:$J$33,SUM($S$7:S68),1),"") ->  | W68: =COUNTIF($T$7:T68,T68) -> 3 | Y68: 13 | Z68: =INDEX(V:V,SUMPRODUCT((OFFSET($T$7,0,0,AuthorityCounter2,1)=Y68)*1,(OFFSET($W$7,0,0,AuthorityCounter2,1)=COUNTIF($Y$7:Y68,Y68))*1,ROW(OFFSET($W$7,0,0,AuthorityCounter2,1)))) ->  | AA68: 18.6504065 | AB68: =IF((Y68=AB$2)*(Z68=AC$3)*(SUM($AB$6:AB67)=0),+Y68,0) -> 0 | AC68: 13 | AE68: =IF($AE$6=3,O68,SUM((CODE(MID(CONCATENATE(UPPER(M68),"aaaaaaaaaa"),{1;2},1))-30)*{1;0.01})) -> 55.46 | AF68: =COUNTIF($AE$7:$AE68,AE68) -> 21 | AH68: 55.47 | AI68: 55.47 | AJ68: =COUNTIF($AI$7:$AI68,AI68) -> 5 | AK68: =IF($AE$6=1,L68,OFFSET($L$1,SUMPRODUCT(--(OFFSET($AE$7,0,0,AuthorityCounter,1)=AI68),--(OFFSET($AF$7,0,0,AuthorityCounter,1)=COUNTIF($AI$7:AI68,AI68)),ROW(OFFSET($AF$7,0,0,AuthorityCounter,1)))-1,0)) -> Merton | AM68: =IF(VLOOKUP(AK68,colAM,IF($H$75="OC",8,5),FALSE)=1,MAX(AM$6:$AM67)+1,0) -> 62 | AN68: Merton | AO68: FALSE | AP68: =IF($AP$5,SUM(SUMPRODUCT(--AO$7:$AO68)*AO68,(SUMPRODUCT(--(AO$7:$AO68=FALSE))+SUMPRODUCT(--colAP))*(1-AO68)),ROW()-6) -> 62 | AQ68: Merton | AR68: Merton | IT68: Page 17: Adult Fiction Issues | IU68: #,##0 | IV68: =AB7 -> 0
A69: (P.02)[03]Adult Non-Fiction Issues | B69: 270 | C69: 2 | D69: 26 | E69: Page 26: Adult Non-Fiction Issues | L69: Newcastle upon Tyne | M69: um | O69: 13 | P69: =IF((ROW()-5=$G$36),1,IF((M69=Coding!$H$75)+(Coding!$H$75="ALL")+(Coding!$H$75="U")*OR(M69="W",M69="su",M69="L",M69="MD",M69="UA")+(Coding!$H$75="na")*AND(M69<>"W",M69<>"su",M69<>"L",M69<>"MD",M69<>"UA",M69<>"SC",M69<>"SD",M69<>"p"),1,0)) -> 1 | Q69: FALSE | R69: =IF(OR(NOT(ISERROR(MATCH(L69,OFFSET($H$410,$G$36-2,0,1,18),FALSE))),$G$75=L69),1,0+(($G$36=1)*($H$75="OC"))) -> 0 | S69: 1 | T69: 13 | V69: =IF((S69=1)*($J$6<22),INDEX($J$13:$J$33,SUM($S$7:S69),1),"") ->  | W69: =COUNTIF($T$7:T69,T69) -> 3 | Y69: 13 | Z69: =INDEX(V:V,SUMPRODUCT((OFFSET($T$7,0,0,AuthorityCounter2,1)=Y69)*1,(OFFSET($W$7,0,0,AuthorityCounter2,1)=COUNTIF($Y$7:Y69,Y69))*1,ROW(OFFSET($W$7,0,0,AuthorityCounter2,1)))) ->  | AA69: 18.6504065 | AB69: =IF((Y69=AB$2)*(Z69=AC$3)*(SUM($AB$6:AB68)=0),+Y69,0) -> 0 | AC69: 13 | AE69: =IF($AE$6=3,O69,SUM((CODE(MID(CONCATENATE(UPPER(M69),"aaaaaaaaaa"),{1;2},1))-30)*{1;0.01})) -> 55.47 | AF69: =COUNTIF($AE$7:$AE69,AE69) -> 8 | AH69: 55.47 | AI69: 55.47 | AJ69: =COUNTIF($AI$7:$AI69,AI69) -> 6 | AK69: =IF($AE$6=1,L69,OFFSET($L$1,SUMPRODUCT(--(OFFSET($AE$7,0,0,AuthorityCounter,1)=AI69),--(OFFSET($AF$7,0,0,AuthorityCounter,1)=COUNTIF($AI$7:AI69,AI69)),ROW(OFFSET($AF$7,0,0,AuthorityCounter,1)))-1,0)) -> Newcastle upon Tyne | AM69: =IF(VLOOKUP(AK69,colAM,IF($H$75="OC",8,5),FALSE)=1,MAX(AM$6:$AM68)+1,0) -> 63 | AN69: Newcastle upon Tyne | AO69: FALSE | AP69: =IF($AP$5,SUM(SUMPRODUCT(--AO$7:$AO69)*AO69,(SUMPRODUCT(--(AO$7:$AO69=FALSE))+SUMPRODUCT(--colAP))*(1-AO69)),ROW()-6) -> 63 | AQ69: Newcastle upon Tyne | AR69: Newcastle upon Tyne | IT69: Page 17: Adult Non-Fiction Issues | IU69: #,##0 | IV69: =AB7 -> 0
A70: (P.02)[04]Children's Fiction Issues | B70: 270 | C70: 3 | D70: 26 | E70: Page 26: Children's Fiction Issues | L70: Newham | M70: ul | O70: 10 | P70: =IF((ROW()-5=$G$36),1,IF((M70=Coding!$H$75)+(Coding!$H$75="ALL")+(Coding!$H$75="U")*OR(M70="W",M70="su",M70="L",M70="MD",M70="UA")+(Coding!$H$75="na")*AND(M70<>"W",M70<>"su",M70<>"L",M70<>"MD",M70<>"UA",M70<>"SC",M70<>"SD",M70<>"p"),1,0)) -> 1 | Q70: FALSE | R70: =IF(OR(NOT(ISERROR(MATCH(L70,OFFSET($H$410,$G$36-2,0,1,18),FALSE))),$G$75=L70),1,0+(($G$36=1)*($H$75="OC"))) -> 0 | S70: 1 | T70: 10 | V70: =IF((S70=1)*($J$6<22),INDEX($J$13:$J$33,SUM($S$7:S70),1),"") ->  | W70: =COUNTIF($T$7:T70,T70) -> 4 | Y70: 13 | Z70: =INDEX(V:V,SUMPRODUCT((OFFSET($T$7,0,0,AuthorityCounter2,1)=Y70)*1,(OFFSET($W$7,0,0,AuthorityCounter2,1)=COUNTIF($Y$7:Y70,Y70))*1,ROW(OFFSET($W$7,0,0,AuthorityCounter2,1)))) ->  | AA70: 18.6504065 | AB70: =IF((Y70=AB$2)*(Z70=AC$3)*(SUM($AB$6:AB69)=0),+Y70,0) -> 0 | AC70: 13 | AE70: =IF($AE$6=3,O70,SUM((CODE(MID(CONCATENATE(UPPER(M70),"aaaaaaaaaa"),{1;2},1))-30)*{1;0.01})) -> 55.46 | AF70: =COUNTIF($AE$7:$AE70,AE70) -> 22 | AH70: 55.47 | AI70: 55.47 | AJ70: =COUNTIF($AI$7:$AI70,AI70) -> 7 | AK70: =IF($AE$6=1,L70,OFFSET($L$1,SUMPRODUCT(--(OFFSET($AE$7,0,0,AuthorityCounter,1)=AI70),--(OFFSET($AF$7,0,0,AuthorityCounter,1)=COUNTIF($AI$7:AI70,AI70)),ROW(OFFSET($AF$7,0,0,AuthorityCounter,1)))-1,0)) -> Newham | AM70: =IF(VLOOKUP(AK70,colAM,IF($H$75="OC",8,5),FALSE)=1,MAX(AM$6:$AM69)+1,0) -> 64 | AN70: Newham | AO70: FALSE | AP70: =IF($AP$5,SUM(SUMPRODUCT(--AO$7:$AO70)*AO70,(SUMPRODUCT(--(AO$7:$AO70=FALSE))+SUMPRODUCT(--colAP))*(1-AO70)),ROW()-6) -> 64 | AQ70: Newham | AR70: Newham | IT70: Page 17: Children's Fiction Issues | IU70: #,##0 | IV70: =AB7 -> 0
A71: (P.02)[05]Children's Non-Fiction Issues | B71: 270 | C71: 4 | D71: 26 | E71: Page 26: Children's Non-Fiction Issues | L71: =IF((ROW()-6)<=AuthorityCounter,OFFSET($D$409,ROW()-6,0),"") -> Norfolk | M71: =IF((ROW()-6)<=AuthorityCounter,OFFSET($F$409,ROW()-6,0),"") -> c | O71: =IF(ISNUMBER(--OFFSET($D$409,(ROW()-6)+$G$39+AuthorityCounter+5,$G$40)),OFFSET($D$409,(ROW()-6)+$G$39+AuthorityCounter+5,$G$40),"na") -> 55 | P71: =IF((ROW()-5=$G$36),1,IF((M71=Coding!$H$75)+(Coding!$H$75="ALL")+(Coding!$H$75="U")*OR(M71="W",M71="su",M71="L",M71="MD",M71="UA")+(Coding!$H$75="na")*AND(M71<>"W",M71<>"su",M71<>"L",M71<>"MD",M71<>"UA",M71<>"SC",M71<>"SD",M71<>"p"),1,0)) -> 1 | Q71: FALSE | R71: =IF(OR(NOT(ISERROR(MATCH(L71,OFFSET($H$410,$G$36-2,0,1,18),FALSE))),$G$75=L71),1,0+(($G$36=1)*($H$75="OC"))) -> 0 | S71: =IF((ROW()-5=$G$36),1,IF($H$75="OC",IF(NOT($J$10)+Q71,R71,0),IF(NOT($J$10)+Q71,P71,0))) -> 1 | T71: =IF(S71=1,O71,"not selected") -> 55 | V71: =IF((S71=1)*($J$6<22),INDEX($J$13:$J$33,SUM($S$7:S71),1),"") ->  | W71: =COUNTIF($T$7:T71,T71) -> 1 | Y71: =IF((ROW()-6-$J$8)<1,"na",LARGE(OFFSET($T$7,0,0,AuthorityCounter2,1),ROW()-6-$J$8)) -> 13 | Z71: =INDEX(V:V,SUMPRODUCT((OFFSET($T$7,0,0,AuthorityCounter2,1)=Y71)*1,(OFFSET($W$7,0,0,AuthorityCounter2,1)=COUNTIF($Y$7:Y71,Y71))*1,ROW(OFFSET($W$7,0,0,AuthorityCounter2,1)))) ->  | AA71: =AB$3 -> 18.6504065 | AB71: =IF((Y71=AB$2)*(Z71=AC$3)*(SUM($AB$6:AB70)=0),+Y71,0) -> 0 | AC71: =IF(ISNUMBER(AA71),Y71-AB71,"na") -> 13 | AE71: =IF($AE$6=3,O71,SUM((CODE(MID(CONCATENATE(UPPER(M71),"aaaaaaaaaa"),{1;2},1))-30)*{1;0.01})) -> 37.67 | AF71: =COUNTIF($AE$7:$AE71,AE71) -> 16 | AH71: =IF($AE$6=3,LARGE(OFFSET($AE$7,0,0,AuthorityCounter2,1),ROW()-6),SMALL(OFFSET($AE$7,0,0,AuthorityCounter2,1),ROW()-6)) -> 55.47 | AI71: 55.47 | AJ71: =COUNTIF($AI$7:$AI71,AI71) -> 8 | AK71: =IF($AE$6=1,L71,OFFSET($L$1,SUMPRODUCT(--(OFFSET($AE$7,0,0,AuthorityCounter,1)=AI71),--(OFFSET($AF$7,0,0,AuthorityCounter,1)=COUNTIF($AI$7:AI71,AI71)),ROW(OFFSET($AF$7,0,0,AuthorityCounter,1)))-1,0)) -> Norfolk | AM71: =IF(VLOOKUP(AK71,colAM,IF($H$75="OC",8,5),FALSE)=1,MAX(AM$6:$AM70)+1,0) -> 65 | AN71: =OFFSET($AK$1,ABS(SUMPRODUCT(--(colAN=(ROW()-6)),ROW(colAN))-1),0) -> Norfolk | AO71: =IF(AN71=0,0,VLOOKUP(AN71,colAO,6,FALSE)) -> FALSE | AP71: =IF($AP$5,SUM(SUMPRODUCT(--AO$7:$AO71)*AO71,(SUMPRODUCT(--(AO$7:$AO71=FALSE))+SUMPRODUCT(--colAP))*(1-AO71)),ROW()-6) -> 65 | AQ71: =OFFSET($AN$6,MATCH(ROW()-6,colAQ,FALSE),0) -> Norfolk | AR71: Norfolk | IT71: Page 17: Children's Non-Fiction Issues | IU71: #,##0 | IV71: =AB7 -> 0
A72: (P.03)[01]Total Book Issue Stock Turn | B72: 270 | C72: 5 | D72: 27 | E72: Page 27: Total Book Issue Stock Turn | L72: North East Lincolnshire | M72: uu | O72: 4 | P72: =IF((ROW()-5=$G$36),1,IF((M72=Coding!$H$75)+(Coding!$H$75="ALL")+(Coding!$H$75="U")*OR(M72="W",M72="su",M72="L",M72="MD",M72="UA")+(Coding!$H$75="na")*AND(M72<>"W",M72<>"su",M72<>"L",M72<>"MD",M72<>"UA",M72<>"SC",M72<>"SD",M72<>"p"),1,0)) -> 1 | Q72: FALSE | R72: =IF(OR(NOT(ISERROR(MATCH(L72,OFFSET($H$410,$G$36-2,0,1,18),FALSE))),$G$75=L72),1,0+(($G$36=1)*($H$75="OC"))) -> 0 | S72: 1 | T72: 4 | V72: =IF((S72=1)*($J$6<22),INDEX($J$13:$J$33,SUM($S$7:S72),1),"") ->  | W72: =COUNTIF($T$7:T72,T72) -> 4 | Y72: 13 | Z72: =INDEX(V:V,SUMPRODUCT((OFFSET($T$7,0,0,AuthorityCounter2,1)=Y72)*1,(OFFSET($W$7,0,0,AuthorityCounter2,1)=COUNTIF($Y$7:Y72,Y72))*1,ROW(OFFSET($W$7,0,0,AuthorityCounter2,1)))) ->  | AA72: 18.6504065 | AB72: =IF((Y72=AB$2)*(Z72=AC$3)*(SUM($AB$6:AB71)=0),+Y72,0) -> 0 | AC72: 13 | AE72: =IF($AE$6=3,O72,SUM((CODE(MID(CONCATENATE(UPPER(M72),"aaaaaaaaaa"),{1;2},1))-30)*{1;0.01})) -> 55.55 | AF72: =COUNTIF($AE$7:$AE72,AE72) -> 20 | AH72: 55.47 | AI72: 55.47 | AJ72: =COUNTIF($AI$7:$AI72,AI72) -> 9 | AK72: =IF($AE$6=1,L72,OFFSET($L$1,SUMPRODUCT(--(OFFSET($AE$7,0,0,AuthorityCounter,1)=AI72),--(OFFSET($AF$7,0,0,AuthorityCounter,1)=COUNTIF($AI$7:AI72,AI72)),ROW(OFFSET($AF$7,0,0,AuthorityCounter,1)))-1,0)) -> North East Lincolnshire | AM72: =IF(VLOOKUP(AK72,colAM,IF($H$75="OC",8,5),FALSE)=1,MAX(AM$6:$AM71)+1,0) -> 66 | AN72: North East Lincolnshire | AO72: FALSE | AP72: =IF($AP$5,SUM(SUMPRODUCT(--AO$7:$AO72)*AO72,(SUMPRODUCT(--(AO$7:$AO72=FALSE))+SUMPRODUCT(--colAP))*(1-AO72)),ROW()-6) -> 66 | AQ72: North East Lincolnshire | AR72: =IF(ISERROR(AQ72),"na",AQ72) -> North East Lincolnshire | IT72: Page 18: Total Book Issue Stock Turn | IU72: #,##0.0 | IV72: =AB7 -> 0
A73: (P.03)[02]Adult Fiction Stock Turn | B73: 270 | C73: 6 | D73: 27 | E73: Page 27: Adult Fiction Stock Turn | G73: Authority | H73: Group | I73: Question | L73: North Lincolnshire | M73: uu | O73: 16 | P73: =IF((ROW()-5=$G$36),1,IF((M73=Coding!$H$75)+(Coding!$H$75="ALL")+(Coding!$H$75="U")*OR(M73="W",M73="su",M73="L",M73="MD",M73="UA")+(Coding!$H$75="na")*AND(M73<>"W",M73<>"su",M73<>"L",M73<>"MD",M73<>"UA",M73<>"SC",M73<>"SD",M73<>"p"),1,0)) -> 1 | Q73: FALSE | R73: =IF(OR(NOT(ISERROR(MATCH(L73,OFFSET($H$410,$G$36-2,0,1,18),FALSE))),$G$75=L73),1,0+(($G$36=1)*($H$75="OC"))) -> 0 | S73: 1 | T73: 16 | V73: =IF((S73=1)*($J$6<22),INDEX($J$13:$J$33,SUM($S$7:S73),1),"") ->  | W73: =COUNTIF($T$7:T73,T73) -> 5 | Y73: 12 | Z73: =INDEX(V:V,SUMPRODUCT((OFFSET($T$7,0,0,AuthorityCounter2,1)=Y73)*1,(OFFSET($W$7,0,0,AuthorityCounter2,1)=COUNTIF($Y$7:Y73,Y73))*1,ROW(OFFSET($W$7,0,0,AuthorityCounter2,1)))) ->  | AA73: 18.6504065 | AB73: =IF((Y73=AB$2)*(Z73=AC$3)*(SUM($AB$6:AB72)=0),+Y73,0) -> 0 | AC73: 12 | AE73: =IF($AE$6=3,O73,SUM((CODE(MID(CONCATENATE(UPPER(M73),"aaaaaaaaaa"),{1;2},1))-30)*{1;0.01})) -> 55.55 | AF73: =COUNTIF($AE$7:$AE73,AE73) -> 21 | AH73: 55.47 | AI73: 55.47 | AJ73: =COUNTIF($AI$7:$AI73,AI73) -> 10 | AK73: =IF($AE$6=1,L73,OFFSET($L$1,SUMPRODUCT(--(OFFSET($AE$7,0,0,AuthorityCounter,1)=AI73),--(OFFSET($AF$7,0,0,AuthorityCounter,1)=COUNTIF($AI$7:AI73,AI73)),ROW(OFFSET($AF$7,0,0,AuthorityCounter,1)))-1,0)) -> North Lincolnshire | AM73: =IF(VLOOKUP(AK73,colAM,IF($H$75="OC",8,5),FALSE)=1,MAX(AM$6:$AM72)+1,0) -> 67 | AN73: North Lincolnshire | AO73: FALSE | AP73: =IF($AP$5,SUM(SUMPRODUCT(--AO$7:$AO73)*AO73,(SUMPRODUCT(--(AO$7:$AO73=FALSE))+SUMPRODUCT(--colAP))*(1-AO73)),ROW()-6) -> 67 | AQ73: North Lincolnshire | AR73: North Lincolnshire | IT73: Page 18: Adult Fiction Stock Turn | IU73: #,##0.0 | IV73: =AB7 -> 0
A74: (P.03)[03]Adult Non-Fiction Stock Turn | B74: 270 | C74: 7 | D74: 27 | E74: Page 27: Adult Non-Fiction Stock Turn | G74: =Coding!G36 -> 1 | H74: 1 | I74: =Coding!G38 -> 2 | L74: North Somerset | M74: uu | O74: 12 | P74: =IF((ROW()-5=$G$36),1,IF((M74=Coding!$H$75)+(Coding!$H$75="ALL")+(Coding!$H$75="U")*OR(M74="W",M74="su",M74="L",M74="MD",M74="UA")+(Coding!$H$75="na")*AND(M74<>"W",M74<>"su",M74<>"L",M74<>"MD",M74<>"UA",M74<>"SC",M74<>"SD",M74<>"p"),1,0)) -> 1 | Q74: FALSE | R74: =IF(OR(NOT(ISERROR(MATCH(L74,OFFSET($H$410,$G$36-2,0,1,18),FALSE))),$G$75=L74),1,0+(($G$36=1)*($H$75="OC"))) -> 0 | S74: 1 | T74: 12 | V74: =IF((S74=1)*($J$6<22),INDEX($J$13:$J$33,SUM($S$7:S74),1),"") ->  | W74: =COUNTIF($T$7:T74,T74) -> 4 | Y74: 12 | Z74: =INDEX(V:V,SUMPRODUCT((OFFSET($T$7,0,0,AuthorityCounter2,1)=Y74)*1,(OFFSET($W$7,0,0,AuthorityCounter2,1)=COUNTIF($Y$7:Y74,Y74))*1,ROW(OFFSET($W$7,0,0,AuthorityCounter2,1)))) ->  | AA74: 18.6504065 | AB74: =IF((Y74=AB$2)*(Z74=AC$3)*(SUM($AB$6:AB73)=0),+Y74,0) -> 0 | AC74: 12 | AE74: =IF($AE$6=3,O74,SUM((CODE(MID(CONCATENATE(UPPER(M74),"aaaaaaaaaa"),{1;2},1))-30)*{1;0.01})) -> 55.55 | AF74: =COUNTIF($AE$7:$AE74,AE74) -> 22 | AH74: 55.47 | AI74: 55.47 | AJ74: =COUNTIF($AI$7:$AI74,AI74) -> 11 | AK74: =IF($AE$6=1,L74,OFFSET($L$1,SUMPRODUCT(--(OFFSET($AE$7,0,0,AuthorityCounter,1)=AI74),--(OFFSET($AF$7,0,0,AuthorityCounter,1)=COUNTIF($AI$7:AI74,AI74)),ROW(OFFSET($AF$7,0,0,AuthorityCounter,1)))-1,0)) -> North Somerset | AM74: =IF(VLOOKUP(AK74,colAM,IF($H$75="OC",8,5),FALSE)=1,MAX(AM$6:$AM73)+1,0) -> 68 | AN74: North Somerset | AO74: FALSE | AP74: =IF($AP$5,SUM(SUMPRODUCT(--AO$7:$AO74)*AO74,(SUMPRODUCT(--(AO$7:$AO74=FALSE))+SUMPRODUCT(--colAP))*(1-AO74)),ROW()-6) -> 68 | AQ74: North Somerset | AR74: North Somerset | IT74: Page 18: Adult Non-Fiction Stock Turn | IU74: #,##0.0 | IV74: =AB7 -> 0
A75: (P.03)[04]Children's Fiction Stock Turn | B75: 270 | C75: 8 | D75: 27 | E75: Page 27: Children's Fiction Stock Turn | G75: =INDEX(Coding!L6:L360,G74) -> --- Please Select --- | H75: =INDEX(Coding!H94:H105,H74,1) -> All | L75: North Tyneside | M75: um | O75: 16 | P75: =IF((ROW()-5=$G$36),1,IF((M75=Coding!$H$75)+(Coding!$H$75="ALL")+(Coding!$H$75="U")*OR(M75="W",M75="su",M75="L",M75="MD",M75="UA")+(Coding!$H$75="na")*AND(M75<>"W",M75<>"su",M75<>"L",M75<>"MD",M75<>"UA",M75<>"SC",M75<>"SD",M75<>"p"),1,0)) -> 1 | Q75: FALSE | R75: =IF(OR(NOT(ISERROR(MATCH(L75,OFFSET($H$410,$G$36-2,0,1,18),FALSE))),$G$75=L75),1,0+(($G$36=1)*($H$75="OC"))) -> 0 | S75: 1 | T75: 16 | V75: =IF((S75=1)*($J$6<22),INDEX($J$13:$J$33,SUM($S$7:S75),1),"") ->  | W75: =COUNTIF($T$7:T75,T75) -> 6 | Y75: 12 | Z75: =INDEX(V:V,SUMPRODUCT((OFFSET($T$7,0,0,AuthorityCounter2,1)=Y75)*1,(OFFSET($W$7,0,0,AuthorityCounter2,1)=COUNTIF($Y$7:Y75,Y75))*1,ROW(OFFSET($W$7,0,0,AuthorityCounter2,1)))) ->  | AA75: 18.6504065 | AB75: =IF((Y75=AB$2)*(Z75=AC$3)*(SUM($AB$6:AB74)=0),+Y75,0) -> 0 | AC75: 12 | AE75: =IF($AE$6=3,O75,SUM((CODE(MID(CONCATENATE(UPPER(M75),"aaaaaaaaaa"),{1;2},1))-30)*{1;0.01})) -> 55.47 | AF75: =COUNTIF($AE$7:$AE75,AE75) -> 9 | AH75: 55.47 | AI75: 55.47 | AJ75: =COUNTIF($AI$7:$AI75,AI75) -> 12 | AK75: =IF($AE$6=1,L75,OFFSET($L$1,SUMPRODUCT(--(OFFSET($AE$7,0,0,AuthorityCounter,1)=AI75),--(OFFSET($AF$7,0,0,AuthorityCounter,1)=COUNTIF($AI$7:AI75,AI75)),ROW(OFFSET($AF$7,0,0,AuthorityCounter,1)))-1,0)) -> North Tyneside | AM75: =IF(VLOOKUP(AK75,colAM,IF($H$75="OC",8,5),FALSE)=1,MAX(AM$6:$AM74)+1,0) -> 69 | AN75: North Tyneside | AO75: FALSE | AP75: =IF($AP$5,SUM(SUMPRODUCT(--AO$7:$AO75)*AO75,(SUMPRODUCT(--(AO$7:$AO75=FALSE))+SUMPRODUCT(--colAP))*(1-AO75)),ROW()-6) -> 69 | AQ75: North Tyneside | AR75: North Tyneside | IT75: Page 18: Children's Fiction Stock Turn | IU75: #,##0.0 | IV75: =AB7 -> 0
A76: (P.03)[05]Children's Non-Fiction Stock Turn | B76: 270 | C76: 9 | D76: 27 | E76: Page 27: Children's Non-Fiction Stock Turn | L76: North Yorkshire | M76: c | O76: 44 | P76: =IF((ROW()-5=$G$36),1,IF((M76=Coding!$H$75)+(Coding!$H$75="ALL")+(Coding!$H$75="U")*OR(M76="W",M76="su",M76="L",M76="MD",M76="UA")+(Coding!$H$75="na")*AND(M76<>"W",M76<>"su",M76<>"L",M76<>"MD",M76<>"UA",M76<>"SC",M76<>"SD",M76<>"p"),1,0)) -> 1 | Q76: FALSE | R76: =IF(OR(NOT(ISERROR(MATCH(L76,OFFSET($H$410,$G$36-2,0,1,18),FALSE))),$G$75=L76),1,0+(($G$36=1)*($H$75="OC"))) -> 0 | S76: 1 | T76: 44 | V76: =IF((S76=1)*($J$6<22),INDEX($J$13:$J$33,SUM($S$7:S76),1),"") ->  | W76: =COUNTIF($T$7:T76,T76) -> 1 | Y76: 12 | Z76: =INDEX(V:V,SUMPRODUCT((OFFSET($T$7,0,0,AuthorityCounter2,1)=Y76)*1,(OFFSET($W$7,0,0,AuthorityCounter2,1)=COUNTIF($Y$7:Y76,Y76))*1,ROW(OFFSET($W$7,0,0,AuthorityCounter2,1)))) ->  | AA76: 18.6504065 | AB76: =IF((Y76=AB$2)*(Z76=AC$3)*(SUM($AB$6:AB75)=0),+Y76,0) -> 0 | AC76: 12 | AE76: =IF($AE$6=3,O76,SUM((CODE(MID(CONCATENATE(UPPER(M76),"aaaaaaaaaa"),{1;2},1))-30)*{1;0.01})) -> 37.67 | AF76: =COUNTIF($AE$7:$AE76,AE76) -> 17 | AH76: 55.47 | AI76: 55.47 | AJ76: =COUNTIF($AI$7:$AI76,AI76) -> 13 | AK76: =IF($AE$6=1,L76,OFFSET($L$1,SUMPRODUCT(--(OFFSET($AE$7,0,0,AuthorityCounter,1)=AI76),--(OFFSET($AF$7,0,0,AuthorityCounter,1)=COUNTIF($AI$7:AI76,AI76)),ROW(OFFSET($AF$7,0,0,AuthorityCounter,1)))-1,0)) -> North Yorkshire | AM76: =IF(VLOOKUP(AK76,colAM,IF($H$75="OC",8,5),FALSE)=1,MAX(AM$6:$AM75)+1,0) -> 70 | AN76: North Yorkshire | AO76: FALSE | AP76: =IF($AP$5,SUM(SUMPRODUCT(--AO$7:$AO76)*AO76,(SUMPRODUCT(--(AO$7:$AO76=FALSE))+SUMPRODUCT(--colAP))*(1-AO76)),ROW()-6) -> 70 | AQ76: North Yorkshire | AR76: North Yorkshire | IT76: Page 18: Children's Non-Fiction Stock Turn | IU76: #,##0.0 | IV76: =AB7 -> 0
A77: (P.04)[01]Total Audio Visual Issues | B77: 270 | C77: 10 | D77: 28 | E77: Page 28: Total Audio Visual Issues | L77: Northamptonshire | M77: c | O77: 36 | P77: =IF((ROW()-5=$G$36),1,IF((M77=Coding!$H$75)+(Coding!$H$75="ALL")+(Coding!$H$75="U")*OR(M77="W",M77="su",M77="L",M77="MD",M77="UA")+(Coding!$H$75="na")*AND(M77<>"W",M77<>"su",M77<>"L",M77<>"MD",M77<>"UA",M77<>"SC",M77<>"SD",M77<>"p"),1,0)) -> 1 | Q77: FALSE | R77: =IF(OR(NOT(ISERROR(MATCH(L77,OFFSET($H$410,$G$36-2,0,1,18),FALSE))),$G$75=L77),1,0+(($G$36=1)*($H$75="OC"))) -> 0 | S77: 1 | T77: 36 | V77: =IF((S77=1)*($J$6<22),INDEX($J$13:$J$33,SUM($S$7:S77),1),"") ->  | W77: =COUNTIF($T$7:T77,T77) -> 1 | Y77: 12 | Z77: =INDEX(V:V,SUMPRODUCT((OFFSET($T$7,0,0,AuthorityCounter2,1)=Y77)*1,(OFFSET($W$7,0,0,AuthorityCounter2,1)=COUNTIF($Y$7:Y77,Y77))*1,ROW(OFFSET($W$7,0,0,AuthorityCounter2,1)))) ->  | AA77: 18.6504065 | AB77: =IF((Y77=AB$2)*(Z77=AC$3)*(SUM($AB$6:AB76)=0),+Y77,0) -> 0 | AC77: 12 | AE77: =IF($AE$6=3,O77,SUM((CODE(MID(CONCATENATE(UPPER(M77),"aaaaaaaaaa"),{1;2},1))-30)*{1;0.01})) -> 37.67 | AF77: =COUNTIF($AE$7:$AE77,AE77) -> 18 | AH77: 55.47 | AI77: 55.47 | AJ77: =COUNTIF($AI$7:$AI77,AI77) -> 14 | AK77: =IF($AE$6=1,L77,OFFSET($L$1,SUMPRODUCT(--(OFFSET($AE$7,0,0,AuthorityCounter,1)=AI77),--(OFFSET($AF$7,0,0,AuthorityCounter,1)=COUNTIF($AI$7:AI77,AI77)),ROW(OFFSET($AF$7,0,0,AuthorityCounter,1)))-1,0)) -> Northamptonshire | AM77: =IF(VLOOKUP(AK77,colAM,IF($H$75="OC",8,5),FALSE)=1,MAX(AM$6:$AM76)+1,0) -> 71 | AN77: Northamptonshire | AO77: FALSE | AP77: =IF($AP$5,SUM(SUMPRODUCT(--AO$7:$AO77)*AO77,(SUMPRODUCT(--(AO$7:$AO77=FALSE))+SUMPRODUCT(--colAP))*(1-AO77)),ROW()-6) -> 71 | AQ77: Northamptonshire | AR77: Northamptonshire | IT77: Page 19: Total Audio Visual Issues | IU77: #,##0 | IV77: =AB7 -> 0
A78: (P.05)[01]Music, Videos and DVDs; Multi-media and Open Learning Packs; CD-ROMs and Software Issues | B78: 270 | C78: 11 | D78: 29 | E78: Page 29: Music, Videos and DVDs; Multi-media and Open Learning Packs; CD-ROMs and Software Issues | H78: Comparator Group Table | L78: Nottingham | M78: uu | O78: 15 | P78: =IF((ROW()-5=$G$36),1,IF((M78=Coding!$H$75)+(Coding!$H$75="ALL")+(Coding!$H$75="U")*OR(M78="W",M78="su",M78="L",M78="MD",M78="UA")+(Coding!$H$75="na")*AND(M78<>"W",M78<>"su",M78<>"L",M78<>"MD",M78<>"UA",M78<>"SC",M78<>"SD",M78<>"p"),1,0)) -> 1 | Q78: FALSE | R78: =IF(OR(NOT(ISERROR(MATCH(L78,OFFSET($H$410,$G$36-2,0,1,18),FALSE))),$G$75=L78),1,0+(($G$36=1)*($H$75="OC"))) -> 0 | S78: 1 | T78: 15 | V78: =IF((S78=1)*($J$6<22),INDEX($J$13:$J$33,SUM($S$7:S78),1),"") ->  | W78: =COUNTIF($T$7:T78,T78) -> 2 | Y78: 12 | Z78: =INDEX(V:V,SUMPRODUCT((OFFSET($T$7,0,0,AuthorityCounter2,1)=Y78)*1,(OFFSET($W$7,0,0,AuthorityCounter2,1)=COUNTIF($Y$7:Y78,Y78))*1,ROW(OFFSET($W$7,0,0,AuthorityCounter2,1)))) ->  | AA78: 18.6504065 | AB78: =IF((Y78=AB$2)*(Z78=AC$3)*(SUM($AB$6:AB77)=0),+Y78,0) -> 0 | AC78: 12 | AE78: =IF($AE$6=3,O78,SUM((CODE(MID(CONCATENATE(UPPER(M78),"aaaaaaaaaa"),{1;2},1))-30)*{1;0.01})) -> 55.55 | AF78: =COUNTIF($AE$7:$AE78,AE78) -> 23 | AH78: 55.47 | AI78: 55.47 | AJ78: =COUNTIF($AI$7:$AI78,AI78) -> 15 | AK78: =IF($AE$6=1,L78,OFFSET($L$1,SUMPRODUCT(--(OFFSET($AE$7,0,0,AuthorityCounter,1)=AI78),--(OFFSET($AF$7,0,0,AuthorityCounter,1)=COUNTIF($AI$7:AI78,AI78)),ROW(OFFSET($AF$7,0,0,AuthorityCounter,1)))-1,0)) -> Nottingham | AM78: =IF(VLOOKUP(AK78,colAM,IF($H$75="OC",8,5),FALSE)=1,MAX(AM$6:$AM77)+1,0) -> 72 | AN78: Nottingham | AO78: FALSE | AP78: =IF($AP$5,SUM(SUMPRODUCT(--AO$7:$AO78)*AO78,(SUMPRODUCT(--(AO$7:$AO78=FALSE))+SUMPRODUCT(--colAP))*(1-AO78)),ROW()-6) -> 72 | AQ78: Nottingham | AR78: Nottingham | IT78: Page 20: Music, Videos and DVDs; Multi-media and Open Learning Packs; CD-ROMs and Software Issues | IU78: #,##0 | IV78: =AB7 -> 0
A79: (P.05)[02]Adult Talking Book Issues | B79: 270 | C79: 12 | D79: 29 | E79: Page 29: Adult Talking Book Issues | G79: 6 | H79: C | I79: Counties | J79: =COUNTIF($M$7:$M$360,Coding!H79) -> 27 | L79: Nottinghamshire | M79: c | O79: 63 | P79: =IF((ROW()-5=$G$36),1,IF((M79=Coding!$H$75)+(Coding!$H$75="ALL")+(Coding!$H$75="U")*OR(M79="W",M79="su",M79="L",M79="MD",M79="UA")+(Coding!$H$75="na")*AND(M79<>"W",M79<>"su",M79<>"L",M79<>"MD",M79<>"UA",M79<>"SC",M79<>"SD",M79<>"p"),1,0)) -> 1 | Q79: FALSE | R79: =IF(OR(NOT(ISERROR(MATCH(L79,OFFSET($H$410,$G$36-2,0,1,18),FALSE))),$G$75=L79),1,0+(($G$36=1)*($H$75="OC"))) -> 0 | S79: 1 | T79: 63 | V79: =IF((S79=1)*($J$6<22),INDEX($J$13:$J$33,SUM($S$7:S79),1),"") ->  | W79: =COUNTIF($T$7:T79,T79) -> 1 | Y79: 12 | Z79: =INDEX(V:V,SUMPRODUCT((OFFSET($T$7,0,0,AuthorityCounter2,1)=Y79)*1,(OFFSET($W$7,0,0,AuthorityCounter2,1)=COUNTIF($Y$7:Y79,Y79))*1,ROW(OFFSET($W$7,0,0,AuthorityCounter2,1)))) ->  | AA79: 18.6504065 | AB79: =IF((Y79=AB$2)*(Z79=AC$3)*(SUM($AB$6:AB78)=0),+Y79,0) -> 0 | AC79: 12 | AE79: =IF($AE$6=3,O79,SUM((CODE(MID(CONCATENATE(UPPER(M79),"aaaaaaaaaa"),{1;2},1))-30)*{1;0.01})) -> 37.67 | AF79: =COUNTIF($AE$7:$AE79,AE79) -> 19 | AH79: 55.47 | AI79: 55.47 | AJ79: =COUNTIF($AI$7:$AI79,AI79) -> 16 | AK79: =IF($AE$6=1,L79,OFFSET($L$1,SUMPRODUCT(--(OFFSET($AE$7,0,0,AuthorityCounter,1)=AI79),--(OFFSET($AF$7,0,0,AuthorityCounter,1)=COUNTIF($AI$7:AI79,AI79)),ROW(OFFSET($AF$7,0,0,AuthorityCounter,1)))-1,0)) -> Nottinghamshire | AM79: =IF(VLOOKUP(AK79,colAM,IF($H$75="OC",8,5),FALSE)=1,MAX(AM$6:$AM78)+1,0) -> 73 | AN79: Nottinghamshire | AO79: FALSE | AP79: =IF($AP$5,SUM(SUMPRODUCT(--AO$7:$AO79)*AO79,(SUMPRODUCT(--(AO$7:$AO79=FALSE))+SUMPRODUCT(--colAP))*(1-AO79)),ROW()-6) -> 73 | AQ79: Nottinghamshire | AR79: Nottinghamshire | IT79: Page 20: Adult Talking Book Issues | IU79: #,##0 | IV79: =AB7 -> 0
A80: (P.05)[03]Children's Talking Book Issues | B80: 270 | C80: 13 | D80: 29 | E80: Page 29: Children's Talking Book Issues | G80: 5 | H80: UU | I80: English Unitaries | J80: =COUNTIF($M$7:$M$360,Coding!H80) -> 44 | L80: Oldham | M80: um | O80: 12 | P80: =IF((ROW()-5=$G$36),1,IF((M80=Coding!$H$75)+(Coding!$H$75="ALL")+(Coding!$H$75="U")*OR(M80="W",M80="su",M80="L",M80="MD",M80="UA")+(Coding!$H$75="na")*AND(M80<>"W",M80<>"su",M80<>"L",M80<>"MD",M80<>"UA",M80<>"SC",M80<>"SD",M80<>"p"),1,0)) -> 1 | Q80: FALSE | R80: =IF(OR(NOT(ISERROR(MATCH(L80,OFFSET($H$410,$G$36-2,0,1,18),FALSE))),$G$75=L80),1,0+(($G$36=1)*($H$75="OC"))) -> 0 | S80: 1 | T80: 12 | V80: =IF((S80=1)*($J$6<22),INDEX($J$13:$J$33,SUM($S$7:S80),1),"") ->  | W80: =COUNTIF($T$7:T80,T80) -> 5 | Y80: 12 | Z80: =INDEX(V:V,SUMPRODUCT((OFFSET($T$7,0,0,AuthorityCounter2,1)=Y80)*1,(OFFSET($W$7,0,0,AuthorityCounter2,1)=COUNTIF($Y$7:Y80,Y80))*1,ROW(OFFSET($W$7,0,0,AuthorityCounter2,1)))) ->  | AA80: 18.6504065 | AB80: =IF((Y80=AB$2)*(Z80=AC$3)*(SUM($AB$6:AB79)=0),+Y80,0) -> 0 | AC80: 12 | AE80: =IF($AE$6=3,O80,SUM((CODE(MID(CONCATENATE(UPPER(M80),"aaaaaaaaaa"),{1;2},1))-30)*{1;0.01})) -> 55.47 | AF80: =COUNTIF($AE$7:$AE80,AE80) -> 10 | AH80: 55.47 | AI80: 55.47 | AJ80: =COUNTIF($AI$7:$AI80,AI80) -> 17 | AK80: =IF($AE$6=1,L80,OFFSET($L$1,SUMPRODUCT(--(OFFSET($AE$7,0,0,AuthorityCounter,1)=AI80),--(OFFSET($AF$7,0,0,AuthorityCounter,1)=COUNTIF($AI$7:AI80,AI80)),ROW(OFFSET($AF$7,0,0,AuthorityCounter,1)))-1,0)) -> Oldham | AM80: =IF(VLOOKUP(AK80,colAM,IF($H$75="OC",8,5),FALSE)=1,MAX(AM$6:$AM79)+1,0) -> 74 | AN80: Oldham | AO80: FALSE | AP80: =IF($AP$5,SUM(SUMPRODUCT(--AO$7:$AO80)*AO80,(SUMPRODUCT(--(AO$7:$AO80=FALSE))+SUMPRODUCT(--colAP))*(1-AO80)),ROW()-6) -> 74 | AQ80: Oldham | AR80: Oldham | IT80: Page 20: Children's Talking Book Issues | IU80: #,##0 | IV80: =AB7 -> 0
A81: (P.06)[01]Number of Requests for Specific Items | B81: 270 | C81: 14 | D81: 30 | E81: Page 30: Number of Requests for Specific Items | L81: Oxfordshire | M81: c | O81: 43 | P81: =IF((ROW()-5=$G$36),1,IF((M81=Coding!$H$75)+(Coding!$H$75="ALL")+(Coding!$H$75="U")*OR(M81="W",M81="su",M81="L",M81="MD",M81="UA")+(Coding!$H$75="na")*AND(M81<>"W",M81<>"su",M81<>"L",M81<>"MD",M81<>"UA",M81<>"SC",M81<>"SD",M81<>"p"),1,0)) -> 1 | Q81: FALSE | R81: =IF(OR(NOT(ISERROR(MATCH(L81,OFFSET($H$410,$G$36-2,0,1,18),FALSE))),$G$75=L81),1,0+(($G$36=1)*($H$75="OC"))) -> 0 | S81: 1 | T81: 43 | V81: =IF((S81=1)*($J$6<22),INDEX($J$13:$J$33,SUM($S$7:S81),1),"") ->  | W81: =COUNTIF($T$7:T81,T81) -> 1 | Y81: 12 | Z81: =INDEX(V:V,SUMPRODUCT((OFFSET($T$7,0,0,AuthorityCounter2,1)=Y81)*1,(OFFSET($W$7,0,0,AuthorityCounter2,1)=COUNTIF($Y$7:Y81,Y81))*1,ROW(OFFSET($W$7,0,0,AuthorityCounter2,1)))) ->  | AA81: 18.6504065 | AB81: =IF((Y81=AB$2)*(Z81=AC$3)*(SUM($AB$6:AB80)=0),+Y81,0) -> 0 | AC81: 12 | AE81: =IF($AE$6=3,O81,SUM((CODE(MID(CONCATENATE(UPPER(M81),"aaaaaaaaaa"),{1;2},1))-30)*{1;0.01})) -> 37.67 | AF81: =COUNTIF($AE$7:$AE81,AE81) -> 20 | AH81: 55.47 | AI81: 55.47 | AJ81: =COUNTIF($AI$7:$AI81,AI81) -> 18 | AK81: =IF($AE$6=1,L81,OFFSET($L$1,SUMPRODUCT(--(OFFSET($AE$7,0,0,AuthorityCounter,1)=AI81),--(OFFSET($AF$7,0,0,AuthorityCounter,1)=COUNTIF($AI$7:AI81,AI81)),ROW(OFFSET($AF$7,0,0,AuthorityCounter,1)))-1,0)) -> Oxfordshire | AM81: =IF(VLOOKUP(AK81,colAM,IF($H$75="OC",8,5),FALSE)=1,MAX(AM$6:$AM80)+1,0) -> 75 | AN81: Oxfordshire | AO81: FALSE | AP81: =IF($AP$5,SUM(SUMPRODUCT(--AO$7:$AO81)*AO81,(SUMPRODUCT(--(AO$7:$AO81=FALSE))+SUMPRODUCT(--colAP))*(1-AO81)),ROW()-6) -> 75 | AQ81: Oxfordshire | AR81: Oxfordshire | IT81: Page 21: Number of Requests for Specific Items | IU81: #,##0 | IV81: =AB7 -> 0
A82: (P.06)[02]Number of Online Requests | B82: 270 | C82: 15 | D82: 30 | E82: Page 30: Number of Online Requests | G82: 3 | H82: UL | I82: London Authorities | J82: =COUNTIF($M$7:$M$360,Coding!H82) -> 30 | L82: Peterborough | M82: uu | O82: 11 | P82: =IF((ROW()-5=$G$36),1,IF((M82=Coding!$H$75)+(Coding!$H$75="ALL")+(Coding!$H$75="U")*OR(M82="W",M82="su",M82="L",M82="MD",M82="UA")+(Coding!$H$75="na")*AND(M82<>"W",M82<>"su",M82<>"L",M82<>"MD",M82<>"UA",M82<>"SC",M82<>"SD",M82<>"p"),1,0)) -> 1 | Q82: FALSE | R82: =IF(OR(NOT(ISERROR(MATCH(L82,OFFSET($H$410,$G$36-2,0,1,18),FALSE))),$G$75=L82),1,0+(($G$36=1)*($H$75="OC"))) -> 0 | S82: 1 | T82: 11 | V82: =IF((S82=1)*($J$6<22),INDEX($J$13:$J$33,SUM($S$7:S82),1),"") ->  | W82: =COUNTIF($T$7:T82,T82) -> 3 | Y82: 11 | Z82: =INDEX(V:V,SUMPRODUCT((OFFSET($T$7,0,0,AuthorityCounter2,1)=Y82)*1,(OFFSET($W$7,0,0,AuthorityCounter2,1)=COUNTIF($Y$7:Y82,Y82))*1,ROW(OFFSET($W$7,0,0,AuthorityCounter2,1)))) ->  | AA82: 18.6504065 | AB82: =IF((Y82=AB$2)*(Z82=AC$3)*(SUM($AB$6:AB81)=0),+Y82,0) -> 0 | AC82: 11 | AE82: =IF($AE$6=3,O82,SUM((CODE(MID(CONCATENATE(UPPER(M82),"aaaaaaaaaa"),{1;2},1))-30)*{1;0.01})) -> 55.55 | AF82: =COUNTIF($AE$7:$AE82,AE82) -> 24 | AH82: 55.47 | AI82: =IF(ISERROR(AH82),"na",AH82) -> 55.47 | AJ82: =COUNTIF($AI$7:$AI82,AI82) -> 19 | AK82: =IF($AE$6=1,L82,OFFSET($L$1,SUMPRODUCT(--(OFFSET($AE$7,0,0,AuthorityCounter,1)=AI82),--(OFFSET($AF$7,0,0,AuthorityCounter,1)=COUNTIF($AI$7:AI82,AI82)),ROW(OFFSET($AF$7,0,0,AuthorityCounter,1)))-1,0)) -> Peterborough | AM82: =IF(VLOOKUP(AK82,colAM,IF($H$75="OC",8,5),FALSE)=1,MAX(AM$6:$AM81)+1,0) -> 76 | AN82: Peterborough | AO82: FALSE | AP82: =IF($AP$5,SUM(SUMPRODUCT(--AO$7:$AO82)*AO82,(SUMPRODUCT(--(AO$7:$AO82=FALSE))+SUMPRODUCT(--colAP))*(1-AO82)),ROW()-6) -> 76 | AQ82: Peterborough | AR82: Peterborough | IT82: Page 21: Number of Online Requests | IU82: #,##0 | IV82: =AB7 -> 0
A83: (P.06)[03]Number of Enquiries | B83: 270 | C83: 16 | D83: 30 | E83: Page 30: Number of Enquiries | G83: 4 | H83: UM | I83: Metropolitan Districts | J83: =COUNTIF($M$7:$M$360,Coding!H83) -> 24 | L83: Plymouth | M83: uu | O83: 12 | P83: =IF((ROW()-5=$G$36),1,IF((M83=Coding!$H$75)+(Coding!$H$75="ALL")+(Coding!$H$75="U")*OR(M83="W",M83="su",M83="L",M83="MD",M83="UA")+(Coding!$H$75="na")*AND(M83<>"W",M83<>"su",M83<>"L",M83<>"MD",M83<>"UA",M83<>"SC",M83<>"SD",M83<>"p"),1,0)) -> 1 | Q83: FALSE | R83: =IF(OR(NOT(ISERROR(MATCH(L83,OFFSET($H$410,$G$36-2,0,1,18),FALSE))),$G$75=L83),1,0+(($G$36=1)*($H$75="OC"))) -> 0 | S83: 1 | T83: 12 | V83: =IF((S83=1)*($J$6<22),INDEX($J$13:$J$33,SUM($S$7:S83),1),"") ->  | W83: =COUNTIF($T$7:T83,T83) -> 6 | Y83: 11 | Z83: =INDEX(V:V,SUMPRODUCT((OFFSET($T$7,0,0,AuthorityCounter2,1)=Y83)*1,(OFFSET($W$7,0,0,AuthorityCounter2,1)=COUNTIF($Y$7:Y83,Y83))*1,ROW(OFFSET($W$7,0,0,AuthorityCounter2,1)))) ->  | AA83: 18.6504065 | AB83: =IF((Y83=AB$2)*(Z83=AC$3)*(SUM($AB$6:AB82)=0),+Y83,0) -> 0 | AC83: 11 | AE83: =IF($AE$6=3,O83,SUM((CODE(MID(CONCATENATE(UPPER(M83),"aaaaaaaaaa"),{1;2},1))-30)*{1;0.01})) -> 55.55 | AF83: =COUNTIF($AE$7:$AE83,AE83) -> 25 | AH83: 55.47 | AI83: 55.47 | AJ83: =COUNTIF($AI$7:$AI83,AI83) -> 20 | AK83: =IF($AE$6=1,L83,OFFSET($L$1,SUMPRODUCT(--(OFFSET($AE$7,0,0,AuthorityCounter,1)=AI83),--(OFFSET($AF$7,0,0,AuthorityCounter,1)=COUNTIF($AI$7:AI83,AI83)),ROW(OFFSET($AF$7,0,0,AuthorityCounter,1)))-1,0)) -> Plymouth | AM83: =IF(VLOOKUP(AK83,colAM,IF($H$75="OC",8,5),FALSE)=1,MAX(AM$6:$AM82)+1,0) -> 77 | AN83: Plymouth | AO83: FALSE | AP83: =IF($AP$5,SUM(SUMPRODUCT(--AO$7:$AO83)*AO83,(SUMPRODUCT(--(AO$7:$AO83=FALSE))+SUMPRODUCT(--colAP))*(1-AO83)),ROW()-6) -> 77 | AQ83: Plymouth | AR83: Plymouth | IT83: Page 21: Number of Enquiries | IU83: #,##0 | IV83: =AB7 -> 0
A84: (P.06)[04]Number of Online Enquiries | B84: 270 | C84: 17 | D84: 30 | E84: Page 30: Number of Online Enquiries | G84: 1 | H84: All | I84: All Members | J84: =COUNTIF($M$7:$M$360,Coding!H84) -> 0 | L84: Portsmouth | M84: uu | O84: 10 | P84: =IF((ROW()-5=$G$36),1,IF((M84=Coding!$H$75)+(Coding!$H$75="ALL")+(Coding!$H$75="U")*OR(M84="W",M84="su",M84="L",M84="MD",M84="UA")+(Coding!$H$75="na")*AND(M84<>"W",M84<>"su",M84<>"L",M84<>"MD",M84<>"UA",M84<>"SC",M84<>"SD",M84<>"p"),1,0)) -> 1 | Q84: FALSE | R84: =IF(OR(NOT(ISERROR(MATCH(L84,OFFSET($H$410,$G$36-2,0,1,18),FALSE))),$G$75=L84),1,0+(($G$36=1)*($H$75="OC"))) -> 0 | S84: 1 | T84: 10 | V84: =IF((S84=1)*($J$6<22),INDEX($J$13:$J$33,SUM($S$7:S84),1),"") ->  | W84: =COUNTIF($T$7:T84,T84) -> 5 | Y84: 11 | Z84: =INDEX(V:V,SUMPRODUCT((OFFSET($T$7,0,0,AuthorityCounter2,1)=Y84)*1,(OFFSET($W$7,0,0,AuthorityCounter2,1)=COUNTIF($Y$7:Y84,Y84))*1,ROW(OFFSET($W$7,0,0,AuthorityCounter2,1)))) ->  | AA84: 18.6504065 | AB84: =IF((Y84=AB$2)*(Z84=AC$3)*(SUM($AB$6:AB83)=0),+Y84,0) -> 0 | AC84: 11 | AE84: =IF($AE$6=3,O84,SUM((CODE(MID(CONCATENATE(UPPER(M84),"aaaaaaaaaa"),{1;2},1))-30)*{1;0.01})) -> 55.55 | AF84: =COUNTIF($AE$7:$AE84,AE84) -> 26 | AH84: 55.47 | AI84: 55.47 | AJ84: =COUNTIF($AI$7:$AI84,AI84) -> 21 | AK84: =IF($AE$6=1,L84,OFFSET($L$1,SUMPRODUCT(--(OFFSET($AE$7,0,0,AuthorityCounter,1)=AI84),--(OFFSET($AF$7,0,0,AuthorityCounter,1)=COUNTIF($AI$7:AI84,AI84)),ROW(OFFSET($AF$7,0,0,AuthorityCounter,1)))-1,0)) -> Portsmouth | AM84: =IF(VLOOKUP(AK84,colAM,IF($H$75="OC",8,5),FALSE)=1,MAX(AM$6:$AM83)+1,0) -> 78 | AN84: Portsmouth | AO84: FALSE | AP84: =IF($AP$5,SUM(SUMPRODUCT(--AO$7:$AO84)*AO84,(SUMPRODUCT(--(AO$7:$AO84=FALSE))+SUMPRODUCT(--colAP))*(1-AO84)),ROW()-6) -> 78 | AQ84: Portsmouth | AR84: Portsmouth | IT84: Page 21: Number of Online Enquiries | IU84: #,##0 | IV84: =AB7 -> 0
A85: (P.06)[05]Inter-Library Loans Supplied | B85: 270 | C85: 18 | D85: 30 | E85: Page 30: Inter-Library Loans Supplied | G85: 2 | H85: OC | I85: Original Comparators | J85: =COUNTIF($M$7:$M$360,Coding!H85) -> 0 | L85: Reading | M85: uu | O85: 8 | P85: =IF((ROW()-5=$G$36),1,IF((M85=Coding!$H$75)+(Coding!$H$75="ALL")+(Coding!$H$75="U")*OR(M85="W",M85="su",M85="L",M85="MD",M85="UA")+(Coding!$H$75="na")*AND(M85<>"W",M85<>"su",M85<>"L",M85<>"MD",M85<>"UA",M85<>"SC",M85<>"SD",M85<>"p"),1,0)) -> 1 | Q85: FALSE | R85: =IF(OR(NOT(ISERROR(MATCH(L85,OFFSET($H$410,$G$36-2,0,1,18),FALSE))),$G$75=L85),1,0+(($G$36=1)*($H$75="OC"))) -> 0 | S85: 1 | T85: 8 | V85: =IF((S85=1)*($J$6<22),INDEX($J$13:$J$33,SUM($S$7:S85),1),"") ->  | W85: =COUNTIF($T$7:T85,T85) -> 5 | Y85: 11 | Z85: =INDEX(V:V,SUMPRODUCT((OFFSET($T$7,0,0,AuthorityCounter2,1)=Y85)*1,(OFFSET($W$7,0,0,AuthorityCounter2,1)=COUNTIF($Y$7:Y85,Y85))*1,ROW(OFFSET($W$7,0,0,AuthorityCounter2,1)))) ->  | AA85: 18.6504065 | AB85: =IF((Y85=AB$2)*(Z85=AC$3)*(SUM($AB$6:AB84)=0),+Y85,0) -> 0 | AC85: 11 | AE85: =IF($AE$6=3,O85,SUM((CODE(MID(CONCATENATE(UPPER(M85),"aaaaaaaaaa"),{1;2},1))-30)*{1;0.01})) -> 55.55 | AF85: =COUNTIF($AE$7:$AE85,AE85) -> 27 | AH85: 55.47 | AI85: 55.47 | AJ85: =COUNTIF($AI$7:$AI85,AI85) -> 22 | AK85: =IF($AE$6=1,L85,OFFSET($L$1,SUMPRODUCT(--(OFFSET($AE$7,0,0,AuthorityCounter,1)=AI85),--(OFFSET($AF$7,0,0,AuthorityCounter,1)=COUNTIF($AI$7:AI85,AI85)),ROW(OFFSET($AF$7,0,0,AuthorityCounter,1)))-1,0)) -> Reading | AM85: =IF(VLOOKUP(AK85,colAM,IF($H$75="OC",8,5),FALSE)=1,MAX(AM$6:$AM84)+1,0) -> 79 | AN85: Reading | AO85: FALSE | AP85: =IF($AP$5,SUM(SUMPRODUCT(--AO$7:$AO85)*AO85,(SUMPRODUCT(--(AO$7:$AO85=FALSE))+SUMPRODUCT(--colAP))*(1-AO85)),ROW()-6) -> 79 | AQ85: Reading | AR85: Reading | IT85: Page 21: Supplied | IU85: #,##0.0 | IV85: =AB7 -> 0
A86: (P.06)[06]Inter-Library Loans Received | B86: 270 | C86: 19 | D86: 30 | E86: Page 30: Inter-Library Loans Received | L86: Redbridge | M86: ul | O86: 13 | P86: =IF((ROW()-5=$G$36),1,IF((M86=Coding!$H$75)+(Coding!$H$75="ALL")+(Coding!$H$75="U")*OR(M86="W",M86="su",M86="L",M86="MD",M86="UA")+(Coding!$H$75="na")*AND(M86<>"W",M86<>"su",M86<>"L",M86<>"MD",M86<>"UA",M86<>"SC",M86<>"SD",M86<>"p"),1,0)) -> 1 | Q86: FALSE | R86: =IF(OR(NOT(ISERROR(MATCH(L86,OFFSET($H$410,$G$36-2,0,1,18),FALSE))),$G$75=L86),1,0+(($G$36=1)*($H$75="OC"))) -> 0 | S86: 1 | T86: 13 | V86: =IF((S86=1)*($J$6<22),INDEX($J$13:$J$33,SUM($S$7:S86),1),"") ->  | W86: =COUNTIF($T$7:T86,T86) -> 4 | Y86: 11 | Z86: =INDEX(V:V,SUMPRODUCT((OFFSET($T$7,0,0,AuthorityCounter2,1)=Y86)*1,(OFFSET($W$7,0,0,AuthorityCounter2,1)=COUNTIF($Y$7:Y86,Y86))*1,ROW(OFFSET($W$7,0,0,AuthorityCounter2,1)))) ->  | AA86: 18.6504065 | AB86: =IF((Y86=AB$2)*(Z86=AC$3)*(SUM($AB$6:AB85)=0),+Y86,0) -> 0 | AC86: 11 | AE86: =IF($AE$6=3,O86,SUM((CODE(MID(CONCATENATE(UPPER(M86),"aaaaaaaaaa"),{1;2},1))-30)*{1;0.01})) -> 55.46 | AF86: =COUNTIF($AE$7:$AE86,AE86) -> 23 | AH86: 55.47 | AI86: 55.47 | AJ86: =COUNTIF($AI$7:$AI86,AI86) -> 23 | AK86: =IF($AE$6=1,L86,OFFSET($L$1,SUMPRODUCT(--(OFFSET($AE$7,0,0,AuthorityCounter,1)=AI86),--(OFFSET($AF$7,0,0,AuthorityCounter,1)=COUNTIF($AI$7:AI86,AI86)),ROW(OFFSET($AF$7,0,0,AuthorityCounter,1)))-1,0)) -> Redbridge | AM86: =IF(VLOOKUP(AK86,colAM,IF($H$75="OC",8,5),FALSE)=1,MAX(AM$6:$AM85)+1,0) -> 80 | AN86: Redbridge | AO86: FALSE | AP86: =IF($AP$5,SUM(SUMPRODUCT(--AO$7:$AO86)*AO86,(SUMPRODUCT(--(AO$7:$AO86=FALSE))+SUMPRODUCT(--colAP))*(1-AO86)),ROW()-6) -> 80 | AQ86: Redbridge | AR86: Redbridge | IT86: Page 21: Received | IU86: #,##0.00 | IV86: =AB7 -> 0
A87: (P.03)[01]Total Book Stock | B87: 405 | C87: 0 | D87: 33 | E87: Page 33: Total Book Stock | L87: Redcar & Cleveland | M87: uu | O87: 14 | P87: =IF((ROW()-5=$G$36),1,IF((M87=Coding!$H$75)+(Coding!$H$75="ALL")+(Coding!$H$75="U")*OR(M87="W",M87="su",M87="L",M87="MD",M87="UA")+(Coding!$H$75="na")*AND(M87<>"W",M87<>"su",M87<>"L",M87<>"MD",M87<>"UA",M87<>"SC",M87<>"SD",M87<>"p"),1,0)) -> 1 | Q87: FALSE | R87: =IF(OR(NOT(ISERROR(MATCH(L87,OFFSET($H$410,$G$36-2,0,1,18),FALSE))),$G$75=L87),1,0+(($G$36=1)*($H$75="OC"))) -> 0 | S87: 1 | T87: 14 | V87: =IF((S87=1)*($J$6<22),INDEX($J$13:$J$33,SUM($S$7:S87),1),"") ->  | W87: =COUNTIF($T$7:T87,T87) -> 4 | Y87: 11 | Z87: =INDEX(V:V,SUMPRODUCT((OFFSET($T$7,0,0,AuthorityCounter2,1)=Y87)*1,(OFFSET($W$7,0,0,AuthorityCounter2,1)=COUNTIF($Y$7:Y87,Y87))*1,ROW(OFFSET($W$7,0,0,AuthorityCounter2,1)))) ->  | AA87: 18.6504065 | AB87: =IF((Y87=AB$2)*(Z87=AC$3)*(SUM($AB$6:AB86)=0),+Y87,0) -> 0 | AC87: 11 | AE87: =IF($AE$6=3,O87,SUM((CODE(MID(CONCATENATE(UPPER(M87),"aaaaaaaaaa"),{1;2},1))-30)*{1;0.01})) -> 55.55 | AF87: =COUNTIF($AE$7:$AE87,AE87) -> 28 | AH87: 55.47 | AI87: 55.47 | AJ87: =COUNTIF($AI$7:$AI87,AI87) -> 24 | AK87: =IF($AE$6=1,L87,OFFSET($L$1,SUMPRODUCT(--(OFFSET($AE$7,0,0,AuthorityCounter,1)=AI87),--(OFFSET($AF$7,0,0,AuthorityCounter,1)=COUNTIF($AI$7:AI87,AI87)),ROW(OFFSET($AF$7,0,0,AuthorityCounter,1)))-1,0)) -> Redcar & Cleveland | AM87: =IF(VLOOKUP(AK87,colAM,IF($H$75="OC",8,5),FALSE)=1,MAX(AM$6:$AM86)+1,0) -> 81 | AN87: Redcar & Cleveland | AO87: FALSE | AP87: =IF($AP$5,SUM(SUMPRODUCT(--AO$7:$AO87)*AO87,(SUMPRODUCT(--(AO$7:$AO87=FALSE))+SUMPRODUCT(--colAP))*(1-AO87)),ROW()-6) -> 81 | AQ87: Redcar & Cleveland | AR87: Redcar & Cleveland | IT87: Page 22: Total Book Stock | IU87: #,##0 | IV87: =AB7 -> 0
A88: (P.03)[02]Reference Book Stock | B88: 405 | C88: 1 | D88: 33 | E88: Page 33: Reference Book Stock | L88: Richmond-upon-Thames | M88: ul | O88: 13 | P88: =IF((ROW()-5=$G$36),1,IF((M88=Coding!$H$75)+(Coding!$H$75="ALL")+(Coding!$H$75="U")*OR(M88="W",M88="su",M88="L",M88="MD",M88="UA")+(Coding!$H$75="na")*AND(M88<>"W",M88<>"su",M88<>"L",M88<>"MD",M88<>"UA",M88<>"SC",M88<>"SD",M88<>"p"),1,0)) -> 1 | Q88: FALSE | R88: =IF(OR(NOT(ISERROR(MATCH(L88,OFFSET($H$410,$G$36-2,0,1,18),FALSE))),$G$75=L88),1,0+(($G$36=1)*($H$75="OC"))) -> 0 | S88: 1 | T88: 13 | V88: =IF((S88=1)*($J$6<22),INDEX($J$13:$J$33,SUM($S$7:S88),1),"") ->  | W88: =COUNTIF($T$7:T88,T88) -> 5 | Y88: 11 | Z88: =INDEX(V:V,SUMPRODUCT((OFFSET($T$7,0,0,AuthorityCounter2,1)=Y88)*1,(OFFSET($W$7,0,0,AuthorityCounter2,1)=COUNTIF($Y$7:Y88,Y88))*1,ROW(OFFSET($W$7,0,0,AuthorityCounter2,1)))) ->  | AA88: 18.6504065 | AB88: =IF((Y88=AB$2)*(Z88=AC$3)*(SUM($AB$6:AB87)=0),+Y88,0) -> 0 | AC88: 11 | AE88: =IF($AE$6=3,O88,SUM((CODE(MID(CONCATENATE(UPPER(M88),"aaaaaaaaaa"),{1;2},1))-30)*{1;0.01})) -> 55.46 | AF88: =COUNTIF($AE$7:$AE88,AE88) -> 24 | AH88: 55.55 | AI88: 55.55 | AJ88: =COUNTIF($AI$7:$AI88,AI88) -> 1 | AK88: =IF($AE$6=1,L88,OFFSET($L$1,SUMPRODUCT(--(OFFSET($AE$7,0,0,AuthorityCounter,1)=AI88),--(OFFSET($AF$7,0,0,AuthorityCounter,1)=COUNTIF($AI$7:AI88,AI88)),ROW(OFFSET($AF$7,0,0,AuthorityCounter,1)))-1,0)) -> Richmond-upon-Thames | AM88: =IF(VLOOKUP(AK88,colAM,IF($H$75="OC",8,5),FALSE)=1,MAX(AM$6:$AM87)+1,0) -> 82 | AN88: Richmond-upon-Thames | AO88: FALSE | AP88: =IF($AP$5,SUM(SUMPRODUCT(--AO$7:$AO88)*AO88,(SUMPRODUCT(--(AO$7:$AO88=FALSE))+SUMPRODUCT(--colAP))*(1-AO88)),ROW()-6) -> 82 | AQ88: Richmond-upon-Thames | AR88: Richmond-upon-Thames | IT88: Page 22: Reference Book Stock | IU88: #,##0 | IV88: =AB7 -> 0
A89: (P.03)[03]Adult Fiction Stock | B89: 405 | C89: 2 | D89: 33 | E89: Page 33: Adult Fiction Stock | L89: Rochdale | M89: um | O89: 17 | P89: =IF((ROW()-5=$G$36),1,IF((M89=Coding!$H$75)+(Coding!$H$75="ALL")+(Coding!$H$75="U")*OR(M89="W",M89="su",M89="L",M89="MD",M89="UA")+(Coding!$H$75="na")*AND(M89<>"W",M89<>"su",M89<>"L",M89<>"MD",M89<>"UA",M89<>"SC",M89<>"SD",M89<>"p"),1,0)) -> 1 | Q89: FALSE | R89: =IF(OR(NOT(ISERROR(MATCH(L89,OFFSET($H$410,$G$36-2,0,1,18),FALSE))),$G$75=L89),1,0+(($G$36=1)*($H$75="OC"))) -> 0 | S89: 1 | T89: 17 | V89: =IF((S89=1)*($J$6<22),INDEX($J$13:$J$33,SUM($S$7:S89),1),"") ->  | W89: =COUNTIF($T$7:T89,T89) -> 5 | Y89: 11 | Z89: =INDEX(V:V,SUMPRODUCT((OFFSET($T$7,0,0,AuthorityCounter2,1)=Y89)*1,(OFFSET($W$7,0,0,AuthorityCounter2,1)=COUNTIF($Y$7:Y89,Y89))*1,ROW(OFFSET($W$7,0,0,AuthorityCounter2,1)))) ->  | AA89: 18.6504065 | AB89: =IF((Y89=AB$2)*(Z89=AC$3)*(SUM($AB$6:AB88)=0),+Y89,0) -> 0 | AC89: 11 | AE89: =IF($AE$6=3,O89,SUM((CODE(MID(CONCATENATE(UPPER(M89),"aaaaaaaaaa"),{1;2},1))-30)*{1;0.01})) -> 55.47 | AF89: =COUNTIF($AE$7:$AE89,AE89) -> 11 | AH89: 55.55 | AI89: 55.55 | AJ89: =COUNTIF($AI$7:$AI89,AI89) -> 2 | AK89: =IF($AE$6=1,L89,OFFSET($L$1,SUMPRODUCT(--(OFFSET($AE$7,0,0,AuthorityCounter,1)=AI89),--(OFFSET($AF$7,0,0,AuthorityCounter,1)=COUNTIF($AI$7:AI89,AI89)),ROW(OFFSET($AF$7,0,0,AuthorityCounter,1)))-1,0)) -> Rochdale | AM89: =IF(VLOOKUP(AK89,colAM,IF($H$75="OC",8,5),FALSE)=1,MAX(AM$6:$AM88)+1,0) -> 83 | AN89: Rochdale | AO89: FALSE | AP89: =IF($AP$5,SUM(SUMPRODUCT(--AO$7:$AO89)*AO89,(SUMPRODUCT(--(AO$7:$AO89=FALSE))+SUMPRODUCT(--colAP))*(1-AO89)),ROW()-6) -> 83 | AQ89: Rochdale | AR89: Rochdale | IT89: Page 22: Adult Fiction Stock | IU89: #,##0 | IV89: =AB7 -> 0
A90: (P.03)[04]Adult Non-Fiction Stock | B90: 405 | C90: 3 | D90: 33 | E90: Page 33: Adult Non-Fiction Stock | L90: Rotherham | M90: um | O90: 16 | P90: =IF((ROW()-5=$G$36),1,IF((M90=Coding!$H$75)+(Coding!$H$75="ALL")+(Coding!$H$75="U")*OR(M90="W",M90="su",M90="L",M90="MD",M90="UA")+(Coding!$H$75="na")*AND(M90<>"W",M90<>"su",M90<>"L",M90<>"MD",M90<>"UA",M90<>"SC",M90<>"SD",M90<>"p"),1,0)) -> 1 | Q90: FALSE | R90: =IF(OR(NOT(ISERROR(MATCH(L90,OFFSET($H$410,$G$36-2,0,1,18),FALSE))),$G$75=L90),1,0+(($G$36=1)*($H$75="OC"))) -> 0 | S90: 1 | T90: 16 | V90: =IF((S90=1)*($J$6<22),INDEX($J$13:$J$33,SUM($S$7:S90),1),"") ->  | W90: =COUNTIF($T$7:T90,T90) -> 7 | Y90: 10 | Z90: =INDEX(V:V,SUMPRODUCT((OFFSET($T$7,0,0,AuthorityCounter2,1)=Y90)*1,(OFFSET($W$7,0,0,AuthorityCounter2,1)=COUNTIF($Y$7:Y90,Y90))*1,ROW(OFFSET($W$7,0,0,AuthorityCounter2,1)))) ->  | AA90: 18.6504065 | AB90: =IF((Y90=AB$2)*(Z90=AC$3)*(SUM($AB$6:AB89)=0),+Y90,0) -> 0 | AC90: 10 | AE90: =IF($AE$6=3,O90,SUM((CODE(MID(CONCATENATE(UPPER(M90),"aaaaaaaaaa"),{1;2},1))-30)*{1;0.01})) -> 55.47 | AF90: =COUNTIF($AE$7:$AE90,AE90) -> 12 | AH90: 55.55 | AI90: 55.55 | AJ90: =COUNTIF($AI$7:$AI90,AI90) -> 3 | AK90: =IF($AE$6=1,L90,OFFSET($L$1,SUMPRODUCT(--(OFFSET($AE$7,0,0,AuthorityCounter,1)=AI90),--(OFFSET($AF$7,0,0,AuthorityCounter,1)=COUNTIF($AI$7:AI90,AI90)),ROW(OFFSET($AF$7,0,0,AuthorityCounter,1)))-1,0)) -> Rotherham | AM90: =IF(VLOOKUP(AK90,colAM,IF($H$75="OC",8,5),FALSE)=1,MAX(AM$6:$AM89)+1,0) -> 84 | AN90: Rotherham | AO90: FALSE | AP90: =IF($AP$5,SUM(SUMPRODUCT(--AO$7:$AO90)*AO90,(SUMPRODUCT(--(AO$7:$AO90=FALSE))+SUMPRODUCT(--colAP))*(1-AO90)),ROW()-6) -> 84 | AQ90: Rotherham | AR90: Rotherham | IT90: Page 22: Adult Non-Fiction Stock | IU90: #,##0 | IV90: =AB7 -> 0
A91: (P.03)[05]Children's Fiction Stock | B91: 405 | C91: 4 | D91: 33 | E91: Page 33: Children's Fiction Stock | L91: Rutland | M91: uu | O91: 5 | P91: =IF((ROW()-5=$G$36),1,IF((M91=Coding!$H$75)+(Coding!$H$75="ALL")+(Coding!$H$75="U")*OR(M91="W",M91="su",M91="L",M91="MD",M91="UA")+(Coding!$H$75="na")*AND(M91<>"W",M91<>"su",M91<>"L",M91<>"MD",M91<>"UA",M91<>"SC",M91<>"SD",M91<>"p"),1,0)) -> 1 | Q91: FALSE | R91: =IF(OR(NOT(ISERROR(MATCH(L91,OFFSET($H$410,$G$36-2,0,1,18),FALSE))),$G$75=L91),1,0+(($G$36=1)*($H$75="OC"))) -> 0 | S91: 1 | T91: 5 | V91: =IF((S91=1)*($J$6<22),INDEX($J$13:$J$33,SUM($S$7:S91),1),"") ->  | W91: =COUNTIF($T$7:T91,T91) -> 2 | Y91: 10 | Z91: =INDEX(V:V,SUMPRODUCT((OFFSET($T$7,0,0,AuthorityCounter2,1)=Y91)*1,(OFFSET($W$7,0,0,AuthorityCounter2,1)=COUNTIF($Y$7:Y91,Y91))*1,ROW(OFFSET($W$7,0,0,AuthorityCounter2,1)))) ->  | AA91: 18.6504065 | AB91: =IF((Y91=AB$2)*(Z91=AC$3)*(SUM($AB$6:AB90)=0),+Y91,0) -> 0 | AC91: 10 | AE91: =IF($AE$6=3,O91,SUM((CODE(MID(CONCATENATE(UPPER(M91),"aaaaaaaaaa"),{1;2},1))-30)*{1;0.01})) -> 55.55 | AF91: =COUNTIF($AE$7:$AE91,AE91) -> 29 | AH91: 55.55 | AI91: 55.55 | AJ91: =COUNTIF($AI$7:$AI91,AI91) -> 4 | AK91: =IF($AE$6=1,L91,OFFSET($L$1,SUMPRODUCT(--(OFFSET($AE$7,0,0,AuthorityCounter,1)=AI91),--(OFFSET($AF$7,0,0,AuthorityCounter,1)=COUNTIF($AI$7:AI91,AI91)),ROW(OFFSET($AF$7,0,0,AuthorityCounter,1)))-1,0)) -> Rutland | AM91: =IF(VLOOKUP(AK91,colAM,IF($H$75="OC",8,5),FALSE)=1,MAX(AM$6:$AM90)+1,0) -> 85 | AN91: Rutland | AO91: FALSE | AP91: =IF($AP$5,SUM(SUMPRODUCT(--AO$7:$AO91)*AO91,(SUMPRODUCT(--(AO$7:$AO91=FALSE))+SUMPRODUCT(--colAP))*(1-AO91)),ROW()-6) -> 85 | AQ91: Rutland | AR91: Rutland | IT91: Page 22: Children's Fiction Stock | IU91: #,##0 | IV91: =AB7 -> 0
A92: (P.03)[06]Children's Non-Fiction Stock | B92: 405 | C92: 5 | D92: 33 | E92: Page 33: Children's Non-Fiction Stock | L92: Salford | M92: um | O92: 16 | P92: =IF((ROW()-5=$G$36),1,IF((M92=Coding!$H$75)+(Coding!$H$75="ALL")+(Coding!$H$75="U")*OR(M92="W",M92="su",M92="L",M92="MD",M92="UA")+(Coding!$H$75="na")*AND(M92<>"W",M92<>"su",M92<>"L",M92<>"MD",M92<>"UA",M92<>"SC",M92<>"SD",M92<>"p"),1,0)) -> 1 | Q92: FALSE | R92: =IF(OR(NOT(ISERROR(MATCH(L92,OFFSET($H$410,$G$36-2,0,1,18),FALSE))),$G$75=L92),1,0+(($G$36=1)*($H$75="OC"))) -> 0 | S92: 1 | T92: 16 | V92: =IF((S92=1)*($J$6<22),INDEX($J$13:$J$33,SUM($S$7:S92),1),"") ->  | W92: =COUNTIF($T$7:T92,T92) -> 8 | Y92: 10 | Z92: =INDEX(V:V,SUMPRODUCT((OFFSET($T$7,0,0,AuthorityCounter2,1)=Y92)*1,(OFFSET($W$7,0,0,AuthorityCounter2,1)=COUNTIF($Y$7:Y92,Y92))*1,ROW(OFFSET($W$7,0,0,AuthorityCounter2,1)))) ->  | AA92: 18.6504065 | AB92: =IF((Y92=AB$2)*(Z92=AC$3)*(SUM($AB$6:AB91)=0),+Y92,0) -> 0 | AC92: 10 | AE92: =IF($AE$6=3,O92,SUM((CODE(MID(CONCATENATE(UPPER(M92),"aaaaaaaaaa"),{1;2},1))-30)*{1;0.01})) -> 55.47 | AF92: =COUNTIF($AE$7:$AE92,AE92) -> 13 | AH92: 55.55 | AI92: 55.55 | AJ92: =COUNTIF($AI$7:$AI92,AI92) -> 5 | AK92: =IF($AE$6=1,L92,OFFSET($L$1,SUMPRODUCT(--(OFFSET($AE$7,0,0,AuthorityCounter,1)=AI92),--(OFFSET($AF$7,0,0,AuthorityCounter,1)=COUNTIF($AI$7:AI92,AI92)),ROW(OFFSET($AF$7,0,0,AuthorityCounter,1)))-1,0)) -> Salford | AM92: =IF(VLOOKUP(AK92,colAM,IF($H$75="OC",8,5),FALSE)=1,MAX(AM$6:$AM91)+1,0) -> 86 | AN92: Salford | AO92: FALSE | AP92: =IF($AP$5,SUM(SUMPRODUCT(--AO$7:$AO92)*AO92,(SUMPRODUCT(--(AO$7:$AO92=FALSE))+SUMPRODUCT(--colAP))*(1-AO92)),ROW()-6) -> 86 | AQ92: Salford | AR92: Salford | IT92: Page 22: Children's Non-Fiction Stock | IU92: #,##0 | IV92: =AB7 -> 0
A93: (P.03)[07]Reserve Stock | B93: 405 | C93: 6 | D93: 33 | E93: Page 33: Reserve Stock | H93: Comparator Group Table | L93: Sandwell | M93: um | O93: 20 | P93: =IF((ROW()-5=$G$36),1,IF((M93=Coding!$H$75)+(Coding!$H$75="ALL")+(Coding!$H$75="U")*OR(M93="W",M93="su",M93="L",M93="MD",M93="UA")+(Coding!$H$75="na")*AND(M93<>"W",M93<>"su",M93<>"L",M93<>"MD",M93<>"UA",M93<>"SC",M93<>"SD",M93<>"p"),1,0)) -> 1 | Q93: FALSE | R93: =IF(OR(NOT(ISERROR(MATCH(L93,OFFSET($H$410,$G$36-2,0,1,18),FALSE))),$G$75=L93),1,0+(($G$36=1)*($H$75="OC"))) -> 0 | S93: 1 | T93: 20 | V93: =IF((S93=1)*($J$6<22),INDEX($J$13:$J$33,SUM($S$7:S93),1),"") ->  | W93: =COUNTIF($T$7:T93,T93) -> 1 | Y93: 10 | Z93: =INDEX(V:V,SUMPRODUCT((OFFSET($T$7,0,0,AuthorityCounter2,1)=Y93)*1,(OFFSET($W$7,0,0,AuthorityCounter2,1)=COUNTIF($Y$7:Y93,Y93))*1,ROW(OFFSET($W$7,0,0,AuthorityCounter2,1)))) ->  | AA93: 18.6504065 | AB93: =IF((Y93=AB$2)*(Z93=AC$3)*(SUM($AB$6:AB92)=0),+Y93,0) -> 0 | AC93: 10 | AE93: =IF($AE$6=3,O93,SUM((CODE(MID(CONCATENATE(UPPER(M93),"aaaaaaaaaa"),{1;2},1))-30)*{1;0.01})) -> 55.47 | AF93: =COUNTIF($AE$7:$AE93,AE93) -> 14 | AH93: 55.55 | AI93: 55.55 | AJ93: =COUNTIF($AI$7:$AI93,AI93) -> 6 | AK93: =IF($AE$6=1,L93,OFFSET($L$1,SUMPRODUCT(--(OFFSET($AE$7,0,0,AuthorityCounter,1)=AI93),--(OFFSET($AF$7,0,0,AuthorityCounter,1)=COUNTIF($AI$7:AI93,AI93)),ROW(OFFSET($AF$7,0,0,AuthorityCounter,1)))-1,0)) -> Sandwell | AM93: =IF(VLOOKUP(AK93,colAM,IF($H$75="OC",8,5),FALSE)=1,MAX(AM$6:$AM92)+1,0) -> 87 | AN93: Sandwell | AO93: FALSE | AP93: =IF($AP$5,SUM(SUMPRODUCT(--AO$7:$AO93)*AO93,(SUMPRODUCT(--(AO$7:$AO93=FALSE))+SUMPRODUCT(--colAP))*(1-AO93)),ROW()-6) -> 87 | AQ93: Sandwell | AR93: Sandwell | IT93: Page 22: Reserve Stock | IU93: #,##0 | IV93: =AB7 -> 0
A94: (P.05)[01]Total Audio Visual Stock | B94: 405 | C94: 7 | D94: 35 | E94: Page 35: Total Audio Visual Stock | G94: 1 | H94: =VLOOKUP(G94,$G$79:$J$89,2,FALSE) -> All | I94: =VLOOKUP(G94,$G$79:$J$89,3,FALSE) -> All Members | L94: Sefton | M94: um | O94: 6 | P94: =IF((ROW()-5=$G$36),1,IF((M94=Coding!$H$75)+(Coding!$H$75="ALL")+(Coding!$H$75="U")*OR(M94="W",M94="su",M94="L",M94="MD",M94="UA")+(Coding!$H$75="na")*AND(M94<>"W",M94<>"su",M94<>"L",M94<>"MD",M94<>"UA",M94<>"SC",M94<>"SD",M94<>"p"),1,0)) -> 1 | Q94: FALSE | R94: =IF(OR(NOT(ISERROR(MATCH(L94,OFFSET($H$410,$G$36-2,0,1,18),FALSE))),$G$75=L94),1,0+(($G$36=1)*($H$75="OC"))) -> 0 | S94: 1 | T94: 6 | V94: =IF((S94=1)*($J$6<22),INDEX($J$13:$J$33,SUM($S$7:S94),1),"") ->  | W94: =COUNTIF($T$7:T94,T94) -> 7 | Y94: 10 | Z94: =INDEX(V:V,SUMPRODUCT((OFFSET($T$7,0,0,AuthorityCounter2,1)=Y94)*1,(OFFSET($W$7,0,0,AuthorityCounter2,1)=COUNTIF($Y$7:Y94,Y94))*1,ROW(OFFSET($W$7,0,0,AuthorityCounter2,1)))) ->  | AA94: 18.6504065 | AB94: =IF((Y94=AB$2)*(Z94=AC$3)*(SUM($AB$6:AB93)=0),+Y94,0) -> 0 | AC94: 10 | AE94: =IF($AE$6=3,O94,SUM((CODE(MID(CONCATENATE(UPPER(M94),"aaaaaaaaaa"),{1;2},1))-30)*{1;0.01})) -> 55.47 | AF94: =COUNTIF($AE$7:$AE94,AE94) -> 15 | AH94: 55.55 | AI94: 55.55 | AJ94: =COUNTIF($AI$7:$AI94,AI94) -> 7 | AK94: =IF($AE$6=1,L94,OFFSET($L$1,SUMPRODUCT(--(OFFSET($AE$7,0,0,AuthorityCounter,1)=AI94),--(OFFSET($AF$7,0,0,AuthorityCounter,1)=COUNTIF($AI$7:AI94,AI94)),ROW(OFFSET($AF$7,0,0,AuthorityCounter,1)))-1,0)) -> Sefton | AM94: =IF(VLOOKUP(AK94,colAM,IF($H$75="OC",8,5),FALSE)=1,MAX(AM$6:$AM93)+1,0) -> 88 | AN94: Sefton | AO94: FALSE | AP94: =IF($AP$5,SUM(SUMPRODUCT(--AO$7:$AO94)*AO94,(SUMPRODUCT(--(AO$7:$AO94=FALSE))+SUMPRODUCT(--colAP))*(1-AO94)),ROW()-6) -> 88 | AQ94: Sefton | AR94: Sefton | IT94: Page 23: Total Audio Visual Stock | IU94: #,##0 | IV94: =AB7 -> 0
A95: (P.06)[01]Music, Videos and DVDs; Multi-media and Open Learning Packs; CD-ROMs and Software Stock | B95: 405 | C95: 8 | D95: 36 | E95: Page 36: Music, Videos and DVDs; Multi-media and Open Learning Packs; CD-ROMs and Software Stock | G95: 2 | H95: OC | I95: Original Comparators | L95: Sheffield | M95: um | O95: 12 | P95: =IF((ROW()-5=$G$36),1,IF((M95=Coding!$H$75)+(Coding!$H$75="ALL")+(Coding!$H$75="U")*OR(M95="W",M95="su",M95="L",M95="MD",M95="UA")+(Coding!$H$75="na")*AND(M95<>"W",M95<>"su",M95<>"L",M95<>"MD",M95<>"UA",M95<>"SC",M95<>"SD",M95<>"p"),1,0)) -> 1 | Q95: FALSE | R95: =IF(OR(NOT(ISERROR(MATCH(L95,OFFSET($H$410,$G$36-2,0,1,18),FALSE))),$G$75=L95),1,0+(($G$36=1)*($H$75="OC"))) -> 0 | S95: 1 | T95: 12 | V95: =IF((S95=1)*($J$6<22),INDEX($J$13:$J$33,SUM($S$7:S95),1),"") ->  | W95: =COUNTIF($T$7:T95,T95) -> 7 | Y95: 10 | Z95: =INDEX(V:V,SUMPRODUCT((OFFSET($T$7,0,0,AuthorityCounter2,1)=Y95)*1,(OFFSET($W$7,0,0,AuthorityCounter2,1)=COUNTIF($Y$7:Y95,Y95))*1,ROW(OFFSET($W$7,0,0,AuthorityCounter2,1)))) ->  | AA95: 18.6504065 | AB95: =IF((Y95=AB$2)*(Z95=AC$3)*(SUM($AB$6:AB94)=0),+Y95,0) -> 0 | AC95: 10 | AE95: =IF($AE$6=3,O95,SUM((CODE(MID(CONCATENATE(UPPER(M95),"aaaaaaaaaa"),{1;2},1))-30)*{1;0.01})) -> 55.47 | AF95: =COUNTIF($AE$7:$AE95,AE95) -> 16 | AH95: 55.55 | AI95: 55.55 | AJ95: =COUNTIF($AI$7:$AI95,AI95) -> 8 | AK95: =IF($AE$6=1,L95,OFFSET($L$1,SUMPRODUCT(--(OFFSET($AE$7,0,0,AuthorityCounter,1)=AI95),--(OFFSET($AF$7,0,0,AuthorityCounter,1)=COUNTIF($AI$7:AI95,AI95)),ROW(OFFSET($AF$7,0,0,AuthorityCounter,1)))-1,0)) -> Sheffield | AM95: =IF(VLOOKUP(AK95,colAM,IF($H$75="OC",8,5),FALSE)=1,MAX(AM$6:$AM94)+1,0) -> 89 | AN95: Sheffield | AO95: FALSE | AP95: =IF($AP$5,SUM(SUMPRODUCT(--AO$7:$AO95)*AO95,(SUMPRODUCT(--(AO$7:$AO95=FALSE))+SUMPRODUCT(--colAP))*(1-AO95)),ROW()-6) -> 89 | AQ95: Sheffield | AR95: Sheffield | IT95: Page 24: Music, Videos and DVDs; Multi-media and Open Learning Packs; CD-ROMs and Software Stock | IU95: #,##0 | IV95: =AB7 -> 0
A96: (P.06)[02]Adult Talking Book Stock | B96: 405 | C96: 9 | D96: 36 | E96: Page 36: Adult Talking Book Stock | G96: 3 | H96: UL | I96: London Authorities | L96: Shropshire | M96: uu | O96: 24 | P96: =IF((ROW()-5=$G$36),1,IF((M96=Coding!$H$75)+(Coding!$H$75="ALL")+(Coding!$H$75="U")*OR(M96="W",M96="su",M96="L",M96="MD",M96="UA")+(Coding!$H$75="na")*AND(M96<>"W",M96<>"su",M96<>"L",M96<>"MD",M96<>"UA",M96<>"SC",M96<>"SD",M96<>"p"),1,0)) -> 1 | Q96: FALSE | R96: =IF(OR(NOT(ISERROR(MATCH(L96,OFFSET($H$410,$G$36-2,0,1,18),FALSE))),$G$75=L96),1,0+(($G$36=1)*($H$75="OC"))) -> 0 | S96: 1 | T96: 24 | V96: =IF((S96=1)*($J$6<22),INDEX($J$13:$J$33,SUM($S$7:S96),1),"") ->  | W96: =COUNTIF($T$7:T96,T96) -> 1 | Y96: 9 | Z96: =INDEX(V:V,SUMPRODUCT((OFFSET($T$7,0,0,AuthorityCounter2,1)=Y96)*1,(OFFSET($W$7,0,0,AuthorityCounter2,1)=COUNTIF($Y$7:Y96,Y96))*1,ROW(OFFSET($W$7,0,0,AuthorityCounter2,1)))) ->  | AA96: 18.6504065 | AB96: =IF((Y96=AB$2)*(Z96=AC$3)*(SUM($AB$6:AB95)=0),+Y96,0) -> 0 | AC96: 9 | AE96: =IF($AE$6=3,O96,SUM((CODE(MID(CONCATENATE(UPPER(M96),"aaaaaaaaaa"),{1;2},1))-30)*{1;0.01})) -> 55.55 | AF96: =COUNTIF($AE$7:$AE96,AE96) -> 30 | AH96: 55.55 | AI96: 55.55 | AJ96: =COUNTIF($AI$7:$AI96,AI96) -> 9 | AK96: =IF($AE$6=1,L96,OFFSET($L$1,SUMPRODUCT(--(OFFSET($AE$7,0,0,AuthorityCounter,1)=AI96),--(OFFSET($AF$7,0,0,AuthorityCounter,1)=COUNTIF($AI$7:AI96,AI96)),ROW(OFFSET($AF$7,0,0,AuthorityCounter,1)))-1,0)) -> Shropshire | AM96: =IF(VLOOKUP(AK96,colAM,IF($H$75="OC",8,5),FALSE)=1,MAX(AM$6:$AM95)+1,0) -> 90 | AN96: Shropshire | AO96: FALSE | AP96: =IF($AP$5,SUM(SUMPRODUCT(--AO$7:$AO96)*AO96,(SUMPRODUCT(--(AO$7:$AO96=FALSE))+SUMPRODUCT(--colAP))*(1-AO96)),ROW()-6) -> 90 | AQ96: Shropshire | AR96: Shropshire | IT96: Page 24: Adult Talking Book Stock | IU96: #,##0 | IV96: =AB7 -> 0
A97: (P.06)[03]Children's Talking Book Stock | B97: 405 | C97: 10 | D97: 36 | E97: Page 36: Children's Talking Book Stock | G97: 4 | H97: UM | I97: Metropolitan Districts | L97: Slough | M97: uu | O97: 4 | P97: =IF((ROW()-5=$G$36),1,IF((M97=Coding!$H$75)+(Coding!$H$75="ALL")+(Coding!$H$75="U")*OR(M97="W",M97="su",M97="L",M97="MD",M97="UA")+(Coding!$H$75="na")*AND(M97<>"W",M97<>"su",M97<>"L",M97<>"MD",M97<>"UA",M97<>"SC",M97<>"SD",M97<>"p"),1,0)) -> 1 | Q97: FALSE | R97: =IF(OR(NOT(ISERROR(MATCH(L97,OFFSET($H$410,$G$36-2,0,1,18),FALSE))),$G$75=L97),1,0+(($G$36=1)*($H$75="OC"))) -> 0 | S97: 1 | T97: 4 | V97: =IF((S97=1)*($J$6<22),INDEX($J$13:$J$33,SUM($S$7:S97),1),"") ->  | W97: =COUNTIF($T$7:T97,T97) -> 5 | Y97: 9 | Z97: =INDEX(V:V,SUMPRODUCT((OFFSET($T$7,0,0,AuthorityCounter2,1)=Y97)*1,(OFFSET($W$7,0,0,AuthorityCounter2,1)=COUNTIF($Y$7:Y97,Y97))*1,ROW(OFFSET($W$7,0,0,AuthorityCounter2,1)))) ->  | AA97: 18.6504065 | AB97: =IF((Y97=AB$2)*(Z97=AC$3)*(SUM($AB$6:AB96)=0),+Y97,0) -> 0 | AC97: 9 | AE97: =IF($AE$6=3,O97,SUM((CODE(MID(CONCATENATE(UPPER(M97),"aaaaaaaaaa"),{1;2},1))-30)*{1;0.01})) -> 55.55 | AF97: =COUNTIF($AE$7:$AE97,AE97) -> 31 | AH97: 55.55 | AI97: 55.55 | AJ97: =COUNTIF($AI$7:$AI97,AI97) -> 10 | AK97: =IF($AE$6=1,L97,OFFSET($L$1,SUMPRODUCT(--(OFFSET($AE$7,0,0,AuthorityCounter,1)=AI97),--(OFFSET($AF$7,0,0,AuthorityCounter,1)=COUNTIF($AI$7:AI97,AI97)),ROW(OFFSET($AF$7,0,0,AuthorityCounter,1)))-1,0)) -> Slough | AM97: =IF(VLOOKUP(AK97,colAM,IF($H$75="OC",8,5),FALSE)=1,MAX(AM$6:$AM96)+1,0) -> 91 | AN97: Slough | AO97: FALSE | AP97: =IF($AP$5,SUM(SUMPRODUCT(--AO$7:$AO97)*AO97,(SUMPRODUCT(--(AO$7:$AO97=FALSE))+SUMPRODUCT(--colAP))*(1-AO97)),ROW()-6) -> 91 | AQ97: Slough | AR97: Slough | IT97: Page 24: Children's Talking Book Stock | IU97: #,##0 | IV97: =AB7 -> 0
A98: (P.06)[04]Reserve stock | B98: 405 | C98: 11 | D98: 36 | E98: Page 36: Reserve stock | G98: 5 | H98: UU | I98: English Unitaries | L98: Solihull | M98: um | O98: 14 | P98: =IF((ROW()-5=$G$36),1,IF((M98=Coding!$H$75)+(Coding!$H$75="ALL")+(Coding!$H$75="U")*OR(M98="W",M98="su",M98="L",M98="MD",M98="UA")+(Coding!$H$75="na")*AND(M98<>"W",M98<>"su",M98<>"L",M98<>"MD",M98<>"UA",M98<>"SC",M98<>"SD",M98<>"p"),1,0)) -> 1 | Q98: FALSE | R98: =IF(OR(NOT(ISERROR(MATCH(L98,OFFSET($H$410,$G$36-2,0,1,18),FALSE))),$G$75=L98),1,0+(($G$36=1)*($H$75="OC"))) -> 0 | S98: 1 | T98: 14 | V98: =IF((S98=1)*($J$6<22),INDEX($J$13:$J$33,SUM($S$7:S98),1),"") ->  | W98: =COUNTIF($T$7:T98,T98) -> 5 | Y98: 9 | Z98: =INDEX(V:V,SUMPRODUCT((OFFSET($T$7,0,0,AuthorityCounter2,1)=Y98)*1,(OFFSET($W$7,0,0,AuthorityCounter2,1)=COUNTIF($Y$7:Y98,Y98))*1,ROW(OFFSET($W$7,0,0,AuthorityCounter2,1)))) ->  | AA98: 18.6504065 | AB98: =IF((Y98=AB$2)*(Z98=AC$3)*(SUM($AB$6:AB97)=0),+Y98,0) -> 0 | AC98: 9 | AE98: =IF($AE$6=3,O98,SUM((CODE(MID(CONCATENATE(UPPER(M98),"aaaaaaaaaa"),{1;2},1))-30)*{1;0.01})) -> 55.47 | AF98: =COUNTIF($AE$7:$AE98,AE98) -> 17 | AH98: 55.55 | AI98: 55.55 | AJ98: =COUNTIF($AI$7:$AI98,AI98) -> 11 | AK98: =IF($AE$6=1,L98,OFFSET($L$1,SUMPRODUCT(--(OFFSET($AE$7,0,0,AuthorityCounter,1)=AI98),--(OFFSET($AF$7,0,0,AuthorityCounter,1)=COUNTIF($AI$7:AI98,AI98)),ROW(OFFSET($AF$7,0,0,AuthorityCounter,1)))-1,0)) -> Solihull | AM98: =IF(VLOOKUP(AK98,colAM,IF($H$75="OC",8,5),FALSE)=1,MAX(AM$6:$AM97)+1,0) -> 92 | AN98: Solihull | AO98: FALSE | AP98: =IF($AP$5,SUM(SUMPRODUCT(--AO$7:$AO98)*AO98,(SUMPRODUCT(--(AO$7:$AO98=FALSE))+SUMPRODUCT(--colAP))*(1-AO98)),ROW()-6) -> 92 | AQ98: Solihull | AR98: Solihull | IT98: Page 24: Reserve stock | IU98: #,##0 | IV98: =AB7 -> 0
A99: (P.06)[05]Reference Stock | B99: 405 | C99: 12 | D99: 36 | E99: Page 36: Reference Stock | G99: 6 | H99: C | I99: Counties | L99: Somerset | M99: c | O99: 33 | P99: =IF((ROW()-5=$G$36),1,IF((M99=Coding!$H$75)+(Coding!$H$75="ALL")+(Coding!$H$75="U")*OR(M99="W",M99="su",M99="L",M99="MD",M99="UA")+(Coding!$H$75="na")*AND(M99<>"W",M99<>"su",M99<>"L",M99<>"MD",M99<>"UA",M99<>"SC",M99<>"SD",M99<>"p"),1,0)) -> 1 | Q99: FALSE | R99: =IF(OR(NOT(ISERROR(MATCH(L99,OFFSET($H$410,$G$36-2,0,1,18),FALSE))),$G$75=L99),1,0+(($G$36=1)*($H$75="OC"))) -> 0 | S99: 1 | T99: 33 | V99: =IF((S99=1)*($J$6<22),INDEX($J$13:$J$33,SUM($S$7:S99),1),"") ->  | W99: =COUNTIF($T$7:T99,T99) -> 1 | Y99: 9 | Z99: =INDEX(V:V,SUMPRODUCT((OFFSET($T$7,0,0,AuthorityCounter2,1)=Y99)*1,(OFFSET($W$7,0,0,AuthorityCounter2,1)=COUNTIF($Y$7:Y99,Y99))*1,ROW(OFFSET($W$7,0,0,AuthorityCounter2,1)))) ->  | AA99: 18.6504065 | AB99: =IF((Y99=AB$2)*(Z99=AC$3)*(SUM($AB$6:AB98)=0),+Y99,0) -> 0 | AC99: 9 | AE99: =IF($AE$6=3,O99,SUM((CODE(MID(CONCATENATE(UPPER(M99),"aaaaaaaaaa"),{1;2},1))-30)*{1;0.01})) -> 37.67 | AF99: =COUNTIF($AE$7:$AE99,AE99) -> 21 | AH99: 55.55 | AI99: 55.55 | AJ99: =COUNTIF($AI$7:$AI99,AI99) -> 12 | AK99: =IF($AE$6=1,L99,OFFSET($L$1,SUMPRODUCT(--(OFFSET($AE$7,0,0,AuthorityCounter,1)=AI99),--(OFFSET($AF$7,0,0,AuthorityCounter,1)=COUNTIF($AI$7:AI99,AI99)),ROW(OFFSET($AF$7,0,0,AuthorityCounter,1)))-1,0)) -> Somerset | AM99: =IF(VLOOKUP(AK99,colAM,IF($H$75="OC",8,5),FALSE)=1,MAX(AM$6:$AM98)+1,0) -> 93 | AN99: Somerset | AO99: FALSE | AP99: =IF($AP$5,SUM(SUMPRODUCT(--AO$7:$AO99)*AO99,(SUMPRODUCT(--(AO$7:$AO99=FALSE))+SUMPRODUCT(--colAP))*(1-AO99)),ROW()-6) -> 93 | AQ99: Somerset | AR99: Somerset | IT99: Page 24: Reference Stock | IU99: #,##0.0 | IV99: =AB7 -> 0
A100: (P.07)[01]Total Book Acquisitions | B100: 405 | C100: 13 | D100: 37 | E100: Page 37: Total Book Acquisitions | L100: South Gloucestershire | M100: uu | O100: 13 | P100: =IF((ROW()-5=$G$36),1,IF((M100=Coding!$H$75)+(Coding!$H$75="ALL")+(Coding!$H$75="U")*OR(M100="W",M100="su",M100="L",M100="MD",M100="UA")+(Coding!$H$75="na")*AND(M100<>"W",M100<>"su",M100<>"L",M100<>"MD",M100<>"UA",M100<>"SC",M100<>"SD",M100<>"p"),1,0)) -> 1 | Q100: FALSE | R100: =IF(OR(NOT(ISERROR(MATCH(L100,OFFSET($H$410,$G$36-2,0,1,18),FALSE))),$G$75=L100),1,0+(($G$36=1)*($H$75="OC"))) -> 0 | S100: 1 | T100: 13 | V100: =IF((S100=1)*($J$6<22),INDEX($J$13:$J$33,SUM($S$7:S100),1),"") ->  | W100: =COUNTIF($T$7:T100,T100) -> 6 | Y100: 9 | Z100: =INDEX(V:V,SUMPRODUCT((OFFSET($T$7,0,0,AuthorityCounter2,1)=Y100)*1,(OFFSET($W$7,0,0,AuthorityCounter2,1)=COUNTIF($Y$7:Y100,Y100))*1,ROW(OFFSET($W$7,0,0,AuthorityCounter2,1)))) ->  | AA100: 18.6504065 | AB100: =IF((Y100=AB$2)*(Z100=AC$3)*(SUM($AB$6:AB99)=0),+Y100,0) -> 0 | AC100: 9 | AE100: =IF($AE$6=3,O100,SUM((CODE(MID(CONCATENATE(UPPER(M100),"aaaaaaaaaa"),{1;2},1))-30)*{1;0.01})) -> 55.55 | AF100: =COUNTIF($AE$7:$AE100,AE100) -> 32 | AH100: 55.55 | AI100: 55.55 | AJ100: =COUNTIF($AI$7:$AI100,AI100) -> 13 | AK100: =IF($AE$6=1,L100,OFFSET($L$1,SUMPRODUCT(--(OFFSET($AE$7,0,0,AuthorityCounter,1)=AI100),--(OFFSET($AF$7,0,0,AuthorityCounter,1)=COUNTIF($AI$7:AI100,AI100)),ROW(OFFSET($AF$7,0,0,AuthorityCounter,1)))-1,0)) -> South Gloucestershire | AM100: =IF(VLOOKUP(AK100,colAM,IF($H$75="OC",8,5),FALSE)=1,MAX(AM$6:$AM99)+1,0) -> 94 | AN100: South Gloucestershire | AO100: FALSE | AP100: =IF($AP$5,SUM(SUMPRODUCT(--AO$7:$AO100)*AO100,(SUMPRODUCT(--(AO$7:$AO100=FALSE))+SUMPRODUCT(--colAP))*(1-AO100)),ROW()-6) -> 94 | AQ100: South Gloucestershire | AR100: South Gloucestershire | IT100: Page 25: Total Book Acquisitions | IU100: #,##0 | IV100: =AB7 -> 0
A101: (P.07)[02]Adult Fiction Acquisitions | B101: 405 | C101: 14 | D101: 37 | E101: Page 37: Adult Fiction Acquisitions | L101: South Tyneside | M101: um | O101: 4 | P101: =IF((ROW()-5=$G$36),1,IF((M101=Coding!$H$75)+(Coding!$H$75="ALL")+(Coding!$H$75="U")*OR(M101="W",M101="su",M101="L",M101="MD",M101="UA")+(Coding!$H$75="na")*AND(M101<>"W",M101<>"su",M101<>"L",M101<>"MD",M101<>"UA",M101<>"SC",M101<>"SD",M101<>"p"),1,0)) -> 1 | Q101: FALSE | R101: =IF(OR(NOT(ISERROR(MATCH(L101,OFFSET($H$410,$G$36-2,0,1,18),FALSE))),$G$75=L101),1,0+(($G$36=1)*($H$75="OC"))) -> 0 | S101: 1 | T101: 4 | V101: =IF((S101=1)*($J$6<22),INDEX($J$13:$J$33,SUM($S$7:S101),1),"") ->  | W101: =COUNTIF($T$7:T101,T101) -> 6 | Y101: 8 | Z101: =INDEX(V:V,SUMPRODUCT((OFFSET($T$7,0,0,AuthorityCounter2,1)=Y101)*1,(OFFSET($W$7,0,0,AuthorityCounter2,1)=COUNTIF($Y$7:Y101,Y101))*1,ROW(OFFSET($W$7,0,0,AuthorityCounter2,1)))) ->  | AA101: 18.6504065 | AB101: =IF((Y101=AB$2)*(Z101=AC$3)*(SUM($AB$6:AB100)=0),+Y101,0) -> 0 | AC101: 8 | AE101: =IF($AE$6=3,O101,SUM((CODE(MID(CONCATENATE(UPPER(M101),"aaaaaaaaaa"),{1;2},1))-30)*{1;0.01})) -> 55.47 | AF101: =COUNTIF($AE$7:$AE101,AE101) -> 18 | AH101: 55.55 | AI101: 55.55 | AJ101: =COUNTIF($AI$7:$AI101,AI101) -> 14 | AK101: =IF($AE$6=1,L101,OFFSET($L$1,SUMPRODUCT(--(OFFSET($AE$7,0,0,AuthorityCounter,1)=AI101),--(OFFSET($AF$7,0,0,AuthorityCounter,1)=COUNTIF($AI$7:AI101,AI101)),ROW(OFFSET($AF$7,0,0,AuthorityCounter,1)))-1,0)) -> South Tyneside | AM101: =IF(VLOOKUP(AK101,colAM,IF($H$75="OC",8,5),FALSE)=1,MAX(AM$6:$AM100)+1,0) -> 95 | AN101: South Tyneside | AO101: FALSE | AP101: =IF($AP$5,SUM(SUMPRODUCT(--AO$7:$AO101)*AO101,(SUMPRODUCT(--(AO$7:$AO101=FALSE))+SUMPRODUCT(--colAP))*(1-AO101)),ROW()-6) -> 95 | AQ101: South Tyneside | AR101: South Tyneside | IT101: Page 25: Adult Fiction Acquisitions | IU101: #,##0 | IV101: =AB7 -> 0
A102: (P.07)[03]Adult Non-Fiction Acquisitions | B102: 405 | C102: 15 | D102: 37 | E102: Page 37: Adult Non-Fiction Acquisitions | L102: Southampton | M102: uu | O102: 11 | P102: =IF((ROW()-5=$G$36),1,IF((M102=Coding!$H$75)+(Coding!$H$75="ALL")+(Coding!$H$75="U")*OR(M102="W",M102="su",M102="L",M102="MD",M102="UA")+(Coding!$H$75="na")*AND(M102<>"W",M102<>"su",M102<>"L",M102<>"MD",M102<>"UA",M102<>"SC",M102<>"SD",M102<>"p"),1,0)) -> 1 | Q102: FALSE | R102: =IF(OR(NOT(ISERROR(MATCH(L102,OFFSET($H$410,$G$36-2,0,1,18),FALSE))),$G$75=L102),1,0+(($G$36=1)*($H$75="OC"))) -> 0 | S102: 1 | T102: 11 | V102: =IF((S102=1)*($J$6<22),INDEX($J$13:$J$33,SUM($S$7:S102),1),"") ->  | W102: =COUNTIF($T$7:T102,T102) -> 4 | Y102: 8 | Z102: =INDEX(V:V,SUMPRODUCT((OFFSET($T$7,0,0,AuthorityCounter2,1)=Y102)*1,(OFFSET($W$7,0,0,AuthorityCounter2,1)=COUNTIF($Y$7:Y102,Y102))*1,ROW(OFFSET($W$7,0,0,AuthorityCounter2,1)))) ->  | AA102: 18.6504065 | AB102: =IF((Y102=AB$2)*(Z102=AC$3)*(SUM($AB$6:AB101)=0),+Y102,0) -> 0 | AC102: 8 | AE102: =IF($AE$6=3,O102,SUM((CODE(MID(CONCATENATE(UPPER(M102),"aaaaaaaaaa"),{1;2},1))-30)*{1;0.01})) -> 55.55 | AF102: =COUNTIF($AE$7:$AE102,AE102) -> 33 | AH102: 55.55 | AI102: 55.55 | AJ102: =COUNTIF($AI$7:$AI102,AI102) -> 15 | AK102: =IF($AE$6=1,L102,OFFSET($L$1,SUMPRODUCT(--(OFFSET($AE$7,0,0,AuthorityCounter,1)=AI102),--(OFFSET($AF$7,0,0,AuthorityCounter,1)=COUNTIF($AI$7:AI102,AI102)),ROW(OFFSET($AF$7,0,0,AuthorityCounter,1)))-1,0)) -> Southampton | AM102: =IF(VLOOKUP(AK102,colAM,IF($H$75="OC",8,5),FALSE)=1,MAX(AM$6:$AM101)+1,0) -> 96 | AN102: Southampton | AO102: FALSE | AP102: =IF($AP$5,SUM(SUMPRODUCT(--AO$7:$AO102)*AO102,(SUMPRODUCT(--(AO$7:$AO102=FALSE))+SUMPRODUCT(--colAP))*(1-AO102)),ROW()-6) -> 96 | AQ102: Southampton | AR102: Southampton | IT102: Page 25: Adult Non-Fiction Acquisitions | IU102: #,##0 | IV102: =AB7 -> 0
A103: (P.07)[04]Children's Fiction Acquisitions | B103: 405 | C103: 16 | D103: 37 | E103: Page 37: Children's Fiction Acquisitions | L103: Southend-on-Sea | M103: uu | O103: =IF(ISNUMBER(--OFFSET($D$409,(ROW()-6)+$G$39+AuthorityCounter+5,$G$40)),OFFSET($D$409,(ROW()-6)+$G$39+AuthorityCounter+5,$G$40),"na") -> 7 | P103: =IF((ROW()-5=$G$36),1,IF((M103=Coding!$H$75)+(Coding!$H$75="ALL")+(Coding!$H$75="U")*OR(M103="W",M103="su",M103="L",M103="MD",M103="UA")+(Coding!$H$75="na")*AND(M103<>"W",M103<>"su",M103<>"L",M103<>"MD",M103<>"UA",M103<>"SC",M103<>"SD",M103<>"p"),1,0)) -> 1 | Q103: FALSE | R103: =IF(OR(NOT(ISERROR(MATCH(L103,OFFSET($H$410,$G$36-2,0,1,18),FALSE))),$G$75=L103),1,0+(($G$36=1)*($H$75="OC"))) -> 0 | S103: 1 | T103: 7 | V103: =IF((S103=1)*($J$6<22),INDEX($J$13:$J$33,SUM($S$7:S103),1),"") ->  | W103: =COUNTIF($T$7:T103,T103) -> 4 | Y103: 8 | Z103: =INDEX(V:V,SUMPRODUCT((OFFSET($T$7,0,0,AuthorityCounter2,1)=Y103)*1,(OFFSET($W$7,0,0,AuthorityCounter2,1)=COUNTIF($Y$7:Y103,Y103))*1,ROW(OFFSET($W$7,0,0,AuthorityCounter2,1)))) ->  | AA103: 18.6504065 | AB103: =IF((Y103=AB$2)*(Z103=AC$3)*(SUM($AB$6:AB102)=0),+Y103,0) -> 0 | AC103: 8 | AE103: =IF($AE$6=3,O103,SUM((CODE(MID(CONCATENATE(UPPER(M103),"aaaaaaaaaa"),{1;2},1))-30)*{1;0.01})) -> 55.55 | AF103: =COUNTIF($AE$7:$AE103,AE103) -> 34 | AH103: 55.55 | AI103: 55.55 | AJ103: =COUNTIF($AI$7:$AI103,AI103) -> 16 | AK103: =IF($AE$6=1,L103,OFFSET($L$1,SUMPRODUCT(--(OFFSET($AE$7,0,0,AuthorityCounter,1)=AI103),--(OFFSET($AF$7,0,0,AuthorityCounter,1)=COUNTIF($AI$7:AI103,AI103)),ROW(OFFSET($AF$7,0,0,AuthorityCounter,1)))-1,0)) -> Southend-on-Sea | AM103: =IF(VLOOKUP(AK103,colAM,IF($H$75="OC",8,5),FALSE)=1,MAX(AM$6:$AM102)+1,0) -> 97 | AN103: Southend-on-Sea | AO103: FALSE | AP103: =IF($AP$5,SUM(SUMPRODUCT(--AO$7:$AO103)*AO103,(SUMPRODUCT(--(AO$7:$AO103=FALSE))+SUMPRODUCT(--colAP))*(1-AO103)),ROW()-6) -> 97 | AQ103: Southend-on-Sea | AR103: Southend-on-Sea | IT103: Page 25: Children's Fiction Acquisitions | IU103: #,##0 | IV103: =AB7 -> 0
A104: (P.07)[05]Children's Non-Fiction Acquisitions | B104: 405 | C104: 17 | D104: 37 | E104: Page 37: Children's Non-Fiction Acquisitions | L104: Southwark | M104: ul | O104: 11 | P104: =IF((ROW()-5=$G$36),1,IF((M104=Coding!$H$75)+(Coding!$H$75="ALL")+(Coding!$H$75="U")*OR(M104="W",M104="su",M104="L",M104="MD",M104="UA")+(Coding!$H$75="na")*AND(M104<>"W",M104<>"su",M104<>"L",M104<>"MD",M104<>"UA",M104<>"SC",M104<>"SD",M104<>"p"),1,0)) -> 1 | Q104: FALSE | R104: =IF(OR(NOT(ISERROR(MATCH(L104,OFFSET($H$410,$G$36-2,0,1,18),FALSE))),$G$75=L104),1,0+(($G$36=1)*($H$75="OC"))) -> 0 | S104: 1 | T104: 11 | V104: =IF((S104=1)*($J$6<22),INDEX($J$13:$J$33,SUM($S$7:S104),1),"") ->  | W104: =COUNTIF($T$7:T104,T104) -> 5 | Y104: 8 | Z104: =INDEX(V:V,SUMPRODUCT((OFFSET($T$7,0,0,AuthorityCounter2,1)=Y104)*1,(OFFSET($W$7,0,0,AuthorityCounter2,1)=COUNTIF($Y$7:Y104,Y104))*1,ROW(OFFSET($W$7,0,0,AuthorityCounter2,1)))) ->  | AA104: 18.6504065 | AB104: =IF((Y104=AB$2)*(Z104=AC$3)*(SUM($AB$6:AB103)=0),+Y104,0) -> 0 | AC104: 8 | AE104: =IF($AE$6=3,O104,SUM((CODE(MID(CONCATENATE(UPPER(M104),"aaaaaaaaaa"),{1;2},1))-30)*{1;0.01})) -> 55.46 | AF104: =COUNTIF($AE$7:$AE104,AE104) -> 25 | AH104: 55.55 | AI104: 55.55 | AJ104: =COUNTIF($AI$7:$AI104,AI104) -> 17 | AK104: =IF($AE$6=1,L104,OFFSET($L$1,SUMPRODUCT(--(OFFSET($AE$7,0,0,AuthorityCounter,1)=AI104),--(OFFSET($AF$7,0,0,AuthorityCounter,1)=COUNTIF($AI$7:AI104,AI104)),ROW(OFFSET($AF$7,0,0,AuthorityCounter,1)))-1,0)) -> Southwark | AM104: =IF(VLOOKUP(AK104,colAM,IF($H$75="OC",8,5),FALSE)=1,MAX(AM$6:$AM103)+1,0) -> 98 | AN104: Southwark | AO104: FALSE | AP104: =IF($AP$5,SUM(SUMPRODUCT(--AO$7:$AO104)*AO104,(SUMPRODUCT(--(AO$7:$AO104=FALSE))+SUMPRODUCT(--colAP))*(1-AO104)),ROW()-6) -> 98 | AQ104: Southwark | AR104: Southwark | IT104: Page 25: Children's Non-Fiction Acquisitions | IU104: #,##0 | IV104: =AB7 -> 0
A105: (P.07)[06]Reference Book Acquisitions | B105: 405 | C105: 18 | D105: 37 | E105: Page 37: Reference Book Acquisitions | L105: St Helens | M105: um | O105: 12 | P105: =IF((ROW()-5=$G$36),1,IF((M105=Coding!$H$75)+(Coding!$H$75="ALL")+(Coding!$H$75="U")*OR(M105="W",M105="su",M105="L",M105="MD",M105="UA")+(Coding!$H$75="na")*AND(M105<>"W",M105<>"su",M105<>"L",M105<>"MD",M105<>"UA",M105<>"SC",M105<>"SD",M105<>"p"),1,0)) -> 1 | Q105: FALSE | R105: =IF(OR(NOT(ISERROR(MATCH(L105,OFFSET($H$410,$G$36-2,0,1,18),FALSE))),$G$75=L105),1,0+(($G$36=1)*($H$75="OC"))) -> 0 | S105: 1 | T105: 12 | V105: =IF((S105=1)*($J$6<22),INDEX($J$13:$J$33,SUM($S$7:S105),1),"") ->  | W105: =COUNTIF($T$7:T105,T105) -> 8 | Y105: 8 | Z105: =INDEX(V:V,SUMPRODUCT((OFFSET($T$7,0,0,AuthorityCounter2,1)=Y105)*1,(OFFSET($W$7,0,0,AuthorityCounter2,1)=COUNTIF($Y$7:Y105,Y105))*1,ROW(OFFSET($W$7,0,0,AuthorityCounter2,1)))) ->  | AA105: 18.6504065 | AB105: =IF((Y105=AB$2)*(Z105=AC$3)*(SUM($AB$6:AB104)=0),+Y105,0) -> 0 | AC105: 8 | AE105: =IF($AE$6=3,O105,SUM((CODE(MID(CONCATENATE(UPPER(M105),"aaaaaaaaaa"),{1;2},1))-30)*{1;0.01})) -> 55.47 | AF105: =COUNTIF($AE$7:$AE105,AE105) -> 19 | AH105: 55.55 | AI105: 55.55 | AJ105: =COUNTIF($AI$7:$AI105,AI105) -> 18 | AK105: =IF($AE$6=1,L105,OFFSET($L$1,SUMPRODUCT(--(OFFSET($AE$7,0,0,AuthorityCounter,1)=AI105),--(OFFSET($AF$7,0,0,AuthorityCounter,1)=COUNTIF($AI$7:AI105,AI105)),ROW(OFFSET($AF$7,0,0,AuthorityCounter,1)))-1,0)) -> St Helens | AM105: =IF(VLOOKUP(AK105,colAM,IF($H$75="OC",8,5),FALSE)=1,MAX(AM$6:$AM104)+1,0) -> 99 | AN105: St Helens | AO105: FALSE | AP105: =IF($AP$5,SUM(SUMPRODUCT(--AO$7:$AO105)*AO105,(SUMPRODUCT(--(AO$7:$AO105=FALSE))+SUMPRODUCT(--colAP))*(1-AO105)),ROW()-6) -> 99 | AQ105: St Helens | AR105: St Helens | IT105: Page 25: Reference Book Acquisitions | IU105: #,##0.0 | IV105: =AB7 -> 0
A106: (P.08)[01]Total Audio Visual Acquisitions | B106: 405 | C106: 19 | D106: 38 | E106: Page 38: Total Audio Visual Acquisitions | L106: Staffordshire | M106: c | O106: 46 | P106: =IF((ROW()-5=$G$36),1,IF((M106=Coding!$H$75)+(Coding!$H$75="ALL")+(Coding!$H$75="U")*OR(M106="W",M106="su",M106="L",M106="MD",M106="UA")+(Coding!$H$75="na")*AND(M106<>"W",M106<>"su",M106<>"L",M106<>"MD",M106<>"UA",M106<>"SC",M106<>"SD",M106<>"p"),1,0)) -> 1 | Q106: FALSE | R106: =IF(OR(NOT(ISERROR(MATCH(L106,OFFSET($H$410,$G$36-2,0,1,18),FALSE))),$G$75=L106),1,0+(($G$36=1)*($H$75="OC"))) -> 0 | S106: 1 | T106: 46 | V106: =IF((S106=1)*($J$6<22),INDEX($J$13:$J$33,SUM($S$7:S106),1),"") ->  | W106: =COUNTIF($T$7:T106,T106) -> 1 | Y106: 8 | Z106: =INDEX(V:V,SUMPRODUCT((OFFSET($T$7,0,0,AuthorityCounter2,1)=Y106)*1,(OFFSET($W$7,0,0,AuthorityCounter2,1)=COUNTIF($Y$7:Y106,Y106))*1,ROW(OFFSET($W$7,0,0,AuthorityCounter2,1)))) ->  | AA106: 18.6504065 | AB106: =IF((Y106=AB$2)*(Z106=AC$3)*(SUM($AB$6:AB105)=0),+Y106,0) -> 0 | AC106: 8 | AE106: =IF($AE$6=3,O106,SUM((CODE(MID(CONCATENATE(UPPER(M106),"aaaaaaaaaa"),{1;2},1))-30)*{1;0.01})) -> 37.67 | AF106: =COUNTIF($AE$7:$AE106,AE106) -> 22 | AH106: 55.55 | AI106: 55.55 | AJ106: =COUNTIF($AI$7:$AI106,AI106) -> 19 | AK106: =IF($AE$6=1,L106,OFFSET($L$1,SUMPRODUCT(--(OFFSET($AE$7,0,0,AuthorityCounter,1)=AI106),--(OFFSET($AF$7,0,0,AuthorityCounter,1)=COUNTIF($AI$7:AI106,AI106)),ROW(OFFSET($AF$7,0,0,AuthorityCounter,1)))-1,0)) -> Staffordshire | AM106: =IF(VLOOKUP(AK106,colAM,IF($H$75="OC",8,5),FALSE)=1,MAX(AM$6:$AM105)+1,0) -> 100 | AN106: Staffordshire | AO106: FALSE | AP106: =IF($AP$5,SUM(SUMPRODUCT(--AO$7:$AO106)*AO106,(SUMPRODUCT(--(AO$7:$AO106=FALSE))+SUMPRODUCT(--colAP))*(1-AO106)),ROW()-6) -> 100 | AQ106: Staffordshire | AR106: Staffordshire | IT106: Page 26: Total Audio Visual Acquisitions | IU106: #,##0 | IV106: =AB7 -> 0
A107: (P.08)[02]Adult Talking Book Acquisitions | B107: 405 | C107: 20 | D107: 38 | E107: Page 38: Adult Talking Book Acquisitions | L107: Stockport | M107: um | O107: 16 | P107: =IF((ROW()-5=$G$36),1,IF((M107=Coding!$H$75)+(Coding!$H$75="ALL")+(Coding!$H$75="U")*OR(M107="W",M107="su",M107="L",M107="MD",M107="UA")+(Coding!$H$75="na")*AND(M107<>"W",M107<>"su",M107<>"L",M107<>"MD",M107<>"UA",M107<>"SC",M107<>"SD",M107<>"p"),1,0)) -> 1 | Q107: FALSE | R107: =IF(OR(NOT(ISERROR(MATCH(L107,OFFSET($H$410,$G$36-2,0,1,18),FALSE))),$G$75=L107),1,0+(($G$36=1)*($H$75="OC"))) -> 0 | S107: 1 | T107: 16 | V107: =IF((S107=1)*($J$6<22),INDEX($J$13:$J$33,SUM($S$7:S107),1),"") ->  | W107: =COUNTIF($T$7:T107,T107) -> 9 | Y107: 8 | Z107: =INDEX(V:V,SUMPRODUCT((OFFSET($T$7,0,0,AuthorityCounter2,1)=Y107)*1,(OFFSET($W$7,0,0,AuthorityCounter2,1)=COUNTIF($Y$7:Y107,Y107))*1,ROW(OFFSET($W$7,0,0,AuthorityCounter2,1)))) ->  | AA107: 18.6504065 | AB107: =IF((Y107=AB$2)*(Z107=AC$3)*(SUM($AB$6:AB106)=0),+Y107,0) -> 0 | AC107: 8 | AE107: =IF($AE$6=3,O107,SUM((CODE(MID(CONCATENATE(UPPER(M107),"aaaaaaaaaa"),{1;2},1))-30)*{1;0.01})) -> 55.47 | AF107: =COUNTIF($AE$7:$AE107,AE107) -> 20 | AH107: 55.55 | AI107: 55.55 | AJ107: =COUNTIF($AI$7:$AI107,AI107) -> 20 | AK107: =IF($AE$6=1,L107,OFFSET($L$1,SUMPRODUCT(--(OFFSET($AE$7,0,0,AuthorityCounter,1)=AI107),--(OFFSET($AF$7,0,0,AuthorityCounter,1)=COUNTIF($AI$7:AI107,AI107)),ROW(OFFSET($AF$7,0,0,AuthorityCounter,1)))-1,0)) -> Stockport | AM107: =IF(VLOOKUP(AK107,colAM,IF($H$75="OC",8,5),FALSE)=1,MAX(AM$6:$AM106)+1,0) -> 101 | AN107: Stockport | AO107: FALSE | AP107: =IF($AP$5,SUM(SUMPRODUCT(--AO$7:$AO107)*AO107,(SUMPRODUCT(--(AO$7:$AO107=FALSE))+SUMPRODUCT(--colAP))*(1-AO107)),ROW()-6) -> 101 | AQ107: Stockport | AR107: Stockport | IT107: Page 26: Adult Talking Book Acquisitions | IU107: #,##0 | IV107: =AB7 -> 0
A108: (P.08)[03]Children's Talking Book Acquisitions | B108: 405 | C108: 21 | D108: 38 | E108: Page 38: Children's Talking Book Acquisitions | L108: Stoke-on-Trent | M108: uu | O108: 6 | P108: =IF((ROW()-5=$G$36),1,IF((M108=Coding!$H$75)+(Coding!$H$75="ALL")+(Coding!$H$75="U")*OR(M108="W",M108="su",M108="L",M108="MD",M108="UA")+(Coding!$H$75="na")*AND(M108<>"W",M108<>"su",M108<>"L",M108<>"MD",M108<>"UA",M108<>"SC",M108<>"SD",M108<>"p"),1,0)) -> 1 | Q108: FALSE | R108: =IF(OR(NOT(ISERROR(MATCH(L108,OFFSET($H$410,$G$36-2,0,1,18),FALSE))),$G$75=L108),1,0+(($G$36=1)*($H$75="OC"))) -> 0 | S108: 1 | T108: 6 | V108: =IF((S108=1)*($J$6<22),INDEX($J$13:$J$33,SUM($S$7:S108),1),"") ->  | W108: =COUNTIF($T$7:T108,T108) -> 8 | Y108: 8 | Z108: =INDEX(V:V,SUMPRODUCT((OFFSET($T$7,0,0,AuthorityCounter2,1)=Y108)*1,(OFFSET($W$7,0,0,AuthorityCounter2,1)=COUNTIF($Y$7:Y108,Y108))*1,ROW(OFFSET($W$7,0,0,AuthorityCounter2,1)))) ->  | AA108: 18.6504065 | AB108: =IF((Y108=AB$2)*(Z108=AC$3)*(SUM($AB$6:AB107)=0),+Y108,0) -> 0 | AC108: 8 | AE108: =IF($AE$6=3,O108,SUM((CODE(MID(CONCATENATE(UPPER(M108),"aaaaaaaaaa"),{1;2},1))-30)*{1;0.01})) -> 55.55 | AF108: =COUNTIF($AE$7:$AE108,AE108) -> 35 | AH108: 55.55 | AI108: 55.55 | AJ108: =COUNTIF($AI$7:$AI108,AI108) -> 21 | AK108: =IF($AE$6=1,L108,OFFSET($L$1,SUMPRODUCT(--(OFFSET($AE$7,0,0,AuthorityCounter,1)=AI108),--(OFFSET($AF$7,0,0,AuthorityCounter,1)=COUNTIF($AI$7:AI108,AI108)),ROW(OFFSET($AF$7,0,0,AuthorityCounter,1)))-1,0)) -> Stoke-on-Trent | AM108: =IF(VLOOKUP(AK108,colAM,IF($H$75="OC",8,5),FALSE)=1,MAX(AM$6:$AM107)+1,0) -> 102 | AN108: Stoke-on-Trent | AO108: FALSE | AP108: =IF($AP$5,SUM(SUMPRODUCT(--AO$7:$AO108)*AO108,(SUMPRODUCT(--(AO$7:$AO108=FALSE))+SUMPRODUCT(--colAP))*(1-AO108)),ROW()-6) -> 102 | AQ108: Stoke-on-Trent | AR108: Stoke-on-Trent | IT108: Page 26: Children's Talking Book Acquisitions | IU108: #,##0.0 | IV108: =AB7 -> 0
A109: (P.08)[04]Music, Videos and DVDs; Multi-media and Open Learning Packs; CD-ROMs and Software Acquisitions | B109: 405 | C109: 22 | D109: 38 | E109: Page 38: Music, Videos and DVDs; Multi-media and Open Learning Packs; CD-ROMs and Software Acquisitions | L109: Suffolk | M109: c | O109: 48 | P109: =IF((ROW()-5=$G$36),1,IF((M109=Coding!$H$75)+(Coding!$H$75="ALL")+(Coding!$H$75="U")*OR(M109="W",M109="su",M109="L",M109="MD",M109="UA")+(Coding!$H$75="na")*AND(M109<>"W",M109<>"su",M109<>"L",M109<>"MD",M109<>"UA",M109<>"SC",M109<>"SD",M109<>"p"),1,0)) -> 1 | Q109: FALSE | R109: =IF(OR(NOT(ISERROR(MATCH(L109,OFFSET($H$410,$G$36-2,0,1,18),FALSE))),$G$75=L109),1,0+(($G$36=1)*($H$75="OC"))) -> 0 | S109: 1 | T109: 48 | V109: =IF((S109=1)*($J$6<22),INDEX($J$13:$J$33,SUM($S$7:S109),1),"") ->  | W109: =COUNTIF($T$7:T109,T109) -> 2 | Y109: 7 | Z109: =INDEX(V:V,SUMPRODUCT((OFFSET($T$7,0,0,AuthorityCounter2,1)=Y109)*1,(OFFSET($W$7,0,0,AuthorityCounter2,1)=COUNTIF($Y$7:Y109,Y109))*1,ROW(OFFSET($W$7,0,0,AuthorityCounter2,1)))) ->  | AA109: 18.6504065 | AB109: =IF((Y109=AB$2)*(Z109=AC$3)*(SUM($AB$6:AB108)=0),+Y109,0) -> 0 | AC109: 7 | AE109: =IF($AE$6=3,O109,SUM((CODE(MID(CONCATENATE(UPPER(M109),"aaaaaaaaaa"),{1;2},1))-30)*{1;0.01})) -> 37.67 | AF109: =COUNTIF($AE$7:$AE109,AE109) -> 23 | AH109: 55.55 | AI109: 55.55 | AJ109: =COUNTIF($AI$7:$AI109,AI109) -> 22 | AK109: =IF($AE$6=1,L109,OFFSET($L$1,SUMPRODUCT(--(OFFSET($AE$7,0,0,AuthorityCounter,1)=AI109),--(OFFSET($AF$7,0,0,AuthorityCounter,1)=COUNTIF($AI$7:AI109,AI109)),ROW(OFFSET($AF$7,0,0,AuthorityCounter,1)))-1,0)) -> Suffolk | AM109: =IF(VLOOKUP(AK109,colAM,IF($H$75="OC",8,5),FALSE)=1,MAX(AM$6:$AM108)+1,0) -> 103 | AN109: Suffolk | AO109: FALSE | AP109: =IF($AP$5,SUM(SUMPRODUCT(--AO$7:$AO109)*AO109,(SUMPRODUCT(--(AO$7:$AO109=FALSE))+SUMPRODUCT(--colAP))*(1-AO109)),ROW()-6) -> 103 | AQ109: Suffolk | AR109: Suffolk | IT109: Page 26: Music, Videos and DVDs; Multi-media and Open Learning Packs; CD-ROMs and Software Acquisitions | IU109: #,##0 | IV109: =AB7 -> 0
A110: (P.08)[05]Reference Acquisitions | B110: 405 | C110: 23 | D110: 38 | E110: Page 38: Reference Acquisitions | L110: Surrey | M110: c | O110: 53 | P110: =IF((ROW()-5=$G$36),1,IF((M110=Coding!$H$75)+(Coding!$H$75="ALL")+(Coding!$H$75="U")*OR(M110="W",M110="su",M110="L",M110="MD",M110="UA")+(Coding!$H$75="na")*AND(M110<>"W",M110<>"su",M110<>"L",M110<>"MD",M110<>"UA",M110<>"SC",M110<>"SD",M110<>"p"),1,0)) -> 1 | Q110: FALSE | R110: =IF(OR(NOT(ISERROR(MATCH(L110,OFFSET($H$410,$G$36-2,0,1,18),FALSE))),$G$75=L110),1,0+(($G$36=1)*($H$75="OC"))) -> 0 | S110: 1 | T110: 53 | V110: =IF((S110=1)*($J$6<22),INDEX($J$13:$J$33,SUM($S$7:S110),1),"") ->  | W110: =COUNTIF($T$7:T110,T110) -> 1 | Y110: 7 | Z110: =INDEX(V:V,SUMPRODUCT((OFFSET($T$7,0,0,AuthorityCounter2,1)=Y110)*1,(OFFSET($W$7,0,0,AuthorityCounter2,1)=COUNTIF($Y$7:Y110,Y110))*1,ROW(OFFSET($W$7,0,0,AuthorityCounter2,1)))) ->  | AA110: 18.6504065 | AB110: =IF((Y110=AB$2)*(Z110=AC$3)*(SUM($AB$6:AB109)=0),+Y110,0) -> 0 | AC110: 7 | AE110: =IF($AE$6=3,O110,SUM((CODE(MID(CONCATENATE(UPPER(M110),"aaaaaaaaaa"),{1;2},1))-30)*{1;0.01})) -> 37.67 | AF110: =COUNTIF($AE$7:$AE110,AE110) -> 24 | AH110: 55.55 | AI110: 55.55 | AJ110: =COUNTIF($AI$7:$AI110,AI110) -> 23 | AK110: =IF($AE$6=1,L110,OFFSET($L$1,SUMPRODUCT(--(OFFSET($AE$7,0,0,AuthorityCounter,1)=AI110),--(OFFSET($AF$7,0,0,AuthorityCounter,1)=COUNTIF($AI$7:AI110,AI110)),ROW(OFFSET($AF$7,0,0,AuthorityCounter,1)))-1,0)) -> Surrey | AM110: =IF(VLOOKUP(AK110,colAM,IF($H$75="OC",8,5),FALSE)=1,MAX(AM$6:$AM109)+1,0) -> 104 | AN110: Surrey | AO110: FALSE | AP110: =IF($AP$5,SUM(SUMPRODUCT(--AO$7:$AO110)*AO110,(SUMPRODUCT(--(AO$7:$AO110=FALSE))+SUMPRODUCT(--colAP))*(1-AO110)),ROW()-6) -> 104 | AQ110: Surrey | AR110: Surrey | IT110: Page 26: Reference Acquisitions | IU110: #,##0.000 | IV110: =AB7 -> 0
A111: (P.10)[01]Lending Stock Replenishment Rate | B111: 405 | C111: 24 | D111: 40 | E111: Page 40: Lending Stock Replenishment Rate | L111: Sutton | M111: ul | O111: 8 | P111: =IF((ROW()-5=$G$36),1,IF((M111=Coding!$H$75)+(Coding!$H$75="ALL")+(Coding!$H$75="U")*OR(M111="W",M111="su",M111="L",M111="MD",M111="UA")+(Coding!$H$75="na")*AND(M111<>"W",M111<>"su",M111<>"L",M111<>"MD",M111<>"UA",M111<>"SC",M111<>"SD",M111<>"p"),1,0)) -> 1 | Q111: FALSE | R111: =IF(OR(NOT(ISERROR(MATCH(L111,OFFSET($H$410,$G$36-2,0,1,18),FALSE))),$G$75=L111),1,0+(($G$36=1)*($H$75="OC"))) -> 0 | S111: 1 | T111: 8 | V111: =IF((S111=1)*($J$6<22),INDEX($J$13:$J$33,SUM($S$7:S111),1),"") ->  | W111: =COUNTIF($T$7:T111,T111) -> 6 | Y111: 7 | Z111: =INDEX(V:V,SUMPRODUCT((OFFSET($T$7,0,0,AuthorityCounter2,1)=Y111)*1,(OFFSET($W$7,0,0,AuthorityCounter2,1)=COUNTIF($Y$7:Y111,Y111))*1,ROW(OFFSET($W$7,0,0,AuthorityCounter2,1)))) ->  | AA111: 18.6504065 | AB111: =IF((Y111=AB$2)*(Z111=AC$3)*(SUM($AB$6:AB110)=0),+Y111,0) -> 0 | AC111: 7 | AE111: =IF($AE$6=3,O111,SUM((CODE(MID(CONCATENATE(UPPER(M111),"aaaaaaaaaa"),{1;2},1))-30)*{1;0.01})) -> 55.46 | AF111: =COUNTIF($AE$7:$AE111,AE111) -> 26 | AH111: 55.55 | AI111: 55.55 | AJ111: =COUNTIF($AI$7:$AI111,AI111) -> 24 | AK111: =IF($AE$6=1,L111,OFFSET($L$1,SUMPRODUCT(--(OFFSET($AE$7,0,0,AuthorityCounter,1)=AI111),--(OFFSET($AF$7,0,0,AuthorityCounter,1)=COUNTIF($AI$7:AI111,AI111)),ROW(OFFSET($AF$7,0,0,AuthorityCounter,1)))-1,0)) -> Sutton | AM111: =IF(VLOOKUP(AK111,colAM,IF($H$75="OC",8,5),FALSE)=1,MAX(AM$6:$AM110)+1,0) -> 105 | AN111: Sutton | AO111: FALSE | AP111: =IF($AP$5,SUM(SUMPRODUCT(--AO$7:$AO111)*AO111,(SUMPRODUCT(--(AO$7:$AO111=FALSE))+SUMPRODUCT(--colAP))*(1-AO111)),ROW()-6) -> 105 | AQ111: Sutton | AR111: Sutton | IT111: Page 27: Lending Stock Replenishment Rate | IU111: #,##0 | IV111: =AB7 -> 0
A112: (P.02)[01]Percentage supplied within 7 days | B112: 540 | C112: 0 | D112: 42 | E112: Page 42: Percentage supplied within 7 days | L112: Swindon | M112: uu | O112: 5 | P112: =IF((ROW()-5=$G$36),1,IF((M112=Coding!$H$75)+(Coding!$H$75="ALL")+(Coding!$H$75="U")*OR(M112="W",M112="su",M112="L",M112="MD",M112="UA")+(Coding!$H$75="na")*AND(M112<>"W",M112<>"su",M112<>"L",M112<>"MD",M112<>"UA",M112<>"SC",M112<>"SD",M112<>"p"),1,0)) -> 1 | Q112: FALSE | R112: =IF(OR(NOT(ISERROR(MATCH(L112,OFFSET($H$410,$G$36-2,0,1,18),FALSE))),$G$75=L112),1,0+(($G$36=1)*($H$75="OC"))) -> 0 | S112: 1 | T112: 5 | V112: =IF((S112=1)*($J$6<22),INDEX($J$13:$J$33,SUM($S$7:S112),1),"") ->  | W112: =COUNTIF($T$7:T112,T112) -> 3 | Y112: 7 | Z112: =INDEX(V:V,SUMPRODUCT((OFFSET($T$7,0,0,AuthorityCounter2,1)=Y112)*1,(OFFSET($W$7,0,0,AuthorityCounter2,1)=COUNTIF($Y$7:Y112,Y112))*1,ROW(OFFSET($W$7,0,0,AuthorityCounter2,1)))) ->  | AA112: 18.6504065 | AB112: =IF((Y112=AB$2)*(Z112=AC$3)*(SUM($AB$6:AB111)=0),+Y112,0) -> 0 | AC112: 7 | AE112: =IF($AE$6=3,O112,SUM((CODE(MID(CONCATENATE(UPPER(M112),"aaaaaaaaaa"),{1;2},1))-30)*{1;0.01})) -> 55.55 | AF112: =COUNTIF($AE$7:$AE112,AE112) -> 36 | AH112: 55.55 | AI112: 55.55 | AJ112: =COUNTIF($AI$7:$AI112,AI112) -> 25 | AK112: =IF($AE$6=1,L112,OFFSET($L$1,SUMPRODUCT(--(OFFSET($AE$7,0,0,AuthorityCounter,1)=AI112),--(OFFSET($AF$7,0,0,AuthorityCounter,1)=COUNTIF($AI$7:AI112,AI112)),ROW(OFFSET($AF$7,0,0,AuthorityCounter,1)))-1,0)) -> Swindon | AM112: =IF(VLOOKUP(AK112,colAM,IF($H$75="OC",8,5),FALSE)=1,MAX(AM$6:$AM111)+1,0) -> 106 | AN112: Swindon | AO112: FALSE | AP112: =IF($AP$5,SUM(SUMPRODUCT(--AO$7:$AO112)*AO112,(SUMPRODUCT(--(AO$7:$AO112=FALSE))+SUMPRODUCT(--colAP))*(1-AO112)),ROW()-6) -> 106 | AQ112: Swindon | AR112: Swindon | IT112: Page 28: Percentage supplied within 7 days | IU112: 0% | IV112: =AB7 -> 0
A113: (P.02)[02]Percentage supplied within 15 days | B113: 540 | C113: 1 | D113: 42 | E113: Page 42: Percentage supplied within 15 days | L113: Tameside | M113: um | O113: 8 | P113: =IF((ROW()-5=$G$36),1,IF((M113=Coding!$H$75)+(Coding!$H$75="ALL")+(Coding!$H$75="U")*OR(M113="W",M113="su",M113="L",M113="MD",M113="UA")+(Coding!$H$75="na")*AND(M113<>"W",M113<>"su",M113<>"L",M113<>"MD",M113<>"UA",M113<>"SC",M113<>"SD",M113<>"p"),1,0)) -> 1 | Q113: FALSE | R113: =IF(OR(NOT(ISERROR(MATCH(L113,OFFSET($H$410,$G$36-2,0,1,18),FALSE))),$G$75=L113),1,0+(($G$36=1)*($H$75="OC"))) -> 0 | S113: 1 | T113: 8 | V113: =IF((S113=1)*($J$6<22),INDEX($J$13:$J$33,SUM($S$7:S113),1),"") ->  | W113: =COUNTIF($T$7:T113,T113) -> 7 | Y113: 6 | Z113: =INDEX(V:V,SUMPRODUCT((OFFSET($T$7,0,0,AuthorityCounter2,1)=Y113)*1,(OFFSET($W$7,0,0,AuthorityCounter2,1)=COUNTIF($Y$7:Y113,Y113))*1,ROW(OFFSET($W$7,0,0,AuthorityCounter2,1)))) ->  | AA113: 18.6504065 | AB113: =IF((Y113=AB$2)*(Z113=AC$3)*(SUM($AB$6:AB112)=0),+Y113,0) -> 0 | AC113: 6 | AE113: =IF($AE$6=3,O113,SUM((CODE(MID(CONCATENATE(UPPER(M113),"aaaaaaaaaa"),{1;2},1))-30)*{1;0.01})) -> 55.47 | AF113: =COUNTIF($AE$7:$AE113,AE113) -> 21 | AH113: 55.55 | AI113: 55.55 | AJ113: =COUNTIF($AI$7:$AI113,AI113) -> 26 | AK113: =IF($AE$6=1,L113,OFFSET($L$1,SUMPRODUCT(--(OFFSET($AE$7,0,0,AuthorityCounter,1)=AI113),--(OFFSET($AF$7,0,0,AuthorityCounter,1)=COUNTIF($AI$7:AI113,AI113)),ROW(OFFSET($AF$7,0,0,AuthorityCounter,1)))-1,0)) -> Tameside | AM113: =IF(VLOOKUP(AK113,colAM,IF($H$75="OC",8,5),FALSE)=1,MAX(AM$6:$AM112)+1,0) -> 107 | AN113: Tameside | AO113: FALSE | AP113: =IF($AP$5,SUM(SUMPRODUCT(--AO$7:$AO113)*AO113,(SUMPRODUCT(--(AO$7:$AO113=FALSE))+SUMPRODUCT(--colAP))*(1-AO113)),ROW()-6) -> 107 | AQ113: Tameside | AR113: Tameside | IT113: Page 28: Percentage supplied within 15 days | IU113: 0% | IV113: =AB7 -> 0
A114: (P.02)[03]Percentage supplied within 30 days | B114: 540 | C114: 2 | D114: 42 | E114: Page 42: Percentage supplied within 30 days | L114: Telford & Wrekin | M114: uu | O114: 9 | P114: =IF((ROW()-5=$G$36),1,IF((M114=Coding!$H$75)+(Coding!$H$75="ALL")+(Coding!$H$75="U")*OR(M114="W",M114="su",M114="L",M114="MD",M114="UA")+(Coding!$H$75="na")*AND(M114<>"W",M114<>"su",M114<>"L",M114<>"MD",M114<>"UA",M114<>"SC",M114<>"SD",M114<>"p"),1,0)) -> 1 | Q114: FALSE | R114: =IF(OR(NOT(ISERROR(MATCH(L114,OFFSET($H$410,$G$36-2,0,1,18),FALSE))),$G$75=L114),1,0+(($G$36=1)*($H$75="OC"))) -> 0 | S114: 1 | T114: 9 | V114: =IF((S114=1)*($J$6<22),INDEX($J$13:$J$33,SUM($S$7:S114),1),"") ->  | W114: =COUNTIF($T$7:T114,T114) -> 3 | Y114: 6 | Z114: =INDEX(V:V,SUMPRODUCT((OFFSET($T$7,0,0,AuthorityCounter2,1)=Y114)*1,(OFFSET($W$7,0,0,AuthorityCounter2,1)=COUNTIF($Y$7:Y114,Y114))*1,ROW(OFFSET($W$7,0,0,AuthorityCounter2,1)))) ->  | AA114: 18.6504065 | AB114: =IF((Y114=AB$2)*(Z114=AC$3)*(SUM($AB$6:AB113)=0),+Y114,0) -> 0 | AC114: 6 | AE114: =IF($AE$6=3,O114,SUM((CODE(MID(CONCATENATE(UPPER(M114),"aaaaaaaaaa"),{1;2},1))-30)*{1;0.01})) -> 55.55 | AF114: =COUNTIF($AE$7:$AE114,AE114) -> 37 | AH114: 55.55 | AI114: 55.55 | AJ114: =COUNTIF($AI$7:$AI114,AI114) -> 27 | AK114: =IF($AE$6=1,L114,OFFSET($L$1,SUMPRODUCT(--(OFFSET($AE$7,0,0,AuthorityCounter,1)=AI114),--(OFFSET($AF$7,0,0,AuthorityCounter,1)=COUNTIF($AI$7:AI114,AI114)),ROW(OFFSET($AF$7,0,0,AuthorityCounter,1)))-1,0)) -> Telford & Wrekin | AM114: =IF(VLOOKUP(AK114,colAM,IF($H$75="OC",8,5),FALSE)=1,MAX(AM$6:$AM113)+1,0) -> 108 | AN114: Telford & Wrekin | AO114: FALSE | AP114: =IF($AP$5,SUM(SUMPRODUCT(--AO$7:$AO114)*AO114,(SUMPRODUCT(--(AO$7:$AO114=FALSE))+SUMPRODUCT(--colAP))*(1-AO114)),ROW()-6) -> 108 | AQ114: Telford & Wrekin | AR114: Telford & Wrekin | IT114: Page 28: Percentage supplied within 30 days | IU114: 0% | IV114: =AB7 -> 0
A115: (P.01)[01]Percentage of Pupils who achieved a Standard 9-4 pass in English & Maths | B115: 675 | C115: 0 | D115: 47 | E115: Page 47: Percentage of Pupils who achieved a Standard 9-4 pass in English & Maths | L115: Thurrock | M115: uu | O115: 10 | P115: =IF((ROW()-5=$G$36),1,IF((M115=Coding!$H$75)+(Coding!$H$75="ALL")+(Coding!$H$75="U")*OR(M115="W",M115="su",M115="L",M115="MD",M115="UA")+(Coding!$H$75="na")*AND(M115<>"W",M115<>"su",M115<>"L",M115<>"MD",M115<>"UA",M115<>"SC",M115<>"SD",M115<>"p"),1,0)) -> 1 | Q115: FALSE | R115: =IF(OR(NOT(ISERROR(MATCH(L115,OFFSET($H$410,$G$36-2,0,1,18),FALSE))),$G$75=L115),1,0+(($G$36=1)*($H$75="OC"))) -> 0 | S115: 1 | T115: 10 | V115: =IF((S115=1)*($J$6<22),INDEX($J$13:$J$33,SUM($S$7:S115),1),"") ->  | W115: =COUNTIF($T$7:T115,T115) -> 6 | Y115: 6 | Z115: =INDEX(V:V,SUMPRODUCT((OFFSET($T$7,0,0,AuthorityCounter2,1)=Y115)*1,(OFFSET($W$7,0,0,AuthorityCounter2,1)=COUNTIF($Y$7:Y115,Y115))*1,ROW(OFFSET($W$7,0,0,AuthorityCounter2,1)))) ->  | AA115: 18.6504065 | AB115: =IF((Y115=AB$2)*(Z115=AC$3)*(SUM($AB$6:AB114)=0),+Y115,0) -> 0 | AC115: 6 | AE115: =IF($AE$6=3,O115,SUM((CODE(MID(CONCATENATE(UPPER(M115),"aaaaaaaaaa"),{1;2},1))-30)*{1;0.01})) -> 55.55 | AF115: =COUNTIF($AE$7:$AE115,AE115) -> 38 | AH115: 55.55 | AI115: 55.55 | AJ115: =COUNTIF($AI$7:$AI115,AI115) -> 28 | AK115: =IF($AE$6=1,L115,OFFSET($L$1,SUMPRODUCT(--(OFFSET($AE$7,0,0,AuthorityCounter,1)=AI115),--(OFFSET($AF$7,0,0,AuthorityCounter,1)=COUNTIF($AI$7:AI115,AI115)),ROW(OFFSET($AF$7,0,0,AuthorityCounter,1)))-1,0)) -> Thurrock | AM115: =IF(VLOOKUP(AK115,colAM,IF($H$75="OC",8,5),FALSE)=1,MAX(AM$6:$AM114)+1,0) -> 109 | AN115: Thurrock | AO115: FALSE | AP115: =IF($AP$5,SUM(SUMPRODUCT(--AO$7:$AO115)*AO115,(SUMPRODUCT(--(AO$7:$AO115=FALSE))+SUMPRODUCT(--colAP))*(1-AO115)),ROW()-6) -> 109 | AQ115: Thurrock | AR115: Thurrock | IT115: Page 29: Percentage of Pupils who achieved a Standard 9-4 pass in English & Maths | IU115: 0% | IV115: =AB7 -> 0
A116: (P.01)[02]Indices of Deprivation | B116: 675 | C116: 1 | D116: 47 | E116: Page 47: Indices of Deprivation | L116: Torbay | M116: uu | O116: 4 | P116: =IF((ROW()-5=$G$36),1,IF((M116=Coding!$H$75)+(Coding!$H$75="ALL")+(Coding!$H$75="U")*OR(M116="W",M116="su",M116="L",M116="MD",M116="UA")+(Coding!$H$75="na")*AND(M116<>"W",M116<>"su",M116<>"L",M116<>"MD",M116<>"UA",M116<>"SC",M116<>"SD",M116<>"p"),1,0)) -> 1 | Q116: FALSE | R116: =IF(OR(NOT(ISERROR(MATCH(L116,OFFSET($H$410,$G$36-2,0,1,18),FALSE))),$G$75=L116),1,0+(($G$36=1)*($H$75="OC"))) -> 0 | S116: 1 | T116: 4 | V116: =IF((S116=1)*($J$6<22),INDEX($J$13:$J$33,SUM($S$7:S116),1),"") ->  | W116: =COUNTIF($T$7:T116,T116) -> 7 | Y116: 6 | Z116: =INDEX(V:V,SUMPRODUCT((OFFSET($T$7,0,0,AuthorityCounter2,1)=Y116)*1,(OFFSET($W$7,0,0,AuthorityCounter2,1)=COUNTIF($Y$7:Y116,Y116))*1,ROW(OFFSET($W$7,0,0,AuthorityCounter2,1)))) ->  | AA116: 18.6504065 | AB116: =IF((Y116=AB$2)*(Z116=AC$3)*(SUM($AB$6:AB115)=0),+Y116,0) -> 0 | AC116: 6 | AE116: =IF($AE$6=3,O116,SUM((CODE(MID(CONCATENATE(UPPER(M116),"aaaaaaaaaa"),{1;2},1))-30)*{1;0.01})) -> 55.55 | AF116: =COUNTIF($AE$7:$AE116,AE116) -> 39 | AH116: 55.55 | AI116: 55.55 | AJ116: =COUNTIF($AI$7:$AI116,AI116) -> 29 | AK116: =IF($AE$6=1,L116,OFFSET($L$1,SUMPRODUCT(--(OFFSET($AE$7,0,0,AuthorityCounter,1)=AI116),--(OFFSET($AF$7,0,0,AuthorityCounter,1)=COUNTIF($AI$7:AI116,AI116)),ROW(OFFSET($AF$7,0,0,AuthorityCounter,1)))-1,0)) -> Torbay | AM116: =IF(VLOOKUP(AK116,colAM,IF($H$75="OC",8,5),FALSE)=1,MAX(AM$6:$AM115)+1,0) -> 110 | AN116: Torbay | AO116: FALSE | AP116: =IF($AP$5,SUM(SUMPRODUCT(--AO$7:$AO116)*AO116,(SUMPRODUCT(--(AO$7:$AO116=FALSE))+SUMPRODUCT(--colAP))*(1-AO116)),ROW()-6) -> 110 | AQ116: Torbay | AR116: Torbay | IT116: Page 29: Indices of Deprivation | IU116: #,##0 | IV116: =AB7 -> 0
A117: (P.02)[01]Population | B117: 675 | C117: 2 | D117: 48 | E117: Page 48: Population | L117: Tower Hamlets | M117: ul | O117: 8 | P117: =IF((ROW()-5=$G$36),1,IF((M117=Coding!$H$75)+(Coding!$H$75="ALL")+(Coding!$H$75="U")*OR(M117="W",M117="su",M117="L",M117="MD",M117="UA")+(Coding!$H$75="na")*AND(M117<>"W",M117<>"su",M117<>"L",M117<>"MD",M117<>"UA",M117<>"SC",M117<>"SD",M117<>"p"),1,0)) -> 1 | Q117: FALSE | R117: =IF(OR(NOT(ISERROR(MATCH(L117,OFFSET($H$410,$G$36-2,0,1,18),FALSE))),$G$75=L117),1,0+(($G$36=1)*($H$75="OC"))) -> 0 | S117: 1 | T117: 8 | V117: =IF((S117=1)*($J$6<22),INDEX($J$13:$J$33,SUM($S$7:S117),1),"") ->  | W117: =COUNTIF($T$7:T117,T117) -> 8 | Y117: 6 | Z117: =INDEX(V:V,SUMPRODUCT((OFFSET($T$7,0,0,AuthorityCounter2,1)=Y117)*1,(OFFSET($W$7,0,0,AuthorityCounter2,1)=COUNTIF($Y$7:Y117,Y117))*1,ROW(OFFSET($W$7,0,0,AuthorityCounter2,1)))) ->  | AA117: 18.6504065 | AB117: =IF((Y117=AB$2)*(Z117=AC$3)*(SUM($AB$6:AB116)=0),+Y117,0) -> 0 | AC117: 6 | AE117: =IF($AE$6=3,O117,SUM((CODE(MID(CONCATENATE(UPPER(M117),"aaaaaaaaaa"),{1;2},1))-30)*{1;0.01})) -> 55.46 | AF117: =COUNTIF($AE$7:$AE117,AE117) -> 27 | AH117: 55.55 | AI117: 55.55 | AJ117: =COUNTIF($AI$7:$AI117,AI117) -> 30 | AK117: =IF($AE$6=1,L117,OFFSET($L$1,SUMPRODUCT(--(OFFSET($AE$7,0,0,AuthorityCounter,1)=AI117),--(OFFSET($AF$7,0,0,AuthorityCounter,1)=COUNTIF($AI$7:AI117,AI117)),ROW(OFFSET($AF$7,0,0,AuthorityCounter,1)))-1,0)) -> Tower Hamlets | AM117: =IF(VLOOKUP(AK117,colAM,IF($H$75="OC",8,5),FALSE)=1,MAX(AM$6:$AM116)+1,0) -> 111 | AN117: Tower Hamlets | AO117: FALSE | AP117: =IF($AP$5,SUM(SUMPRODUCT(--AO$7:$AO117)*AO117,(SUMPRODUCT(--(AO$7:$AO117=FALSE))+SUMPRODUCT(--colAP))*(1-AO117)),ROW()-6) -> 111 | AQ117: Tower Hamlets | AR117: Tower Hamlets | IT117: Page 30: Population | IU117: #,##0 | IV117: =AB7 -> 0
A118: (P.02)[02]Area (hectares) | B118: 675 | C118: 3 | D118: 48 | E118: Page 48: Area (hectares) | L118: Trafford | M118: um | O118: 11 | P118: =IF((ROW()-5=$G$36),1,IF((M118=Coding!$H$75)+(Coding!$H$75="ALL")+(Coding!$H$75="U")*OR(M118="W",M118="su",M118="L",M118="MD",M118="UA")+(Coding!$H$75="na")*AND(M118<>"W",M118<>"su",M118<>"L",M118<>"MD",M118<>"UA",M118<>"SC",M118<>"SD",M118<>"p"),1,0)) -> 1 | Q118: FALSE | R118: =IF(OR(NOT(ISERROR(MATCH(L118,OFFSET($H$410,$G$36-2,0,1,18),FALSE))),$G$75=L118),1,0+(($G$36=1)*($H$75="OC"))) -> 0 | S118: 1 | T118: 11 | V118: =IF((S118=1)*($J$6<22),INDEX($J$13:$J$33,SUM($S$7:S118),1),"") ->  | W118: =COUNTIF($T$7:T118,T118) -> 6 | Y118: 6 | Z118: =INDEX(V:V,SUMPRODUCT((OFFSET($T$7,0,0,AuthorityCounter2,1)=Y118)*1,(OFFSET($W$7,0,0,AuthorityCounter2,1)=COUNTIF($Y$7:Y118,Y118))*1,ROW(OFFSET($W$7,0,0,AuthorityCounter2,1)))) ->  | AA118: 18.6504065 | AB118: =IF((Y118=AB$2)*(Z118=AC$3)*(SUM($AB$6:AB117)=0),+Y118,0) -> 0 | AC118: 6 | AE118: =IF($AE$6=3,O118,SUM((CODE(MID(CONCATENATE(UPPER(M118),"aaaaaaaaaa"),{1;2},1))-30)*{1;0.01})) -> 55.47 | AF118: =COUNTIF($AE$7:$AE118,AE118) -> 22 | AH118: 55.55 | AI118: 55.55 | AJ118: =COUNTIF($AI$7:$AI118,AI118) -> 31 | AK118: =IF($AE$6=1,L118,OFFSET($L$1,SUMPRODUCT(--(OFFSET($AE$7,0,0,AuthorityCounter,1)=AI118),--(OFFSET($AF$7,0,0,AuthorityCounter,1)=COUNTIF($AI$7:AI118,AI118)),ROW(OFFSET($AF$7,0,0,AuthorityCounter,1)))-1,0)) -> Trafford | AM118: =IF(VLOOKUP(AK118,colAM,IF($H$75="OC",8,5),FALSE)=1,MAX(AM$6:$AM117)+1,0) -> 112 | AN118: Trafford | AO118: FALSE | AP118: =IF($AP$5,SUM(SUMPRODUCT(--AO$7:$AO118)*AO118,(SUMPRODUCT(--(AO$7:$AO118=FALSE))+SUMPRODUCT(--colAP))*(1-AO118)),ROW()-6) -> 112 | AQ118: Trafford | AR118: Trafford | IT118: Page 30: Area (hectares) | IU118: #,##0 | IV118: =AB7 -> 0
A119: (P.02)[03]Population Density | B119: 675 | C119: 4 | D119: 48 | E119: Page 48: Population Density | L119: Waltham Forest | M119: ul | O119: 9 | P119: =IF((ROW()-5=$G$36),1,IF((M119=Coding!$H$75)+(Coding!$H$75="ALL")+(Coding!$H$75="U")*OR(M119="W",M119="su",M119="L",M119="MD",M119="UA")+(Coding!$H$75="na")*AND(M119<>"W",M119<>"su",M119<>"L",M119<>"MD",M119<>"UA",M119<>"SC",M119<>"SD",M119<>"p"),1,0)) -> 1 | Q119: FALSE | R119: =IF(OR(NOT(ISERROR(MATCH(L119,OFFSET($H$410,$G$36-2,0,1,18),FALSE))),$G$75=L119),1,0+(($G$36=1)*($H$75="OC"))) -> 0 | S119: 1 | T119: 9 | V119: =IF((S119=1)*($J$6<22),INDEX($J$13:$J$33,SUM($S$7:S119),1),"") ->  | W119: =COUNTIF($T$7:T119,T119) -> 4 | Y119: 6 | Z119: =INDEX(V:V,SUMPRODUCT((OFFSET($T$7,0,0,AuthorityCounter2,1)=Y119)*1,(OFFSET($W$7,0,0,AuthorityCounter2,1)=COUNTIF($Y$7:Y119,Y119))*1,ROW(OFFSET($W$7,0,0,AuthorityCounter2,1)))) ->  | AA119: 18.6504065 | AB119: =IF((Y119=AB$2)*(Z119=AC$3)*(SUM($AB$6:AB118)=0),+Y119,0) -> 0 | AC119: 6 | AE119: =IF($AE$6=3,O119,SUM((CODE(MID(CONCATENATE(UPPER(M119),"aaaaaaaaaa"),{1;2},1))-30)*{1;0.01})) -> 55.46 | AF119: =COUNTIF($AE$7:$AE119,AE119) -> 28 | AH119: 55.55 | AI119: 55.55 | AJ119: =COUNTIF($AI$7:$AI119,AI119) -> 32 | AK119: =IF($AE$6=1,L119,OFFSET($L$1,SUMPRODUCT(--(OFFSET($AE$7,0,0,AuthorityCounter,1)=AI119),--(OFFSET($AF$7,0,0,AuthorityCounter,1)=COUNTIF($AI$7:AI119,AI119)),ROW(OFFSET($AF$7,0,0,AuthorityCounter,1)))-1,0)) -> Waltham Forest | AM119: =IF(VLOOKUP(AK119,colAM,IF($H$75="OC",8,5),FALSE)=1,MAX(AM$6:$AM118)+1,0) -> 113 | AN119: Waltham Forest | AO119: FALSE | AP119: =IF($AP$5,SUM(SUMPRODUCT(--AO$7:$AO119)*AO119,(SUMPRODUCT(--(AO$7:$AO119=FALSE))+SUMPRODUCT(--colAP))*(1-AO119)),ROW()-6) -> 113 | AQ119: Waltham Forest | AR119: Waltham Forest | IT119: Page 30: Population Density | IU119: #,##0 | IV119: =AB7 -> 0
L120: Wandsworth | M120: ul | O120: 11 | P120: =IF((ROW()-5=$G$36),1,IF((M120=Coding!$H$75)+(Coding!$H$75="ALL")+(Coding!$H$75="U")*OR(M120="W",M120="su",M120="L",M120="MD",M120="UA")+(Coding!$H$75="na")*AND(M120<>"W",M120<>"su",M120<>"L",M120<>"MD",M120<>"UA",M120<>"SC",M120<>"SD",M120<>"p"),1,0)) -> 1 | Q120: FALSE | R120: =IF(OR(NOT(ISERROR(MATCH(L120,OFFSET($H$410,$G$36-2,0,1,18),FALSE))),$G$75=L120),1,0+(($G$36=1)*($H$75="OC"))) -> 0 | S120: 1 | T120: 11 | V120: =IF((S120=1)*($J$6<22),INDEX($J$13:$J$33,SUM($S$7:S120),1),"") ->  | W120: =COUNTIF($T$7:T120,T120) -> 7 | Y120: 6 | Z120: =INDEX(V:V,SUMPRODUCT((OFFSET($T$7,0,0,AuthorityCounter2,1)=Y120)*1,(OFFSET($W$7,0,0,AuthorityCounter2,1)=COUNTIF($Y$7:Y120,Y120))*1,ROW(OFFSET($W$7,0,0,AuthorityCounter2,1)))) ->  | AA120: 18.6504065 | AB120: =IF((Y120=AB$2)*(Z120=AC$3)*(SUM($AB$6:AB119)=0),+Y120,0) -> 0 | AC120: 6 | AE120: =IF($AE$6=3,O120,SUM((CODE(MID(CONCATENATE(UPPER(M120),"aaaaaaaaaa"),{1;2},1))-30)*{1;0.01})) -> 55.46 | AF120: =COUNTIF($AE$7:$AE120,AE120) -> 29 | AH120: 55.55 | AI120: 55.55 | AJ120: =COUNTIF($AI$7:$AI120,AI120) -> 33 | AK120: =IF($AE$6=1,L120,OFFSET($L$1,SUMPRODUCT(--(OFFSET($AE$7,0,0,AuthorityCounter,1)=AI120),--(OFFSET($AF$7,0,0,AuthorityCounter,1)=COUNTIF($AI$7:AI120,AI120)),ROW(OFFSET($AF$7,0,0,AuthorityCounter,1)))-1,0)) -> Wandsworth | AM120: =IF(VLOOKUP(AK120,colAM,IF($H$75="OC",8,5),FALSE)=1,MAX(AM$6:$AM119)+1,0) -> 114 | AN120: Wandsworth | AO120: FALSE | AP120: =IF($AP$5,SUM(SUMPRODUCT(--AO$7:$AO120)*AO120,(SUMPRODUCT(--(AO$7:$AO120=FALSE))+SUMPRODUCT(--colAP))*(1-AO120)),ROW()-6) -> 114 | AQ120: Wandsworth | AR120: Wandsworth
L121: Warrington | M121: uu | O121: 12 | P121: =IF((ROW()-5=$G$36),1,IF((M121=Coding!$H$75)+(Coding!$H$75="ALL")+(Coding!$H$75="U")*OR(M121="W",M121="su",M121="L",M121="MD",M121="UA")+(Coding!$H$75="na")*AND(M121<>"W",M121<>"su",M121<>"L",M121<>"MD",M121<>"UA",M121<>"SC",M121<>"SD",M121<>"p"),1,0)) -> 1 | Q121: FALSE | R121: =IF(OR(NOT(ISERROR(MATCH(L121,OFFSET($H$410,$G$36-2,0,1,18),FALSE))),$G$75=L121),1,0+(($G$36=1)*($H$75="OC"))) -> 0 | S121: 1 | T121: 12 | V121: =IF((S121=1)*($J$6<22),INDEX($J$13:$J$33,SUM($S$7:S121),1),"") ->  | W121: =COUNTIF($T$7:T121,T121) -> 9 | Y121: 5 | Z121: =INDEX(V:V,SUMPRODUCT((OFFSET($T$7,0,0,AuthorityCounter2,1)=Y121)*1,(OFFSET($W$7,0,0,AuthorityCounter2,1)=COUNTIF($Y$7:Y121,Y121))*1,ROW(OFFSET($W$7,0,0,AuthorityCounter2,1)))) ->  | AA121: 18.6504065 | AB121: =IF((Y121=AB$2)*(Z121=AC$3)*(SUM($AB$6:AB120)=0),+Y121,0) -> 0 | AC121: 5 | AE121: =IF($AE$6=3,O121,SUM((CODE(MID(CONCATENATE(UPPER(M121),"aaaaaaaaaa"),{1;2},1))-30)*{1;0.01})) -> 55.55 | AF121: =COUNTIF($AE$7:$AE121,AE121) -> 40 | AH121: 55.55 | AI121: 55.55 | AJ121: =COUNTIF($AI$7:$AI121,AI121) -> 34 | AK121: =IF($AE$6=1,L121,OFFSET($L$1,SUMPRODUCT(--(OFFSET($AE$7,0,0,AuthorityCounter,1)=AI121),--(OFFSET($AF$7,0,0,AuthorityCounter,1)=COUNTIF($AI$7:AI121,AI121)),ROW(OFFSET($AF$7,0,0,AuthorityCounter,1)))-1,0)) -> Warrington | AM121: =IF(VLOOKUP(AK121,colAM,IF($H$75="OC",8,5),FALSE)=1,MAX(AM$6:$AM120)+1,0) -> 115 | AN121: Warrington | AO121: FALSE | AP121: =IF($AP$5,SUM(SUMPRODUCT(--AO$7:$AO121)*AO121,(SUMPRODUCT(--(AO$7:$AO121=FALSE))+SUMPRODUCT(--colAP))*(1-AO121)),ROW()-6) -> 115 | AQ121: Warrington | AR121: Warrington
L122: Warwickshire | M122: c | O122: 22 | P122: =IF((ROW()-5=$G$36),1,IF((M122=Coding!$H$75)+(Coding!$H$75="ALL")+(Coding!$H$75="U")*OR(M122="W",M122="su",M122="L",M122="MD",M122="UA")+(Coding!$H$75="na")*AND(M122<>"W",M122<>"su",M122<>"L",M122<>"MD",M122<>"UA",M122<>"SC",M122<>"SD",M122<>"p"),1,0)) -> 1 | Q122: FALSE | R122: =IF(OR(NOT(ISERROR(MATCH(L122,OFFSET($H$410,$G$36-2,0,1,18),FALSE))),$G$75=L122),1,0+(($G$36=1)*($H$75="OC"))) -> 0 | S122: 1 | T122: 22 | V122: =IF((S122=1)*($J$6<22),INDEX($J$13:$J$33,SUM($S$7:S122),1),"") ->  | W122: =COUNTIF($T$7:T122,T122) -> 4 | Y122: 5 | Z122: =INDEX(V:V,SUMPRODUCT((OFFSET($T$7,0,0,AuthorityCounter2,1)=Y122)*1,(OFFSET($W$7,0,0,AuthorityCounter2,1)=COUNTIF($Y$7:Y122,Y122))*1,ROW(OFFSET($W$7,0,0,AuthorityCounter2,1)))) ->  | AA122: 18.6504065 | AB122: =IF((Y122=AB$2)*(Z122=AC$3)*(SUM($AB$6:AB121)=0),+Y122,0) -> 0 | AC122: 5 | AE122: =IF($AE$6=3,O122,SUM((CODE(MID(CONCATENATE(UPPER(M122),"aaaaaaaaaa"),{1;2},1))-30)*{1;0.01})) -> 37.67 | AF122: =COUNTIF($AE$7:$AE122,AE122) -> 25 | AH122: 55.55 | AI122: 55.55 | AJ122: =COUNTIF($AI$7:$AI122,AI122) -> 35 | AK122: =IF($AE$6=1,L122,OFFSET($L$1,SUMPRODUCT(--(OFFSET($AE$7,0,0,AuthorityCounter,1)=AI122),--(OFFSET($AF$7,0,0,AuthorityCounter,1)=COUNTIF($AI$7:AI122,AI122)),ROW(OFFSET($AF$7,0,0,AuthorityCounter,1)))-1,0)) -> Warwickshire | AM122: =IF(VLOOKUP(AK122,colAM,IF($H$75="OC",8,5),FALSE)=1,MAX(AM$6:$AM121)+1,0) -> 116 | AN122: Warwickshire | AO122: FALSE | AP122: =IF($AP$5,SUM(SUMPRODUCT(--AO$7:$AO122)*AO122,(SUMPRODUCT(--(AO$7:$AO122=FALSE))+SUMPRODUCT(--colAP))*(1-AO122)),ROW()-6) -> 116 | AQ122: Warwickshire | AR122: Warwickshire
L123: West Berkshire | M123: uu | O123: 9 | P123: =IF((ROW()-5=$G$36),1,IF((M123=Coding!$H$75)+(Coding!$H$75="ALL")+(Coding!$H$75="U")*OR(M123="W",M123="su",M123="L",M123="MD",M123="UA")+(Coding!$H$75="na")*AND(M123<>"W",M123<>"su",M123<>"L",M123<>"MD",M123<>"UA",M123<>"SC",M123<>"SD",M123<>"p"),1,0)) -> 1 | Q123: FALSE | R123: =IF(OR(NOT(ISERROR(MATCH(L123,OFFSET($H$410,$G$36-2,0,1,18),FALSE))),$G$75=L123),1,0+(($G$36=1)*($H$75="OC"))) -> 0 | S123: 1 | T123: 9 | V123: =IF((S123=1)*($J$6<22),INDEX($J$13:$J$33,SUM($S$7:S123),1),"") ->  | W123: =COUNTIF($T$7:T123,T123) -> 5 | Y123: 5 | Z123: =INDEX(V:V,SUMPRODUCT((OFFSET($T$7,0,0,AuthorityCounter2,1)=Y123)*1,(OFFSET($W$7,0,0,AuthorityCounter2,1)=COUNTIF($Y$7:Y123,Y123))*1,ROW(OFFSET($W$7,0,0,AuthorityCounter2,1)))) ->  | AA123: 18.6504065 | AB123: =IF((Y123=AB$2)*(Z123=AC$3)*(SUM($AB$6:AB122)=0),+Y123,0) -> 0 | AC123: 5 | AE123: =IF($AE$6=3,O123,SUM((CODE(MID(CONCATENATE(UPPER(M123),"aaaaaaaaaa"),{1;2},1))-30)*{1;0.01})) -> 55.55 | AF123: =COUNTIF($AE$7:$AE123,AE123) -> 41 | AH123: 55.55 | AI123: 55.55 | AJ123: =COUNTIF($AI$7:$AI123,AI123) -> 36 | AK123: =IF($AE$6=1,L123,OFFSET($L$1,SUMPRODUCT(--(OFFSET($AE$7,0,0,AuthorityCounter,1)=AI123),--(OFFSET($AF$7,0,0,AuthorityCounter,1)=COUNTIF($AI$7:AI123,AI123)),ROW(OFFSET($AF$7,0,0,AuthorityCounter,1)))-1,0)) -> West Berkshire | AM123: =IF(VLOOKUP(AK123,colAM,IF($H$75="OC",8,5),FALSE)=1,MAX(AM$6:$AM122)+1,0) -> 117 | AN123: West Berkshire | AO123: FALSE | AP123: =IF($AP$5,SUM(SUMPRODUCT(--AO$7:$AO123)*AO123,(SUMPRODUCT(--(AO$7:$AO123=FALSE))+SUMPRODUCT(--colAP))*(1-AO123)),ROW()-6) -> 117 | AQ123: West Berkshire | AR123: West Berkshire
L124: West Sussex | M124: c | O124: 38 | P124: =IF((ROW()-5=$G$36),1,IF((M124=Coding!$H$75)+(Coding!$H$75="ALL")+(Coding!$H$75="U")*OR(M124="W",M124="su",M124="L",M124="MD",M124="UA")+(Coding!$H$75="na")*AND(M124<>"W",M124<>"su",M124<>"L",M124<>"MD",M124<>"UA",M124<>"SC",M124<>"SD",M124<>"p"),1,0)) -> 1 | Q124: FALSE | R124: =IF(OR(NOT(ISERROR(MATCH(L124,OFFSET($H$410,$G$36-2,0,1,18),FALSE))),$G$75=L124),1,0+(($G$36=1)*($H$75="OC"))) -> 0 | S124: 1 | T124: 38 | V124: =IF((S124=1)*($J$6<22),INDEX($J$13:$J$33,SUM($S$7:S124),1),"") ->  | W124: =COUNTIF($T$7:T124,T124) -> 1 | Y124: 4 | Z124: =INDEX(V:V,SUMPRODUCT((OFFSET($T$7,0,0,AuthorityCounter2,1)=Y124)*1,(OFFSET($W$7,0,0,AuthorityCounter2,1)=COUNTIF($Y$7:Y124,Y124))*1,ROW(OFFSET($W$7,0,0,AuthorityCounter2,1)))) ->  | AA124: 18.6504065 | AB124: =IF((Y124=AB$2)*(Z124=AC$3)*(SUM($AB$6:AB123)=0),+Y124,0) -> 0 | AC124: 4 | AE124: =IF($AE$6=3,O124,SUM((CODE(MID(CONCATENATE(UPPER(M124),"aaaaaaaaaa"),{1;2},1))-30)*{1;0.01})) -> 37.67 | AF124: =COUNTIF($AE$7:$AE124,AE124) -> 26 | AH124: 55.55 | AI124: 55.55 | AJ124: =COUNTIF($AI$7:$AI124,AI124) -> 37 | AK124: =IF($AE$6=1,L124,OFFSET($L$1,SUMPRODUCT(--(OFFSET($AE$7,0,0,AuthorityCounter,1)=AI124),--(OFFSET($AF$7,0,0,AuthorityCounter,1)=COUNTIF($AI$7:AI124,AI124)),ROW(OFFSET($AF$7,0,0,AuthorityCounter,1)))-1,0)) -> West Sussex | AM124: =IF(VLOOKUP(AK124,colAM,IF($H$75="OC",8,5),FALSE)=1,MAX(AM$6:$AM123)+1,0) -> 118 | AN124: West Sussex | AO124: FALSE | AP124: =IF($AP$5,SUM(SUMPRODUCT(--AO$7:$AO124)*AO124,(SUMPRODUCT(--(AO$7:$AO124=FALSE))+SUMPRODUCT(--colAP))*(1-AO124)),ROW()-6) -> 118 | AQ124: West Sussex | AR124: West Sussex
L125: Westminster | M125: ul | O125: 11 | P125: =IF((ROW()-5=$G$36),1,IF((M125=Coding!$H$75)+(Coding!$H$75="ALL")+(Coding!$H$75="U")*OR(M125="W",M125="su",M125="L",M125="MD",M125="UA")+(Coding!$H$75="na")*AND(M125<>"W",M125<>"su",M125<>"L",M125<>"MD",M125<>"UA",M125<>"SC",M125<>"SD",M125<>"p"),1,0)) -> 1 | Q125: FALSE | R125: =IF(OR(NOT(ISERROR(MATCH(L125,OFFSET($H$410,$G$36-2,0,1,18),FALSE))),$G$75=L125),1,0+(($G$36=1)*($H$75="OC"))) -> 0 | S125: 1 | T125: 11 | V125: =IF((S125=1)*($J$6<22),INDEX($J$13:$J$33,SUM($S$7:S125),1),"") ->  | W125: =COUNTIF($T$7:T125,T125) -> 8 | Y125: 4 | Z125: =INDEX(V:V,SUMPRODUCT((OFFSET($T$7,0,0,AuthorityCounter2,1)=Y125)*1,(OFFSET($W$7,0,0,AuthorityCounter2,1)=COUNTIF($Y$7:Y125,Y125))*1,ROW(OFFSET($W$7,0,0,AuthorityCounter2,1)))) ->  | AA125: 18.6504065 | AB125: =IF((Y125=AB$2)*(Z125=AC$3)*(SUM($AB$6:AB124)=0),+Y125,0) -> 0 | AC125: 4 | AE125: =IF($AE$6=3,O125,SUM((CODE(MID(CONCATENATE(UPPER(M125),"aaaaaaaaaa"),{1;2},1))-30)*{1;0.01})) -> 55.46 | AF125: =COUNTIF($AE$7:$AE125,AE125) -> 30 | AH125: 55.55 | AI125: 55.55 | AJ125: =COUNTIF($AI$7:$AI125,AI125) -> 38 | AK125: =IF($AE$6=1,L125,OFFSET($L$1,SUMPRODUCT(--(OFFSET($AE$7,0,0,AuthorityCounter,1)=AI125),--(OFFSET($AF$7,0,0,AuthorityCounter,1)=COUNTIF($AI$7:AI125,AI125)),ROW(OFFSET($AF$7,0,0,AuthorityCounter,1)))-1,0)) -> Westminster | AM125: =IF(VLOOKUP(AK125,colAM,IF($H$75="OC",8,5),FALSE)=1,MAX(AM$6:$AM124)+1,0) -> 119 | AN125: Westminster | AO125: FALSE | AP125: =IF($AP$5,SUM(SUMPRODUCT(--AO$7:$AO125)*AO125,(SUMPRODUCT(--(AO$7:$AO125=FALSE))+SUMPRODUCT(--colAP))*(1-AO125)),ROW()-6) -> 119 | AQ125: Westminster | AR125: Westminster
L126: Wiltshire | M126: uu | O126: 34 | P126: =IF((ROW()-5=$G$36),1,IF((M126=Coding!$H$75)+(Coding!$H$75="ALL")+(Coding!$H$75="U")*OR(M126="W",M126="su",M126="L",M126="MD",M126="UA")+(Coding!$H$75="na")*AND(M126<>"W",M126<>"su",M126<>"L",M126<>"MD",M126<>"UA",M126<>"SC",M126<>"SD",M126<>"p"),1,0)) -> 1 | Q126: FALSE | R126: =IF(OR(NOT(ISERROR(MATCH(L126,OFFSET($H$410,$G$36-2,0,1,18),FALSE))),$G$75=L126),1,0+(($G$36=1)*($H$75="OC"))) -> 0 | S126: 1 | T126: 34 | V126: =IF((S126=1)*($J$6<22),INDEX($J$13:$J$33,SUM($S$7:S126),1),"") ->  | W126: =COUNTIF($T$7:T126,T126) -> 1 | Y126: 4 | Z126: =INDEX(V:V,SUMPRODUCT((OFFSET($T$7,0,0,AuthorityCounter2,1)=Y126)*1,(OFFSET($W$7,0,0,AuthorityCounter2,1)=COUNTIF($Y$7:Y126,Y126))*1,ROW(OFFSET($W$7,0,0,AuthorityCounter2,1)))) ->  | AA126: 18.6504065 | AB126: =IF((Y126=AB$2)*(Z126=AC$3)*(SUM($AB$6:AB125)=0),+Y126,0) -> 0 | AC126: 4 | AE126: =IF($AE$6=3,O126,SUM((CODE(MID(CONCATENATE(UPPER(M126),"aaaaaaaaaa"),{1;2},1))-30)*{1;0.01})) -> 55.55 | AF126: =COUNTIF($AE$7:$AE126,AE126) -> 42 | AH126: 55.55 | AI126: 55.55 | AJ126: =COUNTIF($AI$7:$AI126,AI126) -> 39 | AK126: =IF($AE$6=1,L126,OFFSET($L$1,SUMPRODUCT(--(OFFSET($AE$7,0,0,AuthorityCounter,1)=AI126),--(OFFSET($AF$7,0,0,AuthorityCounter,1)=COUNTIF($AI$7:AI126,AI126)),ROW(OFFSET($AF$7,0,0,AuthorityCounter,1)))-1,0)) -> Wiltshire | AM126: =IF(VLOOKUP(AK126,colAM,IF($H$75="OC",8,5),FALSE)=1,MAX(AM$6:$AM125)+1,0) -> 120 | AN126: Wiltshire | AO126: FALSE | AP126: =IF($AP$5,SUM(SUMPRODUCT(--AO$7:$AO126)*AO126,(SUMPRODUCT(--(AO$7:$AO126=FALSE))+SUMPRODUCT(--colAP))*(1-AO126)),ROW()-6) -> 120 | AQ126: Wiltshire | AR126: Wiltshire
L127: Windsor & Maidenhead | M127: uu | O127: 18 | P127: =IF((ROW()-5=$G$36),1,IF((M127=Coding!$H$75)+(Coding!$H$75="ALL")+(Coding!$H$75="U")*OR(M127="W",M127="su",M127="L",M127="MD",M127="UA")+(Coding!$H$75="na")*AND(M127<>"W",M127<>"su",M127<>"L",M127<>"MD",M127<>"UA",M127<>"SC",M127<>"SD",M127<>"p"),1,0)) -> 1 | Q127: FALSE | R127: =IF(OR(NOT(ISERROR(MATCH(L127,OFFSET($H$410,$G$36-2,0,1,18),FALSE))),$G$75=L127),1,0+(($G$36=1)*($H$75="OC"))) -> 0 | S127: 1 | T127: 18 | V127: =IF((S127=1)*($J$6<22),INDEX($J$13:$J$33,SUM($S$7:S127),1),"") ->  | W127: =COUNTIF($T$7:T127,T127) -> 1 | Y127: 4 | Z127: =INDEX(V:V,SUMPRODUCT((OFFSET($T$7,0,0,AuthorityCounter2,1)=Y127)*1,(OFFSET($W$7,0,0,AuthorityCounter2,1)=COUNTIF($Y$7:Y127,Y127))*1,ROW(OFFSET($W$7,0,0,AuthorityCounter2,1)))) ->  | AA127: 18.6504065 | AB127: =IF((Y127=AB$2)*(Z127=AC$3)*(SUM($AB$6:AB126)=0),+Y127,0) -> 0 | AC127: 4 | AE127: =IF($AE$6=3,O127,SUM((CODE(MID(CONCATENATE(UPPER(M127),"aaaaaaaaaa"),{1;2},1))-30)*{1;0.01})) -> 55.55 | AF127: =COUNTIF($AE$7:$AE127,AE127) -> 43 | AH127: 55.55 | AI127: 55.55 | AJ127: =COUNTIF($AI$7:$AI127,AI127) -> 40 | AK127: =IF($AE$6=1,L127,OFFSET($L$1,SUMPRODUCT(--(OFFSET($AE$7,0,0,AuthorityCounter,1)=AI127),--(OFFSET($AF$7,0,0,AuthorityCounter,1)=COUNTIF($AI$7:AI127,AI127)),ROW(OFFSET($AF$7,0,0,AuthorityCounter,1)))-1,0)) -> Windsor & Maidenhead | AM127: =IF(VLOOKUP(AK127,colAM,IF($H$75="OC",8,5),FALSE)=1,MAX(AM$6:$AM126)+1,0) -> 121 | AN127: Windsor & Maidenhead | AO127: FALSE | AP127: =IF($AP$5,SUM(SUMPRODUCT(--AO$7:$AO127)*AO127,(SUMPRODUCT(--(AO$7:$AO127=FALSE))+SUMPRODUCT(--colAP))*(1-AO127)),ROW()-6) -> 121 | AQ127: Windsor & Maidenhead | AR127: Windsor & Maidenhead
L128: Wirral | M128: um | O128: 24 | P128: =IF((ROW()-5=$G$36),1,IF((M128=Coding!$H$75)+(Coding!$H$75="ALL")+(Coding!$H$75="U")*OR(M128="W",M128="su",M128="L",M128="MD",M128="UA")+(Coding!$H$75="na")*AND(M128<>"W",M128<>"su",M128<>"L",M128<>"MD",M128<>"UA",M128<>"SC",M128<>"SD",M128<>"p"),1,0)) -> 1 | Q128: FALSE | R128: =IF(OR(NOT(ISERROR(MATCH(L128,OFFSET($H$410,$G$36-2,0,1,18),FALSE))),$G$75=L128),1,0+(($G$36=1)*($H$75="OC"))) -> 0 | S128: 1 | T128: 24 | V128: =IF((S128=1)*($J$6<22),INDEX($J$13:$J$33,SUM($S$7:S128),1),"") ->  | W128: =COUNTIF($T$7:T128,T128) -> 2 | Y128: 4 | Z128: =INDEX(V:V,SUMPRODUCT((OFFSET($T$7,0,0,AuthorityCounter2,1)=Y128)*1,(OFFSET($W$7,0,0,AuthorityCounter2,1)=COUNTIF($Y$7:Y128,Y128))*1,ROW(OFFSET($W$7,0,0,AuthorityCounter2,1)))) ->  | AA128: 18.6504065 | AB128: =IF((Y128=AB$2)*(Z128=AC$3)*(SUM($AB$6:AB127)=0),+Y128,0) -> 0 | AC128: 4 | AE128: =IF($AE$6=3,O128,SUM((CODE(MID(CONCATENATE(UPPER(M128),"aaaaaaaaaa"),{1;2},1))-30)*{1;0.01})) -> 55.47 | AF128: =COUNTIF($AE$7:$AE128,AE128) -> 23 | AH128: 55.55 | AI128: 55.55 | AJ128: =COUNTIF($AI$7:$AI128,AI128) -> 41 | AK128: =IF($AE$6=1,L128,OFFSET($L$1,SUMPRODUCT(--(OFFSET($AE$7,0,0,AuthorityCounter,1)=AI128),--(OFFSET($AF$7,0,0,AuthorityCounter,1)=COUNTIF($AI$7:AI128,AI128)),ROW(OFFSET($AF$7,0,0,AuthorityCounter,1)))-1,0)) -> Wirral | AM128: =IF(VLOOKUP(AK128,colAM,IF($H$75="OC",8,5),FALSE)=1,MAX(AM$6:$AM127)+1,0) -> 122 | AN128: Wirral | AO128: FALSE | AP128: =IF($AP$5,SUM(SUMPRODUCT(--AO$7:$AO128)*AO128,(SUMPRODUCT(--(AO$7:$AO128=FALSE))+SUMPRODUCT(--colAP))*(1-AO128)),ROW()-6) -> 122 | AQ128: Wirral | AR128: Wirral
